Workbook

Sheet selite
A1: VM/KAO/vs
A3: KUNTAKONSERNIN TALOUDEN SUUNNITTELUKEHIKKO
A4: Kuntakonsernin talouden tulevan kehityksen arvioinnin suunnitteluun
A6: Kehikon käyttötarkoitus:
A7: Vuorovaikutteinen kuntakonsernin talouden suunnittelun apuväline. Kehikon avulla voidaan suunnitella konsernin talouden
A8: kehitystä pidemmällä aikavälillä. Tarkastelun kohteena ovat konsernin tuloslaskelma, rahoituslaskelmasta rahavarat, antolainat ja
A9: investoinnit sekä taseesta lainat ja kertynyt yli-/alijäämä. Pohjatietoina kehikossa ovat 2 viimeksi
A10: valmistunutta tilinpäätöstä.
A12: Tulevan kehityksen osalta tuloslaskelman erien kasvuolettamukset pohjautuvat lähtökohtaisesti
A13: uusimman kuntatalousohjelman mukaisiin makroennusteisiin.
A14: Käyttäjä voi kuitenkin itse muokata em. muutosolettamuksia sekä muita tuloslaskelman eriä.
A15: Myös tuloveroprosenttia, investointeja ja antolainasaamisten määrää voidaan muuttaa.
A16: Rahoituslaskelman ja taseen erät pohjautuvat jäljempänä selostettuihin olettamuksiin
A17: (pl. taseen kertynyt yli-/alijäämä = ed. tilikausien yli-/alijäämä + tilikauden yli-/alijäämä).
A19: Käyttäjä voi muokata vaaleansinisellä pohjalla olevia kohtia (soluja).
A21: Kehikon laskentapohja:
A22: Asukasluku:
A23: Kunnan asukaslukuina käytetään lähtökohtaisesti viimeisintä väestötietoa (31.12.20XX). Tulevien vuosien
A24: osalta asukaslukutiedot perustuvat Tilastokeskuksen viimeisimpään väestöennusteeseen (TK, 20XX).
A25: Tuloveroprosentti:
A26: Tuloveroprosentti perustuu viimeksi vahvistettuun tietoon.
A27: Tulevien vuosien tuloveroprosentti on lähtökohtaisesti sama kuin edellisvuonna, mutta sitä voidaan muuttaa tarpeen mukaan. Kehikko
A28: laskee kaavalla veroprosentin muutoksen vaikutuksen kunnallisveron tuottoon (edellisvuoden
A29: veroprosenttiyksikön tuoton perusteella).
A30: Tuloslaskelma:
A31: Tuloslaskelman pohjana ovat tilinpäätökset kahdelta viimeiseltä vuodelta.
A32: Tuloslaskelman keskeisten erien tulevien vuosien muutokset perustuvat lähtökohtaisesti kuntatalousohjelmaan.
A34: Em. keskeiset tuloslaskelman erät ovat seuraavat:
B35: 1) toimintatuotot,
B36: 2) toimintamenot,
B37: 3) kunnallisverot (pl. veroprosentin noston vaikutus),
B38: 4) yhteisöverot,
B39: 5) kiinteistöverot ja
B40: 6) valtionosuudet.
A41: Em. erien muutosolettamuksia voi muokata haluamikseen syöttämällä taulukkoon uudet muutosprosentit.
A43: Verotuloissa on käytetty tietoina emokunnan verotuloja, koska Valtiokonttorin talousraportoinnissa ei raportoida erikseen konsernin verotuloja
A44: verolajeittain. VK:lle raportoidut konsernin verotulot voivat poiketa hieman emokunnan raportoimista verotuloista.
A46: Korkokulujen kehitys perustuu edellisvuoden lainamäärään ja valittuun korkokantaan. Korkoprosentti (keskim.)
A47: voidaan siis valita halutun mukaiseksi. Korkoprosentti ei vaikuta korkotuottoihin, vaan sen perustuu ed. vuoden määrään.
A49: Muiden tuloslaskelman erien on oletettu edellisvuoden mukaisesti, mutta käyttäjä voi muokata niitä haluamikseen.
A50: Rahoituslaskelma ja tase:
A51: Kehikossa tuloslaskelma "päätyy" taseen kertyneeseen yli-/alijäämään, jolloin voidaan tarkastella esim. milloin kunnan mahdollinen
A52: taseen alijäämä tulisi katetuksi valituilla tuloslaskelman kasvuoletuksilla (vrt. kuntalaki ja alijäämän kattamisvelvollisuus).
A54: Investoinnit ja niihin liittyvät rahoitusosuudet sekä pysyvien vastaavien luovutustulot ovat lähtökohtaisesti viimeksi toteutuneen
A55: tilinpäätöksen mukaiset, mutta ne ovat myös muutettavissa.
A57: Kehikossa ns. nettorahoitustarve katetaan joko lainanlisäyksellä tai/ja rahavaroilla. Käyttäjä voi valita prosenttiosuuden,
A58: jolla rahavaroja käytetään nettorahoitustarpeen kattamiseen. Mikäli rahavaroja ei ole, tarve katetaan kokonaisuudessaan lainanlisäyksellä.
A59: Nettorahoitustarve voi olla myös positiivinen, jolloin "ylijäämä" lisää vastaavasti rahavaroja.
A61: Nettorahoitustarve muodostuu seuraavista eristä = Vuosikate + satunnaiset erät (netto) - tilikauden verot + tulorahoituksen korjauserät
A62: + investoinnit (netto) + antolainasaamisten muutokset (netto) + lainanlyhennykset.
A63: Nettorahoitustarve voi olla myös positiivinen, jolloin "ylijäämä" kasvattaa vastaavasti rahavaroja.
A65: Lainamäärää lyhennetään valitun keskimääräisen lyhennysajan (kuoletusaika) mukaan eli jos keskimääräinen lainanmaksuaika
A66: on esimerkiksi 8 vuotta, niin vuosittainen lainanlyhennys on 1/8 (12,5 %) edellisvuoden lainamäärästä. Lainanlyhennys
A67: tehdään aina, vaikka bruttorahoitustarve olisi negatiivinen.

Sheet KEHIKKO
A1: VM/KAO/vs | H1: VALITSE KUNTA: | L1: 2024-09-30
A2: KUNTAKONSERNIN TALOUDEN SUUNNITTELUKEHIKKO | J2: Kunnat vuoden 2023 kuntajaolla
A3: Muokkaa vaaleansinisellä olevia kohtia.
A4: =INDEX(pohjatiedot!$B$3:$B$296,KEHIKKO!$A$5) -> Kyyjärvi
A5: 112 | B5: TP 2022 | C5: TP 2023 | D5: 2024 | E5: 2025 | F5: 2026 | G5: 2027 | H5: 2028 | I5: 2029 | J5: 2030 | K5: 2031 | L5: 2032 | M5: 2033
A6: TULOSLASKELMA | B6: 1000 | C6: 1000 | D6: 1000 | E6: 1000 | F6: 1000 | G6: 1000 | H6: 1000 | I6: 1000 | J6: 1000 | K6: 1000 | L6: 1000 | M6: 1000
A8: Asukasluku 31.12. | B8: =VLOOKUP($A$4,pohjatiedot!$B$3:$CF$296,2) -> 1196 | C8: =VLOOKUP($A$4,pohjatiedot!$B$3:$CF$296,42) -> 1174 | D8: =VLOOKUP($A$4,väestöennuste!$A$7:$J$302,4) -> 1155.686371 | E8: =VLOOKUP($A$4,väestöennuste!$A$7:$J$302,5) -> 1136.408867 | F8: =VLOOKUP($A$4,väestöennuste!$A$7:$J$302,6) -> 1119.059113 | G8: =VLOOKUP($A$4,väestöennuste!$A$7:$J$302,7) -> 1101.70936 | H8: =VLOOKUP($A$4,väestöennuste!$A$7:$J$302,8) -> 1083.395731 | I8: =VLOOKUP($A$4,väestöennuste!$A$7:$J$302,9) -> 1065.082102 | J8: =VLOOKUP($A$4,väestöennuste!$A$7:$J$302,10) -> 1046.768473 | K8: =VLOOKUP($A$4,väestöennuste!$A$7:$J$302,10) -> 1046.768473 | L8: =VLOOKUP($A$4,väestöennuste!$A$7:$L$302,12) -> 1013.018329 | M8: =VLOOKUP($A$4,väestöennuste!$A$7:$M$302,13) -> 996.5535436 | O8: Väestöennuste TK 9/2021; toteumakorjattu 2023 tiedoilla
A9: Veroprosentti | B9: =VLOOKUP($A$4,pohjatiedot!$B$3:$CF$296,3) -> 22.5 | C9: =VLOOKUP($A$4,pohjatiedot!$B$3:$CF$296,43) -> 9.86 | D9: =VLOOKUP($A$4,pohjatiedot!$B$3:$CI$296,83) -> 9.9 | E9: =D9 -> 9.9 | F9: =E9 -> 9.9 | G9: =F9 -> 9.9 | H9: =G9 -> 9.9 | I9: =H9 -> 9.9 | J9: =I9 -> 9.9 | K9: =J9 -> 9.9 | L9: =K9 -> 9.9 | M9: =L9 -> 9.9
A10: vero-% yksikön tuotto | B10: =B16/B9 -> 160.2346129 | C10: =C16/C9 -> 200.0703144 | D10: =D16/D9 -> 189.0573932 | E10: =E16/E9 -> 198.9466682 | F10: 208.1198901 | G10: 215.9771223 | H10: 224.8406996 | I10: 230.4617171 | J10: 236.22326 | K10: 242.1288415 | L10: 248.1820625 | M10: 254.3866141
A11: → noston vaikutus | D11: =(D9-C9)*C10 -> 8.002812576 | E11: =(E9-D9)*D10 -> 0 | F11: =(F9-E9)*E10 -> 0 | G11: =(G9-F9)*F10 -> 0 | H11: 0 | I11: 0 | J11: 0 | K11: 0 | L11: 0 | M11: 0
A12: Toimintatuotot | B12: =VLOOKUP($A$4,pohjatiedot!$B$3:$CF$296,6) -> 11207.62342 | C12: =VLOOKUP($A$4,pohjatiedot!$B$3:$CF$296,46) -> 1920 | D12: =C12*(1+D72/100) -> 1946.012026 | E12: =D12*(1+E72/100) -> 1901.765684 | F12: =E12*(1+F72/100) -> 1927.992003 | G12: =F12*(1+G72/100) -> 1954.232569 | H12: =G12*(1+H72/100) -> 1971.215167 | I12: 1988.345347 | J12: 2005.62439 | K12: 2023.053591 | L12: 2040.634255 | M12: 2058.367698 | O12: Näiden erien muutos-
A13: Toimintakulut | B13: =VLOOKUP($A$4,pohjatiedot!$B$3:$CF$296,7) -> 20135.31846 | C13: =VLOOKUP($A$4,pohjatiedot!$B$3:$CF$296,47) -> 5401 | D13: =C13*(1+D73/100) -> 5523.228068 | E13: 5891.623628 | F13: =E13*(1+F73/100) -> 6069.84258 | G13: =F13*(1+G73/100) -> 6242.32243 | H13: 6389.249272 | I13: 6539.634362 | J13: 6693.559097 | K13: 6851.106791 | L13: 7012.362718 | M13: 7177.414159 | O13: prosentit syötetään
A14: Osuus osakk.yht. voitoista/tappioista | B14: =VLOOKUP($A$4,pohjatiedot!$B$3:$CF$296,8) -> 0 | C14: =VLOOKUP($A$4,pohjatiedot!$B$3:$CF$296,48) -> 0 | D14: =C14 -> 0 | E14: =D14 -> 0 | F14: =E14 -> 0 | G14: 0 | H14: 0 | I14: 0 | J14: 0 | K14: 0 | L14: 0 | M14: 0 | O14: alla olevaan taulukkoon
A15: Toimintakate | B15: =B12-B13+B14 -> -8927.69504 | C15: =C12-C13+C14 -> -3481 | D15: =D12-D13+D14 -> -3577.216043 | E15: =E12-E13+E14 -> -3989.857944 | F15: -4141.850576 | G15: -4288.089861 | H15: -4418.034105 | I15: -4551.289016 | J15: -4687.934707 | K15: -4828.0532 | L15: -4971.728462 | M15: -5119.046461
A16: Kunnallisverot | B16: =VLOOKUP($A$4,pohjatiedot!$B$3:$CF$296,9) -> 3605.27879 | C16: =VLOOKUP($A$4,pohjatiedot!$B$3:$CF$296,49) -> 1972.6933 | D16: =(C16+D11)*(1+D74/100) -> 1871.668193 | E16: =(D16+E11)*(1+E74/100) -> 1969.572016 | F16: =(E16+F11)*(1+F74/100) -> 2060.386912 | G16: =(F16+G11)*(1+G74/100) -> 2138.173511 | H16: 2225.922926 | I16: 2281.570999 | J16: 2338.610274 | K16: 2397.075531 | L16: 2457.002419 | M16: 2518.427479
A17: Yhteisöverot | B17: =VLOOKUP($A$4,pohjatiedot!$B$3:$CF$296,10) -> 1434.90043 | C17: =VLOOKUP($A$4,pohjatiedot!$B$3:$CF$296,50) -> 804.22263 | D17: =C17*(1+D75/100) -> 682.3551342 | E17: =D17*(1+E75/100) -> 688.9837269 | F17: =E17*(1+F75/100) -> 721.3468561 | G17: 764.2377503 | H17: 791.1420384 | I17: 810.9205894 | J17: 831.1936041 | K17: 851.9734442 | L17: 873.2727803 | M17: 895.1045998
A18: Kiinteistöverot | B18: =VLOOKUP($A$4,pohjatiedot!$B$3:$CF$296,11) -> 490.34614 | C18: =VLOOKUP($A$4,pohjatiedot!$B$3:$CF$296,51) -> 518.95777 | D18: =C18*(1+D76/100) -> 563.3153506 | E18: =D18*(1+E76/100) -> 572.5655817 | F18: =E18*(1+F76/100) -> 586.5595209 | G18: 602.213758 | H18: 618.1051805 | I18: 633.55781 | J18: 649.3967553 | K18: 665.6316742 | L18: 682.272466 | M18: 699.3292777
A19: Verotulot | B19: =VLOOKUP($A$4,pohjatiedot!$B$3:$CF$296,12) -> 5530.52536 | C19: =VLOOKUP($A$4,pohjatiedot!$B$3:$CF$296,52) -> 3295.8737 | D19: =SUM(D16:D18) -> 3117.338677 | E19: 3231.121324 | F19: 3368.293289 | G19: 3504.625019 | H19: 3635.170145 | I19: 3726.049398 | J19: 3819.200633 | K19: 3914.680649 | L19: 4012.547665 | M19: 4112.861357
A20: Valtionosuudet | B20: =VLOOKUP($A$4,pohjatiedot!$B$3:$CF$296,13) -> 5050.248 | C20: =VLOOKUP($A$4,pohjatiedot!$B$3:$CF$296,53) -> 1086 | D20: =C20*(1+D77/100) -> 1009.894042 | E20: =D20*(1+E77/100) -> 1173.070904 | F20: =E20*(1+F77/100) -> 1215.399921 | G20: =F20*(1+G77/100) -> 1241.24926 | H20: =G20*(1+H77/100) -> 1339.659596 | I20: 1359.75449 | J20: 1380.150807 | K20: 1400.853069 | L20: 1421.865865 | M20: 1443.193853
A22: Korkotuotot | B22: =VLOOKUP($A$4,pohjatiedot!$B$3:$CF$296,14) -> 21.42601 | C22: =VLOOKUP($A$4,pohjatiedot!$B$3:$CF$296,54) -> 15 | D22: =C22 -> 15 | E22: =D22 -> 15 | F22: 15 | G22: 15 | H22: 15 | I22: 15 | J22: 15 | K22: 15 | L22: 15 | M22: 15
A23: Korkokulut | B23: =VLOOKUP($A$4,pohjatiedot!$B$3:$CF$296,15) -> 60.81384 | C23: =VLOOKUP($A$4,pohjatiedot!$B$3:$CF$296,55) -> 423 | D23: =($H$80/100)*C63 -> 251.68 | E23: =($H$80/100)*D63 -> 242.3605879 | F23: 235.1138781 | G23: 227.4913231 | H23: 219.4603109 | I23: 209.6427168 | J23: 200.1522844 | K23: 191.0353687 | L23: 182.294188 | M23: 173.9537359
A24: Muut rahoitustuotot | B24: =VLOOKUP($A$4,pohjatiedot!$B$3:$CF$296,16) -> 44.82271 | C24: =VLOOKUP($A$4,pohjatiedot!$B$3:$CF$296,56) -> 334 | D24: =C24 -> 334 | E24: =D24 -> 334 | F24: 334 | G24: 334 | H24: 334 | I24: 334 | J24: 334 | K24: 334 | L24: 334 | M24: 334
A25: Muut rahoituskulut | B25: =VLOOKUP($A$4,pohjatiedot!$B$3:$CF$296,17) -> 137.63716 | C25: =VLOOKUP($A$4,pohjatiedot!$B$3:$CF$296,57) -> 16 | D25: =C25 -> 16 | E25: =D25 -> 16 | F25: 16 | G25: 16 | H25: 16 | I25: 16 | J25: 16 | K25: 16 | L25: 16 | M25: 16
A26: VUOSIKATE | B26: =VLOOKUP($A$4,pohjatiedot!$B$3:$CF$296,18) -> 1520.87604 | C26: =VLOOKUP($A$4,pohjatiedot!$B$3:$CF$296,58) -> 785 | D26: =D15+D19+D20+D22-D23+D24-D25 -> 631.3366772 | E26: =E15+E19+E20+E22-E23+E24-E25 -> 504.9736962 | F26: 539.7287556 | G26: 563.2930959 | H26: 670.3353244 | I26: 657.8721556 | J26: 644.2644487 | K26: 629.4451499 | L26: 613.3908801 | M26: 596.0550136
A27: €/asukas | B27: =1000*B26/B8 -> 1271.635485 | C27: =1000*C26/C8 -> 668.6541738 | D27: =1000*D26/D8 -> 546.2872047 | E27: =1000*E26/E8 -> 444.3591659 | F27: 482.3058489 | G27: 511.2901066 | H27: 618.735431 | I27: 617.672717 | J27: 615.4794163 | K27: 601.3222276 | L27: 605.5081757 | M27: 598.1163957
A28: Poistot ja arvonalent. | B28: =VLOOKUP($A$4,pohjatiedot!$B$3:$CF$296,20) -> 351.62879 | C28: =VLOOKUP($A$4,pohjatiedot!$B$3:$CF$296,60) -> 511 | D28: =C28*$O$28 -> 513.555 | E28: =D28*$O$28 -> 516.122775 | F28: 518.7033889 | G28: 521.2969058 | H28: 523.9033903 | I28: 526.5229073 | J28: 529.1555218 | K28: 531.8012994 | L28: 534.4603059 | M28: 537.1326075 | O28: 1.005 | P28: kasvuoletus
A29: Satunnaiset erät, netto | B29: =VLOOKUP($A$4,pohjatiedot!$B$3:$CF$296,21) -> 67.0357 | C29: =VLOOKUP($A$4,pohjatiedot!$B$3:$CF$296,61) -> -17 | D29: 0 | E29: 0 | F29: 0 | G29: 0 | H29: 0 | I29: 0 | J29: 0 | K29: 0 | L29: 0 | M29: 0
A31: Tilikauden tulos | B31: =VLOOKUP($A$4,pohjatiedot!$B$3:$CF$296,23) -> 1236.28295 | C31: =VLOOKUP($A$4,pohjatiedot!$B$3:$CF$296,63) -> 257 | D31: =D26-D28+D29-D30 -> 117.7816772 | E31: =E26-E28+E29-E30 -> -11.14907877 | F31: =F26-F28+F29-F30 -> 21.02536674 | G31: 41.99619007 | H31: 146.4319341 | I31: 131.3492483 | J31: 115.1089269 | K31: 97.64385045 | L31: 78.93057416 | M31: 58.92240617
A32: Tilinpäätössiirrot | B32: =VLOOKUP($A$4,pohjatiedot!$B$3:$CF$296,24) -> -16.14118 | C32: =VLOOKUP($A$4,pohjatiedot!$B$3:$CF$296,64) -> 3 | D32: =C32 -> 3 | E32: 3 | F32: 3 | G32: 3 | H32: 3 | I32: 3 | J32: 3 | K32: 3 | L32: 3 | M32: 3
A33: Tilikauden verot | B33: =VLOOKUP($A$4,pohjatiedot!$B$3:$CF$296,25) -> 0 | C33: =VLOOKUP($A$4,pohjatiedot!$B$3:$CF$296,65) -> 0 | D33: =C33 -> 0 | E33: 0 | F33: 0 | G33: 0 | H33: 0 | I33: 0 | J33: 0 | K33: 0 | L33: 0 | M33: 0
A34: Laskennalliset verot | B34: =VLOOKUP($A$4,pohjatiedot!$B$3:$CF$296,26) -> 0 | C34: =VLOOKUP($A$4,pohjatiedot!$B$3:$CF$296,66) -> 0 | D34: 0 | E34: 0 | F34: 0 | G34: 0 | H34: 0 | I34: 0 | J34: 0 | K34: 0 | L34: 0 | M34: 0
A35: Vähemmistöosuudet | B35: =VLOOKUP($A$4,pohjatiedot!$B$3:$CF$296,27) -> 6.88926 | C35: =VLOOKUP($A$4,pohjatiedot!$B$3:$CF$296,67) -> 7 | D35: 7 | E35: 7 | F35: 7 | G35: 7 | H35: 7 | I35: 7 | J35: 7 | K35: 7 | L35: 7 | M35: 7
A36: Tilikauden yli-/alijäämä | B36: =VLOOKUP($A$4,pohjatiedot!$B$3:$CF$296,29) -> 1227.03103 | C36: =VLOOKUP($A$4,pohjatiedot!$B$3:$CF$296,68) -> 267 | D36: =D31+D32+D33+D34 -> 120.7816772 | E36: =E31+E32+E33+E34 -> -8.14907877 | F36: 24.02536674 | G36: 44.99619007 | H36: 149.4319341 | I36: 134.3492483 | J36: 118.1089269 | K36: 100.6438505 | L36: 81.93057416 | M36: 61.92240617
A37: TASEESTA
A38: Kertynyt yli-/alijäämä | B38: =VLOOKUP($A$4,pohjatiedot!$B$3:$CF$296,31) -> -2865.48944 | C38: =VLOOKUP($A$4,pohjatiedot!$B$3:$CF$296,70) -> -2798 | D38: =C38+D36 -> -2677.218323 | E38: -2685.367402 | F38: -2661.342035 | G38: -2616.345845 | H38: -2466.913911 | I38: -2332.564662 | J38: -2214.455735 | K38: -2113.811885 | L38: -2031.881311 | M38: -1969.958905
A39: €/asukas | B39: =1000*B38/B8 -> -2395.894181 | C39: =1000*C38/C8 -> -2383.30494 | D39: -2316.5613 | E39: -2363.029258 | F39: -2378.196114 | G39: -2374.805861 | H39: -2277.020151 | I39: -2190.032729 | J39: -2115.51627 | K39: -2019.369077 | L39: -2005.769544 | M39: -1976.771762
A41: RAHOITUSLASKELMAN JA TASEEN TIETOJA (sisältäen rahoitusjäämän ja sen vajeen kattamisoletukset)
A42: Vuosikate | B42: =B26 -> 1520.87604 | C42: =C26 -> 785 | D42: =D26 -> 631.3366772 | E42: =E26 -> 504.9736962 | F42: 539.7287556 | G42: 563.2930959 | H42: 670.3353244 | I42: 657.8721556 | J42: 644.2644487 | K42: 629.4451499 | L42: 613.3908801 | M42: 596.0550136
A43: Satunnaiset erät, netto | B43: =B29-B30 -> 67.0357 | C43: -17 | D43: 0 | E43: 0 | F43: 0 | G43: 0 | H43: 0 | I43: 0 | J43: 0 | K43: 0 | L43: 0 | M43: 0
A44: Tilikauden verot | C44: =C33 -> 0 | D44: =C44 -> 0 | E44: =D44 -> 0 | F44: 0 | G44: 0 | H44: 0 | I44: 0 | J44: 0 | K44: 0 | L44: 0 | M44: 0
A45: Tulorahoituksen korjauserät | C45: =VLOOKUP($A$4,pohjatiedot!$B$3:$CV$296,97) -> -1 | D45: =C45 -> -1 | E45: =D45 -> -1 | F45: =E45 -> -1 | G45: -1 | H45: -1 | I45: -1 | J45: -1 | K45: -1 | L45: -1 | M45: -1
A46: = 1. Toiminnan rahavirta | C46: =C42+C43-C44+C45 -> 767 | D46: =D42+D43-D44+D45 -> 630.3366772 | E46: =E42+E43-E44+E45 -> 503.9736962 | F46: 538.7287556 | G46: 562.2930959 | H46: 669.3353244 | I46: 656.8721556 | J46: 643.2644487 | K46: 628.4451499 | L46: 612.3908801 | M46: 595.0550136
A47: Investointimenot | B47: =VLOOKUP($A$4,pohjatiedot!$B$3:$CW$296,92) -> -404.88427 | C47: =VLOOKUP($A$4,pohjatiedot!$B$3:$CW$296,98) -> -316 | D47: =AVERAGE(B47:C47) -> -360.442135 | E47: =AVERAGE(C47:D47) -> -338.2210675 | F47: -349.3316013 | G47: -343.7763344 | H47: -346.5539678 | I47: -345.1651511 | J47: -345.8595595 | K47: -345.5123553 | L47: -345.6859574 | M47: -345.5991563 | O47: oletuksena 2 viimeisimmän vuoden keskiarvo -> syötä oma arvio
A48: Rahoitusosuudet investointeihin | B48: =VLOOKUP($A$4,pohjatiedot!$B$3:$CW$296,93) -> 4.54746 | C48: =VLOOKUP($A$4,pohjatiedot!$B$3:$CW$296,99) -> 0 | D48: =AVERAGE(B48:C48) -> 2.27373 | E48: 1.136865 | F48: 1.7052975 | G48: 1.42108125 | H48: 1.563189375 | I48: 1.492135312 | J48: 1.527662344 | K48: 1.509898828 | L48: 1.518780586 | M48: 1.514339707 | O48: oletuksena 2 viimeisimmän vuoden keskiarvo -> syötä oma arvio
A49: Inv.hyödykkeiden luovutustulot | B49: =VLOOKUP($A$4,pohjatiedot!$B$3:$CW$296,94) -> 77.59813 | C49: =VLOOKUP($A$4,pohjatiedot!$B$3:$CW$296,100) -> 64 | D49: 70.799065 | E49: 67.3995325 | F49: 69.09929875 | G49: 68.24941562 | H49: 68.67435719 | I49: 68.46188641 | J49: 68.5681218 | K49: 68.5150041 | L49: 68.54156295 | M49: 68.52828353 | O49: oletuksena 2 viimeisimmän vuoden keskiarvo -> syötä oma arvio
A50: = 2. Nettoinvestoinnit | B50: =B49+B48+B47 -> -322.73868 | C50: =C49+C48+C47 -> -252 | D50: =D49+D48+D47 -> -287.36934 | E50: =E49+E48+E47 -> -269.68467 | F50: -278.527005 | G50: -274.1058375 | H50: -276.3164213 | I50: -275.2111294 | J50: -275.7637753 | K50: -275.4874523 | L50: -275.6256138 | M50: -275.5565331
A51: €/asukas | B51: =1000*B50/B8 -> -269.8483946 | C51: -214.6507666 | D51: -248.6568564 | E51: -237.3130638 | F51: -248.893916 | G51: -248.8004982 | H51: -255.0466219 | I51: -258.3942861 | J51: -263.4429508 | K51: -263.1789736 | L51: -272.0835409 | M51: -276.5095111
A52: Vuosikate-nettoinv. | B52: =B26+B50 -> 1198.13736 | C52: 533 | D52: 343.9673372 | E52: 235.2890262 | F52: 261.2017506 | G52: 289.1872584 | H52: 394.0189032 | I52: 382.6610262 | J52: 368.5006734 | K52: 353.9576976 | L52: 337.7652663 | M52: 320.4984806
A53: €/asukas | B53: =1000*B52/B8 -> 1001.78709 | C53: 454.0034072 | D53: 297.6303484 | E53: 207.046102 | F53: 233.4119329 | G53: 262.4896084 | H53: 363.6888092 | I53: 359.2784308 | J53: 352.0364655 | K53: 338.1432539 | L53: 333.4246348 | M53: 321.6068847
A54: = 3. Toim. ja inv. rahavirta
A55: (1. Tulorahoitus+ 2.Nettoinv.) | C55: =C46+C50 -> 515 | D55: =D46+D50 -> 342.9673372 | E55: =E46+E50 -> 234.2890262 | F55: 260.2017506 | G55: 288.1872584 | H55: 393.0189032 | I55: 381.6610262 | J55: 367.5006734 | K55: 352.9576976 | L55: 336.7652663 | M55: 319.4984806
A56: 4. Nettorahoitustarve
A57: (= 3. Toim. ja inv.rahav. + antolainasaam.
A58: muutokset - lainanlyh.) | D58: =D55-D61+D59 -> -1230.032663 | E58: =E55-E61+E59 -> -1280.464648 | F58: -1209.259988 | G58: -1133.633511 | H58: -978.6080402 | I58: -928.6059537 | J58: -883.4511038 | K58: -841.0133567 | L58: -802.5734088 | M58: -767.7123686
A59: Antolainauksen muutokset | B59: =VLOOKUP($A$4,pohjatiedot!$B$3:$CX$296,95) -> 0 | C59: =VLOOKUP($A$4,pohjatiedot!$B$3:$CX$296,101) -> 0 | D59: 0 | E59: =D59 -> 0 | F59: 0 | G59: 0 | H59: 0 | I59: 0 | J59: 0 | K59: 0 | L59: 0 | M59: 0 | O59: Positiivinen arvo=nettovähennys.Oletuksena nolla -> syötä oma arvio
A60: Lainamäärän muutos; | C60: =C63-B63 -> -4426.99528 | D60: =D62-D61 -> -465.9706035 | E60: =E62-E61 -> -362.3354911 | F60: -381.1277494 | G60: -401.5506095 | H60: -490.8797072 | I60: -474.5216216 | J60: -455.8457838 | K60: -437.0590332 | L60: -417.0226072 | M60: -396.2697174
A61: Lainanlyhennykset | D61: =IF(C63>0,(C63*(1/$H$79)),IF(C63=0,0)) -> 1573 | E61: =IF(D63>0,(D63*(1/$H$79)),IF(D63=0,0)) -> 1514.753675 | F61: 1469.461738 | G61: 1421.82077 | H61: 1371.626943 | I61: 1310.26698 | J61: 1250.951777 | K61: 1193.971054 | L61: 1139.338675 | M61: 1087.210849
A62: Lainanlisäystarve | D62: =-(D58+(C65-D65)) -> 1107.029396 | E62: =-(E58+(D65-E65)) -> 1152.418183 | F62: 1088.333989 | G62: 1020.27016 | H62: 880.7472361 | I62: 835.7453583 | J62: 795.1059934 | K62: 756.912021 | L62: 722.3160679 | M62: 690.9411318
A63: Lainakanta | B63: =VLOOKUP($A$4,pohjatiedot!$B$3:$CF$296,39) -> 17010.99528 | C63: =VLOOKUP($A$4,pohjatiedot!$B$3:$CF$296,78) -> 12584 | D63: =C63-D61+D62 -> 12118.0294 | E63: =D63-E61+E62 -> 11755.69391 | F63: 11374.56616 | G63: 10973.01555 | H63: 10482.13584 | I63: 10007.61422 | J63: 9551.768434 | K63: 9114.709401 | L63: 8697.686794 | M63: 8301.417076
A64: €/asukas | B64: =1000*B63/B8 -> 14223.2402 | C64: 10718.90971 | D64: =1000*D63/D8 -> 10485.56918 | E64: 10344.59889 | F64: 10164.40152 | G64: 9959.991218 | H64: 9675.260426 | I64: 9396.096508 | J64: 9125.005845 | K64: 8707.474133 | L64: 8585.912563 | M64: 8330.126494
A65: Rahavarat | B65: =VLOOKUP($A$4,pohjatiedot!$B$3:$CF$296,37) -> 8134.41991 | C65: =VLOOKUP($A$4,pohjatiedot!$B$3:$CF$296,76) -> 7153 | D65: =IF(D58>0,(C65+D58),IF(C65+(D58*$H$81)<0,0,IF(C65+(D58*$H$81)>0,C65+(D58*$H$81)))) -> 7029.996734 | E65: =IF(E58>0,(D65+E58),IF(D65+(E58*$H$81)<0,0,IF(D65+(E58*$H$81)>0,D65+(E58*$H$81)))) -> 6901.950269 | F65: 6781.02427 | G65: 6667.660919 | H65: 6569.800115 | I65: 6476.93952 | J65: 6388.594409 | K65: 6304.493074 | L65: 6224.235733 | M65: 6147.464496
A66: €/asukas | B66: =1000*B65/B8 -> 6801.35444 | C66: 6092.844974 | D66: 6082.962393 | E66: 6073.474494 | F66: 6059.576469 | G66: 6052.105177 | H66: 6064.081599 | I66: 6081.164549 | J66: 6103.158984 | K66: 6022.815204 | L66: 6144.247895 | M66: 6168.724737
A67: Nettovelka (rahat-lainat) | B67: =B65-B63 -> -8876.57537 | C67: =C65-C63 -> -5431 | D67: -5088.032663 | E67: -4853.743637 | F67: -4593.541886 | G67: -4305.354628 | H67: -3912.335724 | I67: -3530.674698 | J67: -3163.174025 | K67: -2810.216327 | L67: -2473.451061 | M67: -2153.95258
A68: €/asukas | B68: =1000*B67/B8 -> -7421.885761 | C68: -4626.064736 | D68: -4402.606788 | E68: -4271.124397 | F68: -4104.825055 | G68: -3907.886041 | H68: -3611.178827 | I68: -3314.931959 | J68: -3021.846862 | K68: -2684.658929 | L68: -2441.664668 | M68: -2161.401757
A70: TULOSLASKELMAN ERIEN KASVUPROSENTIT: | O70: Syötä muutos-
A71: Muutos ed. vuodesta, %: | C71: 2022/2023 | D71: SYÖTÄ HALUAMASI KASVUPROSENTIT! | I71: oletuksena samat arvot kuin v. 2028 > | O71: prosentit
A72: Toimintatuotot | C72: =((C12/B12)-1)*100 -> -82.86880342 | D72: 1.354793014 | E72: -2.273693121 | F72: 1.379051024 | G72: 1.361030841 | H72: 0.8690162186 | I72: =H72 -> 0.8690162186 | J72: =I72 -> 0.8690162186 | K72: 0.8690162186 | L72: 0.8690162186 | M72: 0.8690162186 | O72: KTO syksy2024 koko maan muutos 2028 saakka -> syötä oma tarkempi arvio!
A73: Toimintakulut | C73: =((C13/B13)-1)*100 -> -73.17648583 | D73: 2.263063662 | E73: 6.669932063 | F73: 3.024954795 | G73: 2.841586879 | H73: 2.353720814 | I73: 2.353720814 | J73: 2.353720814 | K73: 2.353720814 | L73: 2.353720814 | M73: 2.353720814 | O73: KTO syksy2024 koko maan muutos 2028 saakka -> syötä oma tarkempi arvio!
A74: Kunnallisverot | C74: =((C16/B16)-1)*100 -> -45.28319681 | D74: -5.504525368 | E74: 5.230832224 | F74: 4.610894942 | G74: 3.775339409 | H74: 4.103942652 | I74: 2.5 | J74: 2.5 | K74: 2.5 | L74: 2.5 | M74: 2.5 | O74: KTO syksy2024 koko maan muutos 2028 saakka -> syötä oma tarkempi arvio!
A75: Yhteisöverot | C75: =((C17/B17)-1)*100 -> -43.95272221 | D75: -15.1534527 | E75: 0.9714285714 | F75: 4.697226938 | G75: 5.945945946 | H75: 3.520408163 | I75: 2.5 | J75: 2.5 | K75: 2.5 | L75: 2.5 | M75: 2.5 | O75: KTO syksy2024 koko maan muutos 2028 saakka -> syötä oma tarkempi arvio!
A76: Kiinteistöverot | C76: =((C18/B18)-1)*100 -> 5.834986281 | D76: 8.547435495 | E76: 1.642105263 | F76: 2.444076222 | G76: 2.668823292 | H76: 2.638834187 | I76: 2.5 | J76: 2.5 | K76: 2.5 | L76: 2.5 | M76: 2.5 | O76: KTO syksy2024 koko maan muutos 2028 saakka -> syötä oma tarkempi arvio!
A77: Valtionosuudet (pl. hark.var.) | C77: =((C20/B20)-1)*100 -> -78.49610554 | D77: -7.007915068 | E77: 16.15782001 | F77: 3.608393732 | G77: 2.126817604 | H77: 7.928329824 | I77: 1.5 | J77: 1.5 | K77: 1.5 | L77: 1.5 | M77: 1.5 | O77: KTO syksy2024 koko maan muutos 2028 saakka -> syötä oma tarkempi arvio!
A78: TAUSTAMUUTTUJAT:
A79: VALITSE KESKIMÄÄR. LAINANLYHENNYSAIKA (VUODET): | H79: 8 | I79: Esim. lainanlyhennysaika 8 vuotta, jolloin vuosilyhennys = 1/8 eli 12,5 % * lainamäärä
A80: VALITSE KESKIMÄÄR. KORKOKANTA (KORKOPROSENTTI): | H80: 2 | I80: Vaikutus korkomenoihin, ei korkotuloihin
A81: MONTAKO % RAHAVAROISTA KÄYTETÄÄN (4.) NETTORAHOITUSTARPEEN KATTAMISEEN ? | H81: 0.1 | I81: Syötä prosenttiosuus, joka käytetään rahavaroista.
B87: =B5 -> TP 2022 | C87: =C5 -> TP 2023 | D87: =D5 -> 2024 | E87: 2025 | F87: 2026 | G87: 2027 | H87: 2028 | I87: 2029 | J87: 2030 | K87: 2031 | L87: 2032 | M87: 2033
A88: Vuosikate | B88: =B27 -> 1271.635485 | C88: =C27 -> 668.6541738 | D88: =D27 -> 546.2872047 | E88: 444.3591659 | F88: 482.3058489 | G88: 511.2901066 | H88: 618.735431 | I88: 617.672717 | J88: 615.4794163 | K88: 601.3222276 | L88: 605.5081757 | M88: 598.1163957
A89: Poistot ja arvonalent. | B89: =1000*B28/B8 -> 294.004005 | C89: =1000*C28/C8 -> 435.2640545 | D89: =1000*D28/D8 -> 444.3722907 | E89: 454.1699647 | F89: 463.5174163 | G89: 473.1709877 | H89: 483.5752768 | I89: 494.3495965 | J89: 505.5134307 | K89: 508.0409978 | L89: 527.5919407 | M89: 538.9902137
A90: Nettoinvestoinnit | B90: =-1000*B50/B8 -> 269.8483946 | C90: 214.6507666 | D90: =-1000*D50/D8 -> 248.6568564 | E90: 237.3130638 | F90: 248.893916 | G90: 248.8004982 | H90: 255.0466219 | I90: 258.3942861 | J90: 263.4429508 | K90: 263.1789736 | L90: 272.0835409 | M90: 276.5095111
B117: =B5 -> TP 2022 | C117: =C5 -> TP 2023 | D117: =D5 -> 2024 | E117: 2025 | F117: 2026 | G117: 2027 | H117: 2028 | I117: 2029 | J117: 2030 | K117: 2031 | L117: 2032 | M117: 2033
A118: Rahavarat | B118: =B66 -> 6801.35444 | C118: 6092.844974 | D118: =D66 -> 6082.962393 | E118: 6073.474494 | F118: 6059.576469 | G118: 6052.105177 | H118: 6064.081599 | I118: 6081.164549 | J118: 6103.158984 | K118: 6022.815204 | L118: 6144.247895 | M118: 6168.724737
A119: Lainakanta | B119: =B64 -> 14223.2402 | C119: =C64 -> 10718.90971 | D119: =D64 -> 10485.56918 | E119: 10344.59889 | F119: 10164.40152 | G119: 9959.991218 | H119: 9675.260426 | I119: 9396.096508 | J119: 9125.005845 | K119: 8707.474133 | L119: 8585.912563 | M119: 8330.126494
A120: Nettovelka | B120: =B119-B118 -> 7421.885761 | C120: =C119-C118 -> 4626.064736 | D120: 4402.606788 | E120: 4271.124397 | F120: 4104.825055 | G120: 3907.886041 | H120: 3611.178827 | I120: 3314.931959 | J120: 3021.846862 | K120: 2684.658929 | L120: 2441.664668 | M120: 2161.401757
B147: =B117 -> TP 2022 | C147: =C117 -> TP 2023 | D147: 2024 | E147: 2025 | F147: 2026 | G147: 2027 | H147: 2028 | I147: 2029 | J147: 2030 | K147: 2031 | L147: 2032 | M147: 2033
A148: Tilikauden yli-/alijäämä | B148: =(1000*B36)/B8 -> 1025.945677 | C148: =(1000*C36)/C8 -> 227.427598 | D148: 104.5107741 | E148: -7.170903895 | F148: 21.46925614 | G148: 40.84216012 | H148: 137.9292255 | I148: 126.1398047 | J148: 112.831949 | K148: 96.14719306 | L148: 80.87768192 | M148: 62.13655711
A149: Taseen kertynyt yli-/alijäämä | B149: =B39 -> -2395.894181 | C149: =C39 -> -2383.30494 | D149: -2316.5613 | E149: -2363.029258 | F149: -2378.196114 | G149: -2374.805861 | H149: -2277.020151 | I149: -2190.032729 | J149: -2115.51627 | K149: -2019.369077 | L149: -2005.769544 | M149: -1976.771762

Sheet pohjatiedot
C1: 2022 | D1: 3 | E1: 4 | F1: 5 | G1: 6 | H1: 7 | I1: 8 | J1: 9 | K1: 10 | L1: 11 | M1: 12 | N1: 13 | O1: 14 | P1: 15 | Q1: 16 | R1: 17 | S1: 18 | T1: 19 | U1: 20 | V1: 21 | W1: 22 | X1: 23 | Y1: 24 | Z1: 25 | AA1: 26 | AB1: 27 | AC1: 28 | AD1: 29 | AE1: 30 | AF1: 31 | AG1: 32 | AH1: 33 | AI1: 34 | AJ1: 35 | AK1: 36 | AL1: 37 | AM1: 38 | AN1: 39 | AO1: 40 | AP1: 41 | AQ1: 2023 | AR1: 43 | AS1: 44 | AT1: 45 | AU1: 46 | AV1: 47 | AW1: 48 | AX1: 49 | AY1: 50 | AZ1: 51 | BA1: 52 | BB1: 53 | BC1: 54 | BD1: 55 | BE1: 56 | BF1: 57 | BG1: 58 | BH1: 59 | BI1: 60 | BJ1: 61 | BK1: 62 | BL1: 63 | BM1: 64 | BN1: 65 | BO1: 66 | BP1: 67 | BQ1: 68 | BR1: 69 | BS1: 70 | BT1: 71 | BU1: 72 | BV1: 73 | BW1: 74 | BX1: 75 | BY1: 76 | BZ1: 77 | CA1: 78 | CC1: 80 | CD1: 81 | CE1: 82 | CF1: vero-% | CG1: 84 | CH1: 85 | CI1: 86 | CJ1: 87 | CK1: 88 | CL1: 89 | CM1: 90 | CN1: 2022 | CO1: 92 | CP1: 93 | CQ1: 94 | CR1: 95 | CS1: 96 | CT1: 2023 | CU1: 98 | CV1: 99 | CW1: 100 | CX1: 101
A2: Kunta nro. | B2: Kunta | C2: Asukasluku | D2: Veroprosentti | G2: Toimintatuotot | H2: Toimintakulut | I2: Osuus osakkuusyhteisöjen voitoista/tappioista | J2: Kunnallisverot | K2: Yhteisöverot | L2: Kiinteistöverot | M2: Verotulot | N2: Valtionavut | O2: Korkotuotot | P2: Korkokulut | Q2: Muut rahoitustuotot | R2: Muut rahoituskulut | S2: VUOSIKATE | U2: Poistot ja arvonalent. | V2: Satunnaiset erät, netto | X2: Tlikauden tulos | Y2: Tilinpäätössiirrot | Z2: Tilikauden verot | AA2: Lask. verot | AB2: Vähemmintösiirrot | AD2: Tlikauden yli-/alijäämä | AF2: Kertynyt yli-/alijäämä | AI2: Nettoinv. | AJ2: Vuosikate-nettoinv. | AL2: Rahavarat | AN2: Lainakanta | AQ2: Asukasluku | AR2: Veroprosentti | AU2: Toimintatuotot | AV2: Toimintakulut | AW2: Osuus osakkuusyhteisöjen voitoista/tappioista | AX2: Kunnallisverot | AY2: Yhteisöverot | AZ2: Kiinteistöverot | BA2: Verotulot | BB2: Valtionavut | BC2: Korkotuotot | BD2: Korkokulut | BE2: Muut rahoitustuotot | BF2: Muut rahoituskulut | BG2: VUOSIKATE | BI2: Poistot ja arvonalent. | BJ2: Satunnaiset erät | BL2: Tlikauden tulos | BM2: Tilinpäätössiirrot | BN2: Tilikauden verot | BO2: Lask. verot | BP2: Vähemmistöosuudet | BQ2: Tlikauden yli-/alijäämä | BS2: Kertynyt yli-/alijäämä | BV2: Nettoinv. | BW2: Vuosikate-nettoinv. | BY2: Rahavarat | CA2: Lainakanta | CC2: Saamiset | CF2: 2024 | CN2: Tulorah.korjauserät | CO2: Investointimenot | CP2: Rahoitusos. inv.menoihin | CQ2: Inv.hyödyk. luovutustulot | CR2: Antolainauksen muutokset | CS2: Kotikuntakorv+elatustuen palautus, netto | CT2: Tulorah.korjauserät | CU2: Investointimenot | CV2: Rahoitusos. inv.menoihin | CW2: Inv.hyödyk. luovutustulot | CX2: antolainauksen muutokset
A3: 20 | B3: Akaa | C3: 16473 | D3: 22 | G3: 71683.58126 | H3: 173187.9001 | I3: 667.14195 | J3: 62911.29604 | K3: 2663.49712 | L3: 3824.35581 | M3: 69399.14897 | N3: 38886.7802 | O3: 377.10453 | P3: 1041.50835 | Q3: 555.95384 | R3: 176.36427 | S3: 7163.93805 | U3: 7608.38151 | V3: 24.89267 | X3: -419.55079 | Y3: 1.2756 | Z3: 142.22543 | AA3: -33.4082 | AB3: -252.44684 | AD3: -846.35566 | AF3: -580.21133 | AI3: -9549 | AL3: 9344.30981 | AN3: 109151.7198 | AQ3: 16405 | AR3: 9.36 | AU3: 9398.52146 | AV3: 52115.26068 | AW3: 123.40158 | AX3: 33084.79279 | AY3: 1980.5847 | AZ3: 3880.72512 | BA3: 38946.10261 | BB3: 12622.80838 | BC3: 519.646 | BD3: 2288.60752 | BE3: 321.63056 | BF3: 55.10593 | BG3: 7473.13646 | BI3: 6919.10133 | BJ3: 0 | BL3: 554.03513 | BM3: 0.2212 | BN3: 0.40961 | BO3: -3.94 | BP3: 28.33539 | BQ3: 578.24211 | BS3: -3425.12198 | BY3: 179.45281 | CA3: 97654.05581 | CF3: 9.9 | CN3: -811.30905 | CO3: -27184.6468 | CP3: 528.25934 | CQ3: 1691.01757 | CR3: 4.74867 | CT3: -119.79577 | CU3: -14064.54349 | CV3: 13.2425 | CW3: 164.53006 | CX3: 420
A4: 5 | B4: Alajärvi | C4: 9183 | D4: 21.75 | G4: 73503.04272 | H4: 140554.4045 | I4: 196.04212 | J4: 26872.7009 | K4: 3231.5692 | L4: 2375.08362 | M4: 32479.35372 | N4: 41621.53866 | O4: 12.63185 | P4: 260.45882 | Q4: 322.79467 | R4: 261.32134 | S4: 7059.21913 | U4: 6370.98372 | V4: 0 | X4: 688.23541 | Y4: 0 | Z4: 25.31191 | AA4: -2.81011 | AB4: 16.02949 | AD4: 676.14288 | AF4: 9487.72156 | AI4: -10556 | AL4: 9129.52837 | AN4: 45229.48673 | AQ4: 9113 | AR4: 9.11 | AU4: 20092.25541 | AV4: 47311.96146 | AW4: 132.46234 | AX4: 13866.59931 | AY4: 2299.96384 | AZ4: 2454.07861 | BA4: 18620.64176 | BB4: 17437.39241 | BC4: 45.40315 | BD4: 524.75119 | BE4: 204.5805 | BF4: 21.58046 | BG4: 8674.44246 | BI4: 5022.6077 | BJ4: 0 | BL4: 3651.83476 | BM4: 0 | BN4: 33.71389 | BO4: 2.8704 | BP4: 8.8975 | BQ4: 3629.88877 | BS4: 13315.98142 | BY4: 8314.08886 | CA4: 30309.26426 | CF4: 9.1 | CN4: -421.67472 | CO4: -5728.46275 | CP4: 401.59067 | CQ4: 473.38397 | CR4: 9.45257 | CT4: -193.74162 | CU4: -3050.91334 | CV4: 7.85639 | CW4: 110.55451 | CX4: 48.2172
A5: 9 | B5: Alavieska | C5: 2447 | D5: 22 | G5: 17797.69385 | H5: 35441.33862 | I5: 3.83939 | J5: 7872.13573 | K5: 442.59867 | L5: 783.89562 | M5: 9098.63002 | N5: 11441.82046 | O5: 362.04586 | P5: 49.85654 | Q5: 34.82547 | R5: 221.95541 | S5: 2997.46112 | U5: 1173.77602 | V5: 0 | X5: 1823.6851 | Y5: -2.43979 | Z5: 1.08357 | AA5: -0.0266 | AB5: -0.61714 | AD5: 1819.518 | AF5: 5512.28185 | AI5: -1629 | AL5: 7551.13969 | AN5: 13563.9188 | AQ5: 2437 | AR5: 9.36 | AU5: 3988.91765 | AV5: 11747.9106 | AW5: 12.06624 | AX5: 3888.28253 | AY5: 256.39553 | AZ5: 786.91356 | BA5: 4931.59162 | BB5: 4520.22015 | BC5: 30.93572 | BD5: 243.79505 | BE5: 246.1826 | BF5: 59.81006 | BG5: 1670.52621 | BI5: 1247.41443 | BJ5: -10.54 | BL5: 412.57178 | BM5: 1.29386 | BN5: 3.58458 | BO5: 0 | BP5: 0 | BQ5: 410.28106 | BS5: 5893.37953 | BY5: 5316.22705 | CA5: 9042.18649 | CF5: 9.3 | CN5: 32.47007 | CO5: -2380.21517 | CP5: 6.83736 | CQ5: 66.48421 | CR5: -181.2 | CT5: -12.4168 | CU5: -1982.62184 | CV5: 25.14774 | CW5: 47.23636 | CX5: 6.3
A6: 10 | B6: Alavus | C6: 11102 | D6: 21.25 | G6: 83034.93994 | H6: 158446.1222 | I6: 578.37411 | J6: 30819.23618 | K6: 4217.36958 | L6: 2722.9732 | M6: 37759.57896 | N6: 45138.767 | O6: 35.01456 | P6: 534.14822 | Q6: 926.75398 | R6: 1771.51469 | S6: 6609.52771 | U6: 8271.55079 | V6: 0 | X6: -1662.02308 | Y6: 19.38 | Z6: 14.48464 | AA6: -34.45506 | AB6: 28.14287 | AD6: -1663.43991 | AF6: 23149.48238 | AI6: -2931 | AL6: 30658.56205 | AN6: 89987.11078 | AQ6: 10933 | AR6: 8.61 | AU6: 18086.03492 | AV6: 44951.00135 | AW6: 661.18295 | AX6: 15177.96268 | AY6: 2552.02798 | AZ6: 3162.53225 | BA6: 20892.52291 | BB6: 12378.599 | BC6: 58.17233 | BD6: 1617.72367 | BE6: 1587.69645 | BF6: 140.67608 | BG6: 6816.57521 | BI6: 7360.66967 | BJ6: -221.17342 | BL6: -765.26788 | BM6: 10 | BN6: 13.1194 | BO6: -13.438 | BP6: 2.98532 | BQ6: -778.83996 | BS6: 23125.21512 | BY6: 30138.60622 | CA6: 79302.65598 | CF6: 9.6 | CN6: -807.97438 | CO6: -11838.00359 | CP6: 463.78229 | CQ6: 468.60924 | CR6: 251.50909 | CT6: -1242.28234 | CU6: -11953.5674 | CV6: 884.25894 | CW6: 2762.90714 | CX6: 102.04414
A7: 16 | B7: Asikkala | C7: 8014 | D7: 20.75 | G7: 48764.51106 | H7: 102135.3152 | I7: -16.53305 | J7: 27954.87467 | K7: 2546.56949 | L7: 3099.17135 | M7: 33600.61551 | N7: 25532.79372 | O7: -19.52248 | P7: 58.84365 | Q7: 630.09312 | R7: 134.28413 | S7: 6122.97166 | U7: 3580.57043 | V7: -13.67212 | X7: 2528.72911 | Y7: -0.52194 | Z7: -0.00028 | AA7: -4.43509 | AB7: 0.69516 | AD7: 2524.46752 | AF7: 23193.11922 | AI7: -3897 | AL7: 5604.30598 | AN7: 20242.09446 | AQ7: 7968 | AR7: 8.11 | AU7: 8786.03143 | AV7: 31668.3443 | AW7: 4.28627 | AX7: 13354.66186 | AY7: 1596.22371 | AZ7: 3182.32047 | BA7: 18133.20604 | BB7: 12731.76812 | BC7: 243.69968 | BD7: 355.02101 | BE7: 106.78177 | BF7: 113.0957 | BG7: 7824.5951 | BI7: 3728.28354 | BJ7: -2.24735 | BL7: 4094.06421 | BM7: -1.04226 | BN7: 0 | BO7: -52.9306 | BP7: 0 | BQ7: 4040.09135 | BS7: 27444.24481 | BY7: 2557.03325 | CA7: 14864.74202 | CF7: 8.1 | CN7: 671.0548 | CO7: -17787.58663 | CP7: 83.22597 | CQ7: 121.61186 | CR7: 14.3745 | CT7: 687.74229 | CU7: -12941.977 | CV7: 480.54324 | CW7: 4725.95398 | CX7: 0
A8: 18 | B8: Askola | C8: 4763 | D8: 21.5 | G8: 19409.22655 | H8: 47234.52904 | I8: -175.72784 | J8: 20014.20859 | K8: 1652.86883 | L8: 1253.31005 | M8: 22920.38747 | N8: 8769.343 | O8: 19.84095 | P8: 233.04207 | Q8: 438.13826 | R8: 690.48507 | S8: 3223.15221 | U8: 2154.83716 | V8: 0 | X8: 1068.31505 | Y8: -128.66481 | Z8: 11.68155 | AA8: 0 | AB8: 0.57531 | AD8: 928.544 | AF8: 7338.88599 | AI8: -4349 | AL8: 10351.80898 | AN8: 28251.46913 | AQ8: 4700 | AR8: 8.86 | AU8: 8450.64538 | AV8: 21191.74986 | AW8: -73.28383 | AX8: 9421.46738 | AY8: 1152.64824 | AZ8: 1285.20989 | BA8: 11859.32551 | BB8: 3522.418 | BC8: 62.03779 | BD8: 599.36077 | BE8: 780.01604 | BF8: 449.15625 | BG8: 2360.89201 | BI8: 1905.62114 | BJ8: 0 | BL8: 455.27087 | BM8: -4.96424 | BN8: 18.41584 | BO8: 0 | BP8: 0 | BQ8: 431.89079 | BS8: 13359.79889 | BY8: 8489.0091 | CA8: 22892.62717 | CF8: 8.9 | CN8: -182.34356 | CO8: -1902.26423 | CP8: 5.18036 | CQ8: 208.99599 | CR8: 2.35828 | CT8: -56.81885 | CU8: -1236.04994 | CV8: -0.9936 | CW8: 96.3966 | CX8: 0
A9: 19 | B9: Aura | C9: 3965 | D9: 21.5 | G9: 13741.87658 | H9: 36512.07054 | I9: -5.25918 | J9: 14935.18036 | K9: 872.98569 | L9: 885.76715 | M9: 16693.9332 | N9: 7963.96557 | O9: 6.37926 | P9: 94.00658 | Q9: 71.57722 | R9: 23.42026 | S9: 1842.97527 | U9: 1429.92283 | V9: 0 | X9: 413.05244 | Y9: -83.82663 | Z9: 0.14141 | AA9: -20.3234 | AB9: -38.76815 | AD9: 269.99285 | AF9: 5776.96694 | AI9: -1210 | AL9: 3672.933 | AN9: 11852.53199 | AQ9: 3961 | AR9: 8.86 | AU9: 3715.41811 | AV9: 14438.43444 | AW9: -0.27964 | AX9: 7361.41308 | AY9: 630.30622 | AZ9: 913.92157 | BA9: 8905.64087 | BB9: 3574.93694 | BC9: 4.66631 | BD9: 128.72055 | BE9: 31.51962 | BF9: 17.73625 | BG9: 1647.01097 | BI9: 1015.92416 | BJ9: 85.93582 | BL9: 717.02263 | BM9: -94.23782 | BN9: 0.02199 | BO9: -21.398 | BP9: -43.0252 | BQ9: 558.33962 | BS9: 6345.96926 | BY9: 1156.865 | CA9: 8378.33714 | CF9: 8.9 | CN9: -18.61465 | CO9: -3111.08098 | CP9: 67.2314 | CQ9: 43.88791 | CR9: 0 | CT9: -94.02279 | CU9: -1332.75368 | CV9: 38.19 | CW9: 567.03695 | CX9: -0.59325
A10: 46 | B10: Enonkoski | C10: 1341 | D10: 21 | G10: 11315.89449 | H10: 21512.98008 | I10: 0 | J10: 3683.70844 | K10: 905.87334 | L10: 567.66114 | M10: 5157.24292 | N10: 6663.57336 | O10: 14.00954 | P10: 29.10582 | Q10: 103.86591 | R10: 37.22103 | S10: 1675.27929 | U10: 811.87176 | V10: 26.98231 | X10: 890.38984 | Y10: 0 | Z10: 0 | AA10: 0.79634 | AB10: 0 | AD10: 891.18618 | AF10: 10315.152 | AI10: -666 | AL10: 7132.81911 | AN10: 1865.18342 | AQ10: 1320 | AR10: 8.36 | AU10: 2025.14524 | AV10: 6369.86215 | AW10: 0 | AX10: 1757.72454 | AY10: 549.57831 | AZ10: 582.96794 | BA10: 2890.27079 | BB10: 2543.76634 | BC10: 112.42671 | BD10: 1.49925 | BE10: 140.69376 | BF10: 11.34231 | BG10: 1313.31872 | BI10: 659.04063 | BJ10: 11.1041 | BL10: 665.38219 | BM10: 0 | BN10: 0.43996 | BO10: 13.4792 | BP10: 0 | BQ10: 678.42143 | BS10: 10714.96054 | BY10: 6749.12039 | CA10: 90.58827 | CF10: 8.4 | CN10: -22.31267 | CO10: -1768.98341 | CP10: 1.04718 | CQ10: 4.44038 | CR10: -1.66763 | CT10: -17.16032 | CU10: -654.6607 | CV10: 0 | CW10: 14.56395 | CX10: -64.79291
A11: 47 | B11: Enontekiö | C11: 1811 | D11: 21.25 | G11: 9062.66857 | H11: 25408.87779 | I11: -13.68226 | J11: 5393.17416 | K11: 887.71537 | L11: 898.60773 | M11: 7179.49726 | N11: 9856.307 | O11: 5.22212 | P11: 49.65224 | Q11: 2717.12962 | R11: 211.04242 | S11: 3137.56986 | U11: 1419.12894 | V11: 0.13033 | X11: 1718.57125 | Y11: 0.47181 | Z11: 0.07649 | AA11: 1e-05 | AB11: 0.92753 | AD11: 1719.89411 | AF11: 12766.42233 | AI11: -1671 | AL11: 10625.58972 | AN11: 8982.44876 | AQ11: 1771 | AR11: 8.61 | AU11: 5092.24692 | AV11: 12442.47296 | AW11: -3.82343 | AX11: 3032.29393 | AY11: 592.20651 | AZ11: 1005.25515 | BA11: 4629.75559 | BB11: 3700.08894 | BC11: 5.75618 | BD11: 24.97868 | BE11: 906.80557 | BF11: 225.95928 | BG11: 1637.41885 | BI11: 854.71648 | BJ11: -0.00955 | BL11: 782.69282 | BM11: 0 | BN11: 2.36145 | BO11: 1e-05 | BP11: 0 | BQ11: 780.33138 | BS11: 13670.5569 | BY11: 7114.47797 | CA11: 3059.09585 | CF11: 8.6 | CN11: -446.5778 | CO11: -3215.1745 | CP11: 159.71143 | CQ11: 434.24691 | CR11: 0 | CT11: -203.93781 | CU11: -1987.10673 | CV11: 258.64133 | CW11: 209.3875 | CX11: 1.70778
A12: 49 | B12: Espoo | C12: 305274 | D12: 18 | G12: 1302140.217 | H12: 2890664.264 | I12: -5194.73493 | J12: 1484705.6 | K12: 223623.0179 | L12: 141816.9298 | M12: 1850145.547 | N12: 233835.4213 | O12: 11102.23983 | P12: 43976.16381 | Q12: 31007.75682 | R12: 50700.07801 | S12: 437695.9419 | U12: 348501.3781 | V12: 136732.26 | X12: 225926.8238 | Y12: 2169.8645 | Z12: 1498.04365 | AA12: -3253.98959 | AB12: 4741.82962 | AD12: 228086.4847 | AF12: 1001713.687 | AI12: -508527 | AL12: 1660271.556 | AN12: 4396400.935 | AQ12: 314024 | AR12: 5.36 | AU12: 800948.2054 | AV12: 1579872.61 | AW12: 3184.20426 | AX12: 615847.3161 | AY12: 152479.9431 | AZ12: 143060.231 | BA12: 911387.4903 | BB12: 427492.3196 | BC12: 16240.95743 | BD12: 78310.5905 | BE12: 60207.87991 | BF12: 5089.1097 | BG12: 556188.7464 | BI12: 361111.0272 | BJ12: 0 | BL12: 195077.7192 | BM12: 48.34913 | BN12: -1341.84703 | BO12: 1234.65939 | BP12: 7985.00488 | BQ12: 205687.5796 | BS12: 1215298.339 | BY12: 1403823.862 | CA12: 3854006.55 | CF12: 5.3 | CN12: -194939.748 | CO12: -536892.7867 | CP12: 14994.35678 | CQ12: 201209.0085 | CR12: 2849.8689 | CT12: -77803.05813 | CU12: -375188.3392 | CV12: 6333.06183 | CW12: 77793.04982 | CX12: 2442.98892
A13: 50 | B13: Eura | C13: 11276 | D13: 21 | G13: 41041.61849 | H13: 116085.2883 | I13: 0 | J13: 41188.58513 | K13: 3721.32958 | L13: 3291.71018 | M13: 48201.62489 | N13: 30662.84087 | O13: 6.01826 | P13: 410.24447 | Q13: 203.92234 | R13: 104.30786 | S13: 3516.18421 | U13: 6346.81789 | V13: 0 | X13: -2830.63368 | Y13: -26.80568 | Z13: 19.91529 | AA13: -30.84293 | AB13: -7.62642 | AD13: -2915.824 | AF13: 617.60348 | AI13: -9291 | AL13: 4862.43491 | AN13: 56441.63377 | AQ13: 11184 | AR13: 8.36 | AU13: 13423.13444 | AV13: 42867.32276 | AW13: 0 | AX13: 20217.26255 | AY13: 2537.26223 | AZ13: 3388.57848 | BA13: 26143.10326 | BB13: 10603.65333 | BC13: 25.6955 | BD13: 1150.3295 | BE13: 298.96709 | BF13: 80.49718 | BG13: 6396.40418 | BI13: 5907.7361 | BJ13: 0 | BL13: 488.66808 | BM13: -32.97673 | BN13: 15.73125 | BO13: 40.35838 | BP13: 11.13193 | BQ13: 491.45041 | BS13: 1558.30181 | BY13: 3405.0881 | CA13: 54034.35541 | CF13: 9 | CN13: 51.78215 | CO13: -6999.50058 | CP13: 42.46127 | CQ13: 277.91459 | CR13: -112.71462 | CT13: -55.63132 | CU13: -6485.23019 | CV13: 0 | CW13: 306.72009 | CX13: 55.94634
A14: 51 | B14: Eurajoki | C14: 9211 | D14: 18 | G14: 48592.5225 | H14: 116093.0116 | I14: 0 | J14: 32211.77872 | K14: 3424.65819 | L14: 23840.87464 | M14: 59477.31155 | N14: 14126.654 | O14: 33.43707 | P14: 127.8112 | Q14: 290.02051 | R14: 359.30425 | S14: 5939.81858 | U14: 5074.45642 | V14: 0 | X14: 865.36216 | Y14: 0.511 | Z14: 2.19467 | AA14: 2.52768 | AB14: 0.21759 | AD14: 866.42376 | AF14: 78148.11548 | AI14: -4781 | AL14: 31590.74409 | AN14: 13757.90134 | AQ14: 9143 | AR14: 5.36 | AU14: 8738.80835 | AV14: 37980.67909 | AW14: 0 | AX14: 11935.33155 | AY14: 2894.25564 | AZ14: 25315.19476 | BA14: 40144.78195 | BB14: -3955.507 | BC14: 67.19309 | BD14: 300.62432 | BE14: 627.47304 | BF14: 6.10994 | BG14: 7335.33608 | BI14: 4333.46672 | BJ14: 0 | BL14: 3001.86936 | BM14: 20.30061 | BN14: 0 | BO14: -14.19812 | BP14: 0 | BQ14: 3007.97185 | BS14: 81278.18029 | BY14: 23403.89688 | CA14: 9009.26446 | CF14: 5.4 | CN14: 277.3607 | CO14: -3654.19873 | CP14: 66.6185 | CQ14: 71.79942 | CR14: 0 | CT14: 590.4011 | CU14: -11474.10257 | CV14: 647.0046 | CW14: 436.56251 | CX14: 0
A15: 52 | B15: Evijärvi | C15: 2346 | D15: 22.5 | G15: 8343.43816 | H15: 26272.49016 | I15: 2.49411 | J15: 7326.38123 | K15: 1041.11068 | L15: 795.55092 | M15: 9163.04283 | N15: 10579.25332 | O15: 77.59028 | P15: 99.76199 | Q15: 329.22616 | R15: 458.45677 | S15: 1664.33594 | U15: 1230.63534 | V15: 0 | X15: 433.7006 | Y15: -11.981 | Z15: 6.47602 | AA15: 0.93764 | AB15: 6.03542 | AD15: 422.21664 | AF15: 1829.79594 | AI15: -1945 | AL15: 9033.63626 | AN15: 13191.64461 | AQ15: 2292 | AR15: 9.86 | AU15: 2734.39614 | AV15: 10080.97401 | AW15: 0 | AX15: 3690.80053 | AY15: 692.74707 | AZ15: 833.69175 | BA15: 5217.23935 | BB15: 4359.48991 | BC15: 69.79239 | BD15: 258.09943 | BE15: 444.61143 | BF15: 201.98854 | BG15: 2284.46724 | BI15: 1012.39067 | BJ15: 0 | BL15: 1272.07657 | BM15: -6.72 | BN15: 4.9012 | BO15: 0 | BP15: -0.00815 | BQ15: 1260.44722 | BS15: 3175.91472 | BY15: 8163.36049 | CA15: 8848.25318 | CF15: 9.8 | CN15: -25.75737 | CO15: -1529.55798 | CP15: 198.09233 | CQ15: 1.48452 | CR15: 15.36544 | CT15: -12.16903 | CU15: -1372.75055 | CV15: 55 | CW15: -3.49787 | CX15: 49.61545
A16: 61 | B16: Forssa | C16: 16459 | D16: 20.5 | G16: 80565.29578 | H16: 193987.1966 | I16: 1.98248 | J16: 55085.3364 | K16: 6721.12909 | L16: 4991.46953 | M16: 66797.93502 | N16: 55692.83933 | O16: 70.0217 | P16: 721.31898 | Q16: 285.74643 | R16: 13.43214 | S16: 8264.1535 | U16: 9608.28089 | V16: 0 | X16: -1344.12739 | Y16: 5.47852 | Z16: 4.90004 | AA16: 12.7458 | AB16: 112.30109 | AD16: -1218.50202 | AF16: 25801.77676 | AI16: -7846 | AL16: 33218.85805 | AN16: 85309.39111 | AQ16: 16469 | AR16: 7.86 | AU16: 30564.3748 | AV16: 68946.99745 | AW16: 0.01554 | AX16: 26143.5602 | AY16: 4741.36626 | AZ16: 5316.26134 | BA16: 36201.1878 | BB16: 18727.17104 | BC16: 85.42439 | BD16: 733.93774 | BE16: 163.63027 | BF16: 10.29862 | BG16: 15599.49082 | BI16: 9758.71343 | BJ16: 0 | BL16: 5840.77739 | BM16: 1.7595 | BN16: 46.42236 | BO16: 23.29397 | BP16: 114.33144 | BQ16: 5933.73994 | BS16: 31809.52973 | BY16: 22006.92214 | CA16: 67593.53784 | CF16: 8.2 | CN16: -80.79115 | CO16: -18199.11131 | CP16: 773.75 | CQ16: 1282.42339 | CR16: 5.27707 | CT16: -118.6267 | CU16: -11097.28788 | CV16: 466.14 | CW16: 210.31117 | CX16: 0
A17: 69 | B17: Haapajärvi | C17: 6687 | D17: 22.5 | G17: 46976.45164 | H17: 95662.69077 | I17: -104.27178 | J17: 22320.24149 | K17: 2183.88203 | L17: 2849.89653 | M17: 27354.02005 | N17: 26782.003 | O17: 3.0125 | P17: 436.77889 | Q17: 676.92498 | R17: 1810.17606 | S17: 3635.14928 | U17: 4892.18058 | V17: 0 | X17: -1257.0313 | Y17: -28.28417 | Z17: 4.84983 | AA17: -0.1155 | AB17: -8.47373 | AD17: -1298.75453 | AF17: 1967.43879 | AI17: -11723 | AL17: 20587.06021 | AN17: 68291.52028 | AQ17: 6558 | AR17: 9.86 | AU17: 16008.58544 | AV17: 34261.43931 | AW17: -21.78301 | AX17: 11410.14964 | AY17: 1846.40174 | AZ17: 3029.90008 | BA17: 16286.45146 | BB17: 6982.895 | BC17: 60.33766 | BD17: 938.38414 | BE17: 1439.2572 | BF17: 1059.28808 | BG17: 4337.64437 | BI17: 4585.81252 | BJ17: 0 | BL17: -248.16815 | BM17: -330.02266 | BN17: 1.01492 | BO17: 0 | BP17: 147.93082 | BQ17: -431.27491 | BS17: 1719.41211 | BY17: 24408.92861 | CA17: 72188.87517 | CF17: 10.2 | CN17: -281.3613 | CO17: -13492.67686 | CP17: 39.17432 | CQ17: 671.10212 | CR17: -249.6851 | CT17: -95.60594 | CU17: -14745.76349 | CV17: 297.18954 | CW17: 275.50479 | CX17: 507.864
A18: 71 | B18: Haapavesi | C18: 6591 | D18: 22 | G18: 37075.50847 | H18: 88306.35581 | I18: -61.83979 | J18: 19958.14578 | K18: 2010.61066 | L18: 1699.34313 | M18: 23668.09957 | N18: 31317.58969 | O18: 21.52097 | P18: 599.63288 | Q18: 4627.94421 | R18: 5079.77774 | S18: 2600.24742 | U18: 3713.18718 | V18: 0 | X18: -1112.93977 | Y18: -11.37245 | Z18: 112.70806 | AA18: 33.1853 | AB18: 16.22626 | AD18: -1187.60872 | AF18: -432.13752 | AI18: -3500 | AL18: 16638.52901 | AN18: 57921.72397 | AQ18: 6473 | AR18: 9.36 | AU18: 12435.01059 | AV18: 34721.78865 | AW18: 0 | AX18: 10323.01848 | AY18: 1270.64541 | AZ18: 1964.38539 | BA18: 13558.04928 | BB18: 13333.18121 | BC18: 170.19067 | BD18: 1058.5882 | BE18: 3519.64677 | BF18: 2822.74706 | BG18: 4378.47985 | BI18: 2363.02989 | BJ18: 0 | BL18: 2015.44996 | BM18: 3.54888 | BN18: -14.40766 | BO18: 23.926 | BP18: 23.02875 | BQ18: 2080.36125 | BS18: 1281.09414 | BY18: 16023.0914 | CA18: 48216.89909 | CF18: 9.4 | CN18: -56.80848 | CO18: -8758.73443 | CP18: 5.84889 | CQ18: 599.39025 | CR18: 0 | CT18: 56.5918 | CU18: -2509.98784 | CV18: 51.33552 | CW18: 223.81565 | CX18: 22.82093
A19: 72 | B19: Hailuoto | C19: 960 | D19: 20.5 | G19: 5737.41396 | H19: 13183.82498 | I19: -18.11668 | J19: 3685.59681 | K19: 185.22874 | L19: 362.55326 | M19: 4233.37881 | N19: 4303.1975 | O19: 4.66811 | P19: 24.52038 | Q19: 9.70463 | R19: 9.59174 | S19: 1052.30924 | U19: 815.33065 | V19: 0 | X19: 236.97859 | Y19: -0.78065 | Z19: 1.16768 | AA19: -0.03302 | AB19: -0.76601 | AD19: 234.23124 | AF19: 6536.58449 | AI19: -2468 | AL19: 977.92322 | AN19: 5065.54362 | AQ19: 948 | AR19: 7.86 | AU19: 1937.96019 | AV19: 4944.74437 | AW19: 0 | AX19: 1604.44038 | AY19: 118.64877 | AZ19: 367.75293 | BA19: 2090.84208 | BB19: 1806.87784 | BC19: 9.44819 | BD19: 20.30367 | BE19: 12.3952 | BF19: 15.82183 | BG19: 876.65364 | BI19: 846.33663 | BJ19: 0 | BL19: 30.31702 | BM19: 2.35241 | BN19: 0 | BO19: 0 | BP19: 0 | BQ19: 32.66943 | BS19: 6545.83257 | BY19: 906.21342 | CA19: 1581.65163 | CF19: 7.9 | CN19: -105.33692 | CO19: -1521.1285 | CP19: 1.7135 | CQ19: 141.17175 | CR19: 0 | CT19: 0.42598 | CU19: -339.44039 | CV19: 35.37781 | CW19: 0 | CX19: 0
A20: 74 | B20: Halsua | C20: 1052 | D20: 23.5 | G20: 10747.60513 | H20: 19734.30169 | I20: 133.05368 | J20: 3274.11178 | K20: 606.00785 | L20: 405.42679 | M20: 4285.54642 | N20: 5598.17476 | O20: 17.1095 | P20: 129.15422 | Q20: 115.57547 | R20: 2.99628 | S20: 1030.61277 | U20: 931.77354 | V20: 0 | X20: 98.83923 | Y20: 8.62546 | Z20: 1.93112 | AA20: 2.35015 | AB20: -2.38186 | AD20: 105.50186 | AF20: 2356.315 | AI20: -699 | AL20: 2030.352 | AN20: 14207.191 | AQ20: 1013 | AR20: 10.86 | AU20: 3530.62912 | AV20: 7033.06414 | AW20: 48.65387 | AX20: 1842.44411 | AY20: 344.60977 | AZ20: 385.4224 | BA20: 2572.47628 | BB20: 1902.91042 | BC20: 4.00738 | BD20: 384.01719 | BE20: 58.80875 | BF20: 2.13996 | BG20: 698.26453 | BI20: 775.14657 | BJ20: -0.00355 | BL20: -76.88559 | BM20: 5.43835 | BN20: 3.62277 | BO20: 3.89313 | BP20: -2.39668 | BQ20: -73.57356 | BS20: 2258.52 | BY20: 1189.528 | CA20: 12649.133 | CF20: 10.8 | CN20: -49.989 | CO20: -902.021 | CP20: 7.587 | CQ20: 19.724 | CR20: 1.759 | CT20: -12.773 | CU20: -782.785 | CV20: 0 | CW20: 12.13 | CX20: 0
A21: 75 | B21: Hamina | C21: 19549 | D21: 21 | G21: 193442.0303 | H21: 323924.9767 | I21: 2002.09752 | J21: 74701.45804 | K21: 20237.80966 | L21: 7304.25988 | M21: 102243.5276 | N21: 50784.33257 | O21: 119.48022 | P21: 1805.01944 | Q21: 526.22465 | R21: 9501.04537 | S21: 13580.35617 | U21: 19649.54391 | V21: 0 | X21: -6069.18774 | Y21: 0 | Z21: 107.91234 | AA21: -359.27659 | AB21: 12.02981 | AD21: -6524.34686 | AF21: 32082.60102 | AI21: -25070 | AL21: 22255.53072 | AN21: 195889.9593 | AQ21: 19534 | AR21: 8.36 | AU21: 79738.75297 | AV21: 133704.2006 | AW21: 685.24393 | AX21: 37420.8245 | AY21: 12136.82443 | AZ21: 7747.06957 | BA21: 57304.7185 | BB21: 10592.55678 | BC21: 696.13935 | BD21: 4275.25698 | BE21: 6435.14102 | BF21: 212.72848 | BG21: 16954.7639 | BI21: 17720.73522 | BJ21: 0 | BL21: -765.97132 | BM21: 0 | BN21: 149.32536 | BO21: -343.36776 | BP21: 5.27609 | BQ21: -1253.38835 | BS21: 33015.51998 | BY21: 6829.69455 | CA21: 164928.4655 | CF21: 9.4 | CN21: -1189.01112 | CO21: -28658.70675 | CP21: 2732.31606 | CQ21: 26191.78122 | CR21: -155.37526 | CT21: -3559.68598 | CU21: -30486.38669 | CV21: 166.07613 | CW21: 19899.6155 | CX21: 79.65675
A22: 77 | B22: Hankasalmi | C22: 4601 | D22: 22 | G22: 20277.78453 | H22: 56002.22861 | I22: 0 | J22: 13854.63215 | K22: 1510.06576 | L22: 1477.06931 | M22: 16841.76722 | N22: 21497.55461 | O22: 80.34766 | P22: 156.68552 | Q22: 330.42448 | R22: 25.10787 | S22: 2759.26752 | U22: 3102.34141 | V22: 181.70203 | X22: -161.37186 | Y22: 0.73803 | Z22: 0 | AA22: 41.01797 | AB22: 2.06661 | AD22: -117.54925 | AF22: 136.07022 | AI22: -5172 | AL22: 5022.96092 | AN22: 18431.39168 | AQ22: 4549 | AR22: 9.36 | AU22: 7974.31233 | AV22: 20819.07621 | AW22: 0 | AX22: 7326.19621 | AY22: 944.44017 | AZ22: 1533.27934 | BA22: 9803.91572 | BB22: 6453.33945 | BC22: 124.12555 | BD22: 182.27888 | BE22: 250.90161 | BF22: 20.29387 | BG22: 3514.68584 | BI22: 2264.52092 | BJ22: 0 | BL22: 1250.16492 | BM22: -0.47372 | BN22: 0 | BO22: 42.06119 | BP22: 10.06894 | BQ22: 1301.82133 | BS22: 1431.85301 | BY22: 4459.28394 | CA22: 7028.62725 | CF22: 9.4 | CN22: -29.08584 | CO22: -1175.05284 | CP22: 42.11202 | CQ22: 98.7997 | CR22: 0 | CT22: 19.04091 | CU22: -1080.71334 | CV22: 121.4 | CW22: 5.33259 | CX22: -8.89596
A23: 78 | B23: Hanko | C23: 7832 | D23: 21.75 | G23: 60192.91699 | H23: 106555.2825 | I23: -31.34571 | J23: 35337.8112 | K23: 5408.17359 | L23: 2974.52035 | M23: 43720.50514 | N23: 15557.41 | O23: 38.01682 | P23: 536.77854 | Q23: 188.13378 | R23: 105.14599 | S23: 12298.16337 | U23: 6712.40934 | V23: 0 | X23: 5585.75403 | Y23: 841.77347 | Z23: 304.17514 | AA23: -64.4828 | AB23: 19.39176 | AD23: 6078.26132 | AF23: 33000.94757 | AI23: -15254 | AL23: 11664.15951 | AN23: 62533.48639 | AQ23: 7721 | AR23: 9.11 | AU23: 31157.14463 | AV23: 42681.58972 | AW23: 0 | AX23: 17925.27835 | AY23: 3710.92307 | AZ23: 3283.54356 | BA23: 24919.74498 | BB23: 70.19466 | BC23: 346.83603 | BD23: 786.84726 | BE23: 103.35803 | BF23: 4.68227 | BG23: 12951.48502 | BI23: 7633.43442 | BJ23: 0 | BL23: 5318.0506 | BM23: 2.85559 | BN23: 102.99525 | BO23: 2.90129 | BP23: 0.63003 | BQ23: 5221.44226 | BS23: 37475.42995 | BY23: 13699.78934 | CA23: 54506.84302 | CF23: 9.1 | CN23: -428.23193 | CO23: -7504.5839 | CP23: 32.8886 | CQ23: 1388.79132 | CR23: 21.91219 | CT23: -789.09707 | CU23: -7187.58389 | CV23: 342.2725 | CW23: 861.42966 | CX23: -453.28244
A24: 79 | B24: Harjavalta | C24: 6753 | D24: 21.5 | G24: 40943.56677 | H24: 91638.97261 | I24: 79.97779 | J24: 26236.4529 | K24: 12240.03742 | L24: 2823.27095 | M24: 41299.76127 | N24: 16086.55567 | O24: 6.08336 | P24: 133.10374 | Q24: 126.54762 | R24: 73.46875 | S24: 6696.94738 | U24: 3712.94405 | V24: 0 | X24: 2984.00333 | Y24: -1500 | Z24: 16.85402 | AA24: -17.64793 | AB24: -14.1423 | AD24: 1435.35908 | AF24: 9344.82475 | AI24: -3855 | AL24: 5829.74727 | AN24: 23976.14636 | AQ24: 6703 | AR24: 8.86 | AU24: 8222.61675 | AV24: 28674.89426 | AW24: 56.25698 | AX24: 13487.8327 | AY24: 7341.08296 | AZ24: 2611.75775 | BA24: 23440.67341 | BB24: 1529.13074 | BC24: 38.93806 | BD24: 435.78511 | BE24: 91.77801 | BF24: 13.74446 | BG24: 4254.97012 | BI24: 3487.56648 | BJ24: -1.58887 | BL24: 765.81477 | BM24: 0 | BN24: 15.47603 | BO24: -18.26706 | BP24: -8.99946 | BQ24: 723.07222 | BS24: 11561.81034 | BY24: 3904.99492 | CA24: 23118.65778 | CF24: 8.9 | CN24: -292.2648 | CO24: -6543.69043 | CP24: 13.61532 | CQ24: 455.00051 | CR24: 1.49204 | CT24: -46.58396 | CU24: -5518.63165 | CV24: 98.4292 | CW24: 525.97982 | CX24: -0.72353
A25: 81 | B25: Hartola | C25: 2574 | D25: 21.5 | G25: 21180.33823 | H25: 40763.96662 | I25: -9.5511 | J25: 7825.56773 | K25: 1965.57648 | L25: 1412.30795 | M25: 11203.45216 | N25: 9868.167 | O25: 19.29576 | P25: 209.91957 | Q25: 242.66945 | R25: 61.61583 | S25: 1468.86948 | U25: 2666.03455 | V25: 111.53768 | X25: -1085.62739 | Y25: 3.02307 | Z25: 0 | AA25: 0 | AB25: -37.57936 | AD25: -1120.18368 | AF25: 1250.65124 | AI25: 2813 | AL25: 3931.11332 | AN25: 22931.39001 | AQ25: 2531 | AR25: 8.86 | AU25: 3772.83407 | AV25: 9257.10402 | AW25: 0 | AX25: 3808.46249 | AY25: 1121.91945 | AZ25: 1473.90997 | BA25: 6404.29191 | BB25: 696.664 | BC25: 322.80699 | BD25: 569.27227 | BE25: 59.81323 | BF25: 0.56227 | BG25: 1429.47164 | BI25: 1232.90332 | BJ25: -746.19103 | BL25: -549.62271 | BM25: -0.25402 | BN25: 0 | BO25: 0 | BP25: 0.53417 | BQ25: -549.34256 | BS25: 1316.04816 | BY25: 1166.84187 | CA25: 18854.93945 | CF25: 8.9 | CN25: 269.83644 | CO25: -1725.36596 | CP25: 105.81598 | CQ25: 1880.17893 | CR25: 59.0011 | CT25: -5.45784 | CU25: -1167.68835 | CV25: 0.10037 | CW25: 738.61792 | CX25: 0
A26: 82 | B26: Hattula | C26: 9359 | D26: 20.75 | G26: 27297.84539 | H26: 83239.39724 | I26: 0.36273 | J26: 38245.79439 | K26: 2128.7133 | L26: 2748.87874 | M26: 43123.38643 | N26: 17005.19086 | O26: 209.40689 | P26: 308.1357 | Q26: 277.06666 | R26: 126.82938 | S26: 4169.33412 | U26: 4016.48162 | V26: -8.06451 | X26: 144.78799 | Y26: 17.89952 | Z26: 0.05125 | AA26: 57.56349 | AB26: -0.00411 | AD26: 220.19564 | AF26: 9265.2231 | AI26: -6218 | AL26: 7757.69974 | AN26: 56010.9252 | AQ26: 9371 | AR26: 8.11 | AU26: 7263.45973 | AV26: 33114.9547 | AW26: 0 | AX26: 18771.23818 | AY26: 2650.35494 | AZ26: 2845.38004 | BA26: 24266.97316 | BB26: 8634.03587 | BC26: 209.66803 | BD26: 1216.34503 | BE26: 209.63018 | BF26: 90.95065 | BG26: 6089.72401 | BI26: 2858.2184 | BJ26: 0 | BL26: 3231.50561 | BM26: 0.7875 | BN26: 0.01404 | BO26: 12.33839 | BP26: 0.01179 | BQ26: 3244.62925 | BS26: 12626.79636 | BY26: 3211.21881 | CA26: 37783.35614 | CF26: 8.1 | CN26: -246.35931 | CO26: -9389.65363 | CP26: 42.5 | CQ26: 1043.91341 | CR26: 5.06641 | CT26: -54.78667 | CU26: -936.03947 | CV26: 55.9 | CW26: 324.36109 | CX26: 0
A27: 86 | B27: Hausjärvi | C27: 8031 | D27: 21.5 | G27: 26331 | H27: 74875 | I27: 0.31618 | J27: 32316.941 | K27: 1758.836 | L27: 1784.259 | M27: 35860.036 | N27: 16384.637 | O27: 3.50672 | P27: 272.02551 | Q27: 195.79919 | R27: 9.19105 | S27: 3619 | U27: 3270 | V27: 0 | X27: 384 | Y27: 2.11108 | Z27: 8 | AA27: 0 | AB27: -0.00759 | AD27: 342 | AF27: 10582 | AI27: -2731 | AL27: 8407.74527 | AN27: 34383.99486 | AQ27: 7998 | AR27: 8.86 | AU27: 5920.22289 | AV27: 26051.47061 | AW27: 0 | AX27: 16142.992 | AY27: 1156.953 | AZ27: 1781.628 | BA27: 19081.573 | BB27: 6254.071 | BC27: 3.36941 | BD27: 417.47456 | BE27: 27.52366 | BF27: 7.03521 | BG27: 4810.77958 | BI27: 3621.32613 | BJ27: -556.81011 | BL27: 632.64334 | BM27: 0.678 | BN27: 11.17952 | BO27: 0 | BP27: 0.01671 | BQ27: 622.15853 | BS27: 11296.00328 | BY27: 4040.59865 | CA27: 26124.005 | CF27: 8.9 | CN27: -115.38425 | CO27: -6594 | CP27: 40 | CQ27: 120 | CR27: 17.26016 | CT27: -209.87275 | CU27: -5802.58666 | CV27: 8.65592 | CW27: 2163.382 | CX27: 15.36888
A28: 111 | B28: Heinola | C28: 18131 | D28: 20.5 | G28: 119318.4 | H28: 234537.761 | I28: -50.673 | J28: 64909.04253 | K28: 5010.32076 | L28: 6451.91607 | M28: 76371.27936 | N28: 53805.487 | O28: 43.761 | P28: 685.014 | Q28: 7197.794 | R28: 9073.626 | S28: 12389.647 | U28: 11174.104 | V28: -33.279 | X28: 1182.264 | Y28: -22.422 | Z28: -0.001 | AA28: -111.224 | AB28: 8.521 | AD28: 1057.14 | AF28: 60636.99 | AI28: -23605 | AL28: 116090.546 | AN28: 140511.935 | AQ28: 17953 | AR28: 7.86 | AU28: 25741.145 | AV28: 65202.108 | AW28: 689.432 | AX28: 30783.26728 | AY28: 3379.17903 | AZ28: 6698.39417 | BA28: 40860.84048 | BB28: 11921.143 | BC28: 331.639 | BD28: 1935.616 | BE28: 7786.911 | BF28: 3091.826 | BG28: 17101.56 | BI28: 11886.612 | BJ28: -5.41 | BL28: 5209.538 | BM28: -14.049 | BN28: 0 | BO28: -95.973 | BP28: 8.516 | BQ28: 5108.032 | BS28: 65673.295 | BY28: 109235.496 | CA28: 122445.079 | CF28: 8.2 | CN28: 1012.308 | CO28: -30609.389 | CP28: 1725.731 | CQ28: 8930.947 | CR28: 33.992 | CT28: -1655.35 | CU28: -14368.964 | CV28: 344.059 | CW28: 5993.928 | CX28: 21.259
A29: 90 | B29: Heinävesi | C29: 3061 | D29: 21.5 | G29: 18959.61794 | H29: 44181.35221 | I29: -1.78506 | J29: 9403.19145 | K29: 3251.2923 | L29: 1427.6198 | M29: 14082.10355 | N29: 13394.793 | O29: 63.89092 | P29: 69.5831 | Q29: 321.54078 | R29: 38.30339 | S29: 2530.92243 | U29: 1841.01729 | V29: 0 | X29: 689.90514 | Y29: 3.49661 | Z29: 0.00436 | AA29: -1.37646 | AB29: 2.76531 | AD29: 694.78624 | AF29: 5022.83125 | AI29: -1098 | AL29: 4916.529 | AN29: 11632.6921 | AQ29: 3001 | AR29: 8.86 | AU29: 5757.58731 | AV29: 12322.94198 | AW29: 0 | AX29: 4465.67644 | AY29: 1796.90856 | AZ29: 1469.44053 | BA29: 7732.02553 | BB29: 653.779 | BC29: 78.36615 | BD29: 52.71743 | BE29: 318.74276 | BF29: 4.42892 | BG29: 2160.41242 | BI29: 1517.40744 | BJ29: 0 | BL29: 643.00498 | BM29: -17.71889 | BN29: 0 | BO29: 0 | BP29: 0 | BQ29: 625.28609 | BS29: 5247.52246 | BY29: 4055.17309 | CA29: 9680.14765 | CF29: 8.8 | CN29: 247.71399 | CO29: -1608.66228 | CP29: 214.14335 | CQ29: 415.78344 | CR29: 6.91342 | CT29: -130.12459 | CU29: -993.84573 | CV29: 145 | CW29: 112.84953 | CX29: 3.68
A30: 91 | B30: Helsinki | C30: 664028 | D30: 18 | G30: 4846847.033 | H30: 7915194.978 | I30: -13297.26474 | J30: 3028509.08 | K30: 775361.1854 | L30: 295946.5346 | M30: 4099816.85 | N30: 378400.85 | O30: 21046.59769 | P30: 59089.22882 | Q30: 23621.52501 | R30: 13648.32901 | S30: 1360264.184 | U30: 911314.1785 | V30: 2139.02798 | X30: 451089.0336 | Y30: -135.86678 | Z30: 19635.35504 | AA30: -7721.28743 | AB30: 6932.97314 | AD30: 430529.4975 | AF30: 6967132.686 | AI30: -1548805 | AL30: 1807552.79 | AN30: 6516414.708 | AQ30: 674500 | AR30: 5.36 | AU30: 4201356.562 | AV30: 4973162.752 | AW30: -600.68183 | AX30: 1191880.655 | AY30: 539208.2365 | AZ30: 307241.2957 | BA30: 2038330.187 | BB30: 200909.289 | BC30: 65556.13613 | BD30: 169454.7058 | BE30: 65036.14008 | BF30: 14516.40869 | BG30: 1395227.975 | BI30: 968698.4354 | BJ30: 278.31525 | BL30: 426807.8553 | BM30: -2678.85045 | BN30: 18147.55194 | BO30: 987.33639 | BP30: 4141.4725 | BQ30: 411110.2618 | BS30: 7425407.427 | BY30: 1516708.319 | CA30: 7203562.505 | CF30: 5.3 | CN30: -69879.10325 | CO30: -2704550.234 | CP30: 61556.91669 | CQ30: 698965.7716 | CR30: -36520.0325 | CT30: -131109.3947 | CU30: -2187098.114 | CV30: 28663.4884 | CW30: 333652.5978 | CX30: -6507.69629
A31: 97 | B31: Hirvensalmi | C31: 2091 | D31: 20 | G31: 19277.55868 | H31: 34370.72724 | I31: 1.00912 | J31: 6072.19785 | K31: 1347.27346 | L31: 1414.05297 | M31: 8833.52428 | N31: 7419.906 | O31: 4.3329 | P31: 71.29136 | Q31: 388.03329 | R31: 20.6268 | S31: 1449.98544 | U31: 1141.70343 | V31: 11.11407 | X31: 319.39608 | Y31: 0 | Z31: 0 | AA31: -12.032 | AB31: 0 | AD31: 307.36408 | AF31: 6468.88827 | AI31: -293 | AL31: 13013.07051 | AN31: 7915.15041 | AQ31: 2062 | AR31: 7.36 | AU31: 3177.12982 | AV31: 7465.58423 | AW31: 0 | AX31: 3313.09202 | AY31: 777.07663 | AZ31: 1450.55958 | BA31: 5540.72823 | BB31: 367.466 | BC31: 4.2748 | BD31: 90.69835 | BE31: 394.9877 | BF31: 99.35846 | BG31: 1816.45559 | BI31: 706.26612 | BJ31: 0 | BL31: 1110.18947 | BM31: 0 | BN31: 0 | BO31: -0.4 | BP31: 0 | BQ31: 1109.78947 | BS31: 7211.54194 | BY31: 12021.03502 | CA31: 3266.40598 | CF31: 7.4 | CN31: 612.86637 | CO31: -1365.89942 | CP31: 95.35774 | CQ31: 183.31665 | CR31: -0.11149 | CT31: -1031.03895 | CU31: -400.35356 | CV31: 68.3582 | CW31: 55.68386 | CX31: 0
A32: 98 | B32: Hollola | C32: 22943 | D32: 21 | G32: 111705.2391 | H32: 247635.0592 | I32: -57.53202 | J32: 91985.32583 | K32: 5513.7156 | L32: 6083.66895 | M32: 103582.7104 | N32: 53511.80118 | O32: 14.80581 | P32: 374.80052 | Q32: 1155.26587 | R32: 58.19262 | S32: 21533.84352 | U32: 13211.17832 | V32: -33.03238 | X32: 8289.63282 | Y32: -1.24716 | Z32: 2.84928 | AA32: -98.45582 | AB32: 0.54882 | AD32: 8187.62938 | AF32: 56606.36461 | AI32: -11292 | AL32: 26660.90394 | AN32: 55581.57076 | AQ32: 22885 | AR32: 8.36 | AU32: 21946.86229 | AV32: 82611.03132 | AW32: 0 | AX32: 46408.43671 | AY32: 3512.00961 | AZ32: 6168.00651 | BA32: 56088.45283 | BB32: 26651.14279 | BC32: 64.9191 | BD32: 656.37264 | BE32: 529.50943 | BF32: -34.21921 | BG32: 21753.23682 | BI32: 11333.60556 | BJ32: -5.36993 | BL32: 10414.26133 | BM32: -2.49043 | BN32: 1.05426 | BO32: 89.51562 | BP32: -0.02934 | BQ32: 10500.20291 | BS32: 66810.52967 | BY32: 32774.01882 | CA32: 35938.2354 | CF32: 8.3 | CN32: 1544.51299 | CO32: -19985.07647 | CP32: 305.85517 | CQ32: 1662.5583 | CR32: 49.44744 | CT32: -630.92632 | CU32: -8741.12627 | CV32: 1.36815 | CW32: 6555.90635 | CX32: 9.78135
A33: 102 | B33: Huittinen | C33: 9745 | D33: 21 | G33: 25375.13189 | H33: 93850.2719 | I33: 19.62154 | J33: 31177.85702 | K33: 3722.74074 | L33: 2901.5638 | M33: 37802.16156 | N33: 34222.29045 | O33: 4.32546 | P33: 183.23013 | Q33: 168.81117 | R33: 66.77935 | S33: 3492.06069 | U33: 4653.66117 | V33: 3550.01319 | X33: 2388.41271 | Y33: -15.9484 | Z33: 1.58532 | AA33: 0.11155 | AB33: -0.20334 | AD33: 2370.7872 | AF33: 11593.96766 | AI33: -3800 | AL33: 9427.42627 | AN33: 26840.20086 | AQ33: 9646 | AR33: 8.36 | AU33: 11316.38444 | AV33: 39664.26509 | AW33: 16.35762 | AX33: 16093.7379 | AY33: 2455.5803 | AZ33: 2825.03984 | BA33: 21374.35804 | BB33: 15120.09521 | BC33: 9.8366 | BD33: 397.15746 | BE33: 162.10782 | BF33: 15.60527 | BG33: 7922.11191 | BI33: 4411.73479 | BJ33: 6.91354 | BL33: 3517.29066 | BM33: -7.06578 | BN33: 0.03659 | BO33: 0 | BP33: 0.3704 | BQ33: 3510.55869 | BS33: 14596.04838 | BY33: 7068.89664 | CA33: 32104.76302 | CF33: 9 | CN33: -3381.36567 | CO33: -7415.52239 | CP33: 21.90836 | CQ33: 3567.92905 | CR33: -4.75072 | CT33: -144.13098 | CU33: -15510.16817 | CV33: 150 | CW33: 498.54688 | CX33: -28.76684
A34: 103 | B34: Humppila | C34: 2161 | D34: 22 | G34: 1301.07122 | H34: 15449.97118 | I34: 0.13762 | J34: 6908.55853 | K34: 657.57612 | L34: 601.98934 | M34: 8168.12399 | N34: 6764.671 | O34: 7.20154 | P34: 68.02978 | Q34: 32.45781 | R34: 1.06947 | S34: 754.59275 | U34: 737.23512 | V34: 0 | X34: 17.35763 | Y34: 3.59451 | Z34: 10.9842 | AA34: -2.046 | AB34: -0.04938 | AD34: 7.87256 | AF34: 479.29853 | AI34: 513 | AL34: 1643.68433 | AN34: 6099.26571 | AQ34: 2125 | AR34: 9.36 | AU34: 1936.88615 | AV34: 8606.44135 | AW34: 0 | AX34: 3603.83351 | AY34: 416.00859 | AZ34: 723.04795 | BA34: 4742.89005 | BB34: 2536.12466 | BC34: 24.10213 | BD34: 106.84914 | BE34: 14.89173 | BF34: 2.45265 | BG34: 539.15158 | BI34: 641.49547 | BJ34: 0 | BL34: -102.34389 | BM34: 3.698 | BN34: 21.18802 | BO34: 4.4578 | BP34: 0.00297 | BQ34: -115.37314 | BS34: 401.95581 | BY34: 752.72533 | CA34: 4481.2869 | CF34: 9.3 | CN34: -47.0025 | CO34: -555.87634 | CP34: 12.4 | CQ34: 71.25191 | CR34: 396.66781 | CT34: -5.06248 | CU34: -481.69955 | CV34: 0 | CW34: 1.85055 | CX34: 333.07646
A35: 105 | B35: Hyrynsalmi | C35: 2094 | D35: 21.75 | G35: 19172.63943 | H35: 37417.80886 | I35: 0 | J35: 6354.26749 | K35: 1245.12371 | L35: 1202.64974 | M35: 8802.04094 | N35: 12598.597 | O35: 6.40048 | P35: 90.11369 | Q35: 36.3123 | R35: 81.98227 | S35: 2967.69091 | U35: 1506.33236 | V35: 332.98542 | X35: 1794.34397 | Y35: 1.51005 | Z35: 0 | AA35: 0 | AB35: 0 | AD35: 1795.85402 | AF35: 904.87061 | AI35: -2573 | AL35: 5821.12839 | AN35: 12013.7527 | AQ35: 2063 | AR35: 9.11 | AU35: 4837.85748 | AV35: 10366.61992 | AW35: 0 | AX35: 3037.39789 | AY35: 702.19535 | AZ35: 1291.92178 | BA35: 5031.51502 | BB35: 2476.288 | BC35: 10.64832 | BD35: 167.75942 | BE35: 1.77409 | BF35: 3.60331 | BG35: 1757.36025 | BI35: 1091.91043 | BJ35: 0 | BL35: 665.44982 | BM35: 2.16445 | BN35: -0.63411 | BO35: 0 | BP35: 0 | BQ35: 668.24838 | BS35: 3165.4613 | BY35: 3888.80345 | CA35: 5009.49891 | CF35: 9 | CN35: -453.36871 | CO35: -2091.06947 | CP35: 101.98101 | CQ35: 417.79393 | CR35: 0 | CT35: 1.59092 | CU35: -1052.81903 | CV35: 0 | CW35: 77.34055 | CX35: 0
A36: 106 | B36: Hyvinkää | C36: 46797 | D36: 20.25 | G36: 332796.4679 | H36: 589396.1682 | I36: 199.11356 | J36: 202344.9672 | K36: 23542.44238 | L36: 14965.76647 | M36: 240853.1761 | N36: 70346.784 | O36: 52.31116 | P36: 3242.18165 | Q36: 952.42085 | R36: 458.23354 | S36: 51130.41977 | U36: 34966.48647 | V36: 0 | X36: 16163.9333 | Y36: 0 | Z36: 543.88158 | AA36: -133.53905 | AB36: -149.03315 | AD36: 15337.47952 | AF36: 71823.58196 | AI36: -53690 | AL36: 51633.17958 | AN36: 292993.2103 | AQ36: 46901 | AR36: 7.61 | AU36: 92490.96143 | AV36: 174306.9337 | AW36: 251.98083 | AX36: 95505.56424 | AY36: 14506.77246 | AZ36: 14562.0262 | BA36: 124574.3629 | BB36: 21067.14348 | BC36: 1104.08653 | BD36: 6804.39911 | BE36: 220.01812 | BF36: 20.50766 | BG36: 57400.83222 | BI36: 31940.73503 | BJ36: 0 | BL36: 25460.09719 | BM36: 10.66118 | BN36: 523.10342 | BO36: 332.90441 | BP36: -68.08645 | BQ36: 25212.47291 | BS36: 96463.67858 | BY36: 41635.19746 | CA36: 251350.168 | CF36: 7.6 | CN36: -11580.85328 | CO36: -53023.38665 | CP36: 1158.58503 | CQ36: 11397.43958 | CR36: 162.05283 | CT36: -3373.75337 | CU36: -43634.74695 | CV36: 1686.547 | CW36: 5352.12414 | CX36: 76.435
A37: 108 | B37: Hämeenkyrö | C37: 10257 | D37: 22 | G37: 43138.66521 | H37: 106473.6779 | I37: 80.02639 | J37: 38336.02628 | K37: 3194.11542 | L37: 2309.46781 | M37: 43839.60951 | N37: 29545.2919 | O37: 29.1846 | P37: 687.46193 | Q37: 338.12238 | R37: 262.29197 | S37: 9487.24304 | U37: 6835.54787 | V37: 0 | X37: 2651.69517 | Y37: 0.27073 | Z37: 105.74162 | AA37: -2.93787 | AB37: -155.82596 | AD37: 2387.46044 | AF37: 9271.96012 | AI37: -6035 | AL37: 15987.36311 | AN37: 58958.45492 | AQ37: 10319 | AR37: 9.36 | AU37: 11441.47396 | AV37: 40276.08591 | AW37: 3.28448 | AX37: 19412.01716 | AY37: 2322.70386 | AZ37: 2386.28951 | BA37: 24121.01053 | BB37: 13237.7744 | BC37: 246.051 | BD37: 959.35429 | BE37: 223.31 | BF37: 30.78789 | BG37: 7940.78526 | BI37: 5456.37571 | BJ37: 0 | BL37: 2484.40955 | BM37: 0.1365 | BN37: 23.83362 | BO37: 97.80226 | BP37: 20.9563 | BQ37: 2579.47099 | BS37: 10218.47568 | BY37: 11942.98563 | CA37: 46645.06543 | CF37: 9.4 | CN37: -666.77024 | CO37: -5479.64823 | CP37: 45.604 | CQ37: 1444.59809 | CR37: 2.652 | CT37: -265.86214 | CU37: -8242.33769 | CV37: 34.4 | CW37: 701.19793 | CX37: 0
A38: 109 | B38: Hämeenlinna | C38: 68043 | D38: 21 | G38: 265937.3367 | H38: 651912.3093 | I38: -987.00962 | J38: 272905.6811 | K38: 26907.20318 | L38: 29253.78481 | M38: 329066.6691 | N38: 119344.806 | O38: 797.63482 | P38: 7941.18841 | Q38: 11674.81814 | R38: 10580.88583 | S38: 53636.61574 | U38: 50954.85055 | V38: 0 | X38: 2681.76519 | Y38: -95.66752 | Z38: 217.17807 | AA38: -55.69612 | AB38: -424.73014 | AD38: 1888.49334 | AF38: 8356.32549 | AI38: -60264 | AL38: 175894.1466 | AN38: 533826.7072 | AQ38: 68319 | AR38: 8.36 | AU38: 113984.4538 | AV38: 264095.1845 | AW38: 1597.76149 | AX38: 138242.1957 | AY38: 18882.39682 | AZ38: 30020.7908 | BA38: 187145.3833 | BB38: 42050.39678 | BC38: 1424.45567 | BD38: 7570.60977 | BE38: 7213.51101 | BF38: 542.41984 | BG38: 79218.12594 | BI38: 45538.14896 | BJ38: -2061.84904 | BL38: 31618.12794 | BM38: -17216.90364 | BN38: 291.81301 | BO38: -25.63971 | BP38: 47.22724 | BQ38: 14130.99882 | BS38: 24451.90532 | BY38: 142328.5228 | CA38: 428377.0674 | CF38: 8.4 | CN38: 8250.62598 | CO38: -86374.02582 | CP38: 917.12813 | CQ38: 2516.73162 | CR38: 39.29473 | CT38: -2368.51536 | CU38: -69930.59606 | CV38: 1390.811 | CW38: 3604.66458 | CX38: 198.05182
A39: 139 | B39: Ii | C39: 9853 | D39: 21.5 | G39: 67594.30766 | H39: 135982.6145 | I39: -79.73904 | J39: 31837.78336 | K39: 2225.86532 | L39: 4796.2513 | M39: 38859.89998 | N39: 36034.34966 | O39: 22.08042 | P39: 539.57792 | Q39: 223.66061 | R39: 207.73909 | S39: 5924.6278 | U39: 7593.77729 | V39: 0 | X39: -1669.14949 | Y39: 5.66687 | Z39: 6.41191 | AA39: 31.33121 | AB39: -27.8491 | AD39: -1666.41242 | AF39: 10800.04313 | AI39: -10641 | AL39: 12148.22539 | AN39: 71695.85506 | AQ39: 9766 | AR39: 8.86 | AU39: 22966.57551 | AV39: 51194.17654 | AW39: 4.33401 | AX39: 16664.94365 | AY39: 1488.51363 | AZ39: 4884.33896 | BA39: 23037.79624 | BB39: 17312.63308 | BC39: 515.10892 | BD39: 1162.53658 | BE39: 578.23082 | BF39: 48.68955 | BG39: 12009.27591 | BI39: 7552.96408 | BJ39: 0 | BL39: 4456.31183 | BM39: 74.71422 | BN39: 0 | BO39: 59.32954 | BP39: -0.93902 | BQ39: 4589.41657 | BS39: 14998.8321 | BY39: 9157.64639 | CA39: 49652.04907 | CF39: 8.9 | CN39: -318.80969 | CO39: -15860.06448 | CP39: 101.78432 | CQ39: 1010.83845 | CR39: 595.0785 | CT39: -3590.57917 | CU39: -6871.11496 | CV39: 3.88163 | CW39: 11510.36515 | CX39: 600.4485
A40: 140 | B40: Iisalmi | C40: 20801 | D40: 20.5 | G40: 125659.1225 | H40: 270611.585 | I40: 414.23915 | J40: 69934.62794 | K40: 8003.49594 | L40: 6055.48535 | M40: 83993.60923 | N40: 79840.35122 | O40: 59.53252 | P40: 894.0596 | Q40: 2243.64356 | R40: 1554.40321 | S40: 19923.84023 | U40: 16185.84312 | V40: 371.20725 | X40: 4109.20436 | Y40: -954.46412 | Z40: 50.96814 | AA40: -63.42523 | AB40: -3.5474 | AD40: 3036.79947 | AF40: 53454.27534 | AI40: -15223 | AL40: 44749.95114 | AN40: 126578.0677 | AQ40: 20618 | AR40: 7.86 | AU40: 54265.65099 | AV40: 118125.5345 | AW40: 1.41748 | AX40: 33351.32881 | AY40: 5653.24757 | AZ40: 5891.62219 | BA40: 44896.19857 | BB40: 37937.72323 | BC40: 132.0796 | BD40: 2247.31122 | BE40: 1838.76735 | BF40: 243.90819 | BG40: 18959.47987 | BI40: 12969.94311 | BJ40: 163.36933 | BL40: 6152.90609 | BM40: 1267.32426 | BN40: 63.00509 | BO40: -106.51706 | BP40: -4.62411 | BQ40: 7246.08409 | BS40: 58770.67895 | BY40: 25734.27208 | CA40: 107498.4807 | CF40: 7.9 | CN40: -1400.95434 | CO40: -30432.86628 | CP40: 28.29135 | CQ40: 1109.84935 | CR40: -7.3695 | CT40: 1463.85805 | CU40: -59495.49792 | CV40: 386.71879 | CW40: 12035.69856 | CX40: -15.86886
A41: 142 | B41: Iitti | C41: 6504 | D41: 21.25 | G41: 33533.47915 | H41: 74522.97002 | I41: -12.46318 | J41: 22108.29606 | K41: 2010.41968 | L41: 3148.72929 | M41: 27267.44503 | N41: 19166.135 | O41: 21.23398 | P41: 81.18965 | Q41: 228.47309 | R41: 87.92645 | S41: 5512.21695 | U41: 4351.96122 | V41: 0 | X41: 1160.25573 | Y41: 0 | Z41: 0.00018 | AA41: -40.02873 | AB41: 0.40518 | AD41: 1120.632 | AF41: 6363.44167 | AI41: -2037 | AL41: 9928.707 | AN41: 15776.66052 | AQ41: 6444 | AR41: 8.61 | AU41: 7470.069 | AV41: 23236.183 | AW41: 0 | AX41: 11023.38109 | AY41: 1138.09492 | AZ41: 3351.05869 | BA41: 15512.5347 | BB41: 3999.184 | BC41: 243.63 | BD41: 173.008 | BE41: 133.704 | BF41: 7.256 | BG41: 3942.675 | BI41: 3411.721 | BJ41: 0 | BL41: 530.954 | BM41: 0 | BN41: 0 | BO41: -23.44 | BP41: 0 | BQ41: 507.514 | BS41: 6637.699 | BY41: 10873.698 | CA41: 10777.679 | CF41: 8.6 | CN41: 466.46609 | CO41: -3167.15721 | CP41: 89.47403 | CQ41: 256.9447 | CR41: -220.84867 | CT41: -128.478 | CU41: -3024.064 | CV41: 15 | CW41: 824.901 | CX41: -301.813
A42: 143 | B42: Ikaalinen | C42: 6804 | D42: 22 | G42: 38827.41404 | H42: 89309.46825 | I42: 75.86743 | J42: 22397.92735 | K42: 2711.63514 | L42: 2511.93493 | M42: 27621.49742 | N42: 28486.01988 | O42: 19.80559 | P42: 344.74825 | Q42: 289.49616 | R42: 189.71856 | S42: 5374.00565 | U42: 4853.69126 | V42: 0 | X42: 520.31439 | Y42: -1.63996 | Z42: 103.47976 | AA42: -32.34266 | AB42: -183.37253 | AD42: 199.47948 | AF42: 7401.29761 | AI42: -4414 | AL42: 8757.40986 | AN42: 45819.34387 | AQ42: 6850 | AR42: 9.36 | AU42: 23002.52915 | AV42: 38242.12159 | AW42: 6.13722 | AX42: 11507.89084 | AY42: 1868.36683 | AZ42: 2867.69101 | BA42: 16243.94868 | BB42: 3842.757 | BC42: 67.47039 | BD42: 833.19656 | BE42: 144.06221 | BF42: 27.13939 | BG42: 4095.33728 | BI42: 3065.26419 | BJ42: 0 | BL42: 1030.07309 | BM42: -0.0394 | BN42: 45.79114 | BO42: -47.75671 | BP42: -18.37442 | BQ42: 918.11142 | BS42: 7210.32011 | BY42: 6125.35793 | CA42: 38137.76183 | CF42: 9.4 | CN42: -319.10967 | CO42: -8558.93407 | CP42: 0 | CQ42: 375.12885 | CR42: 0 | CT42: -264.8607 | CU42: -4489.24596 | CV42: 0 | CW42: 18.37169 | CX42: 0
A43: 145 | B43: Ilmajoki | C43: 12369 | D43: 21 | G43: 72263.76793 | H43: 150649.3091 | I43: 8.99237 | J43: 41557.65266 | K43: 3220.97113 | L43: 3010.91112 | M43: 47789.53491 | N43: 35262.73 | O43: 5.30441 | P43: 615.47484 | Q43: 381.83636 | R43: 187.69912 | S43: 4259.68291 | U43: 6419.90357 | V43: 0 | X43: -2160.22066 | Y43: 91.50289 | Z43: 1.60204 | AA43: 3.38061 | AB43: 21.76537 | AD43: -2045.17383 | AF43: 1847.46491 | AI43: -7070 | AL43: 7015.76658 | AN43: 88250.24897 | AQ43: 12343 | AR43: 8.36 | AU43: 16977.93366 | AV43: 50575.86753 | AW43: 0 | AX43: 21226.90878 | AY43: 1929.13627 | AZ43: 3009.02715 | BA43: 26165.0722 | BB43: 15829.194 | BC43: 26.56176 | BD43: 1595.92957 | BE43: 186.4236 | BF43: 100.75417 | BG43: 6912.63395 | BI43: 6328.9622 | BJ43: 0 | BL43: 583.67175 | BM43: 3.9885 | BN43: 1.97776 | BO43: 0 | BP43: 0.11891 | BQ43: 585.8014 | BS43: 2818.79285 | BY43: 4433.62985 | CA43: 78198.85634 | CF43: 8.4 | CN43: -1058.09217 | CO43: -10173.38414 | CP43: 123.88846 | CQ43: 626.38525 | CR43: -200.73889 | CT43: 81.45252 | CU43: -6125.45123 | CV43: 70.32894 | CW43: 182.82371 | CX43: 75.92285
A44: 146 | B44: Ilomantsi | C44: 4492 | D44: 21 | G44: 38493.48616 | H44: 77326.18863 | I44: -8.17418 | J44: 13196.27843 | K44: 4299.76318 | L44: 1555.09562 | M44: 19051.13723 | N44: 23419.857 | O44: 32.65574 | P44: 240.38697 | Q44: 404.59201 | R44: 351.73811 | S44: 3475.24025 | U44: 2749.94177 | V44: -55.07015 | X44: 670.22833 | Y44: 7.61849 | Z44: 56.30349 | AA44: -60.98593 | AB44: 35.18068 | AD44: 595.73808 | AF44: 3283.13583 | AI44: -828 | AL44: 13872.28123 | AN44: 18646.90995 | AQ44: 4406 | AR44: 8.36 | AU44: 8254.01002 | AV44: 19379.99128 | AW44: -1.03725 | AX44: 6335.32161 | AY44: 2605.22912 | AZ44: 1577.95607 | BA44: 10518.5068 | BB44: 4989.3 | BC44: 51.6034 | BD44: 400.8621 | BE44: 619.53203 | BF44: 121.62527 | BG44: 4529.43635 | BI44: 2164.44598 | BJ44: 4.30535 | BL44: 2369.29572 | BM44: -12.53896 | BN44: 119.2278 | BO44: 0 | BP44: -12.33513 | BQ44: 2225.19383 | BS44: 3768.24239 | BY44: 12444.50646 | CA44: 14183.71303 | CF44: 8.4 | CN44: 756.59446 | CO44: -2096.0817 | CP44: 32.94984 | CQ44: 116.13796 | CR44: -3.24947 | CT44: -76.27931 | CU44: -1131.24568 | CV44: 0 | CW44: 137.31756 | CX44: -0.25655
A45: 153 | B45: Imatra | C45: 25208 | D45: 20 | G45: 166021.3326 | H45: 337836.4827 | I45: -169.05767 | J45: 93596.27115 | K45: 5503.90529 | L45: 12708.48545 | M45: 111808.6619 | N45: 83673.14862 | O45: 650.44519 | P45: 2421.06268 | Q45: -141.28811 | R45: 40.80525 | S45: 21544.89195 | U45: 23191.84141 | V45: 0 | X45: -1646.94946 | Y45: 0.56277 | Z45: 273.17673 | AA45: -74.59172 | AB45: -13.2957 | AD45: -2007.45084 | AF45: 45889.49846 | AI45: -42579 | AL45: 21125.98122 | AN45: 253727.1389 | AQ45: 24919 | AR45: 7.36 | AU45: 49997.3862 | AV45: 112413.3019 | AW45: -128.25326 | AX45: 42575.79654 | AY45: 4054.70603 | AZ45: 11943.08896 | BA45: 58573.59153 | BB45: 36119.21504 | BC45: 812.56721 | BD45: 5210.063 | BE45: 343.93455 | BF45: 85.72269 | BG45: 28009.35369 | BI45: 23266.81927 | BJ45: 0 | BL45: 4742.53442 | BM45: 50.25964 | BN45: 198.37315 | BO45: 53.8026 | BP45: 59.24337 | BQ45: 4707.46688 | BS45: 51513.10657 | BY45: 9843.39684 | CA45: 247797.6515 | CF45: 8.6 | CN45: -3876.60235 | CO45: -31985.17538 | CP45: 1398.06223 | CQ45: 151.87779 | CR45: -282.24595 | CT45: 544.07917 | CU45: -31743.87402 | CV45: 5191.73589 | CW45: 643.25427 | CX45: -18.725
A46: 148 | B46: Inari | C46: 7047 | D46: 19 | G46: 41446.05733 | H46: 89694.97618 | I46: 0 | J46: 22800.53929 | K46: 4367.30327 | L46: 4975.84183 | M46: 32146.41394 | N46: 27756.711 | O46: 58.92219 | P46: 526.4182 | Q46: 32.00925 | R46: 36.79648 | S46: 10993.14076 | U46: 9143.93104 | V46: 0 | X46: 1849.20972 | Y46: 24.02201 | Z46: 204.0171 | AA46: -68.3759 | AB46: -102.0531 | AD46: 1498.78563 | AF46: 34185.38145 | AI46: -17066 | AL46: 14816.68599 | AN46: 44548.97838 | AQ46: 7127 | AR46: 6.36 | AU46: 26947.74997 | AV46: 45266.71538 | AW46: 7.47903 | AX46: 11132.32 | AY46: 2391.04642 | AZ46: 5259.23714 | BA46: 18782.60356 | BB46: 10145.673 | BC46: 201.14867 | BD46: 941.17695 | BE46: 177.08661 | BF46: 182.81071 | BG46: 9580.14955 | BI46: 7488.29326 | BJ46: 0 | BL46: 2091.85629 | BM46: 117.50596 | BN46: 190.36417 | BO46: 49 | BP46: -164.38598 | BQ46: 1903.6121 | BS46: 35826.60094 | BY46: 13086.81882 | CA46: 36398.26554 | CF46: 6.4 | CN46: -574.99954 | CO46: -17071.90935 | CP46: 184.8187 | CQ46: 5132.10779 | CR46: 0 | CT46: -1003.73694 | CU46: -13789.07339 | CV46: 0 | CW46: 5910.42862 | CX46: 260.12809
A47: 149 | B47: Inkoo | C47: 5384 | D47: 20.75 | G47: 19410.03878 | H47: 53799.20024 | I47: -17.12861 | J47: 24404.09169 | K47: 2031.23404 | L47: 3024.88026 | M47: 29460.20599 | N47: 8647.38568 | O47: 4.19889 | P47: 167.53713 | Q47: 63.98946 | R47: 54.07247 | S47: 3547.88035 | U47: 2773.86307 | V47: 0 | X47: 774.01728 | Y47: 0 | Z47: 0.76157 | AA47: -0.82534 | AB47: 1.3624 | AD47: 773.79277 | AF47: 14596.3107 | AI47: -2861 | AL47: 4532.91128 | AN47: 27085.24006 | AQ47: 5379 | AR47: 8.11 | AU47: 4410.48462 | AV47: 20229.15078 | AW47: 0 | AX47: 11997.341 | AY47: 1140.16463 | AZ47: 3169.02709 | BA47: 16306.53272 | BB47: 2546.16255 | BC47: 12.70723 | BD47: 752.02065 | BE47: 12.72265 | BF47: 3.48147 | BG47: 2303.95687 | BI47: 2619.85367 | BJ47: 0 | BL47: -315.8968 | BM47: 1.2469 | BN47: 0.00019 | BO47: 0 | BP47: 0 | BQ47: -314.65009 | BS47: 14289.78639 | BY47: 1770.8998 | CA47: 30852.56326 | CF47: 8.1 | CN47: -347.95235 | CO47: -12451.42457 | CP47: 128.14129 | CQ47: 535.63946 | CR47: 4.44437 | CT47: -97.61161 | CU47: -14724.15315 | CV47: 898.5228 | CW47: 107.71857 | CX47: 6.67939
A48: 151 | B48: Isojoki | C48: 1852 | D48: 22.5 | G48: 17394.68108 | H48: 32876.70341 | I48: 1.62997 | J48: 5943.60162 | K48: 1178.47749 | L48: 1004.79883 | M48: 8126.87794 | N48: 9104.79821 | O48: 0 | P48: 36.9553 | Q48: 39.82663 | R48: 27.84328 | S48: 1726.31184 | U48: 924.45796 | V48: 0 | X48: 801.85388 | Y48: -2.29039 | Z48: 0 | AA48: 0.61277 | AB48: 3.94665 | AD48: 804.12291 | AF48: 2984.64529 | AI48: -1033 | AL48: 4575.46728 | AN48: 3290.40813 | AQ48: 1814 | AR48: 9.86 | AU48: 2135.24929 | AV48: 7395.74769 | AW48: 97.02421 | AX48: 3042.86854 | AY48: 899.54025 | AZ48: 1149.27432 | BA48: 5091.68311 | BB48: 1675.54845 | BC48: 0 | BD48: 17.39011 | BE48: 19.33049 | BF48: 17.48758 | BG48: 1588.21017 | BI48: 1527.34228 | BJ48: -51.89021 | BL48: 8.97768 | BM48: -1.99998 | BN48: 0 | BO48: -0.73183 | BP48: 0 | BQ48: 6.24587 | BS48: 3722.88673 | BY48: 3620.08833 | CA48: 752.02323 | CF48: 9.8 | CN48: -25.97337 | CO48: -603.03192 | CP48: 31.7754 | CQ48: 27.2541 | CR48: 24.9024 | CT48: 88.43528 | CU48: -870.94956 | CV48: 1.2 | CW48: 581.14293 | CX48: 18
A49: 152 | B49: Isokyrö | C49: 4406 | D49: 21.5 | G49: 14591.96858 | H49: 43428.95416 | I49: 40.72701 | J49: 15227.50589 | K49: 1305.91702 | L49: 975.01522 | M49: 17508.43813 | N49: 15339.9238 | O49: 9.59349 | P49: 95.78918 | Q49: 110.33393 | R49: 46.25603 | S49: 3998.03201 | U49: 2792.75485 | V49: 0 | X49: 1205.27716 | Y49: -92.36348 | Z49: 0 | AA49: 0 | AB49: 9.21932 | AD49: 1122.133 | AF49: 16388.95374 | AI49: -6273 | AL49: 4279.6194 | AN49: 12021.80529 | AQ49: 4357 | AR49: 8.86 | AU49: 5340.41218 | AV49: 16254.81374 | AW49: 18.46491 | AX49: 7504.66858 | AY49: 879.41506 | AZ49: 986.80238 | BA49: 9370.88602 | BB49: 5187.70103 | BC49: 10.35269 | BD49: 182.89064 | BE49: 42.01154 | BF49: 19.76867 | BG49: 3475.70496 | BI49: 2318.6609 | BJ49: 0 | BL49: 1157.04406 | BM49: -0.70549 | BN49: 0 | BO49: 0 | BP49: 0 | BQ49: 1156.33857 | BS49: 17580.19311 | BY49: 2642.84153 | CA49: 8051.47908 | CF49: 9.5 | CN49: -106.95562 | CO49: -4800.59569 | CP49: 33.40573 | CQ49: 86.09752 | CR49: -14.04832 | CT49: -13.881 | CU49: -4732.96716 | CV49: 8.16318 | CW49: 38.57795 | CX49: 26.98133
A50: 165 | B50: Janakkala | C50: 16280 | D50: 21 | G50: 51833.12028 | H50: 149160.8424 | I50: 0.35833 | J50: 63541.70603 | K50: 3932.75164 | L50: 4053.51218 | M50: 71527.96985 | N50: 35737.5124 | O50: 11.35871 | P50: 617.74284 | Q50: 468.04351 | R50: 55.02106 | S50: 9505.76308 | U50: 9399.53597 | V50: 0 | X50: 106.22711 | Y50: 26.48032 | Z50: 53.82242 | AA50: 7.86409 | AB50: -2.39928 | AD50: 84.34982 | AF50: 8309.36864 | AI50: -9785 | AL50: 23672.72373 | AN50: 89342.80709 | AQ50: 16123 | AR50: 8.36 | AU50: 21327.92367 | AV50: 61683.01396 | AW50: 0 | AX50: 31662.3035 | AY50: 3051.32003 | AZ50: 4238.06921 | BA50: 38951.69274 | BB50: 16684.48719 | BC50: 104.90289 | BD50: 1376.96098 | BE50: 171.53354 | BF50: 24.718 | BG50: 13911.75469 | BI50: 9042.73795 | BJ50: 0 | BL50: 4869.01674 | BM50: 1.44299 | BN50: 9.51475 | BO50: 1.77828 | BP50: 0.96187 | BQ50: 4863.68513 | BS50: 13424.48436 | BY50: 15384.81448 | CA50: 66909.72285 | CF50: 8.4 | CN50: -430.87962 | CO50: -17255.34267 | CP50: 371.83061 | CQ50: 2282.97114 | CR50: 7.73438 | CT50: -216.68968 | CU50: -12883.89628 | CV50: 1546.6593 | CW50: 334.16442 | CX50: 0.09616
A51: 167 | B51: Joensuu | C51: 77513 | D51: 20.5 | G51: 394704.6954 | H51: 877432.3624 | I51: -193.26718 | J51: 252224.925 | K51: 37901.40392 | L51: 22957.00182 | M51: 313083.3308 | N51: 230630.9975 | O51: 705.39711 | P51: 4229.18717 | Q51: 4644.69433 | R51: 10162.37467 | S51: 51751.9237 | U51: 72468.60131 | V51: 0 | X51: -20716.67761 | Y51: 352.47822 | Z51: 815.8965 | AA51: -96.93671 | AB51: -52.62308 | AD51: -21329.65568 | AF51: 53814.30258 | AI51: -91635 | AL51: 177808.0692 | AN51: 558731.3445 | AQ51: 78062 | AR51: 7.86 | AU51: 161265.1415 | AV51: 358924.1799 | AW51: -367.70987 | AX51: 119920.7654 | AY51: 27220.88491 | AZ51: 23596.24901 | BA51: 170737.8993 | BB51: 114322.0821 | BC51: 966.26817 | BD51: 8829.95197 | BE51: 9458.46937 | BF51: 2770.45215 | BG51: 85857.56659 | BI51: 56960.22727 | BJ51: 0 | BL51: 28897.33932 | BM51: -926.6792 | BN51: 803.91377 | BO51: -91.23921 | BP51: -225.50896 | BQ51: 26849.99818 | BS51: 79333.61134 | BY51: 149795.298 | CA51: 461301.958 | CF51: 7.9 | CN51: 7793.84744 | CO51: -76219.9482 | CP51: 4296.9058 | CQ51: 2837.09376 | CR51: -15.42946 | CT51: 5013.82934 | CU51: -71846.06678 | CV51: 3417.97124 | CW51: 1578.71016 | CX51: -6.12815
A52: 169 | B52: Jokioinen | C52: 4990 | D52: 21.25 | G52: 26933.10391 | H52: 59361.85798 | I52: 0.15459 | J52: 18819.1478 | K52: 1471.75621 | L52: 1257.2761 | M52: 21548.18011 | N52: 12218.94082 | O52: 14.16036 | P52: 124.66665 | Q52: 131.61304 | R52: 4.92297 | S52: 1354.70523 | U52: 2419.1403 | V52: 5.44508 | X52: -1058.98999 | Y52: 1.49457 | Z52: -0.02686 | AA52: 0 | AB52: 11.48634 | AD52: -1045.98222 | AF52: 8571.80723 | AI52: -1418 | AL52: 1301.69778 | AN52: 14776.26769 | AQ52: 4916 | AR52: 8.61 | AU52: 5836.60373 | AV52: 19044.88732 | AW52: 0 | AX52: 9360.97092 | AY52: 735.73864 | AZ52: 1266.82275 | BA52: 11363.53231 | BB52: 4493.53752 | BC52: 32.68887 | BD52: 334.69228 | BE52: 103.16628 | BF52: 28.83572 | BG52: 2421.11339 | BI52: 2167.99565 | BJ52: 0 | BL52: 253.11774 | BM52: 0.48 | BN52: -1.27738 | BO52: 0 | BP52: 11.49506 | BQ52: 266.37018 | BS52: 9014.60014 | BY52: 1325.95752 | CA52: 12354.67546 | CF52: 8.7 | CN52: -7.05605 | CO52: -2858.99124 | CP52: 0 | CQ52: 67.34255 | CR52: 1.41189 | CT52: -24.15907 | CU52: -1334.35533 | CV52: 0 | CW52: 5.72121 | CX52: 0
A53: 171 | B53: Joroinen | C53: 4540 | D53: 21.25 | G53: 30290.449 | H53: 60321.46533 | I53: 5.41749 | J53: 16106.00674 | K53: 2255.38219 | L53: 1229.93718 | M53: 19591.32611 | N53: 13611.358 | O53: 73.32299 | P53: 203.44228 | Q53: 273.17582 | R53: 428.82342 | S53: 2845.40508 | U53: 2088.73932 | V53: 20.45879 | X53: 777.12455 | Y53: -1.78636 | Z53: 0 | AA53: 0 | AB53: -0.01128 | AD53: 775.32691 | AF53: 2390.02822 | AI53: -7034 | AL53: 16799.69411 | AN53: 32606.79949 | AQ53: 4590 | AR53: 8.61 | AU53: 5486.78038 | AV53: 16212.77341 | AW53: 8.21745 | AX53: 7984.52523 | AY53: 1404.50174 | AZ53: 1227.07286 | BA53: 10616.09983 | BB53: 2635.019 | BC53: 93.0381 | BD53: 508.57441 | BE53: 403.84979 | BF53: 114.68669 | BG53: 2357.67212 | BI53: 1353.02971 | BJ53: 0 | BL53: 1004.64241 | BM53: 70.82874 | BN53: 0 | BO53: 0 | BP53: 6.8596 | BQ53: 1082.33075 | BS53: 3366.72204 | BY53: 10603.76266 | CA53: 22319.39608 | CF53: 8.6 | CN53: -843.66741 | CO53: -3152.10905 | CP53: 34.62744 | CQ53: 425.38263 | CR53: 301.78794 | CT53: 113.50145 | CU53: -1252.62206 | CV53: 119 | CW53: 328.95 | CX53: -136.21933
A54: 172 | B54: Joutsa | C54: 4171 | D54: 21 | G54: 16279.30627 | H54: 48296.8059 | I54: 16.18114 | J54: 11988.41844 | K54: 2356.46667 | L54: 1853.47897 | M54: 16198.36408 | N54: 18372.55212 | O54: 16.05001 | P54: 476.52773 | Q54: 398.69553 | R54: 15.82161 | S54: 2444.75634 | U54: 2744.61664 | V54: 185.86795 | X54: -113.99235 | Y54: 0.71309 | Z54: 11.70657 | AA54: -10.95817 | AB54: 22.59882 | AD54: -113.34518 | AF54: 1540.45417 | AI54: -4629 | AL54: 3477.09862 | AN54: 31952.9943 | AQ54: 4079 | AR54: 8.36 | AU54: 6830.24502 | AV54: 16959.66542 | AW54: 19.53854 | AX54: 6142.98897 | AY54: 1405.33755 | AZ54: 1862.69987 | BA54: 9411.02639 | BB54: 3530.59905 | BC54: 26.1913 | BD54: 602.36713 | BE54: 251.77192 | BF54: 12.04453 | BG54: 2453.33074 | BI54: 2138.82387 | BJ54: 18.8727 | BL54: 333.37957 | BM54: -0.45773 | BN54: 16.66976 | BO54: -13.01541 | BP54: 4.20586 | BQ54: 307.44253 | BS54: 2995.58719 | BY54: 2446.96605 | CA54: 22229.17558 | CF54: 9 | CN54: -390.6095 | CO54: -3186.50115 | CP54: 10.74639 | CQ54: 91.35964 | CR54: 0 | CT54: -19.35854 | CU54: -876.41204 | CV54: 0 | CW54: 54.48066 | CX54: 0
A55: 176 | B55: Juuka | C55: 4352 | D55: 20.75 | G55: 41949.49468 | H55: 75819.25727 | I55: -4.29843 | J55: 11416.1871 | K55: 2667.88572 | L55: 1288.37823 | M55: 15372.45105 | N55: 22133.221 | O55: 98.28824 | P55: 112.23721 | Q55: 393.88343 | R55: 83.77535 | S55: 3927.77014 | U55: 2955.12844 | V55: 0 | X55: 972.6417 | Y55: 8.23644 | Z55: 0.01049 | AA55: -3.31452 | AB55: 6.65887 | AD55: 984.212 | AF55: 12293.77362 | AI55: -3214 | AL55: 10849.71353 | AN55: 18051.39726 | AQ55: 4259 | AR55: 8.11 | AU55: 9008.10262 | AV55: 17675.43585 | AW55: 0 | AX55: 5605.34023 | AY55: 1552.7474 | AZ55: 1308.62968 | BA55: 8466.71731 | BB55: 3248.513 | BC55: 240.0277 | BD55: 29.66087 | BE55: 407.85023 | BF55: 4.74671 | BG55: 3661.36743 | BI55: 2060.70671 | BJ55: 0 | BL55: 1600.66072 | BM55: -10.38942 | BN55: 0 | BO55: 0 | BP55: 0 | BQ55: 1590.2713 | BS55: 13651.18928 | BY55: 8904.18695 | CA55: 8705.31199 | CF55: 8.5 | CN55: 140.08779 | CO55: -3124.3993 | CP55: 32.73857 | CQ55: 85.44726 | CR55: 40.57652 | CT55: -220.82057 | CU55: -1258.29287 | CV55: 0 | CW55: 487.09254 | CX55: -0.21257
A56: 177 | B56: Juupajoki | C56: 1768 | D56: 21 | G56: 8561.71188 | H56: 19716.8941 | I56: 1.57673 | J56: 6024.47157 | K56: 1497.27463 | L56: 558.81947 | M56: 8080.56567 | N56: 4759.124 | O56: 15.9306 | P56: 52.94015 | Q56: 81.17 | R56: 43.18729 | S56: 1687.05734 | U56: 1178.32071 | V56: 0 | X56: 508.73663 | Y56: 10.63975 | Z56: 19.02639 | AA56: -1.27421 | AB56: 54.04559 | AD56: 553.12137 | AF56: 3926.44498 | AI56: -1309 | AL56: 3830.5651 | AN56: 6578.53714 | AQ56: 1708 | AR56: 8.36 | AU56: 2713.96615 | AV56: 7171.12287 | AW56: -17.27484 | AX56: 2695.27113 | AY56: 1004.17982 | AZ56: 581.36109 | BA56: 4280.81204 | BB56: 870.71 | BC56: 58.25138 | BD56: 87.62494 | BE56: 57.21139 | BF56: 16.85672 | BG56: 688.07159 | BI56: 672.45179 | BJ56: 0 | BL56: 15.6198 | BM56: 10.60763 | BN56: 0.33244 | BO56: 0 | BP56: 88.64505 | BQ56: 114.54004 | BS56: 3572.72515 | BY56: 2692.1139 | CA56: 3108.42604 | CF56: 8.4 | CN56: -65.72197 | CO56: -767.50885 | CP56: 0 | CQ56: 93.57646 | CR56: 21.63467 | CT56: 16.88151 | CU56: -296.58471 | CV56: 0 | CW56: 0.82333 | CX56: 19
A57: 178 | B57: Juva | C57: 5769 | D57: 20.75 | G57: 39608.77163 | H57: 82894.80515 | I57: -14.93303 | J57: 16735.32106 | K57: 3667.15332 | L57: 1670.76677 | M57: 22073.24115 | N57: 24053.9 | O57: 9.16412 | P57: 295.14278 | Q57: 759.4209 | R57: 66.20797 | S57: 3173.81789 | U57: 3525.30787 | V57: 29.1689 | X57: -322.32109 | Y57: 0 | Z57: 0 | AA57: 65.04818 | AB57: 0.18505 | AD57: -257.08786 | AF57: 4403.12432 | AI57: -5109 | AL57: 5000.17296 | AN57: 32878.24538 | AQ57: 5734 | AR57: 8.11 | AU57: 8171.82287 | AV57: 22802.3341 | AW57: 73.23043 | AX57: 8299.72343 | AY57: 1993.80199 | AZ57: 1682.23186 | BA57: 11975.75728 | BB57: 3901.14042 | BC57: 49.0205 | BD57: 519.55854 | BE57: 1000.35718 | BF57: 25.34186 | BG57: 1773.74999 | BI57: 2693.94822 | BJ57: 0 | BL57: -920.19823 | BM57: 0 | BN57: 11.26528 | BO57: 21.15269 | BP57: 0.65857 | BQ57: -909.65225 | BS57: 2686.67703 | BY57: 1622.61045 | CA57: 23851.49554 | CF57: 8.1 | CN57: -925.96323 | CO57: -3387.37923 | CP57: 100.07106 | CQ57: 528.82903 | CR57: -18.51416 | CT57: -144.41159 | CU57: -1796.30939 | CV57: 46.9 | CW57: 216.33983 | CX57: -437.7
A58: 179 | B58: Jyväskylä | C58: 145887 | D58: 20 | G58: 723500.4008 | H58: 1483154.964 | I58: 2452.6051 | J58: 504072.1373 | K58: 50727.60675 | L58: 52254.69887 | M58: 607054.4429 | N58: 320192.7891 | O58: 1195.29746 | P58: 15615.41688 | Q58: 3546.29003 | R58: 1436.80625 | S58: 152458.5667 | U58: 139829.6366 | V58: 56501.63187 | X58: 69130.56199 | Y58: 18.00044 | Z58: 11566.04461 | AA58: -398.58458 | AB58: -304.68228 | AD58: 56879.25096 | AF58: 159722.4978 | AI58: -204876 | AL58: 76132.68511 | AN58: 1167523.377 | AQ58: 147746 | AR58: 7.36 | AU58: 427935.2248 | AV58: 724101.4599 | AW58: 2107.96908 | AX58: 241856.5213 | AY58: 35310.81917 | AZ58: 57993.30434 | BA58: 335160.6448 | BB58: 161423.0624 | BC58: 2110.67462 | BD58: 21593.08605 | BE58: 3585.63199 | BF58: 1736.88458 | BG58: 180713.1871 | BI58: 117234.4978 | BJ58: 0 | BL58: 63478.68928 | BM58: 338.02453 | BN58: 9091.0904 | BO58: -973.57494 | BP58: -397.89598 | BQ58: 53354.15249 | BS58: 234403.968 | BY58: 30620.78862 | CA58: 887933.5231 | CF58: 8 | CN58: -75412.54308 | CO58: -194904.2499 | CP58: 1758.22881 | CQ58: 124424.9347 | CR58: 2969.4267 | CT58: 6909.71977 | CU58: -139557.9853 | CV58: 3223.1482 | CW58: 16285.5432 | CX58: -13.13511
A59: 181 | B59: Jämijärvi | C59: 1683 | D59: 22.5 | G59: 10718.36644 | H59: 22011.12562 | I59: 0 | J59: 5334.18517 | K59: 485.02485 | L59: 765.8365 | M59: 6585.04652 | N59: 5706.02 | O59: 0.85667 | P59: 117.00301 | Q59: 24.48322 | R59: 57.21034 | S59: 844.90684 | U59: 1237.38052 | V59: 0 | X59: -392.47368 | Y59: 0 | Z59: 0.49541 | AA59: 0.04093 | AB59: 0.04911 | AD59: -392.87904 | AF59: -717.16817 | AI59: 226 | AL59: 1115.85168 | AN59: 13431.43449 | AQ59: 1682 | AR59: 9.86 | AU59: 878.32807 | AV59: 5469.87031 | AW59: 0 | AX59: 2869.01562 | AY59: 320.5266 | AZ59: 729.41682 | BA59: 3918.95904 | BB59: 2398.28875 | BC59: 0.22082 | BD59: 406.51968 | BE59: 37.94284 | BF59: 13.27008 | BG59: 1340.90475 | BI59: 974.22352 | BJ59: 0 | BL59: 366.68123 | BM59: 0 | BN59: 0 | BO59: -0.7 | BP59: -3e-05 | BQ59: 365.9812 | BS59: -330.58041 | BY59: 702.11314 | CA59: 11703.26147 | CF59: 9.9 | CN59: -232.72615 | CO59: -5579.95685 | CP59: 118.28 | CQ59: 126.78938 | CR59: 0.19212 | CT59: -37.28155 | CU59: -328.6689 | CV59: 0 | CW59: 36.11423 | CX59: -47.09317
A60: 182 | B60: Jämsä | C60: 19347 | D60: 21 | G60: 77874.52892 | H60: 226383.1323 | I60: -51.18518 | J60: 71723.91185 | K60: 13900.56764 | L60: 5481.34923 | M60: 91105.82872 | N60: 62794.03014 | O60: -69.66378 | P60: 508.70514 | Q60: 474.20192 | R60: 1491.04183 | S60: 3744.86143 | U60: 13516.76537 | V60: 0 | X60: -9771.90394 | Y60: 4.30394 | Z60: 43.95743 | AA60: -2.95798 | AB60: -80.19671 | AD60: -9894.71212 | AF60: 2897.33292 | AI60: -11180 | AL60: 11073.74549 | AN60: 50246.39844 | AQ60: 19182 | AR60: 8.36 | AU60: 40706.00934 | AV60: 95103.01574 | AW60: 0 | AX60: 32896.44065 | AY60: 8163.58251 | AZ60: 6284.05435 | BA60: 47344.07751 | BB60: 23026.74867 | BC60: 41.44053 | BD60: 978.22163 | BE60: 226.91813 | BF60: 52.3826 | BG60: 15211.57421 | BI60: 12200.67902 | BJ60: 0 | BL60: 3010.89519 | BM60: -2.71784 | BN60: 24.69414 | BO60: 0 | BP60: 1.99667 | BQ60: 2985.47988 | BS60: 4530.322 | BY60: 12532.46821 | CA60: 37105.61543 | CF60: 9.4 | CN60: -462.62327 | CO60: -12388.8129 | CP60: 22.035 | CQ60: 3017.0382 | CR60: 50.16904 | CT60: -1563.45225 | CU60: -7759.23605 | CV60: 260.2 | CW60: 3326.23455 | CX60: 7938.64872
A61: 186 | B61: Järvenpää | C61: 45630 | D61: 20.25 | G61: 273893.7485 | H61: 530525.2477 | I61: -447.80678 | J61: 204423.9412 | K61: 8732.92437 | L61: 17842.59523 | M61: 230999.4608 | N61: 61162.18531 | O61: 120.01977 | P61: 3246.16804 | Q61: 569.46489 | R61: -53.87077 | S61: 31518.97833 | U61: 35599.63768 | V61: 0 | X61: -4080.65935 | Y61: 0 | Z61: 103.08629 | AA61: 156.22381 | AB61: 6.67791 | AD61: -4020.84392 | AF61: 1719.35721 | AI61: -53267 | AL61: 29630.82436 | AN61: 471994.3802 | AQ61: 46490 | AR61: 7.61 | AU61: 64412.10698 | AV61: 168406.5767 | AW61: 10.25303 | AX61: 98811.05647 | AY61: 6442.47912 | AZ61: 18599.8182 | BA61: 123853.3538 | BB61: 34960.94606 | BC61: 630.89966 | BD61: 11697.43891 | BE61: 875.75767 | BF61: -1204.13537 | BG61: 44715.84866 | BI61: 35159.04686 | BJ61: 0 | BL61: 9556.8018 | BM61: 8.92383 | BN61: 76.69436 | BO61: 48.39534 | BP61: 0 | BQ61: 9537.42661 | BS61: 10934.08741 | BY61: 16297.22976 | CA61: 450159.2297 | CF61: 7.6 | CN61: -13264.95303 | CO61: -73346.1708 | CP61: 301.14939 | CQ61: 15314.617 | CR61: 0.36375 | CT61: -7538.71695 | CU61: -48427.41089 | CV61: 613.37142 | CW61: 10035.76795 | CX61: 2.89655
A62: 202 | B62: Kaarina | C62: 35848 | D62: 20.25 | G62: 93621.98627 | H62: 291066.6854 | I62: -29.27799 | J62: 159008.7552 | K62: 10529.53508 | L62: 8051.69395 | M62: 177589.9842 | N62: 46742.06384 | O62: 81.55787 | P62: 2656.95556 | Q62: 320.73929 | R62: 185.61264 | S62: 24417.79991 | U62: 16782.89588 | V62: 0 | X62: 7634.90403 | Y62: 0 | Z62: 11.90495 | AA62: -128.86723 | AB62: 9.64086 | AD62: 7503.77271 | AF62: 36149.67797 | AI62: -12589 | AL62: 41160.2421 | AN62: 146805.4536 | AQ62: 36339 | AR62: 7.61 | AU62: 33366.21691 | AV62: 128760.7412 | AW62: -128.73233 | AX62: 74901.56224 | AY62: 7091.61839 | AZ62: 8614.7875 | BA62: 90607.96813 | BB62: 29847.20674 | BC62: 1097.7567 | BD62: 3988.57039 | BE62: 4940.38747 | BF62: 4729.85304 | BG62: 22251.63897 | BI62: 14319.35335 | BJ62: 0 | BL62: 7932.28562 | BM62: 0 | BN62: -0.86004 | BO62: 4.18677 | BP62: 42.03533 | BQ62: 7979.36776 | BS62: 49248.7 | BY62: 35249.43386 | CA62: 147606.1366 | CF62: 7.6 | CN62: -1894.49 | CO62: -32760.34691 | CP62: 605.60693 | CQ62: 2238.08601 | CR62: 0 | CT62: -254.29 | CU62: -39296.973 | CV62: 168.75 | CW62: 954.25204 | CX62: -4055.4084
A63: 204 | B63: Kaavi | C63: 2689 | D63: 22 | G63: 14611.86761 | H63: 37211.25573 | I63: 9.37443 | J63: 7753.67336 | K63: 1923.0534 | L63: 1292.03235 | M63: 10968.75911 | N63: 12944.37107 | O63: 1.81884 | P63: 203.00141 | Q63: 187.29438 | R63: 8.87955 | S63: 1277.52008 | U63: 1562.88301 | V63: -0.78839 | X63: -286.15132 | Y63: 0.93534 | Z63: 2.13321 | AA63: -0.22509 | AB63: -1.21917 | AD63: -288.79344 | AF63: 2070.99671 | AI63: -970 | AL63: 3470.48262 | AN63: 19846.37082 | AQ63: 2628 | AR63: 9.36 | AU63: 2546.74559 | AV63: 9253.47455 | AW63: 61.43263 | AX63: 3822.87612 | AY63: 1184.18379 | AZ63: 1258.53178 | BA63: 6265.59169 | BB63: 782.17407 | BC63: 5.27543 | BD63: 280.69431 | BE63: 184.28586 | BF63: 4.27222 | BG63: 282.49194 | BI63: 855.74715 | BJ63: 0 | BL63: -573.25521 | BM63: 0.43151 | BN63: 0.22936 | BO63: 0 | BP63: 0 | BQ63: -573.05306 | BS63: 1103.00183 | BY63: 651.62434 | CA63: 11092.70231 | CF63: 9.8 | CN63: -127.46067 | CO63: -5205.9812 | CP63: 5.07782 | CQ63: 59.15518 | CR63: 8.89494 | CT63: 230.23786 | CU63: -1085.6289 | CV63: 0 | CW63: 200.63727 | CX63: 7.59144
A64: 205 | B64: Kajaani | C64: 36297 | D64: 21 | G64: 303897.6384 | H64: 512041.7314 | I64: -200.06731 | J64: 134496.7548 | K64: 9439.65856 | L64: 11180.93842 | M64: 155117.3518 | N64: 139395.0961 | O64: 689.67876 | P64: 3496.60659 | Q64: 11715.67234 | R64: 21712.67574 | S64: 72044.51437 | U64: 50792.63761 | V64: 4035.524 | X64: 25287.40076 | Y64: 216.16333 | Z64: 918.48645 | AA64: -4552.63126 | AB64: -1.01443 | AD64: 20031.43195 | AF64: 128296.439 | AI64: 53527 | AL64: 273340.9029 | AN64: 671971.1287 | AQ64: 36513 | AR64: 8.36 | AU64: 189449.7269 | AV64: 275114.2598 | AW64: 203.53618 | AX64: 64297.28477 | AY64: 6335.0097 | AZ64: 11359.7959 | BA64: 81992.09037 | BB64: 63096.849 | BC64: 1709.61878 | BD64: 15891.66952 | BE64: 12895.71084 | BF64: 3156.17165 | BG64: 53722.83606 | BI64: 46239.21143 | BJ64: 0 | BL64: 7483.62463 | BM64: 43.06506 | BN64: 1347.27165 | BO64: -3056.96474 | BP64: 0.20337 | BQ64: 3122.65667 | BS64: 122102.2235 | BY64: 221784.3807 | CA64: 577360.2466 | CF64: 8.4 | CN64: -2439.68964 | CO64: -56659.61094 | CP64: 725.19201 | CQ64: 2291.24066 | CR64: 93.39574 | CT64: -1635.30037 | CU64: -47819.36635 | CV64: 1588.83763 | CW64: 453.95209 | CX64: 56.00506
A65: 208 | B65: Kalajoki | C65: 12335 | D65: 21 | G65: 44294.55887 | H65: 125197.3095 | I65: 317.16466 | J65: 38271.89467 | K65: 3475.16649 | L65: 5707.85632 | M65: 47454.91748 | N65: 36376.31366 | O65: -31.23407 | P65: 306.41753 | Q65: 2219.17602 | R65: 1288.95686 | S65: 11331.33592 | U65: 9229.69944 | V65: 0 | X65: 2101.63648 | Y65: 2.5318 | Z65: 4.58889 | AA65: -8.92461 | AB65: -10.72617 | AD65: 2079.92861 | AF65: 28125.91797 | AI65: -12956 | AL65: 27527.23753 | AN65: 63518.65499 | AQ65: 12372 | AR65: 8.36 | AU65: 25236.71766 | AV65: 61220.44133 | AW65: 95.92418 | AX65: 19552.52825 | AY65: 2972.04864 | AZ65: 7611.08659 | BA65: 30135.66348 | BB65: 19185.56369 | BC65: 156.28725 | BD65: 1088.19997 | BE65: 1133.8636 | BF65: 484.6917 | BG65: 15452.22403 | BI65: 9484.61071 | BJ65: -0.00459 | BL65: 5967.60873 | BM65: 11.19458 | BN65: -33.09966 | BO65: 3.47267 | BP65: -29.5701 | BQ65: 5985.80554 | BS65: 34076.8396 | BY65: 24914.85642 | CA65: 49765.67309 | CF65: 8.3 | CN65: -163.79722 | CO65: -11431.09027 | CP65: 252.13982 | CQ65: 1356.24435 | CR65: 60.26489 | CT65: -294.80566 | CU65: -8258.81331 | CV65: 989.37471 | CW65: 323.63561 | CX65: 20.88713
A66: 211 | B66: Kangasala | C66: 32959 | D66: 21 | G66: 134635.0562 | H66: 313405.6331 | I66: 143.78174 | J66: 136963.8858 | K66: 7855.30366 | L66: 8373.038 | M66: 153192.2275 | N66: 49879.43667 | O66: 226.27376 | P66: 1421.30342 | Q66: 11200.2979 | R66: 11331.97577 | S66: 22833.27507 | U66: 22332.94429 | V66: 0 | X66: 500.33078 | Y66: 0.72102 | Z66: 424.77362 | AA66: -28.57971 | AB66: -358.68737 | AD66: -310.9889 | AF66: 92773.67877 | AI66: -40138 | AL66: 70874.58926 | AN66: 163101.6218 | AQ66: 33473 | AR66: 8.36 | AU66: 43709.57081 | AV66: 126163.5074 | AW66: 20.03058 | AX66: 69741.61523 | AY66: 5720.35466 | AZ66: 8594.6803 | BA66: 84056.65019 | BB66: 23590.26113 | BC66: 364.10306 | BD66: 2723.5969 | BE66: 14572.36023 | BF66: 11357.10917 | BG66: 25756.60079 | BI66: 21971.55672 | BJ66: 0 | BL66: 3785.04407 | BM66: 0.37982 | BN66: 335.92155 | BO66: 155.18645 | BP66: 12.24141 | BQ66: 3616.9302 | BS66: 92530.0566 | BY66: 60685.0406 | CA66: 156812.428 | CF66: 9.4 | CN66: -1340.7863 | CO66: -50744.18077 | CP66: 912.74236 | CQ66: 1789.95596 | CR66: -11.5772 | CT66: -989.51797 | CU66: -49174.95291 | CV66: 1472.50045 | CW66: 2888.19099 | CX66: 4.17563
A67: 213 | B67: Kangasniemi | C67: 5154 | D67: 21.5 | G67: 31779.70784 | H67: 70822.1077 | I67: -49.55378 | J67: 15333.8918 | K67: 4152.12693 | L67: 2084.55993 | M67: 21570.57866 | N67: 19852.613 | O67: 12.45009 | P67: 169.82633 | Q67: 356.35818 | R67: 52.29407 | S67: 2477.92589 | U67: 3052.51268 | V67: 21.33254 | X67: -553.25425 | Y67: -0.01399 | Z67: 0 | AA67: 0 | AB67: 35.40501 | AD67: -517.86323 | AF67: 584.96141 | AI67: -2714 | AL67: 2166.11095 | AN67: 21700.89295 | AQ67: 5114 | AR67: 8.86 | AU67: 5005.87251 | AV67: 17747.47749 | AW67: -0.617 | AX67: 8460.86903 | AY67: 2341.20391 | AZ67: 2130.22901 | BA67: 12932.30195 | BB67: 1977.48723 | BC67: 21.7984 | BD67: 408.20438 | BE67: 277.46106 | BF67: 8.55616 | BG67: 2050.06612 | BI67: 1502.01271 | BJ67: 0 | BL67: 548.05341 | BM67: -6.11997 | BN67: 0 | BO67: 0 | BP67: 0 | BQ67: 541.93344 | BS67: 250.36658 | BY67: 1087.78454 | CA67: 13813.14863 | CF67: 9.4 | CN67: 1291.38647 | CO67: -2349.50982 | CP67: 42.42983 | CQ67: 835.76088 | CR67: 115.35816 | CT67: -162.4304 | CU67: -902.90262 | CV67: 0 | CW67: 178.96496 | CX67: 142.16664
A68: 214 | B68: Kankaanpää | C68: 12528 | D68: 21.75 | G68: 82517.81123 | H68: 159395.2213 | I68: -52.47732 | J68: 40388.62801 | K68: 5355.66234 | L68: 4322.36852 | M68: 50066.65887 | N68: 37714.949 | O68: 16.48514 | P68: 636.36106 | Q68: 1213.57484 | R68: 114.00342 | S68: 11308.99961 | U68: 10194.45867 | V68: 498.17268 | X68: 1612.71362 | Y68: 0 | Z68: 2.87338 | AA68: -130.47068 | AB68: 17.42395 | AD68: 1496.79351 | AF68: 18557.11135 | AI68: -11181 | AL68: 10236.68689 | AN68: 79650.96303 | AQ68: 12394 | AR68: 9.11 | AU68: 39883.90991 | AV68: 64898.64708 | AW68: -334.29399 | AX68: 20973.40924 | AY68: 3620.81919 | AZ68: 4466.96132 | BA68: 29061.18975 | BB68: 10839.329 | BC68: 18.14815 | BD68: 1181.57865 | BE68: 1117.40513 | BF68: 45.94097 | BG68: 14435.0057 | BI68: 9543.0454 | BJ68: 0 | BL68: 4891.9603 | BM68: 0 | BN68: -0.00042 | BO68: -199.56256 | BP68: 38.90124 | BQ68: 4731.2994 | BS68: 23107.33618 | BY68: 6680.91059 | CA68: 76540.61347 | CF68: 9.1 | CN68: -15.13121 | CO68: -20609.59597 | CP68: 549.37798 | CQ68: 5662.82049 | CR68: -64.19773 | CT68: 87.43734 | CU68: -13028.7056 | CV68: 145.78608 | CW68: 256.67416 | CX68: -2.10096
A69: 216 | B69: Kannonkoski | C69: 1269 | D69: 21.5 | G69: 18832 | H69: 29502 | I69: 90 | J69: 3457.05122 | K69: 947.5962 | L69: 553.62106 | M69: 4958.26848 | N69: 6449 | O69: 6.2844 | P69: 98.33782 | Q69: 143.88131 | R69: 14.90955 | S69: 865 | U69: 1564 | V69: 100 | X69: -599 | Y69: 2 | Z69: 0 | AA69: -5 | AB69: -9 | AD69: -611 | AF69: 6903 | AI69: -2055 | AL69: 5974.452 | AN69: 15002 | AQ69: 1217 | AR69: 8.86 | AU69: 7282.74798 | AV69: 10802.61782 | AW69: -0.33565 | AX69: 1785.14504 | AY69: 553.64365 | AZ69: 568.74441 | BA69: 2907.5331 | BB69: 1144.604 | BC69: 5.67921 | BD69: 305.46437 | BE69: 111.58483 | BF69: 9.43956 | BG69: 334.29172 | BI69: 1516.25605 | BJ69: -1 | BL69: -1182.96433 | BM69: 1.52599 | BN69: 0 | BO69: -2.73773 | BP69: 7.0822 | BQ69: -1177.09387 | BS69: 5724.30405 | BY69: 4245.3667 | CA69: 8766.165 | CF69: 9.2 | CN69: 200.62403 | CO69: -403 | CP69: 7 | CQ69: 29 | CR69: 0 | CT69: -27.3284 | CU69: -402.69168 | CV69: 17.91485 | CW69: 20.25807 | CX69: 59.59571
A70: 217 | B70: Kannus | C70: 5352 | D70: 21.5 | G70: 36483.07411 | H70: 75443.41914 | I70: 594.56519 | J70: 17221.64614 | K70: 1562.30741 | L70: 2077.42108 | M70: 20861.37463 | N70: 19407.74007 | O70: 10.69059 | P70: 156.12205 | Q70: 94.19532 | R70: 33.0561 | S70: 1762.65663 | U70: 3506.30737 | V70: 0 | X70: -1743.65074 | Y70: 25.87765 | Z70: 19.35565 | AA70: 11.96665 | AB70: -40.91001 | AD70: -1766.07209 | AF70: 11399.34403 | AI70: -3357 | AL70: 6572.90611 | AN70: 31294.52127 | AQ70: 5246 | AR70: 8.86 | AU70: 14019.94208 | AV70: 30141.12837 | AW70: 223.50278 | AX70: 8812.97999 | AY70: 1010.8601 | AZ70: 3344.96624 | BA70: 13168.80633 | BB70: 7187.63948 | BC70: 14.53071 | BD70: 986.85301 | BE70: 157.82169 | BF70: 47.72186 | BG70: 3533.32953 | BI70: 3218.63118 | BJ70: 0 | BL70: 314.69835 | BM70: 15.98057 | BN70: 1.27024 | BO70: 6.16509 | BP70: 16.31879 | BQ70: 351.89256 | BS70: 11669.31592 | BY70: 4428.54826 | CA70: 33500.14663 | CF70: 8.9 | CN70: -187.42624 | CO70: -6371.58328 | CP70: 22.2936 | CQ70: 92.19193 | CR70: 5.1007 | CT70: -16.58864 | CU70: -9271.5369 | CV70: 0 | CW70: 356.00003 | CX70: 10.2144
A71: 218 | B71: Karijoki | C71: 1200 | D71: 22.5 | G71: 10448.93719 | H71: 19818.67327 | I71: 0.19781 | J71: 3419.03077 | K71: 553.38163 | L71: 299.94699 | M71: 4272.35939 | N71: 5925.74467 | O71: 0.28016 | P71: 26.80669 | Q71: 13.92954 | R71: 9.16156 | S71: 806.80724 | U71: 545.52309 | V71: 0 | X71: 261.28415 | Y71: 0 | Z71: 1.79929 | AA71: 1.25882 | AB71: 2.0709 | AD71: 262.81458 | AF71: 2784.29546 | AI71: -791 | AL71: 3683.51789 | AN71: 3024.90087 | AQ71: 1188 | AR71: 9.86 | AU71: 1319.96718 | AV71: 4431.79092 | AW71: -1.96916 | AX71: 2034.60993 | AY71: 305.66224 | AZ71: 304.91567 | BA71: 2645.18784 | BB71: 1461.86448 | BC71: 0.00267 | BD71: 34.49324 | BE71: 8.89931 | BF71: 1.54323 | BG71: 966.12493 | BI71: 408.39856 | BJ71: -31.13373 | BL71: 526.59264 | BM71: 0 | BN71: 7.84187 | BO71: 1.34862 | BP71: 0.00227 | BQ71: 520.10166 | BS71: 3273.38019 | BY71: 2794.24265 | CA71: 1517.89765 | CF71: 9.8 | CN71: -2.38294 | CO71: -279.79377 | CP71: 7.38286 | CQ71: 9.64725 | CR71: 0.21015 | CT71: 2.51876 | CU71: -625.05378 | CV71: 1.76549 | CW71: 346.95439 | CX71: 0
A72: 224 | B72: Karkkila | C72: 8603 | D72: 21.25 | G72: 62631.55246 | H72: 113355.0555 | I72: -35.40374 | J72: 31013.55382 | K72: 1982.47441 | L72: 2391.75229 | M72: 35387.78052 | N72: 22198.173 | O72: 50.30522 | P72: 284.26448 | Q72: 298.8475 | R72: 176.82887 | S72: 6715.06709 | U72: 4118.8936 | V72: 0 | X72: 2596.17349 | Y72: -1.77566 | Z72: 4.98548 | AA72: -1.77135 | AB72: 1.50963 | AD72: 2589.15063 | AF72: 3988.95514 | AI72: -4824 | AL72: 9953.49887 | AN72: 60670.58375 | AQ72: 8581 | AR72: 8.61 | AU72: 11757.22477 | AV72: 29743.73339 | AW72: 0 | AX72: 15042.98966 | AY72: 1173.91488 | AZ72: 2486.67679 | BA72: 18703.58133 | BB72: 5647.386 | BC72: 245.02639 | BD72: 1290.73816 | BE72: 102.77061 | BF72: 37.50526 | BG72: 5379.09971 | BI72: 3059.53217 | BJ72: 0 | BL72: 2319.56754 | BM72: 2.27069 | BN72: 0.0026 | BO72: 0 | BP72: 0 | BQ72: 2321.83563 | BS72: 6055.77312 | BY72: 3112.68306 | CA72: 46817.90792 | CF72: 8.6 | CN72: -349.06606 | CO72: -4120.95022 | CP72: 14.76866 | CQ72: 543.54781 | CR72: 7.27996 | CT72: -1715.12601 | CU72: -2677.72174 | CV72: 0 | CW72: 729.43195 | CX72: 0
A73: 226 | B73: Karstula | C73: 3665 | D73: 21.5 | G73: 39930.66066 | H73: 67026.50706 | I73: 0 | J73: 10757.89559 | K73: 2222.73431 | L73: 1252.16891 | M73: 14232.79881 | N73: 17656.07673 | O73: 9.84664 | P73: 157.52353 | Q73: 138.96844 | R73: 10.00525 | S73: 4774.31544 | U73: 3072.18477 | V73: 194.93276 | X73: 1897.06343 | Y73: 0.58872 | Z73: 43.85658 | AA73: -8.5132 | AB73: -40.10516 | AD73: 1805.17721 | AF73: 3083.66275 | AI73: -4049 | AL73: 11633.62037 | AN73: 27075.7197 | AQ73: 3625 | AR73: 8.86 | AU73: 6446.20825 | AV73: 16438.22608 | AW73: 0 | AX73: 5261.49913 | AY73: 1308.17209 | AZ73: 1709.07955 | BA73: 8278.75077 | BB73: 5243.8351 | BC73: 10.09599 | BD73: 540.33985 | BE73: 48.59522 | BF73: 5.17155 | BG73: 3043.74785 | BI73: 2267.26488 | BJ73: -97.01994 | BL73: 679.46303 | BM73: -0.3779 | BN73: 54.49579 | BO73: -6.5666 | BP73: -22.73837 | BQ73: 595.28437 | BS73: 3829.71071 | BY73: 8257.77262 | CA73: 17049.11026 | CF73: 8.8 | CN73: -677.26017 | CO73: -5758.5478 | CP73: 17.66392 | CQ73: 115.81618 | CR73: 47.93371 | CT73: -212.25587 | CU73: -4328.24993 | CV73: 1674.18673 | CW73: 237.22948 | CX73: 22.43372
A74: 230 | B74: Karvia | C74: 2240 | D74: 20.5 | G74: 22539.18492 | H74: 36439.31633 | I74: 0 | J74: 5734.77647 | K74: 995.03703 | L74: 757.03078 | M74: 7486.84428 | N74: 9320.44011 | O74: 11.75495 | P74: 69.31508 | Q74: 39.89379 | R74: 579.37515 | S74: 2295.80946 | U74: 2834.38464 | V74: 0 | X74: -538.57518 | Y74: 0 | Z74: 9.20991 | AA74: -18.71242 | AB74: 14.86373 | AD74: -551.63378 | AF74: 15019.77238 | AI74: -1724 | AL74: 3562.74056 | AN74: 7626.61182 | AQ74: 2216 | AR74: 7.86 | AU74: 10752.97027 | AV74: 14866.55105 | AW74: 0 | AX74: 2860.36782 | AY74: 586.60862 | AZ74: 737.65147 | BA74: 4184.62791 | BB74: 2254.58041 | BC74: 52.81556 | BD74: 205.66665 | BE74: -17.12644 | BF74: 7.67352 | BG74: 2132.73811 | BI74: 2764.91166 | BJ74: -25.68591 | BL74: -657.85946 | BM74: 20.86573 | BN74: 3.47039 | BO74: -75.08398 | BP74: 30.23827 | BQ74: -685.30983 | BS74: 14420.15392 | BY74: 2544.72427 | CA74: 8944.76883 | CF74: 8.9 | CN74: -4.31132 | CO74: -1554.65335 | CP74: 4.59417 | CQ74: -1622.35223 | CR74: 0 | CT74: -169.07607 | CU74: -4303.86506 | CV74: 5.81691 | CW74: 430.91596 | CX74: -7.38
A75: 231 | B75: Kaskinen | C75: 1256 | D75: 23 | G75: 11250.19371 | H75: 20633.69117 | I75: 0 | J75: 5245.71649 | K75: 1292.32663 | L75: 880.96564 | M75: 7419.00876 | N75: 3184.91485 | O75: 13.83235 | P75: 49.36752 | Q75: 25.37649 | R75: 37.92459 | S75: 1172.34288 | U75: 1193.39435 | V75: 0 | X75: -21.05147 | Y75: -15 | Z75: 0 | AA75: 1.00465 | AB75: 0 | AD75: -35.04682 | AF75: 4081.29124 | AI75: -1146 | AL75: 926.66113 | AN75: 10810.43401 | AQ75: 1208 | AR75: 10.36 | AU75: 5651.48974 | AV75: 8980.91483 | AW75: 0 | AX75: 2513.95601 | AY75: 1064.71463 | AZ75: 907.45802 | BA75: 4486.12866 | BB75: -924.34615 | BC75: 9.58708 | BD75: 182.12801 | BE75: 47.43175 | BF75: 51.44847 | BG75: 55.79977 | BI75: 1209.30655 | BJ75: 0 | BL75: -1153.50678 | BM75: -83.91282 | BN75: 41.31972 | BO75: 8.39418 | BP75: 0 | BQ75: -1270.34514 | BS75: 2912.19902 | BY75: 720.95969 | CA75: 11399.71231 | CF75: 10.3 | CN75: -578.47112 | CO75: -1331.64982 | CP75: 22.65565 | CQ75: 1694.74088 | CR75: 35 | CT75: -61.19882 | CU75: -3944.28716 | CV75: 0.06275 | CW75: 341.42705 | CX75: 0
A76: 232 | B76: Kauhajoki | C76: 12750 | D76: 22 | G76: 90649.68796 | H76: 182116.8575 | I76: 137.26591 | J76: 40811.72348 | K76: 6636.09009 | L76: 3827.152 | M76: 51274.96557 | N76: 51865.67558 | O76: 24.66975 | P76: 951.03262 | Q76: 1463.25195 | R76: 1290.1407 | S76: 11057.48592 | U76: 9816.62671 | V76: 0 | X76: 1240.85921 | Y76: -0.01596 | Z76: 0 | AA76: -50.79985 | AB76: 5.95828 | AD76: 1196.00168 | AF76: 8907.19638 | AI76: -18500 | AL76: 33491.74496 | AN76: 107308.8665 | AQ76: 12618 | AR76: 9.36 | AU76: 20484.31705 | AV76: 57402.50188 | AW76: -28.22789 | AX76: 20764.58777 | AY76: 4381.95959 | AZ76: 4095.84529 | BA76: 29242.39265 | BB76: 16053.38433 | BC76: 52.62876 | BD76: 2005.02899 | BE76: 5301.51048 | BF76: 751.36603 | BG76: 10947.10848 | BI76: 8067.90336 | BJ76: 336.51478 | BL76: 3215.7199 | BM76: 0 | BN76: 0 | BO76: 107.27186 | BP76: -4.25568 | BQ76: 3318.73608 | BS76: 12701.84495 | BY76: 34934.21496 | CA76: 98886.60131 | CF76: 9.4 | CN76: -274.00681 | CO76: -10946.35798 | CP76: 77.95125 | CQ76: 247.27162 | CR76: 1.0494 | CT76: -31.52375 | CU76: -12180.38794 | CV76: 104.72738 | CW76: 3560.26841 | CX76: -8.4386
A77: 233 | B77: Kauhava | C77: 15116 | D77: 21.75 | G77: 82617.85674 | H77: 187765.896 | I77: -12.78572 | J77: 49831.68525 | K77: 5327.95356 | L77: 3853.00272 | M77: 59012.64153 | N77: 64413.19323 | O77: 294.17734 | P77: 990.81415 | Q77: 535.06721 | R77: 375.58988 | S77: 17727.85028 | U77: 13277.84257 | V77: 0 | X77: 4450.00771 | Y77: 144.77218 | Z77: 317.26225 | AA77: 6.25321 | AB77: -286.4766 | AD77: 3997.29425 | AF77: 25596.65659 | AI77: -16814 | AL77: 36023.31683 | AN77: 161329.663 | AQ77: 15165 | AR77: 9.11 | AU77: 30717.9888 | AV77: 68217.00344 | AW77: -0.72947 | AX77: 25715.47801 | AY77: 3465.65255 | AZ77: 3991.00034 | BA77: 33172.1309 | BB77: 23701.885 | BC77: 328.3615 | BD77: 3263.3232 | BE77: 197.51527 | BF77: 238.9555 | BG77: 16397.86986 | BI77: 13242.88695 | BJ77: 536.16492 | BL77: 3691.14783 | BM77: 88.63175 | BN77: 200.48149 | BO77: 22.35453 | BP77: -140.51577 | BQ77: 3461.13685 | BS77: 35039.91721 | BY77: 33188.4132 | CA77: 137474.4001 | CF77: 9.1 | CN77: -241.79099 | CO77: -28151.51438 | CP77: 141.64899 | CQ77: 413.01798 | CR77: -2303.72187 | CT77: -176.95305 | CU77: -21085.48324 | CV77: 146.5054 | CW77: 6005.59276 | CX77: 2938.98434
A78: 235 | B78: Kauniainen | C78: 10284 | D78: 17 | G78: 48822.10114 | H78: 117201.1432 | I78: -25.44362 | J78: 80268.53269 | K78: 2500.58281 | L78: 4866.65547 | M78: 87635.77097 | N78: 3926.40975 | O78: 232.345 | P78: 380.14963 | Q78: 212.22611 | R78: 148.24205 | S78: 23073.8745 | U78: 10304.01532 | V78: 0 | X78: 12769.85918 | Y78: -10071.15523 | Z78: 3.40616 | AA78: -19.10986 | AB78: -34.26661 | AD78: 2641.92132 | AF78: 64455.07086 | AI78: -11306 | AL78: 24790.49861 | AN78: 25334.66409 | AQ78: 10270 | AR78: 4.36 | AU78: 25902.25527 | AV78: 63044.76311 | AW78: 1.95197 | AX78: 25326.46328 | AY78: 1695.2006 | AZ78: 4882.26597 | BA78: 31903.92985 | BB78: 18007.07608 | BC78: 685.86371 | BD78: 590.91209 | BE78: 178.29691 | BF78: 47.94448 | BG78: 12995.75411 | BI78: 10319.29201 | BJ78: 0 | BL78: 2676.4621 | BM78: -10.95293 | BN78: -1.64121 | BO78: -3.27725 | BP78: -32.69563 | BQ78: 2631.1775 | BS78: 66800.54201 | BY78: 24095.77041 | CA78: 18045.58604 | CF78: 4.4 | CN78: -837.22462 | CO78: -15588.71206 | CP78: 186.12802 | CQ78: 1012.17258 | CR78: 98.90468 | CT78: -587.10727 | CU78: -10737.50651 | CV78: 177.17241 | CW78: 652.78065 | CX78: 42
A79: 236 | B79: Kaustinen | C79: 4198 | D79: 22 | G79: 32265.76416 | H79: 60473.44836 | I79: 306.1559 | J79: 13671.58307 | K79: 1154.18831 | L79: 1167.80672 | M79: 15993.5781 | N79: 17170.88146 | O79: 31.16666 | P79: 403.00456 | Q79: 283.07087 | R79: 28.51357 | S79: 5018.34418 | U79: 3782.15438 | V79: 0 | X79: 1236.1898 | Y79: 23.95416 | Z79: 2.86546 | AA79: 0 | AB79: -7.80193 | AD79: 1249.47657 | AF79: 5547.43185 | AI79: -4147 | AL79: 4385.15119 | AN79: 53147.61578 | AQ79: 4137 | AR79: 9.36 | AU79: 11795.95505 | AV79: 24535.10704 | AW79: 111.94664 | AX79: 6842.01387 | AY79: 783.94539 | AZ79: 1129.688 | BA79: 8755.64726 | BB79: 8230.88118 | BC79: 11.91959 | BD79: 1138.58304 | BE79: 126.88655 | BF79: 17.55305 | BG79: 3203.79078 | BI79: 3495.46313 | BJ79: 0 | BL79: -291.67235 | BM79: 10.39233 | BN79: 0 | BO79: 0 | BP79: -6.60393 | BQ79: -287.88395 | BS79: 5188.58897 | BY79: 4819.03049 | CA79: 52416.41516 | CF79: 9.4 | CN79: -157.98912 | CO79: -4460.04471 | CP79: 24.96884 | CQ79: 98.57603 | CR79: 7.38628 | CT79: -7.08161 | CU79: -2664.20377 | CV79: 102.92107 | CW79: 110.57557 | CX79: -516.549
A80: 239 | B80: Keitele | C80: 2029 | D80: 20.5 | G80: 10285.32133 | H80: 25887.91775 | I80: 20.12628 | J80: 6155.73522 | K80: 1460.46165 | L80: 513.21451 | M80: 8129.41138 | N80: 9161.32142 | O80: 4.46965 | P80: 146.20997 | Q80: 272.64621 | R80: 5.469 | S80: 1813.2896 | U80: 1539.24686 | V80: 80.5866 | X80: 354.62934 | Y80: 0.26079 | Z80: 1.17847 | AA80: -1.22015 | AB80: -0.16454 | AD80: 352.32697 | AF80: 689.3257 | AI80: -1873 | AL80: 3368.16401 | AN80: 14884.25357 | AQ80: 2035 | AR80: 7.86 | AU80: 2748.21634 | AV80: 8675.05681 | AW80: 113.26736 | AX80: 2752.08323 | AY80: 1486.31652 | AZ80: 602.74369 | BA80: 4841.14344 | BB80: 1240.41616 | BC80: 7.62107 | BD80: 392.66376 | BE80: 270.5964 | BF80: 10.90607 | BG80: 118.46272 | BI80: 974.52397 | BJ80: 5.90479 | BL80: -850.15646 | BM80: 0.34548 | BN80: 0.12327 | BO80: 0 | BP80: 1.70722 | BQ80: -848.22703 | BS80: -864.15343 | BY80: 798.36037 | CA80: 10168.95731 | CF80: 7.9 | CN80: -76.86518 | CO80: -1841.47054 | CP80: 34.10814 | CQ80: 98.06098 | CR80: 0.83841 | CT80: 145.68827 | CU80: -1387.43295 | CV80: 60.80674 | CW80: 54.26732 | CX80: 0.14052
A81: 240 | B81: Kemi | C81: 19499 | D81: 21.75 | G81: 86465 | H81: 218300 | I81: 116.66018 | J81: 77375.212 | K81: 6982.18 | L81: 7259.279 | M81: 91616.671 | N81: 55631.24 | O81: 124.35818 | P81: 1731.88135 | Q81: 169.07569 | R81: 260.54387 | S81: 13152 | U81: 16115 | V81: 2 | X81: -2960 | Y81: 0 | Z81: 304 | AA81: -404 | AB81: -24.34611 | AD81: -3729 | AF81: -8798 | AI81: -19641 | AL81: 30808.42 | AN81: 216681 | AQ81: 19371 | AR81: 9.11 | AU81: 61207.13469 | AV81: 90724.4961 | AW81: 64.39326 | AX81: 39918.51682 | AY81: 4968.627 | AZ81: 8510.76391 | BA81: 53397.90773 | BB81: 1601.079 | BC81: 71.89252 | BD81: 4222.72152 | BE81: 145.16148 | BF81: 25.16995 | BG81: 20941.47765 | BI81: 15662.17436 | BJ81: -0.14502 | BL81: 5279.15827 | BM81: 0 | BN81: 586.22614 | BO81: -360.09385 | BP81: -11.2222 | BQ81: 4321.61608 | BS81: -4204.58864 | BY81: 19383.70606 | CA81: 203456.098 | CF81: 9.6 | CN81: -3911.11552 | CO81: -48180.227 | CP81: 15358.064 | CQ81: 1814.009 | CR81: 0 | CT81: -1675.16305 | CU81: -20912.79313 | CV81: 327.17372 | CW81: 3105.4229 | CX81: 0
A82: 320 | B82: Kemijärvi | C82: 6996 | D82: 21.5 | G82: 61798.34861 | H82: 114163.7086 | I82: 0 | J82: 24448.18462 | K82: 2061.14508 | L82: 4598.17936 | M82: 31107.50906 | N82: 33865.44995 | O82: 27.80388 | P82: 817.42545 | Q82: 6708.95459 | R82: 616.86144 | S82: 17910.07058 | U82: 9230.49868 | V82: 0.75447 | X82: 8680.32637 | Y82: 40.03242 | Z82: 238.6348 | AA82: -95.13798 | AB82: -108.9355 | AD82: 8277.65051 | AF82: 24192.1049 | AI82: -7939 | AL82: 19081.05761 | AN82: 74034.05999 | AQ82: 7030 | AR82: 8.86 | AU82: 33871.00825 | AV82: 47911.42825 | AW82: 0 | AX82: 12500.94043 | AY82: 1393.03807 | AZ82: 5084.37235 | BA82: 18978.35085 | BB82: 11162.70134 | BC82: 14.50078 | BD82: 840.10156 | BE82: 3635.03632 | BF82: 628.79048 | BG82: 18281.27725 | BI82: 7657.21659 | BJ82: -0.05302 | BL82: 10624.00764 | BM82: 0 | BN82: 570.81735 | BO82: 0 | BP82: 660.59821 | BQ82: 10713.7885 | BS82: 33802.50863 | BY82: 12306.33121 | CA82: 48588.36634 | CF82: 8.9 | CN82: -379.9157 | CO82: -17500.46266 | CP82: 900.58837 | CQ82: 374.75426 | CR82: -2383.81879 | CT82: 175.46048 | CU82: -9108.47821 | CV82: 757.23724 | CW82: 0 | CX82: -222.38732
A83: 241 | B83: Keminmaa | C83: 7771 | D83: 21.25 | G83: 34195.40189 | H83: 81973.88356 | I83: 0 | J83: 32894.14594 | K83: 2154.69167 | L83: 4077.85781 | M83: 39126.69542 | N83: 16188.481 | O83: 11.7837 | P83: 170.86517 | Q83: 116.72581 | R83: 1836.7253 | S83: 5600.39062 | U83: 4319.20541 | V83: 26.94061 | X83: 1308.12582 | Y83: 0.56969 | Z83: 0 | AA83: 103.15667 | AB83: 0.14725 | AD83: 1411.99943 | AF83: 12433.30724 | AI83: -5542 | AL83: 7822.775 | AN83: 22497.34414 | AQ83: 7691 | AR83: 8.61 | AU83: 11570.88182 | AV83: 30532.18581 | AW83: -51.83122 | AX83: 16395.94227 | AY83: 1409.97791 | AZ83: 4246.045 | BA83: 22051.96518 | BB83: 3011.443 | BC83: 65.41717 | BD83: 424.65272 | BE83: 95.67779 | BF83: 2.43173 | BG83: 5722.83261 | BI83: 3871.99242 | BJ83: 234.90958 | BL83: 2085.74977 | BM83: -76.39949 | BN83: 0 | BO83: 194.9614 | BP83: 0.22086 | BQ83: 2204.53254 | BS83: 13807.1848 | BY83: 6542.93583 | CA83: 21517.98818 | CF83: 8.6 | CN83: -940.01469 | CO83: -4745.13354 | CP83: 424.77534 | CQ83: 214.68659 | CR83: -399.15653 | CT83: -281.26545 | CU83: -6841.59501 | CV83: 1024.25782 | CW83: 140.49779 | CX83: -242.33443
A84: 322 | B84: Kemiönsaari | C84: 6549 | D84: 19.75 | G84: 28911.18647 | H84: 73034.10743 | I84: -13.08742 | J84: 20982.15206 | K84: 1882.38824 | L84: 3568.62875 | M84: 26433.16905 | N84: 25120.847 | O84: 1.509 | P84: 328.94946 | Q84: 105.59997 | R84: 23.67013 | S84: 7172.49705 | U84: 5830.1071 | V84: 0 | X84: 1342.38995 | Y84: 0 | Z84: 0.18096 | AA84: 3.97054 | AB84: -5.19361 | AD84: 1341.34784 | AF84: 20583.28174 | AI84: -2100 | AL84: 10132.18781 | AN84: 24463.64156 | AQ84: 6462 | AR84: 7.11 | AU84: 8033 | AV84: 25036 | AW84: 0 | AX84: 9347.11179 | AY84: 1113.51533 | AZ84: 3691.90798 | BA84: 14152.5351 | BB84: 9892 | BC84: 92 | BD84: 420 | BE84: - | BF84: - | BG84: 6767 | BI84: 3911 | BJ84: 21 | BL84: 2877 | BM84: -19 | BN84: 0 | BO84: -15 | BP84: -1 | BQ84: 2840 | BS84: 23389 | BY84: 9063 | CA84: 13575 | CF84: 7.1 | CN84: 7.1305 | CO84: -6852.88597 | CP84: 225.87521 | CQ84: 46.72278 | CR84: 0 | CT84: - | CU84: -3471 | CV84: 203 | CW84: 66 | CX84: -
A85: 244 | B85: Kempele | C85: 19300 | D85: 20.5 | G85: 40925.87394 | H85: 153089.412 | I85: -92.69062 | J85: 75764.72649 | K85: 5966.55333 | L85: 4705.54867 | M85: 86436.82849 | N85: 38910.39826 | O85: 23.49073 | P85: 623.21849 | Q85: 95.09591 | R85: 20.90753 | S85: 12484.4647 | U85: 9992.88625 | V85: 0 | X85: 2491.57845 | Y85: 30.24189 | Z85: 5.97422 | AA85: -71.56983 | AB85: -4.2783 | AD85: 2439.99799 | AF85: 24860.5083 | AI85: -15811 | AL85: 14987.92016 | AN85: 91150.49837 | AQ85: 19514 | AR85: 7.86 | AU85: 24909.40667 | AV85: 81880.26435 | AW85: 0 | AX85: 37152.38194 | AY85: 4361.03781 | AZ85: 5161.83187 | BA85: 46675.25162 | BB85: 21510.591 | BC85: 68.6423 | BD85: 786.72463 | BE85: 94.26337 | BF85: 3.26456 | BG85: 10571.45378 | BI85: 8663.51253 | BJ85: 0 | BL85: 1907.94125 | BM85: 36.44234 | BN85: 0 | BO85: -86.64835 | BP85: 2.09139 | BQ85: 1859.82663 | BS85: 26625.41003 | BY85: 9323.7777 | CA85: 82957.71897 | CF85: 7.9 | CN85: -2551.2507 | CO85: -18882.10677 | CP85: 40.96656 | CQ85: 3000.97064 | CR85: 0 | CT85: -3163.47746 | CU85: -22236.3553 | CV85: 96 | CW85: 3641.69358 | CX85: 0
A86: 245 | B86: Kerava | C86: 37676 | D86: 19.25 | G86: 226620.0694 | H86: 431835.0401 | I86: -74.84361 | J86: 152216.973 | K86: 12704.07536 | L86: 14001.22004 | M86: 178922.2684 | N86: 59829.01033 | O86: 174.14593 | P86: 2044.34977 | Q86: 1526.25304 | R86: 12648.19779 | S86: 19713.82786 | U86: 36254.86205 | V86: 0 | X86: -16541.03419 | Y86: -5.93218 | Z86: 7.31417 | AA86: -544.70588 | AB86: 409.96914 | AD86: -16689.01728 | AF86: 123860.9532 | AI86: -53988 | AL86: 24336.85131 | AN86: 248602.2334 | AQ86: 38211 | AR86: 6.61 | AU86: 168957.2055 | AV86: 250793.8932 | AW86: 49.28785 | AX86: 68898.44185 | AY86: 8342.41131 | AZ86: 14520.21983 | BA86: 91761.07299 | BB86: 36475.78363 | BC86: 926.53991 | BD86: 4304.46471 | BE86: 2400.94996 | BF86: 130.13401 | BG86: 44535.77748 | BI86: 36179.53692 | BJ86: 0 | BL86: 8356.24056 | BM86: 7.586 | BN86: 302.81523 | BO86: -94.08786 | BP86: 100.96509 | BQ86: 8067.88856 | BS86: 131662.0916 | BY86: 23144.64797 | CA86: 233594.7699 | CF86: 6.9 | CN86: -2451.45648 | CO86: -41967.54087 | CP86: 205.50232 | CQ86: 17036.55104 | CR86: 13.62986 | CT86: -1929.51768 | CU86: -54264.10625 | CV86: 268.859 | CW86: 3896.63361 | CX86: -113.58779
A87: 249 | B87: Keuruu | C87: 9250 | D87: 21.75 | G87: 63421 | H87: 127003 | I87: 231 | J87: 32379.586 | K87: 4306.712 | L87: 2667.735 | M87: 39354.033 | N87: 34731 | O87: 109 | P87: 643 | Q87: 349 | R87: 45 | S87: 10430 | U87: 11246 | V87: 411 | X87: -405 | Y87: -68 | Z87: 223 | AA87: -91 | AB87: 2 | AD87: -785 | AF87: 25331 | AI87: -16564 | AL87: 7298.25 | AN87: 97379 | AQ87: 9184 | AR87: 9.11 | AU87: 36170.666 | AV87: 56941.58 | AW87: 279.261 | AX87: 15873.63316 | AY87: 2898.92128 | AZ87: 3035.27704 | BA87: 21807.83148 | BB87: 10582 | BC87: 695.023 | BD87: 2192.536 | BE87: 146.399 | BF87: 35.279 | BG87: 10425.195 | BI87: 9944.563 | BJ87: 0 | BL87: 480.632 | BM87: 91.04 | BN87: 611.365 | BO87: -195.911 | BP87: 106.397 | BQ87: -129.207 | BS87: 22413.081 | BY87: 8521.934 | CA87: 73413.751 | CF87: 9.1 | CN87: -4 | CO87: -7689 | CP87: 148 | CQ87: 323 | CR87: 617 | CT87: -1935.615 | CU87: -5608.322 | CV87: 143.11 | CW87: 358.493 | CX87: 0
A88: 250 | B88: Kihniö | C88: 1771 | D88: 21.5 | G88: 7582.48946 | H88: 21138.70019 | I88: 21.22901 | J88: 5000.49425 | K88: 1153.82445 | L88: 558.00614 | M88: 6712.32484 | N88: 7984.2872 | O88: 4.67557 | P88: 114.47402 | Q88: 61.72472 | R88: 30.66722 | S88: 1078.77707 | U88: 884.58298 | V88: 0 | X88: 194.19409 | Y88: 0.06049 | Z88: 17.94748 | AA88: -2.68278 | AB88: -32.72438 | AD88: 140.89994 | AF88: 815.7774 | AI88: -1414 | AL88: 3119.40827 | AN88: 9429.35163 | AQ88: 1749 | AR88: 8.86 | AU88: 1806.16984 | AV88: 7532.10802 | AW88: 2.04271 | AX88: 2520.59464 | AY88: 746.65749 | AZ88: 562.52672 | BA88: 3829.77885 | BB88: 1998.25535 | BC88: 4.87818 | BD88: 167.15854 | BE88: 40.67407 | BF88: 2.82496 | BG88: -24.688 | BI88: 598.88284 | BJ88: 0 | BL88: -623.57084 | BM88: 0.03004 | BN88: 0 | BO88: 6.82007 | BP88: 0.17472 | BQ88: -616.54601 | BS88: -141.25905 | BY88: 2147.42728 | CA88: 6157.80857 | CF88: 8.9 | CN88: 162.65022 | CO88: -1256.00739 | CP88: 308.48939 | CQ88: 68.05975 | CR88: 167.80519 | CT88: -187.51766 | CU88: -317.52819 | CV88: 70.915 | CW88: 1.35544 | CX88: 163
A89: 256 | B89: Kinnula | C89: 1554 | D89: 21.5 | G89: 7954.79976 | H89: 20503.69879 | I89: -26.93937 | J89: 3960.6005 | K89: 1015.26175 | L89: 457.18641 | M89: 5433.04866 | N89: 8321.53134 | O89: 43.54586 | P89: 56.73571 | Q89: 83.0002 | R89: 6.16512 | S89: 1242.38683 | U89: 1310.39972 | V89: 87.32282 | X89: 19.30993 | Y89: -0.42945 | Z89: 0 | AA89: 0 | AB89: -4.54236 | AD89: 14.33812 | AF89: 3375.07109 | AI89: -1976 | AL89: 2053.20661 | AN89: 14398.61243 | AQ89: 1523 | AR89: 8.86 | AU89: 3675.56508 | AV89: 8737.81053 | AW89: -120.99809 | AX89: 1946.05807 | AY89: 580.1698 | AZ89: 468.97578 | BA89: 2995.20365 | BB89: 2706.94027 | BC89: 43.27218 | BD89: 284.0041 | BE89: 28.29333 | BF89: 1.97514 | BG89: 304.48665 | BI89: 1379.02109 | BJ89: 0 | BL89: -1074.53444 | BM89: -0.14814 | BN89: 0 | BO89: 0 | BP89: 4.34347 | BQ89: -1070.33911 | BS89: 2037.97027 | BY89: 1271.49996 | CA89: 9396.612 | CF89: 9.5 | CN89: -251.77451 | CO89: -1721.74714 | CP89: 5.92367 | CQ89: 39.77644 | CR89: 98.54935 | CT89: 278.91109 | CU89: -1226.55353 | CV89: 0 | CW89: 28.99008 | CX89: 0.4776
A90: 257 | B90: Kirkkonummi | C90: 40722 | D90: 19.75 | G90: 163255.1022 | H90: 383198.4949 | I90: -99.70585 | J90: 201280.8199 | K90: 9196.51974 | L90: 12737.91309 | M90: 223215.2527 | N90: 44679.43888 | O90: 96.44737 | P90: 1783.21182 | Q90: 639.88847 | R90: 827.30487 | S90: 45691.52327 | U90: 32254.42678 | V90: 0 | X90: 13437.09649 | Y90: -5.47857 | Z90: 8.8102 | AA90: 117.04292 | AB90: 67.66665 | AD90: 13607.51729 | AF90: 17823.92687 | AI90: -60773 | AL90: 92660.25173 | AN90: 300950.2514 | AQ90: 41154 | AR90: 7.11 | AU90: 69352.25121 | AV90: 185436.6568 | AW90: 24.26772 | AX90: 95855.7628 | AY90: 7207.48095 | AZ90: 13429.13571 | BA90: 116492.3795 | BB90: 47257.37272 | BC90: 452.78216 | BD90: 1902.65573 | BE90: 834.34515 | BF90: 353.56952 | BG90: 46411.72831 | BI90: 22775.33957 | BJ90: 0 | BL90: 23636.38874 | BM90: 7.00592 | BN90: 2.28818 | BO90: 107.7908 | BP90: 63.74104 | BQ90: 23812.63832 | BS90: 41394.62927 | BY90: 51435.23229 | CA90: 232330.2438 | CF90: 7.1 | CN90: -17714.82395 | CO90: -51319.37769 | CP90: 268.63289 | CQ90: 80930.50985 | CR90: 54.44239 | CT90: -3841.20373 | CU90: -28268.75977 | CV90: 38.62092 | CW90: 3429.25161 | CX90: 636.11622
A91: 260 | B91: Kitee | C91: 9727 | D91: 20.75 | G91: 71531.40125 | H91: 145106.1365 | I91: -8.08751 | J91: 27559.6574 | K91: 3741.21488 | L91: 2923.48642 | M91: 34224.3587 | N91: 46855.79112 | O91: 105.38405 | P91: 172.84625 | Q91: 441.08186 | R91: 238.51199 | S91: 7591.11058 | U91: 5351.78629 | V91: 12.88078 | X91: 2252.20507 | Y91: 15.61693 | Z91: 42.50169 | AA91: -48.11819 | AB91: -1.79174 | AD91: 2175.41038 | AF91: 33161.20414 | AI91: -4486 | AL91: 28424.26904 | AN91: 22062.71309 | AQ91: 9689 | AR91: 8.11 | AU91: 13064.17586 | AV91: 39683.55348 | AW91: 0 | AX91: 12864.92473 | AY91: 2381.53829 | AZ91: 2965.30388 | BA91: 18211.7669 | BB91: 17761.46509 | BC91: 529.77443 | BD91: 347.61426 | BE91: 458.78799 | BF91: 17.65871 | BG91: 9839.29136 | BI91: 2603.80437 | BJ91: 10.57274 | BL91: 7246.05973 | BM91: -22.34634 | BN91: 0.41891 | BO91: 34.58508 | BP91: -73.80478 | BQ91: 7184.07478 | BS91: 40210.85322 | BY91: 23853.24625 | CA91: 13043.29651 | CF91: 8.1 | CN91: 1126.31743 | CO91: -6205.24794 | CP91: 474.59734 | CQ91: 141.35256 | CR91: -0.39225 | CT91: 285.72088 | CU91: -12712.25585 | CV91: 284.10155 | CW91: 143.84754 | CX91: -33.6522
A92: 261 | B92: Kittilä | C92: 6637 | D92: 20.25 | G92: 69840.95733 | H92: 105635.3127 | I92: 1278.922 | J92: 22421.21574 | K92: 5480.83901 | L92: 7553.07346 | M92: 35455.12821 | N92: 28815.37111 | O92: 20.49174 | P92: 709.63016 | Q92: 238.20777 | R92: 383.63701 | S92: 28920 | U92: 10497.91468 | V92: 0 | X92: 18423 | Y92: 51.58767 | Z92: 865.13073 | AA92: -112.71421 | AB92: -1947.89454 | AD92: 15548 | AF92: 87658 | AI92: -19613 | AL92: 27009.23002 | AN92: 46334.09638 | AQ92: 6822 | AR92: 7.61 | AU92: 50798.44926 | AV92: 67396.35959 | AW92: 1422.011 | AX92: 12278.00655 | AY92: 5621.4029 | AZ92: 8354.15637 | BA92: 26253.56582 | BB92: 13822.30464 | BC92: 83.77951 | BD92: 1022.89851 | BE92: 564.58784 | BF92: 13.52161 | BG92: 24511.91836 | BI92: 10280.3522 | BJ92: 0 | BL92: 14231.56616 | BM92: -468.62934 | BN92: 7.65492 | BO92: -717.01046 | BP92: -1410.25666 | BQ92: 11628.01478 | BS92: 98894.37019 | BY92: 22901.18806 | CA92: 35465.30249 | CF92: 7.6 | CN92: 869.86238 | CO92: -20366.38464 | CP92: 205.90087 | CQ92: 1368.74941 | CR92: 514.47353 | CT92: 2329.03773 | CU92: -22820.08669 | CV92: 563.43113 | CW92: 728.32669 | CX92: 739.31
A93: 263 | B93: Kiuruvesi | C93: 7597 | D93: 21.75 | G93: 51498.71255 | H93: 108901.4018 | I93: 149.78504 | J93: 21701.34632 | K93: 3208.45727 | L93: 1755.76678 | M93: 26665.57037 | N93: 38806.67173 | O93: 55.16607 | P93: 440.65879 | Q93: 1360.94198 | R93: 453.7784 | S93: 8638.55989 | U93: 6737.98565 | V93: -0.65122 | X93: 1899.92302 | Y93: 8.12214 | Z93: 3.8915 | AA93: -76.39556 | AB93: 0.51309 | AD93: 1828.27119 | AF93: 10221.21872 | AI93: -5093 | AL93: 17274.69872 | AN93: 53896.11162 | AQ93: 7475 | AR93: 9.11 | AU93: 10882.27047 | AV93: 35140.83239 | AW93: -66.34344 | AX93: 11275.71311 | AY93: 1874.83931 | AZ93: 1608.03804 | BA93: 14758.59046 | BB93: 14469.00932 | BC93: 38.96199 | BD93: 891.11662 | BE93: 1559.75363 | BF93: 56.75594 | BG93: 5447.24156 | BI93: 4818.19672 | BJ93: 55.10585 | BL93: 684.15069 | BM93: 0.13193 | BN93: 0.67132 | BO93: -35.06926 | BP93: 2.00172 | BQ93: 650.54376 | BS93: 10101.43445 | BY93: 11314.40593 | CA93: 30968.38828 | CF93: 9.5 | CN93: -574.63817 | CO93: -7428.48478 | CP93: 250.08603 | CQ93: 682.72987 | CR93: 19.05296 | CT93: 573.2755 | CU93: -4068.4019 | CV93: 319.50856 | CW93: 3513.0261 | CX93: 3.76522
A94: 265 | B94: Kivijärvi | C94: 1064 | D94: 21.75 | G94: 13226.97086 | H94: 20736.04222 | I94: 0 | J94: 2916.27703 | K94: 1029.04387 | L94: 534.85502 | M94: 4480.17592 | N94: 5780.96118 | O94: 4.99771 | P94: 73.95342 | Q94: 82.27333 | R94: 26.12859 | S94: 2739.25477 | U94: 1046.32461 | V94: 86.14881 | X94: 1779.07897 | Y94: 0.16438 | Z94: 0 | AA94: 0 | AB94: 0 | AD94: 1779.24335 | AF94: 2124.43417 | AI94: -1513 | AL94: 4374.432 | AN94: 10184.58861 | AQ94: 1035 | AR94: 9.11 | AU94: 1709.83932 | AV94: 4542.46607 | AW94: 0 | AX94: 1257.60181 | AY94: 589.08105 | AZ94: 558.38272 | BA94: 2405.06558 | BB94: 1924.59089 | BC94: 3.32367 | BD94: 117.65164 | BE94: 19.75949 | BF94: 1.80341 | BG94: 1400.65783 | BI94: 780.05306 | BJ94: 0 | BL94: 620.60477 | BM94: -0.10552 | BN94: 0 | BO94: 0 | BP94: 0 | BQ94: 620.49925 | BS94: 2970.27533 | BY94: 4529.10082 | CA94: 4891.14304 | CF94: 9.1 | CN94: -91.37343 | CO94: -243.32894 | CP94: 5.84403 | CQ94: 24.93661 | CR94: -15.58934 | CT94: -25 | CU94: -552.37533 | CV94: 154.144 | CW94: 334.451 | CX94: 0
A95: 271 | B95: Kokemäki | C95: 6903 | D95: 21.75 | G95: 47140.22756 | H95: 95192.96634 | I95: 1.40083 | J95: 23221.50872 | K95: 2055.75684 | L95: 2733.01337 | M95: 28010.27893 | N95: 24997.08503 | O95: 6.7117 | P95: 185.74454 | Q95: 123.51776 | R95: 111.36066 | S95: 4789.15027 | U95: 4012.04453 | V95: 0 | X95: 777.10574 | Y95: 18.84428 | Z95: 129.49517 | AA95: 0.19811 | AB95: 0.01791 | AD95: 666.67087 | AF95: 6666.60267 | AI95: -3967 | AL95: 7628.24148 | AN95: 34692.65216 | AQ95: 6766 | AR95: 9.11 | AU95: 12067.44851 | AV95: 30175.6617 | AW95: 1.15453 | AX95: 12320.49896 | AY95: 1269.82115 | AZ95: 2466.99083 | BA95: 16057.31094 | BB95: 8653.00751 | BC95: 25.8634 | BD95: 677.96167 | BE95: 48.5116 | BF95: -62.99966 | BG95: 6020.26667 | BI95: 3590.51998 | BJ95: -97.18294 | BL95: 2332.56375 | BM95: 0 | BN95: 3.52064 | BO95: 0.692 | BP95: 0.47701 | BQ95: 2330.21212 | BS95: 12000.34767 | BY95: 4428.36196 | CA95: 23870.75573 | CF95: 9.2 | CN95: -315.42006 | CO95: -4419.18323 | CP95: 230.02509 | CQ95: 4684.4215 | CR95: 2184.23545 | CT95: -505.14329 | CU95: -4526.19506 | CV95: 0 | CW95: 996.15171 | CX95: -4.76494
A96: 272 | B96: Kokkola | C96: 48006 | D96: 21.5 | G96: 336087.3193 | H96: 610744.5157 | I96: 507.6806 | J96: 179333.6362 | K96: 25974.12596 | L96: 16028.55439 | M96: 221336.3165 | N96: 109212.431 | O96: 148.76942 | P96: 4752.14955 | Q96: 2564.16492 | R96: 337.83466 | S96: 52177.12376 | U96: 46574.44493 | V96: -10.2328 | X96: 5592.44603 | Y96: -301.49051 | Z96: 267.93149 | AA96: -75.76111 | AB96: -37.50082 | AD96: 4909.7621 | AF96: 118857.3043 | AI96: -56090 | AL96: 92612.66493 | AN96: 450458.3388 | AQ96: 48295 | AR96: 8.86 | AU96: 193053.8776 | AV96: 274785.6018 | AW96: 345.34644 | AX96: 91338.1648 | AY96: 17131.8878 | AZ96: 16321.54717 | BA96: 124791.5998 | BB96: 32916.977 | BC96: 1316.23583 | BD96: 8363.75037 | BE96: 1101.47445 | BF96: 1673.15691 | BG96: 67216.2191 | BI96: 60038.18148 | BJ96: 3.86905 | BL96: 7181.90667 | BM96: -65.29 | BN96: 3521.43711 | BO96: -504.998 | BP96: -38.79803 | BQ96: 3051.38353 | BS96: 121253.4117 | BY96: 63698.89407 | CA96: 394306.1127 | CF96: 8.9 | CN96: -10500.90836 | CO96: -52651.89267 | CP96: 1775.39726 | CQ96: 18570.12905 | CR96: 528.16752 | CT96: -860.04234 | CU96: -61462.22952 | CV96: 39.89685 | CW96: 3445.17302 | CX96: -329.64019
B97: KOKO MAA (Manner-Suomi) | C97: 5533611 | D97: 20.01 | G97: 31512266 | H97: 63470265 | I97: 40474 | J97: 21646010.77 | K97: 3032341.42 | L97: 2090993.631 | M97: 26769380.3 | N97: 11976772 | O97: 78764.06132 | P97: 427835.8063 | Q97: 335975.184 | R97: 395505.2115 | S97: 6362342 | U97: 4937452 | V97: 207757 | X97: 1627855 | Y97: -21823 | Z97: 127840 | AA97: -49906 | AB97: -5663 | AD97: 1422621 | AF97: 17791840 | AI97: -6831446 | AL97: 10630066.73 | AN97: 43538239 | AQ97: 5573310 | AR97: 7.33 | AU97: 16919176.56 | AV97: 29260015.11 | AW97: 66903.97212 | AX97: 10219224.57 | AY97: 2052377.409 | AZ97: 2182937.772 | BA97: 14454539.58 | BB97: 4916190.831 | BC97: 195304.223 | BD97: 827885.8903 | BE97: 408926.2933 | BF97: 104195.5915 | BG97: 6696673.917 | BI97: 4586979.275 | BJ97: -3875.05721 | BL97: 2105819.585 | BM97: -36090.31982 | BN97: 107491.2585 | BO97: -38025.8439 | BP97: -12460.72113 | BQ97: 1911786.441 | BS97: 19702940.47 | BY97: 8188603.326 | CA97: 38834865.93 | CF97: 7.46 | CN97: -868328.5971 | CO97: -9681016 | CP97: 216944 | CQ97: 2537629 | CR97: -35163.22039 | CT97: -380007.7983 | CU97: -7896284.909 | CV97: 161977.6939 | CW97: 1032857.185 | CX97: 26766.09815
A98: 273 | B98: Kolari | C98: 3999 | D98: 20.5 | G98: 17665.16103 | H98: 47482.66144 | I98: 0 | J98: 12384.58798 | K98: 1442.25559 | L98: 3992.00355 | M98: 17818.84712 | N98: 17514.37904 | O98: 7.93533 | P98: 200.82745 | Q98: 460.2868 | R98: 28.04051 | S98: 5696.53941 | U98: 4010.24934 | V98: 0 | X98: 1686.29007 | Y98: 0.18624 | Z98: 9.39052 | AA98: 12.23262 | AB98: 1.74822 | AD98: 1691.06663 | AF98: 23559.79298 | AI98: -1867 | AL98: 13219.27017 | AN98: 19545.45239 | AQ98: 4011 | AR98: 7.86 | AU98: 9502.51113 | AV98: 20848.62942 | AW98: 0 | AX98: 6628.98981 | AY98: 871.47993 | AZ98: 4434.42059 | BA98: 11934.89033 | BB98: 5242.43 | BC98: 36.93373 | BD98: 489.25194 | BE98: 47.92607 | BF98: 0.9615 | BG98: 5361.17083 | BI98: 2772.50546 | BJ98: -24.45355 | BL98: 2564.21182 | BM98: -86.17429 | BN98: 4.58792 | BO98: 48.46588 | BP98: -0.01449 | BQ98: 2521.901 | BS98: 25932.53694 | BY98: 12952.21563 | CA98: 15565.02142 | CF98: 7.9 | CN98: -459.60814 | CO98: -6879.84849 | CP98: 205.23794 | CQ98: 1070.25651 | CR98: 24.97753 | CT98: -293.00539 | CU98: -4577.70117 | CV98: 0 | CW98: 523.97267 | CX98: -156.27155
A99: 275 | B99: Konnevesi | C99: 2521 | D99: 22 | G99: 9782.05258 | H99: 27987.16724 | I99: 0 | J99: 7842.23954 | K99: 1276.90851 | L99: 860.11566 | M99: 9979.26371 | N99: 10949.96364 | O99: 20.2461 | P99: 263.77858 | Q99: 363.87687 | R99: 325.73062 | S99: 2504.50807 | U99: 1756.27571 | V99: 95.26126 | X99: 843.49362 | Y99: -61.06087 | Z99: 0 | AA99: 0 | AB99: 0 | AD99: 782.43275 | AF99: -554.59844 | AI99: -1726 | AL99: 1427.05775 | AN99: 28876.01086 | AQ99: 2499 | AR99: 9.36 | AU99: 3566.62494 | AV99: 10082.36367 | AW99: 0 | AX99: 3827.54998 | AY99: 753.5717 | AZ99: 876.98882 | BA99: 5458.1105 | BB99: 3439.03583 | BC99: 22.14514 | BD99: 705.16598 | BE99: 319.53222 | BF99: 36.5739 | BG99: 1960.91161 | BI99: 1300.90523 | BJ99: 0 | BL99: 660.00638 | BM99: -7.75564 | BN99: 15.89729 | BO99: 0 | BP99: -1.05291 | BQ99: 635.30054 | BS99: 167.9491 | BY99: 979.37128 | CA99: 22707.52303 | CF99: 9.8 | CN99: -67.95533 | CO99: -2575.9267 | CP99: 37.80935 | CQ99: 29.71429 | CR99: 1e-05 | CT99: -8.00985 | CU99: -396.02682 | CV99: 4 | CW99: 8.975 | CX99: 0
A100: 276 | B100: Kontiolahti | C100: 15157 | D100: 20.5 | G100: 61428.10865 | H100: 144135.0192 | I100: -158.38994 | J100: 54493.45939 | K100: 4007.69594 | L100: 3134.01915 | M100: 61635.17448 | N100: 29910.89993 | O100: 123.77618 | P100: 1039.35472 | Q100: 291.62386 | R100: 122.67159 | S100: 7934.14761 | U100: 8109.33179 | V100: 0 | X100: -175.18418 | Y100: 150.64463 | Z100: 31.748 | AA100: 1.55694 | AB100: 8.37883 | AD100: -46.35178 | AF100: 27991.16509 | AI100: -11142 | AL100: 21098.78114 | AN100: 97021.63989 | AQ100: 15136 | AR100: 7.86 | AU100: 15613.71031 | AV100: 57428.17063 | AW100: 0.31273 | AX100: 25983.07208 | AY100: 2975.77646 | AZ100: 3527.24301 | BA100: 32486.09155 | BB100: 20886.0234 | BC100: 124.0155 | BD100: 1275.1853 | BE100: 293.75739 | BF100: 6.84946 | BG100: 10693.70549 | BI100: 8808.82932 | BJ100: 0 | BL100: 1884.87617 | BM100: -17.58439 | BN100: 105.91013 | BO100: -1.73984 | BP100: 0.21078 | BQ100: 1759.85259 | BS100: 29760.32203 | BY100: 10689.63666 | CA100: 84725.24892 | CF100: 8.4 | CN100: 1652.78783 | CO100: -21696.84348 | CP100: 293.37402 | CQ100: 876.96284 | CR100: -0.29455 | CT100: -475.46948 | CU100: -14384.33331 | CV100: 1098.35922 | CW100: 489.00614 | CX100: -0.23456
A101: 280 | B101: Korsnäs | C101: 2024 | D101: 22 | G101: 16911.21779 | H101: 30854.87162 | I101: 0 | J101: 6236.64835 | K101: 911.09198 | L101: 809.85092 | M101: 7957.59125 | N101: 7519.076 | O101: 3.29402 | P101: 76.76134 | Q101: 56.20368 | R101: 15.05239 | S101: 1500.69739 | U101: 1407.75458 | V101: 0 | X101: 92.94281 | Y101: 0 | Z101: 0 | AA101: 0 | AB101: 0 | AD101: 92.94281 | AF101: 6360.71179 | AI101: -1328 | AL101: 722.5421 | AN101: 9714.95101 | AQ101: 2015 | AR101: 9.36 | AU101: 3817.03415 | AV101: 9101.24456 | AW101: 0 | AX101: 3150.75064 | AY101: 571.32245 | AZ101: 828.73807 | BA101: 4550.81116 | BB101: 2774.338 | BC101: 17.13088 | BD101: 177.28662 | BE101: 6.05625 | BF101: 13.04431 | BG101: 1873.79495 | BI101: 1244.60419 | BJ101: 0 | BL101: 629.19076 | BM101: 0 | BN101: 0 | BO101: 0 | BP101: 0 | BQ101: 629.19076 | BS101: 6990.80208 | BY101: 513.50617 | CA101: 5907.72578 | CF101: 9.3 | CN101: -14.37521 | CO101: -3059.99928 | CP101: 177.9421 | CQ101: 44.65868 | CR101: 0 | CT101: 1.74489 | CU101: -1034.93484 | CV101: 0.458 | CW101: -1.73489 | CX101: -2.55887
A102: 284 | B102: Koski tl | C102: 2227 | D102: 20 | G102: 11104.34274 | H102: 27408.59993 | I102: 15.09909 | J102: 6436.37077 | K102: 787.06895 | L102: 550.52914 | M102: 7773.96886 | N102: 9272.974 | O102: 0.13956 | P102: 40.56053 | Q102: 27.272 | R102: 2.90973 | S102: 741.72606 | U102: 1112.26116 | V102: 0 | X102: -370.5351 | Y102: 0 | Z102: 0.18772 | AA102: 0 | AB102: -1.23857 | AD102: -371.96139 | AF102: 6762.504 | AI102: -1303 | AL102: 5396.60163 | AN102: 2495.9146 | AQ102: 2207 | AR102: 7.36 | AU102: 5486.76176 | AV102: 10045.34808 | AW102: 13.51538 | AX102: 3296.74393 | AY102: 949.98969 | AZ102: 553.21072 | BA102: 4799.94434 | BB102: 4333.462 | BC102: 5.30819 | BD102: 10.26961 | BE102: 11.83822 | BF102: 3.90623 | BG102: 4591.30597 | BI102: 756.96006 | BJ102: 5.517 | BL102: 3839.86291 | BM102: 0 | BN102: 0.0292 | BO102: 0 | BP102: 0 | BQ102: 3839.83371 | BS102: 10750.76866 | BY102: 8206.84266 | CA102: 229.13333 | CF102: 7.4 | CN102: -16.48696 | CO102: -1976.77033 | CP102: 38.73659 | CQ102: 23.72044 | CR102: 0 | CT102: -82.59433 | CU102: -601.32988 | CV102: 0 | CW102: 39.31327 | CX102: 0
A103: 285 | B103: Kotka | C103: 50617 | D103: 22 | G103: 528514.647 | H103: 840049.23 | I103: 801.60727 | J103: 209653.7769 | K103: 19305.31632 | L103: 16190.60675 | M103: 245149.7 | N103: 149349.9984 | O103: 232.63448 | P103: 5524.84078 | Q103: 525.25978 | R103: 1993.20697 | S103: 75192.10905 | U103: 62559.99886 | V103: 3.13258 | X103: 12635.24277 | Y103: 0 | Z103: 3556.3592 | AA103: -734.61335 | AB103: -2369.08132 | AD103: 5975.1889 | AF103: 77328.21156 | AI103: -81721 | AL103: 62691.34876 | AN103: 536765.3542 | AQ103: 50500 | AR103: 9.36 | AU103: 294774.9747 | AV103: 376367.8904 | AW103: 1764.45102 | AX103: 112256.9572 | AY103: 12290.4861 | AZ103: 17090.8006 | BA103: 141638.2439 | BB103: 40428.69094 | BC103: 229.04987 | BD103: 10157.52309 | BE103: 647.51291 | BF103: 97.84073 | BG103: 90871.47802 | BI103: 58728.97546 | BJ103: 0 | BL103: 32142.50256 | BM103: 0 | BN103: 3480.44166 | BO103: 93.27914 | BP103: -1600.89661 | BQ103: 27154.44343 | BS103: 112463.4918 | BY103: 31826.87543 | CA103: 479149.664 | CF103: 9.4 | CN103: -5665.37621 | CO103: -135278.3921 | CP103: 373.79786 | CQ103: 21711.41214 | CR103: -87.30849 | CT103: -1838.23981 | CU103: -107090.7996 | CV103: 1578.80722 | CW103: 5400.39843 | CX103: -150.52298
A104: 286 | B104: Kouvola | C104: 79429 | D104: 21.25 | G104: 597024.2982 | H104: 1094041.758 | I104: 716.75108 | J104: 314412.5169 | K104: 36546.46602 | L104: 30015.5481 | M104: 380974.531 | N104: 180435.025 | O104: 580.39483 | P104: 5412.60072 | Q104: 5120.7451 | R104: 8282.62976 | S104: 55137.09335 | U104: 56460.88397 | V104: 0 | X104: -1323.79062 | Y104: 0 | Z104: 3619.18534 | AA104: 309.1292 | AB104: 269.73517 | AD104: -4364.11159 | AF104: 59346.5087 | AI104: -80279 | AL104: 171584.2453 | AN104: 668866.5159 | AQ104: 78880 | AR104: 8.61 | AU104: 318815.6164 | AV104: 440827.6494 | AW104: 8279.17526 | AX104: 157373.693 | AY104: 24935.05202 | AZ104: 30264.74749 | BA104: 212573.4925 | BB104: 20813.18175 | BC104: 2044.42247 | BD104: 11839.6403 | BE104: 3947.99199 | BF104: 1625.53406 | BG104: 110682.7128 | BI104: 46109.88902 | BJ104: 0 | BL104: 64572.82379 | BM104: -5.04101 | BN104: 8522.32036 | BO104: -884.19774 | BP104: -820.68298 | BQ104: 54340.5817 | BS104: 124986.1854 | BY104: 65674.5151 | CA104: 442387.4555 | CF104: 8.9 | CN104: -5131.79077 | CO104: -113703.2644 | CP104: 2752.4777 | CQ104: 21407.01677 | CR104: -9.37078 | CT104: -9317.72575 | CU104: -74678.46013 | CV104: 462.22091 | CW104: 5847.65464 | CX104: 4.22024
A105: 287 | B105: Kristiinankaupunki | C105: 6242 | D105: 21.5 | G105: 45328.45567 | H105: 92971.17498 | I105: 0 | J105: 22040.453 | K105: 2212.49143 | L105: 3132.08291 | M105: 27385.02734 | N105: 23560.598 | O105: 2.37242 | P105: 396.45742 | Q105: 194.88836 | R105: 172.94523 | S105: 2930.76416 | U105: 3708.86414 | V105: -55.34371 | X105: -833.44369 | Y105: 7.75895 | Z105: 4.76938 | AA105: -10.3496 | AB105: 7.4911 | AD105: -833.31262 | AF105: 7614.85072 | AI105: -8034 | AL105: 10180.7552 | AN105: 49633.72461 | AQ105: 6199 | AR105: 8.86 | AU105: 12483.91371 | AV105: 30629.89626 | AW105: 0.00654 | AX105: 11086.7432 | AY105: 1376.21303 | AZ105: 3191.22775 | BA105: 15654.18398 | BB105: 8693.077 | BC105: 2.19212 | BD105: 302.404 | BE105: 149.10372 | BF105: 410.63419 | BG105: 5639.54262 | BI105: 4027.28328 | BJ105: 0 | BL105: 1612.25934 | BM105: 0 | BN105: 0.3757 | BO105: 24.54957 | BP105: 5.65968 | BQ105: 1642.09289 | BS105: 9614.19128 | BY105: 2626.05837 | CA105: 38113.29942 | CF105: 8.9 | CN105: -355.59052 | CO105: -7979.79829 | CP105: 489.16691 | CQ105: 422.25906 | CR105: 0 | CT105: -1162.55919 | CU105: -7998.83558 | CV105: 998.00963 | CW105: 76.09028 | CX105: 1e-05
A106: 288 | B106: Kruunupyy | C106: 6405 | D106: 22 | G106: 30958.148 | H106: 70132.18 | I106: 18.715 | J106: 21718.98092 | K106: 3461.41059 | L106: 1835.50457 | M106: 27015.89608 | N106: 19539.308 | O106: 9.298 | P106: 235.446 | Q106: 455.686 | R106: 32.988 | S106: 7596.437 | U106: 3322.251 | V106: 0 | X106: 4274.186 | Y106: 32.016 | Z106: 73.695 | AA106: -7.429 | AB106: -0.309 | AD106: 4224.769 | AF106: 17123.04744 | AI106: -5061 | AL106: 6819.496 | AN106: 28288.00206 | AQ106: 6368 | AR106: 9.36 | AU106: 15839.168 | AV106: 31834.752 | AW106: 8.455 | AX106: 11684.01135 | AY106: 2122.91995 | AZ106: 1837.94058 | BA106: 15644.87188 | BB106: 6673.345 | BC106: 34.304 | BD106: 277.324 | BE106: 208.594 | BF106: 27.978 | BG106: 6268.684 | BI106: 2710.151 | BJ106: 0 | BL106: 3558.533 | BM106: 23.904 | BN106: 65.546 | BO106: -6.872 | BP106: -0.261 | BQ106: 3509.758 | BS106: 20921.32 | BY106: 6331.19 | CA106: 20841.309 | CF106: 8.9 | CN106: -143.68 | CO106: -3510.65 | CP106: 2.685 | CQ106: 212.731 | CR106: 0 | CT106: 147.109 | CU106: -2733.443 | CV106: 53.391 | CW106: 22.523 | CX106: 0
A107: 290 | B107: Kuhmo | C107: 7755 | D107: 22 | G107: 59771.80046 | H107: 116753.6519 | I107: -6.42916 | J107: 24703.00841 | K107: 5051.3528 | L107: 2309.79577 | M107: 32064.15698 | N107: 36177.38125 | O107: 37.17834 | P107: 351.25525 | Q107: 1342.6681 | R107: 1943.49105 | S107: 10217.05419 | U107: 5568.67248 | V107: 948.77299 | X107: 5597.1547 | Y107: 27.77628 | Z107: 570.08707 | AA107: -246.51446 | AB107: -1374.46367 | AD107: 3433.86578 | AF107: 15034.6464 | AI107: -9189 | AL107: 45657.10516 | AN107: 64778.83302 | AQ107: 7582 | AR107: 9.36 | AU107: 21161.07977 | AV107: 40322.90894 | AW107: 0 | AX107: 12695.47607 | AY107: 3455.175 | AZ107: 2307.03561 | BA107: 18457.68668 | BB107: 7323.353 | BC107: 177.95672 | BD107: 722.50579 | BE107: 1655.7664 | BF107: 648.85762 | BG107: 6917.98101 | BI107: 4852.03798 | BJ107: -115.7393 | BL107: 1950.20373 | BM107: 7.23977 | BN107: 109.49753 | BO107: -81.60012 | BP107: -592.653 | BQ107: 1173.69285 | BS107: 16111.81463 | BY107: 33827.57421 | CA107: 39142.83019 | CF107: 9.4 | CN107: -891.48414 | CO107: -8506.95441 | CP107: 19.82801 | CQ107: 595.33927 | CR107: 0 | CT107: 151.87551 | CU107: -8187.75586 | CV107: 599.79864 | CW107: 5402.70117 | CX107: 0
A108: 291 | B108: Kuhmoinen | C108: 2119 | D108: 21.75 | G108: 5938.34295 | H108: 26193.98499 | I108: -3.76512 | J108: 6638.03988 | K108: 1641.14357 | L108: 1614.99672 | M108: 9894.18017 | N108: 10549.26181 | O108: 110.16944 | P108: 120.60588 | Q108: 26.15221 | R108: 39.8582 | S108: 139.90132 | U108: 1460.24407 | V108: 0 | X108: -1320.34275 | Y108: 0.00889 | Z108: 116.33194 | AA108: -0.35268 | AB108: -9.52739 | AD108: -1446.54588 | AF108: 4829.76077 | AI108: -1844 | AL108: 7057.132 | AN108: 10670.9573 | AQ108: 2092 | AR108: 9.11 | AU108: 3661.63983 | AV108: 11131.59991 | AW108: 0 | AX108: 3414.08674 | AY108: 932.457 | AZ108: 1647.62722 | BA108: 5994.17096 | BB108: 3432.37068 | BC108: 77.63307 | BD108: 309.14713 | BE108: 17.61213 | BF108: -1.37461 | BG108: 1723.54942 | BI108: 1439.91559 | BJ108: -0.12888 | BL108: 283.50495 | BM108: 0.04426 | BN108: 6.09203 | BO108: 0 | BP108: -6.6903 | BQ108: 270.76688 | BS108: 4997.36697 | BY108: 5302.90279 | CA108: 8591.74905 | CF108: 9.1 | CN108: 0.12784 | CO108: -1124.47071 | CP108: 0 | CQ108: 2273.94579 | CR108: 0.17567 | CT108: -105.08918 | CU108: -1079.25352 | CV108: 0.01484 | CW108: 203.86166 | CX108: 0
A109: 297 | B109: Kuopio | C109: 122594 | D109: 20.75 | G109: 683191.0309 | H109: 1383682.507 | I109: 4922.84288 | J109: 457508.1408 | K109: 44337.10356 | L109: 47705.40463 | M109: 549550.649 | N109: 318671.0026 | O109: 511.86621 | P109: 13139.65394 | Q109: 4312.37385 | R109: 927.5678 | S109: 163410.0369 | U109: 128587.0794 | V109: 63.59155 | X109: 34886.549 | Y109: 194.03221 | Z109: 4792.50608 | AA109: -2098.24575 | AB109: -541.25658 | AD109: 27648.5728 | AF109: 128848.9541 | AI109: -179249 | AL109: 252011.4865 | AN109: 1212090.866 | AQ109: 124021 | AR109: 8.11 | AU109: 465196.072 | AV109: 732385.8708 | AW109: 2292.74798 | AX109: 227779.4086 | AY109: 29844.13848 | AZ109: 50445.45968 | BA109: 308069.0068 | BB109: 116889.61 | BC109: 4542.25907 | BD109: 18653.33544 | BE109: 4134.24502 | BF109: 4216.40268 | BG109: 145868.332 | BI109: 108389.6115 | BJ109: 0 | BL109: 37478.72051 | BM109: 15.22357 | BN109: 2212.99141 | BO109: -3233.90127 | BP109: -1417.16161 | BQ109: 30629.88979 | BS109: 142082.0854 | BY109: 157948.8706 | CA109: 924003.9114 | CF109: 8.1 | CN109: -15245.69706 | CO109: -242937.8829 | CP109: 4226.43903 | CQ109: 46097.44212 | CR109: 125.65396 | CT109: 811.01502 | CU109: -168650.1038 | CV109: 5819.78487 | CW109: 21151.55007 | CX109: 61.36663
A110: 300 | B110: Kuortane | C110: 3437 | D110: 21 | G110: 37483.90996 | H110: 62402.38143 | I110: -21.6668 | J110: 10208.8131 | K110: 1108.06722 | L110: 919.38766 | M110: 12236.26798 | N110: 16764.7034 | O110: 25.79278 | P110: 162.84218 | Q110: 142.11745 | R110: 45.83562 | S110: 4020.06554 | U110: 2252.88677 | V110: 0 | X110: 1767.17877 | Y110: 44.87179 | Z110: 0 | AA110: -21.88729 | AB110: 10.16087 | AD110: 1800.32414 | AF110: 8520.9036 | AI110: -5666 | AL110: 3259.42436 | AN110: 19405.37076 | AQ110: 3381 | AR110: 8.36 | AU110: 4958.82419 | AV110: 16358.97857 | AW110: -29.63138 | AX110: 5192.39287 | AY110: 693.37727 | AZ110: 1014.12722 | BA110: 6899.89736 | BB110: 7525.20853 | BC110: 54.57466 | BD110: 319.17571 | BE110: 89.58925 | BF110: 89.441 | BG110: 2730.86733 | BI110: 1640.74849 | BJ110: -124.85054 | BL110: 965.2683 | BM110: 7.18032 | BN110: 0 | BO110: 15.56725 | BP110: 0 | BQ110: 988.01587 | BS110: 9420.66523 | BY110: 2225.20847 | CA110: 11926.72155 | CF110: 8.4 | CN110: -124.0548 | CO110: -2624.03385 | CP110: 377.20113 | CQ110: 107.12055 | CR110: -1.96716 | CT110: -24.56113 | CU110: -2033.99706 | CV110: -43.72952 | CW110: 1429.63609 | CX110: -33.85536
A111: 301 | B111: Kurikka | C111: 19890 | D111: 21 | G111: 100163.6324 | H111: 246255.1892 | I111: 1.23208 | J111: 60714.38727 | K111: 6397.61957 | L111: 5103.28066 | M111: 72215.2875 | N111: 80317.75332 | O111: 199.07073 | P111: 1067.28354 | Q111: 11757.02636 | R111: 322.10682 | S111: 17009.42281 | U111: 15869.79593 | V111: 0 | X111: 1139.62688 | Y111: -2e-05 | Z111: 19.09078 | AA111: -118.13642 | AB111: 39.86889 | AD111: 1042.26855 | AF111: 13482.8356 | AI111: -12734 | AL111: 62708.1645 | AN111: 164921.1726 | AQ111: 19759 | AR111: 8.36 | AU111: 47342.69707 | AV111: 101503.7845 | AW111: -17.26282 | AX111: 30891.36318 | AY111: 3989.70682 | AZ111: 5317.43737 | BA111: 40198.50737 | BB111: 24592.1662 | BC111: 549.17059 | BD111: 3165.81883 | BE111: 13305.02681 | BF111: 113.67567 | BG111: 21187.02626 | BI111: 14511.92594 | BJ111: 0 | BL111: 6675.10032 | BM111: 68.4 | BN111: 21.32994 | BO111: -38.04857 | BP111: 6.36381 | BQ111: 6690.48562 | BS111: 18362.28075 | BY111: 52170.85728 | CA111: 149252.5659 | CF111: 8.4 | CN111: -708.08451 | CO111: -40644.04598 | CP111: 361.75523 | CQ111: 664.65946 | CR111: 107.62187 | CT111: -255.11653 | CU111: -31034.22409 | CV111: 688.75985 | CW111: 140.4539 | CX111: -53.592
A112: 304 | B112: Kustavi | C112: 950 | D112: 18 | G112: 5833.481 | H112: 13168.341 | I112: -2.698 | J112: 3734.71949 | K112: 390.45913 | L112: 1529.11795 | M112: 5654.29657 | N112: 2372.773 | O112: 0.018 | P112: 57.015 | Q112: 12.466 | R112: 0.63 | S112: 642 | U112: 716.619 | V112: 223.962 | X112: 149.343 | Y112: -202.016 | Z112: 0 | AA112: 0 | AB112: -0.787 | AD112: -53.46 | AF112: 3879.328 | AI112: -1061 | AL112: 1823.06 | AN112: 5285.863 | AQ112: 949 | AR112: 5.36 | AU112: 1618.761 | AV112: 4319.58 | AW112: 0 | AX112: 1516.21533 | AY112: 250.7673 | AZ112: 1487.17669 | BA112: 3254.15932 | BB112: -354.494 | BC112: 0 | BD112: 54.587 | BE112: 2.33 | BF112: 0.877 | BG112: 143.192 | BI112: 528.233 | BJ112: 0 | BL112: -385.041 | BM112: 39.52 | BN112: 0 | BO112: 0 | BP112: 0 | BQ112: -345.521 | BS112: 3462.878 | BY112: 599.418 | CA112: 3965.535 | CF112: 5.3 | CN112: -235.567 | CO112: -1379.168 | CP112: 24.597 | CQ112: 28.482 | CR112: 0 | CT112: -5.109 | CU112: -983.032 | CV112: 34.02 | CW112: 1.145 | CX112: 0
A113: 305 | B113: Kuusamo | C113: 15146 | D113: 20 | G113: 58453.68902 | H113: 159746.6076 | I113: -105.96229 | J113: 44512.224 | K113: 6667.02612 | L113: 7826.56423 | M113: 59005.81435 | N113: 54345.022 | O113: 14.1513 | P113: 618.84092 | Q113: 739.5634 | R113: 1738.81805 | S113: 10228.1774 | U113: 9105.58855 | V113: 0 | X113: 1122.58885 | Y113: 1102.0435 | Z113: 19.41638 | AA113: 28.57493 | AB113: -1.98532 | AD113: 2231.80558 | AF113: 27878.12949 | AI113: -9593 | AL113: 21455.90468 | AN113: 76100.73209 | AQ113: 15019 | AR113: 7.36 | AU113: 25738.34537 | AV113: 66456.88986 | AW113: 78.40017 | AX113: 21183.307 | AY113: 4716.16249 | AZ113: 8048.30658 | BA113: 33947.77607 | BB113: 17208.199 | BC113: 43.06152 | BD113: 1523.65073 | BE113: 541.71949 | BF113: -225.77678 | BG113: 9667.59792 | BI113: 8035.11638 | BJ113: 0 | BL113: 1632.48154 | BM113: 911.11837 | BN113: 5.13344 | BO113: 13.00712 | BP113: 19.43867 | BQ113: 2570.91226 | BS113: 30097.78929 | BY113: 23122.68668 | CA113: 81522.7911 | CF113: 7.4 | CN113: -4030.57501 | CO113: -31818.75064 | CP113: 241.28678 | CQ113: 4085.07642 | CR113: 15.62472 | CT113: -307.67179 | CU113: -26997.42659 | CV113: 1983.44402 | CW113: 250.89761 | CX113: 15.62474
A114: 312 | B114: Kyyjärvi | C114: 1196 | D114: 22.5 | G114: 11207.62342 | H114: 20135.31846 | I114: 0 | J114: 3605.27879 | K114: 1434.90043 | L114: 490.34614 | M114: 5530.52536 | N114: 5050.248 | O114: 21.42601 | P114: 60.81384 | Q114: 44.82271 | R114: 137.63716 | S114: 1520.87604 | U114: 351.62879 | V114: 67.0357 | X114: 1236.28295 | Y114: -16.14118 | Z114: 0 | AA114: 0 | AB114: 6.88926 | AD114: 1227.03103 | AF114: -2865.48944 | AI114: -537 | AL114: 8134.41991 | AN114: 17010.99528 | AQ114: 1174 | AR114: 9.86 | AU114: 1920 | AV114: 5401 | AW114: 0 | AX114: 1972.6933 | AY114: 804.22263 | AZ114: 518.95777 | BA114: 3295.8737 | BB114: 1086 | BC114: 15 | BD114: 423 | BE114: 334 | BF114: 16 | BG114: 785 | BI114: 511 | BJ114: -17 | BL114: 257 | BM114: 3 | BN114: 0 | BO114: 0 | BP114: 7 | BQ114: 267 | BS114: -2798 | BY114: 7153 | CA114: 12584 | CF114: 9.9 | CN114: 7.25015 | CO114: -404.88427 | CP114: 4.54746 | CQ114: 77.59813 | CR114: 0 | CT114: -1 | CU114: -316 | CV114: 0 | CW114: 64 | CX114: 0
A115: 316 | B115: Kärkölä | C115: 4198 | D115: 22 | G115: 29628.31736 | H115: 56141.56578 | I115: -14.70442 | J115: 15857.82611 | K115: 1004.37111 | L115: 1225.57385 | M115: 18087.77107 | N115: 10062.70415 | O115: 2.28291 | P115: 91.52585 | Q115: 252.86246 | R115: 26.25515 | S115: 1744.34849 | U115: 1739.69072 | V115: -4.19095 | X115: 0.46682 | Y115: -0.15999 | Z115: 4.52202 | AA115: 0.81199 | AB115: -4.12255 | AD115: -7.52575 | AF115: 4930.60436 | AI115: -6021 | AL115: 3832.81491 | AN115: 25333.36004 | AQ115: 4114 | AR115: 9.36 | AU115: 3271.23386 | AV115: 14037.38103 | AW115: -0.64985 | AX115: 8035.12074 | AY115: 1304.03509 | AZ115: 1273.54596 | BA115: 10612.70179 | BB115: 2397.59504 | BC115: 7.97456 | BD115: 501.35716 | BE115: 85.51269 | BF115: -0.1769 | BG115: 1819.1277 | BI115: 1594.91729 | BJ115: -0.68889 | BL115: 223.52153 | BM115: -0.31949 | BN115: 0 | BO115: 0 | BP115: 9.50185 | BQ115: 232.7039 | BS115: 5146.34047 | BY115: 2421.15931 | CA115: 22000.77775 | CF115: 9.4 | CN115: 643.80361 | CO115: -5622.43187 | CP115: 2.96149 | CQ115: 52.34975 | CR115: 9.42112 | CT115: -28.7922 | CU115: -3810.24934 | CV115: 0.0793 | CW115: 1317.79992 | CX115: 0
A116: 317 | B116: Kärsämäki | C116: 2474 | D116: 21.5 | G116: 23633.95679 | H116: 42581.08816 | I116: -38.61069 | J116: 6797.78017 | K116: 1271.05985 | L116: 651.5957 | M116: 8720.43572 | N116: 13208.50267 | O116: 25.52796 | P116: 205.1741 | Q116: 140.40877 | R116: 481.78339 | S116: 2373.58086 | U116: 2054.08772 | V116: 0 | X116: 319.49314 | Y116: -7.58067 | Z116: 2.58889 | AA116: 0.00125 | AB116: -1.63254 | AD116: 307.69229 | AF116: 9493.25358 | AI116: -5907 | AL116: 12605.586 | AN116: 26029.13386 | AQ116: 2440 | AR116: 8.86 | AU116: 3978.23587 | AV116: 12349.76367 | AW116: 0 | AX116: 2940.01952 | AY116: 822.35625 | AZ116: 668.83642 | BA116: 4431.21219 | BB116: 5933.76059 | BC116: 92.40756 | BD116: 566.1659 | BE116: 601.92113 | BF116: 108.35108 | BG116: 1953.92984 | BI116: 1674.30911 | BJ116: 0 | BL116: 279.62073 | BM116: 1.5141 | BN116: 0.28276 | BO116: -0.05982 | BP116: 0 | BQ116: 280.79225 | BS116: 9735.95255 | BY116: 1025.47304 | CA116: 18674.20034 | CF116: 9.5 | CN116: -70.79161 | CO116: -6582.1102 | CP116: 243.58967 | CQ116: 1591.76414 | CR116: -580.83694 | CT116: 12.45358 | CU116: -1354.07794 | CV116: 52.1715 | CW116: 284.18019 | CX116: 1391.16306
A117: 398 | B117: Lahti | C117: 120175 | D117: 20.75 | G117: 719319.9012 | H117: 1332564.445 | I117: -487.15474 | J117: 452477.2515 | K117: 48348.78249 | L117: 44241.52738 | M117: 545067.5614 | N117: 284217.1393 | O117: 2029.10521 | P117: 16765.87152 | Q117: 17603.90257 | R117: 20296.48301 | S117: 196238.7209 | U117: 117214.3312 | V117: -208.25382 | X117: 78816.13586 | Y117: -181.97741 | Z117: 7437.4044 | AA117: -2368.31614 | AB117: -763.07999 | AD117: 68065.35792 | AF117: 374464.7521 | AI117: -211482 | AL117: 334418.7414 | AN117: 1233791.974 | AQ117: 120693 | AR117: 8.11 | AU117: 437846.7573 | AV117: 678682.7518 | AW117: -415.2309 | AX117: 225383.3743 | AY117: 32652.21939 | AZ117: 46807.07204 | BA117: 304842.6657 | BB117: 131527.6345 | BC117: 10507.46202 | BD117: 23435.57974 | BE117: 5431.28813 | BF117: 4694.84297 | BG117: 181442.9069 | BI117: 115901.1302 | BJ117: 554.03457 | BL117: 66095.81127 | BM117: -276.29477 | BN117: 3288.13106 | BO117: -2046.87066 | BP117: -232.98821 | BQ117: 60251.52657 | BS117: 438465.9552 | BY117: 297281.5669 | CA117: 1136756.457 | CF117: 8.1 | CN117: -30131.34836 | CO117: -236268.2284 | CP117: 2762.3534 | CQ117: 190400.6476 | CR117: -40.46252 | CT117: -24185.40498 | CU117: -133295.3452 | CV117: 680.30836 | CW117: 29570.90561 | CX117: 554.47619
A118: 399 | B118: Laihia | C118: 7817 | D118: 21.75 | G118: 39344.70312 | H118: 89862.74004 | I118: 0 | J118: 31568.0264 | K118: 1489.94441 | L118: 1560.69381 | M118: 34618.66462 | N118: 19482.513 | O118: 8.53934 | P118: 245.99742 | Q118: 306.30038 | R118: 99.00992 | S118: 3474.2813 | U118: 3352.8828 | V118: 0 | X118: 121.3985 | Y118: 0 | Z118: 0 | AA118: -61.73392 | AB118: 7.93031 | AD118: 67.59489 | AF118: 426.58089 | AI118: -4518 | AL118: 4405.09385 | AN118: 42586.14794 | AQ118: 7682 | AR118: 9.11 | AU118: 7242 | AV118: 27485 | AW118: 0 | AX118: 16390.12003 | AY118: 1080.31134 | AZ118: 1441.36994 | BA118: 18911.80131 | BB118: 5679 | BC118: 25 | BD118: 923 | BE118: 104.67134 | BF118: -5.47629 | BG118: 3473 | BI118: 3583 | BJ118: 0 | BL118: -110 | BM118: 0 | BN118: 19 | BO118: 24 | BP118: 99 | BQ118: 31 | BS118: 702 | BY118: 2520 | CA118: 33343 | CF118: 9.6 | CN118: -7.56752 | CO118: -4264.74843 | CP118: 111.639 | CQ118: 14.3419 | CR118: 30.84061 | CT118: 0 | CU118: -2044 | CV118: 51 | CW118: 0 | CX118: 0
A119: 400 | B119: Laitila | C119: 8366 | D119: 20.75 | G119: 43148.43821 | H119: 95280.13458 | I119: 587.00028 | J119: 27723.09098 | K119: 3490.5639 | L119: 2164.39604 | M119: 33378.05092 | N119: 25784.567 | O119: 14.06305 | P119: 414.38085 | Q119: 318.16455 | R119: 213.28853 | S119: 7322.48006 | U119: 5856.61598 | V119: -2.8403 | X119: 1463.02378 | Y119: 0 | Z119: 3.32048 | AA119: -8.18325 | AB119: 14.94558 | AD119: 1466.46563 | AF119: 11208.41805 | AI119: -7243 | AL119: 4265.76865 | AN119: 46686.13076 | AQ119: 8441 | AR119: 8.11 | AU119: 13896.76806 | AV119: 36760.65642 | AW119: -17.1581 | AX119: 13923.69715 | AY119: 2367.09942 | AZ119: 2125.68092 | BA119: 18416.47749 | BB119: 12853.475 | BC119: 18.26441 | BD119: 833.09064 | BE119: 176.51966 | BF119: 25.89556 | BG119: 7724.70389 | BI119: 4487.535 | BJ119: -5.48633 | BL119: 3231.68257 | BM119: 0 | BN119: 0 | BO119: -14.30917 | BP119: 17.22295 | BQ119: 3234.59634 | BS119: 13318.32074 | BY119: 2886.91818 | CA119: 36651.19072 | CF119: 8.1 | CN119: -494.81934 | CO119: -11885.152 | CP119: 157.56621 | CQ119: 942.48164 | CR119: 32.23618 | CT119: 56.53302 | CU119: -7363.21764 | CV119: 0 | CW119: 41.8624 | CX119: 21.77391
A120: 407 | B120: Lapinjärvi | C120: 2518 | D120: 21.5 | G120: 11700.03311 | H120: 28979.58345 | I120: -8.65949 | J120: 8422.97443 | K120: 925.45315 | L120: 757.55073 | M120: 10105.97831 | N120: 8502.307 | O120: 15.68627 | P120: 103.29373 | Q120: 285.84662 | R120: -367.71028 | S120: 1845.69722 | U120: 1450.28385 | V120: 0 | X120: 395.41337 | Y120: 0 | Z120: 0.26143 | AA120: 3.9886 | AB120: -0.00279 | AD120: 399.13775 | AF120: 3426.73742 | AI120: -2168 | AL120: 3382.57265 | AN120: 11606.16837 | AQ120: 2449 | AR120: 8.86 | AU120: 3579.80701 | AV120: 11009.98881 | AW120: 0 | AX120: 4156.13794 | AY120: 528.67007 | AZ120: 652.70066 | BA120: 5337.50867 | BB120: 2735.275 | BC120: 48.59743 | BD120: 233.74322 | BE120: 287.59639 | BF120: -501.14136 | BG120: 1202.84218 | BI120: 1210.02263 | BJ120: 0 | BL120: -7.18045 | BM120: 0.54091 | BN120: 0.03006 | BO120: 0 | BP120: 0 | BQ120: -6.6696 | BS120: 3649.22133 | BY120: 1702.79285 | CA120: 8098.02946 | CF120: 8.9 | CN120: 62.34308 | CO120: -1101.00778 | CP120: 3.79565 | CQ120: 54.27202 | CR120: 0.03015 | CT120: 63.64391 | CU120: -654.81141 | CV120: 0 | CW120: 64.94762 | CX120: 0
A121: 402 | B121: Lapinlahti | C121: 9099 | D121: 21.25 | G121: 43151.06234 | H121: 107246.5377 | I121: 223.47927 | J121: 28091.14092 | K121: 2789.28935 | L121: 2395.54262 | M121: 33275.97289 | N121: 33561.326 | O121: 26.71643 | P121: 547.43735 | Q121: 1242.67095 | R121: 22.79033 | S121: 3553.46985 | U121: 6403.76844 | V121: -4.85189 | X121: -2855.15048 | Y121: 9.24636 | Z121: 3.10872 | AA121: -39.76758 | AB121: 105.57198 | AD121: -2783.20844 | AF121: -1637.96011 | AI121: -7946 | AL121: 8275.90786 | AN121: 65052.57886 | AQ121: 8975 | AR121: 8.61 | AU121: 18859.13441 | AV121: 41277.29696 | AW121: 983.96629 | AX121: 14000.09166 | AY121: 1738.18444 | AZ121: 2309.0546 | BA121: 18047.3307 | BB121: 11225.07194 | BC121: 18.49801 | BD121: 1169.50857 | BE121: 1293.09222 | BF121: 384.73565 | BG121: 7497.40532 | BI121: 5584.68638 | BJ121: 35.41296 | BL121: 1948.1319 | BM121: 0.11823 | BN121: 0.64828 | BO121: 24.16493 | BP121: 42.65147 | BQ121: 2014.41825 | BS121: 375.02291 | BY121: 4205.03377 | CA121: 47019.58237 | CF121: 9.4 | CN121: -476.97532 | CO121: -8096.38534 | CP121: 152.24443 | CQ121: 152.88041 | CR121: 4.10779 | CT121: -1189.15556 | CU121: -3609.63583 | CV121: 140.84995 | CW121: 356.49558 | CX121: 0.68573
A122: 403 | B122: Lappajärvi | C122: 2820 | D122: 22 | G122: 12655.48537 | H122: 35160.04946 | I122: 6.15702 | J122: 8194.54084 | K122: 1019.06125 | L122: 1023.03966 | M122: 10236.64175 | N122: 14344.78162 | O122: 15.92054 | P122: 147.81703 | Q122: 98.19947 | R122: 26.72979 | S122: 2022.58949 | U122: 2132.46435 | V122: -1e-05 | X122: -109.87487 | Y122: 42 | Z122: 8.31938 | AA122: 1.25734 | AB122: -17.26407 | AD122: -92.20098 | AF122: 2578.45963 | AI122: -3654 | AL122: 3720.79448 | AN122: 20032.38233 | AQ122: 2789 | AR122: 9.36 | AU122: 6483.23003 | AV122: 13888.91689 | AW122: 54.27763 | AX122: 4326.43699 | AY122: 591.8956 | AZ122: 1086.26622 | BA122: 6004.59881 | BB122: 3817.411 | BC122: 41.1853 | BD122: 356.98497 | BE122: 23.30272 | BF122: 162.91453 | BG122: 2015.1891 | BI122: 1695.99351 | BJ122: 0 | BL122: 319.19559 | BM122: 0 | BN122: 7.32578 | BO122: 0 | BP122: 30.63218 | BQ122: 342.50199 | BS122: 2982.89561 | BY122: 3948.21785 | CA122: 14559.84067 | CF122: 9.4 | CN122: -81.13178 | CO122: -2559.88335 | CP122: 430.55 | CQ122: 46.6682 | CR122: 0.82568 | CT122: 235.36062 | CU122: -1080.9329 | CV122: 123.2588 | CW122: 238.01631 | CX122: 0
A123: 405 | B123: Lappeenranta | C123: 72650 | D123: 21 | G123: 408765.7059 | H123: 799637.7595 | I123: 900.67625 | J123: 270618.9236 | K123: 35649.74721 | L123: 26952.54777 | M123: 333221.2186 | N123: 147587.6937 | O123: 196.44711 | P123: 4616.70774 | Q123: 1427.06071 | R123: 106.48963 | S123: 84996.94952 | U123: 53529.30033 | V123: 7.04179 | X123: 31474.69098 | Y123: 1.30054 | Z123: 1805.77607 | AA123: -2112.76389 | AB123: 341.25716 | AD123: 27898.70872 | AF123: 176465.6418 | AI123: -70845 | AL123: 73984.59613 | AN123: 451127.0345 | AQ123: 72988 | AR123: 8.36 | AU123: 222283.1565 | AV123: 354186.2995 | AW123: 180.90646 | AX123: 136900.5143 | AY123: 25181.26494 | AZ123: 27396.17539 | BA123: 189477.9546 | BB123: 42610.6561 | BC123: 2719.9008 | BD123: 9871.8296 | BE123: 1079.76336 | BF123: 351.54456 | BG123: 91661.00134 | BI123: 62806.22557 | BJ123: 0 | BL123: 28854.77577 | BM123: 69.2991 | BN123: 251.01497 | BO123: -1091.69 | BP123: 236.84072 | BQ123: 27818.21062 | BS123: 206220.1189 | BY123: 78906.54611 | CA123: 422068.6295 | CF123: 8.3 | CN123: -12017.00088 | CO123: -63174.8734 | CP123: 586.32855 | CQ123: 6252.20477 | CR123: -479.26445 | CT123: -732.92553 | CU123: -62381.87067 | CV123: 444.24382 | CW123: 4908.02161 | CX123: 334.21909
A124: 408 | B124: Lapua | C124: 14099 | D124: 21.5 | G124: 56174.1638 | H124: 142320.0438 | I124: -33.00148 | J124: 49272.07169 | K124: 4129.28 | L124: 3222.68508 | M124: 56624.03677 | N124: 43729.599 | O124: 68.58333 | P124: 888.1506 | Q124: 849.93878 | R124: 313.57119 | S124: 13891.55464 | U124: 11604.03157 | V124: 0 | X124: 2287.52307 | Y124: 0 | Z124: 160.13046 | AA124: -180.32203 | AB124: 10.57611 | AD124: 1957.64669 | AF124: 25459.74199 | AI124: -21185 | AL124: 12543.10279 | AN124: 118198.7051 | AQ124: 14024 | AR124: 8.86 | AU124: 27004.57522 | AV124: 58653.03529 | AW124: -4.27606 | AX124: 25330.66319 | AY124: 2984.37212 | AZ124: 3270.26485 | BA124: 31585.30016 | BB124: 15933.67 | BC124: 16.70443 | BD124: 1533.8218 | BE124: 673.6612 | BF124: 827.86648 | BG124: 14194.91138 | BI124: 9545.35541 | BJ124: 0 | BL124: 4649.55597 | BM124: 0 | BN124: 26.11189 | BO124: -39.60724 | BP124: -24.71676 | BQ124: 4559.12008 | BS124: 30289.21732 | BY124: 8310.20141 | CA124: 99042.67753 | CF124: 8.9 | CN124: -126.48803 | CO124: -15082.05299 | CP124: 318.5772 | CQ124: 302.33665 | CR124: -536.932 | CT124: -90.60213 | CU124: -10716.07677 | CV124: 77.16585 | CW124: 279.9477 | CX124: 457.5
A125: 410 | B125: Laukaa | C125: 18775 | D125: 21.5 | G125: 50364.29752 | H125: 175708.9105 | I125: 0 | J125: 67984.99873 | K125: 4404.72266 | L125: 6213.26951 | M125: 78602.9909 | N125: 55230.42036 | O125: 13.37382 | P125: 519.38043 | Q125: 514.93936 | R125: 101.96959 | S125: 8395.76141 | U125: 11537.08511 | V125: 509.82415 | X125: -2631.49955 | Y125: -430.50807 | Z125: 0 | AA125: 104.5778 | AB125: 0 | AD125: -2957.42982 | AF125: -6895.43202 | AI125: -15390 | AL125: 7222.80208 | AN125: 165946.9006 | AQ125: 18762 | AR125: 8.86 | AU125: 22626.3258 | AV125: 79637.344 | AW125: 0 | AX125: 34960.56225 | AY125: 2803.96771 | AZ125: 6562.65944 | BA125: 44327.1894 | BB125: 28575.25609 | BC125: 29.26015 | BD125: 2361.8209 | BE125: 388.36163 | BF125: 36.80813 | BG125: 13910.42004 | BI125: 9653.44357 | BJ125: 0 | BL125: 4256.97647 | BM125: -2.11622 | BN125: 1.29951 | BO125: -58.82565 | BP125: 0 | BQ125: 4194.73509 | BS125: -4202.55252 | BY125: 4898.92988 | CA125: 138897.0301 | CF125: 9.9 | CN125: -554.06508 | CO125: -15462.62824 | CP125: 128.85565 | CQ125: 774.24225 | CR125: 705.4739 | CT125: -536.31094 | CU125: -6462.4039 | CV125: 125.6 | CW125: 623.1902 | CX125: 799.35295
A126: 416 | B126: Lemi | C126: 2886 | D126: 22 | G126: 15885.85254 | H126: 34334.00507 | I126: -12.34175 | J126: 10209.56048 | K126: 635.39837 | L126: 987.37868 | M126: 11832.33753 | N126: 7535.80113 | O126: 0.47967 | P126: 111.69628 | Q126: 28.53229 | R126: 9.20908 | S126: 781.13074 | U126: 975.92617 | V126: 0 | X126: -194.79543 | Y126: -0.21606 | Z126: 1.70075 | AA126: -21.55755 | AB126: 0 | AD126: -218.26979 | AF126: -672.41635 | AI126: -229 | AL126: 1622.7767 | AN126: 10992.53374 | AQ126: 2862 | AR126: 9.36 | AU126: 2710.05881 | AV126: 9548.8179 | AW126: -24.92851 | AX126: 5332.87984 | AY126: 360.97572 | AZ126: 984.19031 | BA126: 6678.04587 | BB126: 2302.12936 | BC126: 0.00431 | BD126: 169.93801 | BE126: 30.0627 | BF126: 10.06804 | BG126: 1928.8464 | BI126: 854.21109 | BJ126: 0 | BL126: 1074.63531 | BM126: 2.56963 | BN126: 0.0665 | BO126: -20.393 | BP126: 0 | BQ126: 1056.74544 | BS126: 548.85533 | BY126: 942.10125 | CA126: 8623.6807 | CF126: 9.9 | CN126: 361.19681 | CO126: -1489.83208 | CP126: 13.65337 | CQ126: 99.59876 | CR126: -31.91198 | CT126: 12.37987 | CU126: -245.2812 | CV126: 17.84236 | CW126: 17.38928 | CX126: 5
A127: 418 | B127: Lempäälä | C127: 24580 | D127: 20.5 | G127: 75653.18634 | H127: 206974.6944 | I127: 169.14701 | J127: 102505.8814 | K127: 7490.92615 | L127: 6409.88216 | M127: 116406.6897 | N127: 31832.88515 | O127: 50.80674 | P127: 1197.06485 | Q127: 560.09184 | R127: 619.51603 | S127: 15649.18525 | U127: 18730.4312 | V127: 0 | X127: -3081.24595 | Y127: 0.40866 | Z127: 126.46968 | AA127: 75.22304 | AB127: -159.15898 | AD127: -3291.24291 | AF127: 25334.07215 | AI127: -34378 | AL127: 29085.8646 | AN127: 173515.2102 | AQ127: 24711 | AR127: 7.86 | AU127: 39479.33704 | AV127: 101850.4415 | AW127: -34.32869 | AX127: 51653.21411 | AY127: 5359.74321 | AZ127: 6854.60768 | BA127: 63867.565 | BB127: 22291.481 | BC127: 79.25545 | BD127: 3599.41069 | BE127: 704.28303 | BF127: -88.65172 | BG127: 20772.75461 | BI127: 16226.31572 | BJ127: 0 | BL127: 4546.43889 | BM127: 0.23977 | BN127: 3.77446 | BO127: -24.294 | BP127: 24.34384 | BQ127: 4542.95404 | BS127: 27966.10109 | BY127: 12429.40741 | CA127: 160063.5405 | CF127: 8.4 | CN127: -1587.92761 | CO127: -27398.47149 | CP127: 754.59317 | CQ127: 10823.50348 | CR127: -225.98284 | CT127: -467.85179 | CU127: -32403.92569 | CV127: 404.99205 | CW127: 1538.07118 | CX127: -480.10494
A128: 420 | B128: Leppävirta | C128: 9177 | D128: 21 | G128: 40206.13227 | H128: 101572.4541 | I128: 109.11661 | J128: 32379.87031 | K128: 4254.96375 | L128: 2805.70469 | M128: 39440.53875 | N128: 29380.75744 | O128: 8.72506 | P128: 292.80618 | Q128: 1021.66222 | R128: 353.57536 | S128: 7801.99836 | U128: 6934.17814 | V128: -12.00787 | X128: 855.81235 | Y128: -0.95892 | Z128: 4.53918 | AA128: -82.09467 | AB128: -2.41413 | AD128: 765.80545 | AF128: 4018.62697 | AI128: -5306 | AL128: 16937.72812 | AN128: 34657.49886 | AQ128: 9049 | AR128: 8.36 | AU128: 14043.9418 | AV128: 33870.40052 | AW128: 5.07414 | AX128: 15756.42993 | AY128: 2630.54324 | AZ128: 2935.6815 | BA128: 21322.65467 | BB128: 6258.73295 | BC128: 77.69007 | BD128: 425.32457 | BE128: 1157.66678 | BF128: 45.81081 | BG128: 8369.39414 | BI128: 4505.55387 | BJ128: 0 | BL128: 3863.84027 | BM128: 1.75911 | BN128: 2.35307 | BO128: -21.44125 | BP128: 0 | BQ128: 3841.80506 | BS128: 6691.07787 | BY128: 12133.95629 | CA128: 15746.41742 | CF128: 8.4 | CN128: 375.9899 | CO128: -5541.07486 | CP128: 31.8409 | CQ128: 969.22164 | CR128: 2.36678 | CT128: -1112.05993 | CU128: -2046.45343 | CV128: 0 | CW128: 269.84344 | CX128: -705.90332
A129: 421 | B129: Lestijärvi | C129: 695 | D129: 21 | G129: 10420.82679 | H129: 17154.24095 | I129: 72.25622 | J129: 1891.397 | K129: 665.395 | L129: 288.028 | M129: 2541 | N129: 3079.00431 | O129: 3.46513 | P129: 83.21636 | Q129: 88.26628 | R129: 3.22393 | S129: -732.04287 | U129: 889.70933 | V129: 0 | X129: -1621.7522 | Y129: 3.10301 | Z129: 5.18798 | AA129: 1.74412 | AB129: -0.79612 | AD129: -1622.88917 | AF129: -1161.5425 | AI129: -660 | AL129: 1939.7671 | AN129: 13260.86497 | AQ129: 682 | AR129: 8.36 | AU129: 4142.71158 | AV129: 7122.56769 | AW129: 20.56505 | AX129: 880.11967 | AY129: 381.53002 | AZ129: 417.22403 | BA129: 1678.87372 | BB129: 1190.69371 | BC129: 1.59639 | BD129: 196.8024 | BE129: 16.15392 | BF129: 4.8941 | BG129: -273.66982 | BI129: 768.15355 | BJ129: -0.00119 | BL129: -1041.82456 | BM129: 0 | BN129: 6.00633 | BO129: -1.82635 | BP129: -0.67387 | BQ129: -1050.33111 | BS129: -2253.73964 | BY129: 1744.241 | CA129: 12623.869 | CF129: 9.4 | CN129: -28.90537 | CO129: -1332.55122 | CP129: 58.54784 | CQ129: 27.06766 | CR129: 1.58 | CT129: 0.75844 | CU129: -271.5853 | CV129: 30.75846 | CW129: 0.24687 | CX129: 0
A130: 422 | B130: Lieksa | C130: 10372 | D130: 21 | G130: 77862.21251 | H130: 159633.3771 | I130: -57.17124 | J130: 31903.59057 | K130: 6544.3757 | L130: 3392.06892 | M130: 41840.03519 | N130: 47980.28509 | O130: 172.51528 | P130: 420.54884 | Q130: 654.11554 | R130: 330.94348 | S130: 7894.79862 | U130: 6514.60885 | V130: 0 | X130: 1380.18977 | Y130: 17.17161 | Z130: 0.0214 | AA130: -6.76177 | AB130: 13.5844 | AD130: 1404.16261 | AF130: 44698.18875 | AI130: -10560 | AL130: 18293.01538 | AN130: 34826.84805 | AQ130: 10228 | AR130: 8.36 | AU130: 16100.49483 | AV130: 43848.97429 | AW130: -40.4587 | AX130: 15958.48214 | AY130: 3939.80255 | AZ130: 3603.24654 | BA130: 23501.53123 | BB130: 14731.16535 | BC130: 251.27203 | BD130: 375.54706 | BE130: 717.6828 | BF130: -57.12554 | BG130: 10915.62445 | BI130: 5446.63766 | BJ130: 0 | BL130: 5468.98679 | BM130: -29.79495 | BN130: 0 | BO130: 0 | BP130: 0 | BQ130: 5439.19184 | BS130: 49889.32419 | BY130: 12891.07142 | CA130: 15753.24854 | CF130: 8.4 | CN130: -695.01156 | CO130: -8381.73782 | CP130: 136.64689 | CQ130: 509.27706 | CR130: -2.0763 | CT130: -272.67003 | CU130: -5747.40523 | CV130: 452.76 | CW130: 549.6618 | CX130: -6.83834
A131: 423 | B131: Lieto | C131: 20497 | D131: 19.5 | G131: 58825.12357 | H131: 164249.0143 | I131: -15.10578 | J131: 81602.78729 | K131: 6380.43884 | L131: 4783.69413 | M131: 92766.92026 | N131: 28488.19135 | O131: 27.84861 | P131: 860.54822 | Q131: 111.76826 | R131: 29.10165 | S131: 15066.0821 | U131: 9943.05041 | V131: 0 | X131: 5123.03169 | Y131: 0 | Z131: -0.47049 | AA131: -27.34805 | AB131: -3.41331 | AD131: 5091.79555 | AF131: 20158.71197 | AI131: -9799 | AL131: 12821.83755 | AN131: 86448.25895 | AQ131: 20637 | AR131: 6.86 | AU131: 24108.90507 | AV131: 72372.87102 | AW131: -78.75625 | AX131: 37578.67795 | AY131: 4678.6913 | AZ131: 4778.27084 | BA131: 47035.64009 | BB131: 18024.64948 | BC131: 137.75402 | BD131: 1096.55269 | BE131: 309.77745 | BF131: 27.29389 | BG131: 16041.25226 | BI131: 9551.62922 | BJ131: 0 | BL131: 6489.62304 | BM131: 0 | BN131: 0 | BO131: -8 | BP131: 0 | BQ131: 6481.62304 | BS131: 26637.06824 | BY131: 6293 | CA131: 67357.06793 | CF131: 6.9 | CN131: -1682.13658 | CO131: -18493.62057 | CP131: 253.02242 | CQ131: 1853.956 | CR131: 18.10308 | CT131: -2022.31561 | CU131: -13392.8716 | CV131: 1218.61644 | CW131: 2591.79479 | CX131: 1.97374
A132: 425 | B132: Liminka | C132: 10258 | D132: 21.5 | G132: 24625.92246 | H132: 89873.01273 | I132: -54.15783 | J132: 36045.64205 | K132: 1548.19838 | L132: 1593.25442 | M132: 39187.09485 | N132: 32174.47657 | O132: 21.96928 | P132: 345.42934 | Q132: 64.8174 | R132: 17.97672 | S132: 5695.82921 | U132: 6366.84865 | V132: 0 | X132: -671.01944 | Y132: 16.77766 | Z132: 4.09805 | AA132: 32.12467 | AB132: 15.82672 | AD132: -610.38843 | AF132: 33217.52051 | AI132: -9438 | AL132: 6080.17422 | AN132: 50597.70198 | AQ132: 10256 | AR132: 8.86 | AU132: 9648.73608 | AV132: 49633.09249 | AW132: 42.92161 | AX132: 19099.84647 | AY132: 1051.90426 | AZ132: 1791.50257 | BA132: 21943.2533 | BB132: 23617.44625 | BC132: 54.43362 | BD132: 1051.1601 | BE132: 51.58678 | BF132: 9.06475 | BG132: 4577.39265 | BI132: 5927.57827 | BJ132: 0 | BL132: -1350.18562 | BM132: 20.13004 | BN132: 0.60738 | BO132: -9.42987 | BP132: 18.9459 | BQ132: -1321.14693 | BS132: 32489.62929 | BY132: 3843.76682 | CA132: 42475.25007 | CF132: 8.9 | CN132: -316.27671 | CO132: -10601.17999 | CP132: 636.13585 | CQ132: 461.05937 | CR132: -275.21996 | CT132: -154.36459 | CU132: -6477.95025 | CV132: 496.35 | CW132: 391.14024 | CX132: 411.94725
A133: 426 | B133: Liperi | C133: 11962 | D133: 21.5 | G133: 70946.15129 | H133: 149426.559 | I133: -249.43498 | J133: 40577.04949 | K133: 2321.10837 | L133: 3001.56115 | M133: 45899.71901 | N133: 34115.60185 | O133: 57.93053 | P133: 412.79858 | Q133: 399.47016 | R133: 134.08998 | S133: 1320.70775 | U133: 5685.31355 | V133: 0 | X133: -4364.6058 | Y133: -9.42596 | Z133: 2.77259 | AA133: -5.63894 | AB133: 20.94952 | AD133: -4361.49377 | AF133: 6859.15383 | AI133: -5552 | AL133: 8635.56462 | AN133: 69443.86431 | AQ133: 11969 | AR133: 8.86 | AU133: 14860.07258 | AV133: 46145.55672 | AW133: -48.23839 | AX133: 20562.26962 | AY133: 1680.26987 | AZ133: 3071.58372 | BA133: 25314.12321 | BB133: 13256.42072 | BC133: 29.29854 | BD133: 661.92957 | BE133: 413.08414 | BF133: 7.20374 | BG133: 7010.07077 | BI133: 4880.41736 | BJ133: 0 | BL133: 2129.65341 | BM133: -21.77832 | BN133: 29.09752 | BO133: 0 | BP133: 47.61368 | BQ133: 2126.39125 | BS133: 8819.0447 | BY133: 3269.00167 | CA133: 54110.97912 | CF133: 8.9 | CN133: 890.62472 | CO133: -8282.65636 | CP133: 213.22516 | CQ133: 510.34762 | CR133: 1.11532 | CT133: -1573.13338 | CU133: -3595.11765 | CV133: 527.14106 | CW133: 141.88177 | CX133: -10.67354
A134: 444 | B134: Lohja | C134: 45811 | D134: 20.5 | G134: 223475.8273 | H134: 488512.7737 | I134: -167.62358 | J134: 185348.7399 | K134: 13694.88546 | L134: 14365.12139 | M134: 213408.7468 | N134: 89610.72052 | O134: 78.25027 | P134: 2659.93617 | Q134: 2331.00271 | R134: 809.1823 | S134: 36755.03178 | U134: 25284.54272 | V134: 0 | X134: 11470.48906 | Y134: 0 | Z134: 53.26614 | AA134: -8.30826 | AB134: 8.71484 | AD134: 11417.6295 | AF134: 48168.30825 | AI134: -34203 | AL134: 33416.36179 | AN134: 264298.1697 | AQ134: 45645 | AR134: 7.86 | AU134: 80271.54908 | AV134: 187109.3373 | AW134: 0 | AX134: 90052.24766 | AY134: 9866.37431 | AZ134: 14884.73198 | BA134: 114803.354 | BB134: 32760.13188 | BC134: 952.1059 | BD134: 3640.01572 | BE134: 510.02888 | BF134: 131.3251 | BG134: 38416.49152 | BI134: 21414.46102 | BJ134: 0 | BL134: 17002.0305 | BM134: -585.36856 | BN134: 377.17425 | BO134: 0 | BP134: 0 | BQ134: 16039.48769 | BS134: 73709.99733 | BY134: 23938.94498 | CA134: 229840.9146 | CF134: 7.9 | CN134: -3085.26182 | CO134: -44954.09251 | CP134: 1927.14286 | CQ134: 4362.14387 | CR134: 0.55435 | CT134: 1235.70878 | CU134: -38233.57988 | CV134: 638.9 | CW134: 596.3777 | CX134: 0
A135: 430 | B135: Loimaa | C135: 15392 | D135: 21 | G135: 74132.89773 | H135: 179390.8797 | I135: -33.334 | J135: 50119.92416 | K135: 6047.46113 | L135: 4409.48469 | M135: 60576.86998 | N135: 58137.97 | O135: 13.05871 | P135: 442.64512 | Q135: 194.3799 | R135: 29.6361 | S135: 13158.68142 | U135: 9056.56017 | V135: 0 | X135: 4102.12125 | Y135: 0 | Z135: 710.65234 | AA135: -12.80611 | AB135: -1307.72322 | AD135: 2070.93958 | AF135: 18384.59294 | AI135: -5898 | AL135: 20073.41035 | AN135: 52092.42008 | AQ135: 15420 | AR135: 8.36 | AU135: 19629.95458 | AV135: 61797.26765 | AW135: 0 | AX135: 25117.43558 | AY135: 4047.02038 | AZ135: 4433.92956 | BA135: 33598.38552 | BB135: 19908.05214 | BC135: 139.40133 | BD135: 662.50982 | BE135: 61.89177 | BF135: 54.38111 | BG135: 10823.52676 | BI135: 6637.87066 | BJ135: 82.95733 | BL135: 4268.61343 | BM135: 0 | BN135: 18.39412 | BO135: 37.6768 | BP135: -159.70646 | BQ135: 4128.18965 | BS135: 25369.70236 | BY135: 11314.70548 | CA135: 27329.76809 | CF135: 8.4 | CN135: -146.19073 | CO135: -17530.27294 | CP135: 303.962 | CQ135: 247.829 | CR135: 819.84601 | CT135: -60.72506 | CU135: -7260.29846 | CV135: 0 | CW135: 96.34358 | CX135: -257.96343
A136: 433 | B136: Loppi | C136: 7749 | D136: 21.5 | G136: 28250.41426 | H136: 77000.03223 | I136: 31.04167 | J136: 28851.82739 | K136: 2818.07255 | L136: 2106.03831 | M136: 33775.93825 | N136: 18681.048 | O136: 13.36767 | P136: 379.44756 | Q136: 245.25222 | R136: 11.26326 | S136: 3606.31902 | U136: 3353.30239 | V136: 0 | X136: 253.01663 | Y136: 2.957 | Z136: 0 | AA136: -1.7106 | AB136: -0.11821 | AD136: 254.14482 | AF136: 18873.19437 | AI136: -2632 | AL136: 10366.84539 | AN136: 32583.50946 | AQ136: 7692 | AR136: 8.86 | AU136: 6798.86536 | AV136: 27588.5108 | AW136: 0.69932 | AX136: 14529.67578 | AY136: 1830.33991 | AZ136: 2203.18465 | BA136: 18563.20034 | BB136: 6308.571 | BC136: 85.91546 | BD136: 637.51058 | BE136: 30.15136 | BF136: 3.66704 | BG136: 3557.71442 | BI136: 2663.74487 | BJ136: -388.31043 | BL136: 505.65912 | BM136: 12.0346 | BN136: 0 | BO136: 5.7096 | BP136: 0.04791 | BQ136: 523.45123 | BS136: 17450.75509 | BY136: 3205.3845 | CA136: 22353.09712 | CF136: 8.9 | CN136: -163.8631 | CO136: -11554.22851 | CP136: 602.7 | CQ136: 361.32055 | CR136: 4.33345 | CT136: -147.61112 | CU136: -6645.61074 | CV136: 437.8355 | CW136: 1079.70731 | CX136: 0
A137: 434 | B137: Loviisa | C137: 14568 | D137: 20.25 | G137: 59842.23372 | H137: 152571.4153 | I137: -126.7303 | J137: 52307.47233 | K137: 8251.38792 | L137: 8686.73248 | M137: 69277.31726 | N137: 35273.554 | O137: 2.04062 | P137: 457.21137 | Q137: 229.72407 | R137: 113.71769 | S137: 11355.79503 | U137: 9174.66108 | V137: 0 | X137: 2181.13395 | Y137: -4.50742 | Z137: 1.04071 | AA137: -1.94195 | AB137: 7.02353 | AD137: 2180.6674 | AF137: 18204.85063 | AI137: -15472 | AL137: 14195.74532 | AN137: 94738.17138 | AQ137: 14458 | AR137: 7.61 | AU137: 22063.61848 | AV137: 63646.35879 | AW137: 5125.87182 | AX137: 25567.33228 | AY137: 6944.39397 | AZ137: 9100.35309 | BA137: 41612.07934 | BB137: 11119.394 | BC137: -21.60553 | BD137: 1761.38322 | BE137: 247.88335 | BF137: 26.33383 | BG137: 14713.16562 | BI137: 8247.65959 | BJ137: -111.4095 | BL137: 6354.09653 | BM137: 2.82452 | BN137: 4.45781 | BO137: 0 | BP137: -2.23763 | BQ137: 6350.22561 | BS137: 24515.03555 | BY137: 10095.97853 | CA137: 83205.95621 | CF137: 7.6 | CN137: -659.7716 | CO137: -20388.29043 | CP137: 160.69104 | CQ137: 3859.80122 | CR137: -199.39043 | CT137: -3868.10706 | CU137: -9099.62441 | CV137: 0 | CW137: 2237.76502 | CX137: -5.4
A138: 435 | B138: Luhanka | C138: 692 | D138: 18.5 | G138: 3233.21731 | H138: 8307.49833 | I138: 0 | J138: 2034.84747 | K138: 464.14929 | L138: 639.76953 | M138: 3138.59255 | N138: 2511.649 | O138: 4.73813 | P138: 43.89175 | Q138: 5.40472 | R138: 3.86902 | S138: 534.90329 | U138: 410.69017 | V138: 64.4709 | X138: 188.68402 | Y138: 0.10314 | Z138: 0 | AA138: 0 | AB138: 18.07938 | AD138: 206.86654 | AF138: 1759.04683 | AI138: -545 | AL138: 2489.45697 | AN138: 4479.73665 | AQ138: 702 | AR138: 5.86 | AU138: 1060.73323 | AV138: 3584.80119 | AW138: 0 | AX138: 912.80749 | AY138: 259.59325 | AZ138: 647.11197 | BA138: 1819.3385 | BB138: 677.218 | BC138: 2.51103 | BD138: 65.46966 | BE138: -3.80462 | BF138: 3.38712 | BG138: -100.76921 | BI138: 252.25673 | BJ138: 23.72013 | BL138: -329.30581 | BM138: -0.06621 | BN138: 0.07188 | BO138: 0 | BP138: 15.14116 | BQ138: -314.30274 | BS138: 1342.91481 | BY138: 1675.96014 | CA138: 2412.92506 | CF138: 6.4 | CN138: -16.47384 | CO138: -88.15901 | CP138: 2.15406 | CQ138: 35.60682 | CR138: -3.96259 | CT138: -16.74131 | CU138: -68.25154 | CV138: 0 | CW138: 38.1 | CX138: 203.43951
A139: 436 | B139: Lumijoki | C139: 1988 | D139: 21 | G139: 5654.5746 | H139: 19505.21476 | I139: -11.79478 | J139: 5735.35229 | K139: 287.97416 | L139: 326.25063 | M139: 6349.57708 | N139: 7707.68605 | O139: 6.87901 | P139: 88.36174 | Q139: 11.28302 | R139: 5.15111 | S139: 119.47738 | U139: 1137.16676 | V139: 0 | X139: -1017.68937 | Y139: 2.31739 | Z139: 8.81986 | AA139: -8.63356 | AB139: -10.36304 | AD139: -1043.18845 | AF139: 1147.61978 | AI139: -1154 | AL139: 1068.08756 | AN139: 11540.91293 | AQ139: 2033 | AR139: 8.36 | AU139: 2285.77688 | AV139: 9118.29967 | AW139: 8.31106 | AX139: 3045.33628 | AY139: 194.52495 | AZ139: 322.943 | BA139: 3562.80423 | BB139: 5150.36954 | BC139: 18.20853 | BD139: 311.30618 | BE139: 3.52422 | BF139: 1.98899 | BG139: 1597.39962 | BI139: 1026.64798 | BJ139: 0 | BL139: 570.75164 | BM139: 4.52335 | BN139: 8.88439 | BO139: -2.80329 | BP139: -10.23095 | BQ139: 553.35636 | BS139: 1682.77591 | BY139: 1534.79958 | CA139: 10093.36207 | CF139: 8.9 | CN139: 5.03076 | CO139: -4544.23927 | CP139: 306.34741 | CQ139: 55.72715 | CR139: 0 | CT139: -14.39291 | CU139: -1874.76281 | CV139: 0 | CW139: 8.52 | CX139: 0
A140: 440 | B140: Luoto | C140: 5732 | D140: 20 | G140: 14122 | H140: 46554 | I140: 0 | J140: 17507.95877 | K140: 695.22334 | L140: 1462.02451 | M140: 19665.20662 | N140: 16502 | O140: 36.3 | P140: 148.7 | Q140: - | R140: - | S140: 4272 | U140: 2607 | V140: -143 | X140: 1522 | Y140: -50 | Z140: 0 | AA140: 0 | AB140: 0 | AD140: 1472 | AF140: 20425 | AI140: -2633 | AL140: 12833.948 | AN140: 38526 | AQ140: 5843 | AR140: 7.36 | AU140: 8597.48964 | AV140: 24735.41488 | AW140: 0 | AX140: 8251.36153 | AY140: 483.07544 | AZ140: 1559.13986 | BA140: 10293.57683 | BB140: 9918.57 | BC140: 85.51101 | BD140: 1426.06061 | BE140: 424.096 | BF140: 318.92161 | BG140: 2838.84655 | BI140: 2625.75455 | BJ140: 0 | BL140: 213.092 | BM140: 2.49647 | BN140: 1.35334 | BO140: 0 | BP140: 0 | BQ140: 214.23513 | BS140: 21400.07695 | BY140: 11552.489 | CA140: 48749.09354 | CF140: 8.3 | CO140: -4953 | CP140: 235 | CQ140: 79 | CT140: -56.719 | CU140: -12865.728 | CV140: 478.068 | CW140: 91.233 | CX140: 0
A141: 441 | B141: Luumäki | C141: 4421 | D141: 21 | G141: 27328.55221 | H141: 59294.7949 | I141: -28.71012 | J141: 14479.6663 | K141: 2658.04235 | L141: 1685.74025 | M141: 18823.4489 | N141: 14262.56276 | O141: 288.9436 | P141: 162.73066 | Q141: 340.07092 | R141: 307.90167 | S141: 1249.44104 | U141: 2970.71102 | V141: 0 | X141: -1721.26998 | Y141: 0.08794 | Z141: 25.95453 | AA141: 4.97332 | AB141: 34.16219 | AD141: -1708.00106 | AF141: 12543.05146 | AI141: -3545 | AL141: 15033.9468 | AN141: 18007.19864 | AQ141: 4396 | AR141: 8.36 | AU141: 5883.1145 | AV141: 15639.47563 | AW141: -31.39989 | AX141: 7044.36345 | AY141: 1534.27204 | AZ141: 1711.91365 | BA141: 10290.54914 | BB141: 1176.55668 | BC141: 349.42763 | BD141: 382.86006 | BE141: 283.88277 | BF141: 81.71515 | BG141: 1848.07999 | BI141: 2631.15817 | BJ141: 0 | BL141: -783.07818 | BM141: 4.81975 | BN141: 12.59369 | BO141: 0.421 | BP141: 47.48284 | BQ141: -742.94828 | BS141: 11989.781 | BY141: 11273.02 | CA141: 15277.182 | CF141: 8.8 | CN141: -104.30461 | CO141: -2041.14855 | CP141: 95.903 | CQ141: 209.92424 | CR141: 15.2342 | CT141: -133.46429 | CU141: -2569.91308 | CV141: 38.3 | CW141: 240.11056 | CX141: 19.004
A142: 475 | B142: Maalahti | C142: 5479 | D142: 21.5 | G142: 44067.8606 | H142: 83582.7403 | I142: 0 | J142: 19884.65835 | K142: 1985.04059 | L142: 2128.58209 | M142: 23998.28103 | N142: 19366.695 | O142: 3.29836 | P142: 227.01136 | Q142: 175.03003 | R142: 36.20817 | S142: 3731.06913 | U142: 3135.98176 | V142: 0 | X142: 595.08737 | Y142: 2.01377 | Z142: 6.18035 | AA142: 2.7 | AB142: -2.82356 | AD142: 590.79721 | AF142: 6792.96551 | AI142: -8035 | AL142: 1932.63895 | AN142: 38102.16161 | AQ142: 5456 | AR142: 8.86 | AU142: 10354.52338 | AV142: 24956.90804 | AW142: 0 | AX142: 9951.54943 | AY142: 1359.93236 | AZ142: 2489.08102 | BA142: 13800.56281 | BB142: 5635.962 | BC142: 1.68669 | BD142: 586.95495 | BE142: 47.92684 | BF142: 4.74909 | BG142: 4255.52122 | BI142: 2773.36516 | BJ142: 0 | BL142: 1482.15606 | BM142: 1.93123 | BN142: 22.00951 | BO142: 12.88 | BP142: 1.98646 | BQ142: 1476.94424 | BS142: 8256.58478 | BY142: 2277.74751 | CA142: 30521.44476 | CF142: 8.9 | CN142: -259.83649 | CO142: -6513.22048 | CP142: 145.44863 | CQ142: 400.07837 | CR142: 0.41983 | CT142: -49.44178 | CU142: -2339.08254 | CV142: 177.59945 | CW142: 114.22482 | CX142: 0
A143: 480 | B143: Marttila | C143: 1978 | D143: 20.75 | G143: 7328.40971 | H143: 19307.24749 | I143: 0 | J143: 6512.30449 | K143: 482.21131 | L143: 559.24165 | M143: 7553.75745 | N143: 5234.753 | O143: 3.58903 | P143: 50.77722 | Q143: 47.1861 | R143: 1.08485 | S143: 808.58573 | U143: 797.37275 | V143: 0 | X143: 11.21298 | Y143: 23.3352 | Z143: 0.04705 | AA143: -5.699 | AB143: 0 | AD143: 28.80213 | AF143: 4691.97772 | AI143: -618 | AL143: 2223.79903 | AN143: 3669.02239 | AQ143: 1930 | AR143: 8.11 | AU143: 1634.95117 | AV143: 6373.62266 | AW143: 0 | AX143: 2801.67848 | AY143: 305.83149 | AZ143: 543.26339 | BA143: 3650.77336 | BB143: 1767.333 | BC143: 24.35128 | BD143: 37.45378 | BE143: 10.43457 | BF143: 1.09283 | BG143: 675.67411 | BI143: 564.57573 | BJ143: 1.3827 | BL143: 112.48108 | BM143: 23.00004 | BN143: 0.00732 | BO143: -10.543 | BP143: 0 | BQ143: 124.9308 | BS143: 4820.6193 | BY143: 1833.55492 | CA143: 1623.3988 | CF143: 8.5 | CN143: -259.30721 | CO143: -1898.47981 | CP143: 327.3882 | CQ143: 264.32508 | CR143: 0 | CT143: -61.69216 | CU143: -693.57845 | CV143: 72.24 | CW143: 65.14 | CX143: 16.75787
A144: 481 | B144: Masku | C144: 9642 | D144: 20.75 | G144: 39066.73073 | H144: 89828.23252 | I144: -10.69294 | J144: 41894.49588 | K144: 2806.39747 | L144: 2135.12004 | M144: 46836.01339 | N144: 10718.78976 | O144: 8.79241 | P144: 350.31128 | Q144: 137.91112 | R144: 65.42672 | S144: 6513.57395 | U144: 5174.76129 | V144: 0 | X144: 1338.81266 | Y144: 0 | Z144: 64.53797 | AA144: 0 | AB144: -3.11842 | AD144: 1271.15627 | AF144: 5229.99949 | AI144: -6224 | AL144: 9014.0484 | AN144: 45836.81696 | AQ144: 9619 | AR144: 8.11 | AU144: 7051.1576 | AV144: 33578.05319 | AW144: 0 | AX144: 20257.36487 | AY144: 1847.93515 | AZ144: 2235.76422 | BA144: 24341.06424 | BB144: 6350.08329 | BC144: 29.56851 | BD144: 1059.17668 | BE144: 29.57503 | BF144: 13.45977 | BG144: 3150.75903 | BI144: 4012.59643 | BJ144: 50 | BL144: -811.8374 | BM144: 0 | BN144: 0 | BO144: 0 | BP144: 0 | BQ144: -811.8374 | BS144: 4493.57557 | BY144: 5449.40004 | CA144: 38331.53073 | CF144: 8.1 | CN144: -285.43952 | CO144: -7078.90993 | CP144: 181.51842 | CQ144: 1193.93288 | CR144: 175.93786 | CT144: -106.23026 | CU144: -3946.22029 | CV144: 5 | CW144: 1595.90699 | CX144: 160.93787
A145: 483 | B145: Merijärvi | C145: 1067 | D145: 22.5 | G145: 5232 | H145: 13215 | I145: -12 | J145: 2379.40784 | K145: 224.27291 | L145: 347.9513 | M145: 2951.63205 | N145: 4717 | O145: 2 | P145: 30 | Q145: 180 | R145: 140 | S145: -315 | U145: 547 | V145: 0 | X145: -862 | Y145: -2 | Z145: 1 | AA145: 0 | AB145: 0 | AD145: -865 | AF145: 963 | AI145: -513 | AL145: 3098 | AN145: 5942 | AQ145: 1055 | AR145: 9.86 | AU145: 1876 | AV145: 6099 | AW145: 26 | AX145: 1358.27902 | AY145: 135.50117 | AZ145: 340.8175 | BA145: 1834.59769 | BB145: 2068 | BC145: 1 | BD145: 121 | BE145: 123 | BF145: 7 | BG145: -299 | BI145: 354 | BJ145: 0 | BL145: -653 | BM145: 0 | BN145: 0 | BO145: 0 | BP145: 0 | BQ145: -653 | BS145: 289 | BY145: 2920 | CA145: 4267 | CF145: 10 | CN145: 19 | CO145: -1096 | CP145: 12 | CQ145: 17 | CR145: 2 | CT145: 7 | CU145: -112 | CV145: 23 | CW145: 238 | CX145: 2
A146: 484 | B146: Merikarvia | C146: 2967 | D146: 20.5 | G146: 12513.2417 | H146: 36031.88804 | I146: -5.59931 | J146: 9188.07094 | K146: 2178.13901 | L146: 1278.8415 | M146: 12645.05145 | N146: 11890.00978 | O146: 89.6603 | P146: 20.31285 | Q146: 88.78641 | R146: 25.71006 | S146: 1143.23938 | U146: 1653.67751 | V146: 0 | X146: -510.43813 | Y146: 0 | Z146: 0.88723 | AA146: -10.2867 | AB146: 0.08796 | AD146: -521.5241 | AF146: 5436.54125 | AI146: -2945 | AL146: 4050.14855 | AN146: 4183.69532 | AQ146: 2966 | AR146: 7.86 | AU146: 4525.43293 | AV146: 13933.50785 | AW146: 0.246 | AX146: 3968.72871 | AY146: 1457.53898 | AZ146: 1274.17691 | BA146: 6700.4446 | BB146: 2047.54125 | BC146: 113.07758 | BD146: 41.02216 | BE146: 54.70745 | BF146: 1.32011 | BG146: -534.40031 | BI146: 1557.59596 | BJ146: 0 | BL146: -2091.99627 | BM146: 1e-05 | BN146: 0 | BO146: -11.22 | BP146: 0 | BQ146: -2103.21626 | BS146: 3440.63974 | BY146: 1841.61604 | CA146: 3409.23322 | CF146: 7.9 | CN146: -317.95827 | CO146: -2287.95918 | CP146: 6.23229 | CQ146: 402.71561 | CR146: -5.66221 | CT146: 1.43333 | CU146: -2640.60318 | CV146: 14.99922 | CW146: 2.96481 | CX146: 4.05266
A147: 489 | B147: Miehikkälä | C147: 1791 | D147: 21.5 | G147: 14521.52089 | H147: 29267.59327 | I147: -0.74353 | J147: 5114.32505 | K147: 1070.0898 | L147: 519.78029 | M147: 6704.19514 | N147: 8531.26812 | O147: 27.22311 | P147: 51.0453 | Q147: 42.04196 | R147: -11.41386 | S147: 518.28097 | U147: 1539.91135 | V147: 0 | X147: -1021.63038 | Y147: 0 | Z147: 0 | AA147: -19.13 | AB147: 29.98692 | AD147: -1010.77346 | AF147: 4845.49574 | AI147: -1125 | AL147: 4461.77185 | AN147: 11379.97858 | AQ147: 1752 | AR147: 8.86 | AU147: 3482.23032 | AV147: 8452.63949 | AW147: -2.11297 | AX147: 2758.66892 | AY147: 555.76407 | AZ147: 541.86027 | BA147: 3856.29326 | BB147: 2084.02553 | BC147: 26.8994 | BD147: 268.86913 | BE147: 52.05442 | BF147: -12.64625 | BG147: 790.52759 | BI147: 1305.57725 | BJ147: 0 | BL147: -515.04966 | BM147: 0 | BN147: 0 | BO147: -18.81 | BP147: 26.64618 | BQ147: -507.21348 | BS147: 4580.59106 | BY147: 1487.21482 | CA147: 9033.64858 | CF147: 8.9 | CN147: -42.69174 | CO147: -1502.07393 | CP147: 47.85 | CQ147: 410.64774 | CR147: -0.22051 | CT147: -9.56495 | CU147: -2475.23364 | CV147: 9 | CW147: 39.97262 | CX147: -27.05
A148: 491 | B148: Mikkeli | C148: 51980 | D148: 22 | G148: 326928.0615 | H148: 661652.3998 | I148: 569.68335 | J148: 199948.2346 | K148: 23269.02986 | L148: 22719.51995 | M148: 245936.7844 | N148: 164074.849 | O148: 237.31221 | P148: 6144.4894 | Q148: 3518.67901 | R148: 2232.20297 | S148: 68842.6367 | U148: 55134.38461 | V148: -8087.38057 | X148: 5620.87152 | Y148: 0 | Z148: 1956.56705 | AA148: -1139.82603 | AB148: -268.70119 | AD148: 2255.77725 | AF148: 35547.20826 | AI148: -88306 | AL148: 73465.57086 | AN148: 601878.6181 | AQ148: 51919 | AR148: 9.36 | AU148: 165723.5444 | AV148: 276171.0161 | AW148: 1749.69684 | AX148: 109719.0106 | AY148: 14575.81345 | AZ148: 21898.91016 | BA148: 146193.7343 | BB148: 41016.615 | BC148: 819.756 | BD148: 12208.74317 | BE148: 6937.11658 | BF148: 369.60377 | BG148: 71103.46483 | BI148: 52235.41155 | BJ148: 4302.92684 | BL148: 23170.98012 | BM148: 0 | BN148: 1718.77715 | BO148: -1141.62461 | BP148: -106.40611 | BQ148: 20204.17225 | BS148: 55357.10008 | BY148: 28708.91012 | CA148: 501609.3665 | CF148: 9.4 | CN148: -1572.49653 | CO148: -66568.79741 | CP148: 2233.35668 | CQ148: 4562.1903 | CR148: -165.54397 | CT148: -14434.28511 | CU148: -55884.0558 | CV148: 3704.67282 | CW148: 2502.61354 | CX148: 7713.07244
A149: 494 | B149: Muhos | C149: 8882 | D149: 22 | G149: 35180.04837 | H149: 97138.75726 | I149: -53.20212 | J149: 29293.39366 | K149: 1497.63683 | L149: 4162.75398 | M149: 34953.78447 | N149: 31803.41293 | O149: 10.48745 | P149: 330.63865 | Q149: 46.0811 | R149: 26.39057 | S149: 4444.8257 | U149: 5533.49397 | V149: 0 | X149: -1088.66826 | Y149: 6.55963 | Z149: 7.41727 | AA149: -0.1799 | AB149: -6.22505 | AD149: -1095.93086 | AF149: -712.38132 | AI149: -12553 | AL149: 6616.81668 | AN149: 70480.6909 | AQ149: 8827 | AR149: 9.36 | AU149: 28333.24644 | AV149: 53510.71098 | AW149: 32.30892 | AX149: 15898.1431 | AY149: 981.04541 | AZ149: 4386.05857 | BA149: 21265.24708 | BB149: 11831.377 | BC149: 18.49421 | BD149: 634.59973 | BE149: 23.20143 | BF149: 5.19656 | BG149: 7353.36781 | BI149: 4590.70689 | BJ149: 0 | BL149: 2762.66091 | BM149: 20.6168 | BN149: 9.48314 | BO149: -0.05 | BP149: -18.56191 | BQ149: 2755.18266 | BS149: 2005.07202 | BY149: 4644.90809 | CA149: 53124.92737 | CF149: 9.4 | CN149: 20.1169 | CO149: -12155.25559 | CP149: 33.62668 | CQ149: 331.70816 | CR149: 0 | CT149: -164.21787 | CU149: -6802.98144 | CV149: 494.675 | CW149: 141.82161 | CX149: 3.3
A150: 495 | B150: Multia | C150: 1477 | D150: 22 | G150: 7309.32663 | H150: 18824.52623 | I150: 0.03822 | J150: 4419.7449 | K150: 1674.45056 | L150: 492.36872 | M150: 6586.56418 | N150: 5985.383 | O150: 1.68629 | P150: 84.03343 | Q150: 42.55419 | R150: 30.2485 | S150: 986.74435 | U150: 918.57494 | V150: 66.15365 | X150: 134.32306 | Y150: 45.49538 | Z150: 0 | AA150: 3.09673 | AB150: -8.09132 | AD150: 174.82385 | AF150: 1020.16794 | AI150: -1117 | AL150: 1270.80753 | AN150: 6545.17419 | AQ150: 1430 | AR150: 9.36 | AU150: 2958.99116 | AV150: 7313.82982 | AW150: 0.10234 | AX150: 2211.19129 | AY150: 965.88996 | AZ150: 514.08645 | BA150: 3691.1677 | BB150: 914.443 | BC150: 3.34163 | BD150: 89.64067 | BE150: 16.27084 | BF150: 45.07974 | BG150: 135.76644 | BI150: 674.69986 | BJ150: 0 | BL150: -538.93342 | BM150: 0.50143 | BN150: 0 | BO150: 2.83252 | BP150: -22.85544 | BQ150: -558.45491 | BS150: -72.14348 | BY150: 617.60305 | CA150: 3176.43611 | CF150: 9.8 | CN150: 267.04247 | CO150: -1365.14354 | CP150: 4.91516 | CQ150: 72.72248 | CR150: 2.29146 | CT150: -449.05318 | CU150: -543.30118 | CV150: 35.96272 | CW150: 133.29869 | CX150: -10.66243
A151: 498 | B151: Muonio | C151: 2281 | D151: 21.5 | G151: 9372.48131 | H151: 28816.7951 | I151: 0 | J151: 8026.95173 | K151: 1777.27162 | L151: 1221.37936 | M151: 11025.60271 | N151: 11151.31013 | O151: 2.08915 | P151: 54.35809 | Q151: 256.36031 | R151: 13.81745 | S151: 2922.87297 | U151: 1211.18954 | V151: 0.19474 | X151: 1711.87817 | Y151: 29.63394 | Z151: 0.082 | AA151: 7.47406 | AB151: 1.14124 | AD151: 1750.04541 | AF151: 4333.58334 | AI151: -1035 | AL151: 1450.267 | AN151: 8878.40948 | AQ151: 2325 | AR151: 8.86 | AU151: 5766.43675 | AV151: 13803.13612 | AW151: 0 | AX151: 4260.30107 | AY151: 1008.50836 | AZ151: 1236.88903 | BA151: 6505.69846 | BB151: 3800.756 | BC151: 14.60366 | BD151: 126.15972 | BE151: 14.29522 | BF151: 4.04373 | BG151: 2168.45052 | BI151: 1079.89729 | BJ151: -0.01427 | BL151: 1088.53896 | BM151: -485.27305 | BN151: 0 | BO151: 10.97306 | BP151: 0.1621 | BQ151: 614.40107 | BS151: 5375.01156 | BY151: 1023.443 | CA151: 4919.2484 | CF151: 8.9 | CN151: -101.79353 | CO151: -2387.55899 | CP151: 213.58476 | CQ151: 94.10781 | CR151: 20 | CT151: -62.064 | CU151: -728.77711 | CV151: 4.36654 | CW151: 66.53929 | CX151: 0
A152: 499 | B152: Mustasaari | C152: 19662 | D152: 20.75 | G152: 105045.0107 | H152: 224699.9897 | I152: 191.68418 | J152: 78332.89806 | K152: 5396.57751 | L152: 5144.9444 | M152: 88874.41997 | N152: 43502.823 | O152: 33.4011 | P152: 529.23083 | Q152: 465.32345 | R152: 109.7315 | S152: 12729.16679 | U152: 11294.93863 | V152: 0 | X152: 1434.22816 | Y152: 0 | Z152: 0 | AA152: -30.1202 | AB152: 41.83695 | AD152: 1445.94491 | AF152: 16735.9846 | AI152: -25028 | AL152: 7221.20587 | AN152: 116943.256 | AQ152: 19763 | AR152: 8.11 | AU152: 26917.59865 | AV152: 83719.00466 | AW152: 41.438 | AX152: 39599.35977 | AY152: 3219.9208 | AZ152: 5730.07853 | BA152: 48549.3591 | BB152: 24687.812 | BC152: 76.05652 | BD152: 1487.79274 | BE152: 130.94159 | BF152: 13.4336 | BG152: 15134.08815 | BI152: 10297.65816 | BJ152: 0 | BL152: 4836.42998 | BM152: 0 | BN152: 0 | BO152: 2.7209 | BP152: 17.90744 | BQ152: 4857.05812 | BS152: 21593.58397 | BY152: 2944.03776 | CA152: 104480.373 | CF152: 8.4 | CN152: -892.90103 | CO152: -19911.16922 | CP152: 198.53623 | CQ152: 1635.2928 | CR152: -385.072 | CT152: -182.14094 | CU152: -22408.54491 | CV152: 718.16786 | CW152: 153.6675 | CX152: -2942.46396
A153: 500 | B153: Muurame | C153: 10486 | D153: 19.5 | G153: 29713.8715 | H153: 86596.08326 | I153: -120.85445 | J153: 40865.13826 | K153: 3560.59621 | L153: 2575.65548 | M153: 47001.38995 | N153: 17753.98099 | O153: 25.13352 | P153: 357.51934 | Q153: 210.98379 | R153: 27.22411 | S153: 7603.67859 | U153: 8051.81524 | V153: 194.77917 | X153: -253.35748 | Y153: 1.8858 | Z153: 6.67443 | AA153: 156.53207 | AB153: 0.85297 | AD153: -100.76107 | AF153: 12151.33379 | AI153: -6824 | AL153: 3464.25536 | AN153: 40751.61278 | AQ153: 10551 | AR153: 6.86 | AU153: 12265.475 | AV153: 43445.7246 | AW153: -178.6387 | AX153: 18329.32771 | AY153: 2739.32762 | AZ153: 2766.26925 | BA153: 23834.92458 | BB153: 16208.52677 | BC153: 16.36288 | BD153: 1089.11034 | BE153: 112.63211 | BF153: 20.13723 | BG153: 7704.31047 | BI153: 6372.32378 | BJ153: -12.6 | BL153: 1319.38669 | BM153: -1.21049 | BN153: 2.8271 | BO153: -84.30217 | BP153: 1.23442 | BQ153: 1232.28135 | BS153: 12698.73612 | BY153: 3809.81312 | CA153: 40192.89455 | CF153: 6.9 | CN153: -1558.75417 | CO153: -7961.3619 | CP153: 159.27908 | CQ153: 1834.37696 | CR153: -0.07549 | CT153: -1507.88202 | CU153: -18182.29858 | CV153: 726.941 | CW153: 1368.0008 | CX153: 0
A154: 503 | B154: Mynämäki | C154: 7539 | D154: 21.25 | G154: 44391.19638 | H154: 90492.35964 | I154: -35.12881 | J154: 26799.42896 | K154: 1851.21212 | L154: 1843.66688 | M154: 30494.30796 | N154: 19615.595 | O154: 5.88463 | P154: 423.41845 | Q154: 212.36167 | R154: 65.55603 | S154: 3702.88271 | U154: 3980.88609 | V154: 0 | X154: -278.00338 | Y154: 7.7558 | Z154: 0 | AA154: 0 | AB154: 75.04733 | AD154: -195.20025 | AF154: -5183.78393 | AI154: -7888 | AL154: 7590.12206 | AN154: 51854.12447 | AQ154: 7515 | AR154: 8.61 | AU154: 7940.42923 | AV154: 25974.01561 | AW154: 0.13539 | AX154: 13935.41469 | AY154: 1186.92674 | AZ154: 1953.01877 | BA154: 17075.3602 | BB154: 4102.394 | BC154: 48.31362 | BD154: 1113.63446 | BE154: 142.54243 | BF154: 22.15963 | BG154: 2199.36517 | BI154: 2973.94405 | BJ154: 22.98 | BL154: -751.59888 | BM154: 0.15466 | BN154: 0 | BO154: 0 | BP154: -6.49054 | BQ154: -757.93476 | BS154: -5900.94703 | BY154: 2803.52113 | CA154: 42750.75802 | CF154: 9.1 | CN154: -459.4007 | CO154: -12275.78834 | CP154: 155.31465 | CQ154: 669.954 | CR154: 0 | CT154: 52.76201 | CU154: -5193.27956 | CV154: 0 | CW154: 1106.74613 | CX154: 0
A155: 504 | B155: Myrskylä | C155: 1764 | D155: 21.5 | G155: 9499.57556 | H155: 22107.8351 | I155: -9.14198 | J155: 5913.22923 | K155: 730.57089 | L155: 421.35273 | M155: 7065.15285 | N155: 5436.686 | O155: 9.0866 | P155: 38.66262 | Q155: 153.31215 | R155: 27.70362 | S155: -19.53016 | U155: 1090.96655 | V155: 0 | X155: -1110.49671 | Y155: 0 | Z155: -4e-05 | AA155: 0.21103 | AB155: -0.112 | AD155: -1110.39764 | AF155: 1719.3946 | AI155: -930 | AL155: 1176.76822 | AN155: 10249.12072 | AQ155: 1715 | AR155: 8.86 | AU155: 2356.65274 | AV155: 7080.12984 | AW155: -4.93802 | AX155: 3145.07566 | AY155: 416.63266 | AZ155: 428.18146 | BA155: 3989.88978 | BB155: 1106.739 | BC155: 100.38864 | BD155: 276.39551 | BE155: 115.8091 | BF155: 1.85676 | BG155: 306.15913 | BI155: 817.77624 | BJ155: 0 | BL155: -511.61711 | BM155: 0.36879 | BN155: -1.67161 | BO155: 0 | BP155: 0 | BQ155: -509.57671 | BS155: 1162.82065 | BY155: 581.51773 | CA155: 13097.039 | CF155: 9.9 | CN155: 150.7892 | CO155: -2325.61465 | CP155: 5.75531 | CQ155: 44.63019 | CR155: 2.44848 | CT155: 9.2613 | CU155: -3629.44211 | CV155: 114.26449 | CW155: 166.07546 | CX155: -155.7489
A156: 505 | B156: Mäntsälä | C156: 20912 | D156: 21 | G156: 153520.3052 | H156: 265894.2087 | I156: -49.98079 | J156: 84963.1195 | K156: 6239.52503 | L156: 8554.24309 | M156: 99756.88762 | N156: 35823.31913 | O156: 136.94755 | P156: 1111.17993 | Q156: 340.29728 | R156: 6589.08911 | S156: 15650.90609 | U156: 16389.5818 | V156: 0 | X156: -738.67571 | Y156: 0 | Z156: 62.88638 | AA156: 69.28636 | AB156: 126.67009 | AD156: -605.60564 | AF156: 33759.01971 | AI156: -22084 | AL156: 30996.32755 | AN156: 189585.5781 | AQ156: 20957 | AR156: 8.36 | AU156: 40811.01017 | AV156: 89635.29806 | AW156: 0 | AX156: 41631.46492 | AY156: 3998.66468 | AZ156: 9035.63438 | BA156: 54665.76398 | BB156: 18980.39958 | BC156: 216.14381 | BD156: 1640.78541 | BE156: 212.15568 | BF156: -0.74796 | BG156: 23331.26991 | BI156: 15715.81017 | BJ156: 0 | BL156: 7615.45974 | BM156: 4.01525 | BN156: 306.49195 | BO156: 56.52843 | BP156: 70.91391 | BQ156: 7440.42538 | BS156: 40860.21457 | BY156: 15318.91368 | CA156: 166033.9532 | CF156: 8.3 | CN156: 3093.58057 | CO156: -25769.30631 | CP156: 356.12116 | CQ156: 5627.23049 | CR156: -1118.55981 | CT156: -1343.93009 | CU156: -15402.35041 | CV156: 180 | CW156: 4073.96344 | CX156: -644.89369
A157: 508 | B157: Mänttä-Vilppula | C157: 9360 | D157: 22.5 | G157: 68233.75852 | H157: 140685.0603 | I157: 59.99964 | J157: 36442.69768 | K157: 5050.86527 | L157: 3014.02185 | M157: 44507.5848 | N157: 32564.78637 | O157: 38.51922 | P157: 436.75579 | Q157: 1050.20146 | R157: 240.40011 | S157: 5092.63379 | U157: 7518.17695 | V157: 0 | X157: -2425.54316 | Y157: 0.19733 | Z157: 114.52703 | AA157: -7.39311 | AB157: -214.15088 | AD157: -2761.41685 | AF157: -2591.87239 | AI157: -6566 | AL157: 11553.13771 | AN157: 63679.10781 | AQ157: 9271 | AR157: 9.86 | AU157: 17207.87887 | AV157: 42188.81989 | AW157: 74.17837 | AX157: 19171.84186 | AY157: 3486.52009 | AZ157: 3249.71634 | BA157: 25908.07829 | BB157: 7274.86806 | BC157: 30.76208 | BD157: 686.30123 | BE157: 296.60696 | BF157: 23.60449 | BG157: 7893.64702 | BI157: 5759.83839 | BJ157: 0 | BL157: 2133.80863 | BM157: 0.2114 | BN157: 49.32149 | BO157: 1.22392 | BP157: -39.42154 | BQ157: 2046.50092 | BS157: -2520.77383 | BY157: 6605.60176 | CA157: 39813.52793 | CF157: 9.9 | CN157: -501.17956 | CO157: -11349.97841 | CP157: 111.3041 | CQ157: 935.90822 | CR157: 56.50227 | CT157: -744.84757 | CU157: -9397.73325 | CV157: 72.42 | CW157: 93.68905 | CX157: 178.61678
A158: 507 | B158: Mäntyharju | C158: 5564 | D158: 20.75 | G158: 40432.58161 | H158: 81288.25092 | I158: 2.1969 | J158: 18318.53936 | K158: 3793.34555 | L158: 2926.87319 | M158: 25038.7581 | N158: 20351.734 | O158: 10.43968 | P158: 254.16918 | Q158: 496.69361 | R158: 54.30639 | S158: 4668.93107 | U158: 2594.99353 | V158: 0 | X158: 2073.93754 | Y158: 0 | Z158: 0 | AA158: -55.816 | AB158: 1.86514 | AD158: 2019.98668 | AF158: 8933.74573 | AI158: -6316 | AL158: 8008.46471 | AN158: 33043.6273 | AQ158: 5522 | AR158: 8.11 | AU158: 6826.79476 | AV158: 19981.52519 | AW158: 0 | AX158: 8701.6943 | AY158: 2209.23101 | AZ158: 3043.72402 | BA158: 13954.64933 | BB158: 1872.986 | BC158: 17.32971 | BD158: 191.33624 | BE158: 412.63744 | BF158: 24.8167 | BG158: 2820.36827 | BI158: 2381.43501 | BJ158: 34.55458 | BL158: 473.48784 | BM158: 0 | BN158: 0 | BO158: -41.124 | BP158: 0 | BQ158: 432.36384 | BS158: 8373.88059 | BY158: 6201.83002 | CA158: 22206.75586 | CF158: 8.1 | CN158: -821.50571 | CO158: -2685.66339 | CP158: 4.56254 | CQ158: 28.57408 | CR158: -0.25754 | CT158: 470.74155 | CU158: -1333.36188 | CV158: 0 | CW158: 90.48609 | CX158: -14.3416
A159: 529 | B159: Naantali | C159: 19850 | D159: 19 | G159: 96084.55362 | H159: 193863.875 | I159: -20.66311 | J159: 84772.94852 | K159: 13743.38963 | L159: 7418.39941 | M159: 105934.7376 | N159: 21116.363 | O159: 16.87594 | P159: 1108.30585 | Q159: 1198.11987 | R159: -994.79458 | S159: 30352.60062 | U159: 30604.22401 | V159: 0 | X159: -251.62339 | Y159: 0 | Z159: 176.36862 | AA159: -275.6898 | AB159: -6.80127 | AD159: -710.48308 | AF159: 87439.0816 | AI159: -17011 | AL159: 18287.24236 | AN159: 77841.91592 | AQ159: 19999 | AR159: 6.36 | AU159: 54719.4998 | AV159: 87707.9612 | AW159: 6.14714 | AX159: 37322.37952 | AY159: 8315.81292 | AZ159: 7658.10973 | BA159: 53296.30217 | BB159: 8914.743 | BC159: 592.52879 | BD159: 1560.41018 | BE159: 833.16313 | BF159: 2.93246 | BG159: 29091.08019 | BI159: 19256.24312 | BJ159: 0 | BL159: 9834.83707 | BM159: 0 | BN159: 202.95912 | BO159: -192.56471 | BP159: 2.07767 | BQ159: 9441.39091 | BS159: 96769.18521 | BY159: 16481.8585 | CA159: 68414.3678 | CF159: 6.4 | CN159: -2501.32494 | CO159: -53207.30481 | CP159: 230.77073 | CQ159: 1709.07066 | CR159: -39.68263 | CT159: -1337.74759 | CU159: -30823.34841 | CV159: 51.60427 | CW159: 2387.62087 | CX159: 0
A160: 531 | B160: Nakkila | C160: 5072 | D160: 21.75 | G160: 32587.57809 | H160: 67677.31948 | I160: 0 | J160: 19162.59981 | K160: 994.22226 | L160: 1614.61985 | M160: 21771.44192 | N160: 15976.7856 | O160: 9.5658 | P160: 81.38033 | Q160: 135.67934 | R160: 58.0262 | S160: 2664.32474 | U160: 2093.25456 | V160: 0 | X160: 571.07018 | Y160: 0 | Z160: 18.71736 | AA160: -4.24187 | AB160: 0.67721 | AD160: 548.78816 | AF160: 4830.54621 | AI160: -1741 | AL160: 9491.48928 | AN160: 11105.53572 | AQ160: 4966 | AR160: 9.11 | AU160: 4814.34194 | AV160: 18698.41629 | AW160: 0 | AX160: 9937.73746 | AY160: 701.79596 | AZ160: 1659.12922 | BA160: 12298.66264 | BB160: 4758.81717 | BC160: 160.01128 | BD160: 152.55205 | BE160: 136.79157 | BF160: 10.70907 | BG160: 3306.94719 | BI160: 1796.32632 | BJ160: 0 | BL160: 1510.62087 | BM160: 0 | BN160: 12.23702 | BO160: 10.60779 | BP160: 2.87655 | BQ160: 1511.86819 | BS160: 6353.7097 | BY160: 6829.17967 | CA160: 5862.69961 | CF160: 9.1 | CN160: -354.13858 | CO160: -2014.45971 | CP160: 10.5444 | CQ160: 482.92139 | CR160: 6 | CT160: 118.25695 | CU160: -1390.533 | CV160: 22.5 | CW160: 1308.85912 | CX160: 0
A161: 535 | B161: Nivala | C161: 10419 | D161: 22 | G161: 75811.594 | H161: 151140.427 | I161: -75.392 | J161: 31490.37194 | K161: 2306.94801 | L161: 2529.45329 | M161: 36326.77324 | N161: 48703.254 | O161: 87.681 | P161: 878.776 | Q161: 521.576 | R161: 1623.27 | S161: 7455.585 | U161: 8550.002 | V161: 0 | X161: -1094.417 | Y161: -16.13 | Z161: 116.109 | AA161: -115.352 | AB161: -1.088 | AD161: -1343.096 | AF161: 24300.535 | AI161: -8291 | AL161: 35930.572 | AN161: 130563.641 | AQ161: 10454 | AR161: 9.36 | AU161: 19450.90211 | AV161: 52915.87188 | AW161: 3.32086 | AX161: 16812.58986 | AY161: 1608.61452 | AZ161: 2754.22073 | BA161: 21175.42511 | BB161: 21359.52568 | BC161: 273.33701 | BD161: 2371.15283 | BE161: 1165.31049 | BF161: -382.72908 | BG161: 8194.93777 | BI161: 8245.32728 | BJ161: 0 | BL161: -50.38951 | BM161: 4.77581 | BN161: 3.54898 | BO161: 39.17838 | BP161: 1.78453 | BQ161: -8.19977 | BS161: 24204.05909 | BY161: 29868.04177 | CA161: 128523.0516 | CF161: 9.9 | CN161: -155.004 | CO161: -24586.682 | CP161: 20.453 | CQ161: 675.601 | CR161: 0 | CT161: -40.42039 | CU161: -23699.20264 | CV161: 278.91341 | CW161: 67.26864 | CX161: 0
A162: 536 | B162: Nokia | C162: 35346 | D162: 21 | G162: 119841.6398 | H162: 303258.1966 | I162: 187.47273 | J162: 142744.4687 | K162: 11660.55622 | L162: 10032.56234 | M162: 164437.5873 | N162: 52313.243 | O162: 75.11512 | P162: 1161.02524 | Q162: 1048.98519 | R162: 894.0933 | S162: 32333.08475 | U162: 21535.5117 | V162: 0 | X162: 10797.57305 | Y162: 0.75884 | Z162: 437.07171 | AA162: -13.27838 | AB162: -358.25866 | AD162: 9989.72313 | AF162: 38475.94813 | AI162: -27141 | AL162: 48734.77246 | AN162: 172447.1738 | AQ162: 35647 | AR162: 8.36 | AU162: 39819.27909 | AV162: 120412.225 | AW162: -40.47366 | AX162: 74334.89178 | AY162: 6861.40234 | AZ162: 10525.23727 | BA162: 91721.53139 | BB162: 19453.826 | BC162: 311.08277 | BD162: 1552.93498 | BE162: 1523.26803 | BF162: 314.74832 | BG162: 30250.32544 | BI162: 19367.57849 | BJ162: 0 | BL162: 10882.74695 | BM162: 0.42408 | BN162: 265.62626 | BO162: 31.8 | BP162: 0.83977 | BQ162: 10650.18454 | BS162: 45344.81442 | BY162: 20988.90784 | CA162: 133426.7704 | CF162: 8.4 | CN162: -10481.11854 | CO162: -35021.68908 | CP162: 1675.69813 | CQ162: 13070.5014 | CR162: -24.96621 | CT162: -3672.33855 | CU162: -35111.4326 | CV162: 932.58361 | CW162: 3750.35785 | CX162: -17.95
A163: 538 | B163: Nousiainen | C163: 4644 | D163: 21.5 | G163: 23514.59706 | H163: 52120.88669 | I163: -7.10296 | J163: 17998.71989 | K163: 584.83696 | L163: 934.08023 | M163: 19517.63708 | N163: 11099.569 | O163: 3.33723 | P163: 120.35889 | Q163: 80.79965 | R163: 80.88884 | S163: 1886.70264 | U163: 2277.52078 | V163: 0 | X163: -390.81814 | Y163: 0 | Z163: 0 | AA163: 0 | AB163: -1.89535 | AD163: -392.71349 | AF163: 1993.84828 | AI163: -3223 | AL163: 3608.80016 | AN163: 22525.08894 | AQ163: 4695 | AR163: 8.86 | AU163: 4539.70612 | AV163: 19067.9977 | AW163: 0 | AX163: 9289.49566 | AY163: 360.99196 | AZ163: 916.89092 | BA163: 10567.37854 | BB163: 5672.449 | BC163: 22.84449 | BD163: 329.25121 | BE163: 16.12533 | BF163: 54.52476 | BG163: 1366.72981 | BI163: 2343.02513 | BJ163: 0 | BL163: -976.29532 | BM163: 0 | BN163: 0 | BO163: 0 | BP163: 0 | BQ163: -976.29532 | BS163: 965.06371 | BY163: 11042.98311 | CA163: 29754.70167 | CF163: 9.1 | CN163: -137.67584 | CO163: -3956.90424 | CP163: 79.26419 | CQ163: 175.39131 | CR163: 0 | CT163: -35.05274 | CU163: -3325.899 | CV163: 0 | CW163: 890.03365 | CX163: 0
A164: 541 | B164: Nurmes | C164: 9243 | D164: 21 | G164: 76814.67801 | H164: 147212.1637 | I164: -7.58103 | J164: 26474.48524 | K164: 4911.87964 | L164: 2209.3397 | M164: 33595.70458 | N164: 43650.48 | O164: 134.96346 | P164: 347.87837 | Q164: 578.41331 | R164: 199.52857 | S164: 6953.70019 | U164: 7994.72546 | V164: 0 | X164: -1041.02527 | Y164: 18.93852 | Z164: 28.28853 | AA164: -5.84573 | AB164: 26.95479 | AD164: -1029.26622 | AF164: 28519.29909 | AI164: -11449 | AL164: 11335.70151 | AN164: 36966.34456 | AQ164: 9130 | AR164: 8.36 | AU164: 21729.52039 | AV164: 44637.02346 | AW164: 0 | AX164: 13034.50296 | AY164: 3021.56075 | AZ164: 2249.78791 | BA164: 18305.85162 | BB164: 13534.293 | BC164: 248.19467 | BD164: 463.82642 | BE164: 641.27619 | BF164: 28.05198 | BG164: 9276.45215 | BI164: 8167.28633 | BJ164: 0 | BL164: 1109.16582 | BM164: -56.89826 | BN164: 68.09529 | BO164: 0 | BP164: 21.91195 | BQ164: 1006.08422 | BS164: 28842.55617 | BY164: 8961.65099 | CA164: 24225.0101 | CF164: 8.9 | CN164: 1223.96632 | CO164: -11217.43626 | CP164: 537.44168 | CQ164: 209.03625 | CR164: 71.23481 | CT164: -567.29452 | CU164: -6229.67885 | CV164: 9.8 | CW164: 685.39409 | CX164: -21.00912
A165: 543 | B165: Nurmijärvi | C165: 44458 | D165: 19.75 | G165: 285996.2257 | H165: 515064.5289 | I165: -97.27825 | J165: 196529.8661 | K165: 13385.02376 | L165: 12667.07903 | M165: 222581.9689 | N165: 49749.82358 | O165: 81.99021 | P165: 1640.25502 | Q165: 925.18457 | R165: 8711.25919 | S165: 33821.87161 | U165: 38255.75644 | V165: 0 | X165: -4433.88483 | Y165: 0 | Z165: 656.59851 | AA165: -499.26759 | AB165: 50.11249 | AD165: -5539.63844 | AF165: 97268.54755 | AI165: -69118 | AL165: 78221.63086 | AN165: 351434.7957 | AQ165: 44785 | AR165: 7.11 | AU165: 97890.31955 | AV165: 180173.2033 | AW165: 0 | AX165: 92194.75237 | AY165: 9382.32468 | AZ165: 13630.50123 | BA165: 115207.5783 | BB165: 35501.53423 | BC165: 158.62057 | BD165: 5145.36502 | BE165: 1520.1008 | BF165: 272.09159 | BG165: 64687.49354 | BI165: 46504.75561 | BJ165: -225.44319 | BL165: 17957.29474 | BM165: 7.75647 | BN165: 2394.12941 | BO165: -5.68946 | BP165: 0.5572 | BQ165: 15565.78954 | BS165: 112778.3451 | BY165: 42044.91095 | CA165: 292798.2623 | CF165: 7.5 | CN165: 2873.2777 | CO165: -57065.8928 | CP165: 2680.92799 | CQ165: 7435.80511 | CR165: 0.31934 | CT165: -16907.54777 | CU165: -60502.41821 | CV165: 1023.0981 | CW165: 26021.22312 | CX165: 2.52
A166: 545 | B166: Närpiö | C166: 9584 | D166: 21 | G166: 61541.668 | H166: 124105.473 | I166: 0 | J166: 28768.76724 | K166: 5008.82231 | L166: 4216.89571 | M166: 37994.48526 | N166: 37642.655 | O166: 338.621 | P166: 978.747 | Q166: 659.835 | R166: 747.02 | S166: 12346.024 | U166: 6697.792 | V166: 0 | X166: 5648.232 | Y166: 0 | Z166: 113.822 | AA166: 4.846 | AB166: 10.468 | AD166: 5549.724 | AF166: 38901.28814 | AI166: -17077 | AL166: 34915.738 | AN166: 85932.43248 | AQ166: 9621 | AR166: 8.36 | AU166: 26919.717 | AV166: 52741.153 | AW166: 0 | AX166: 15162.13609 | AY166: 3152.71733 | AZ166: 4615.46779 | BA166: 22930.32121 | BB166: 16113.304 | BC166: 327.937 | BD166: 1390.815 | BE166: 536.919 | BF166: 5.746 | BG166: 12690.484 | BI166: 6845.918 | BJ166: 0 | BL166: 5844.566 | BM166: -3000 | BN166: 42.37 | BO166: -3.382 | BP166: 1.436 | BQ166: 2800.25 | BS166: 42252.76008 | BY166: 30587.506 | CA166: 74766.62135 | CF166: 8.4 | CN166: -515.159 | CO166: -21546.813 | CP166: 412.749 | CQ166: 1899.664 | CR166: -26.122 | CT166: -231.943 | CU166: -12873.111 | CV166: 294.599 | CW166: 244.727 | CX166: 33.995
A167: 560 | B167: Orimattila | C167: 15735 | D167: 21.25 | G167: 88903.7144 | H167: 188520.6921 | I167: -45.38969 | J167: 55607.73384 | K167: 4501.64032 | L167: 4584.2097 | M167: 64693.58386 | N167: 43406.76495 | O167: -28.65771 | P167: 491.14756 | Q167: 1382.07856 | R167: 70.6586 | S167: 9054.86881 | U167: 9923.30192 | V167: -24.0808 | X167: -892.51391 | Y167: -0.9193 | Z167: 5.44436 | AA167: 68.4837 | AB167: 19.1373 | AD167: -811.25658 | AF167: 24150.48431 | AI167: -9230 | AL167: 16598.83018 | AN167: 90976.92475 | AQ167: 15669 | AR167: 8.61 | AU167: 16650.62493 | AV167: 58124.68943 | AW167: -13.59012 | AX167: 28015.62663 | AY167: 2853.40953 | AZ167: 4694.66019 | BA167: 35563.69635 | BB167: 17951.34271 | BC167: 382.52086 | BD167: 1005.2392 | BE167: 764.59041 | BF167: -29.98558 | BG167: 12007.4533 | BI167: 11945.62132 | BJ167: -3.95828 | BL167: 57.8737 | BM167: -1.83574 | BN167: -7.94503 | BO167: 67.5716 | BP167: -79.71484 | BQ167: 51.83974 | BS167: 23659.82813 | BY167: 9163.11477 | CA167: 74760.39911 | CF167: 8.7 | CN167: 1255.61434 | CO167: -23050.80303 | CP167: 10.84019 | CQ167: 1636.47113 | CR167: 26.7101 | CT167: -135.68237 | CU167: -19156.20085 | CV167: 264.56565 | CW167: 11855.72866 | CX167: -233.64528
A168: 561 | B168: Oripää | C168: 1317 | D168: 21 | G168: 4658.08363 | H168: 13822.98056 | I168: -2.33613 | J168: 3958.69714 | K168: 809.85072 | L168: 386.33865 | M168: 5154.88651 | N168: 4728.87299 | O168: 8.39678 | P168: 57.97533 | Q168: 7.78397 | R168: 3.1312 | S168: 671.60066 | U168: 651.88317 | V168: 0 | X168: 19.71749 | Y168: 15.20255 | Z168: 0.14114 | AA168: 0 | AB168: -0.68129 | AD168: 34.09761 | AF168: 1320.67983 | AI168: -285 | AL168: 413.87071 | AN168: 3954.76687 | AQ168: 1315 | AR168: 8.36 | AU168: 1237.94486 | AV168: 5783.72503 | AW168: 0 | AX168: 2060.80044 | AY168: 535.27705 | AZ168: 378.58326 | BA168: 2974.66075 | BB168: 2287.81163 | BC168: 4.21114 | BD168: 105.7912 | BE168: 0.95976 | BF168: 9.65121 | BG168: 606.4207 | BI168: 518.33236 | BJ168: 354.14805 | BL168: 442.23639 | BM168: 15.13692 | BN168: 0.02195 | BO168: 0 | BP168: 0 | BQ168: 457.35136 | BS168: 1746.7636 | BY168: 327.66032 | CA168: 2808.85612 | CF168: 8.4 | CN168: -2.11716 | CO168: -1226.58652 | CP168: 21.46587 | CQ168: 20.28413 | CR168: 0 | CT168: 0.33673 | CU168: -533.20148 | CV168: 0 | CW168: 0.6 | CX168: -0.592
A169: 562 | B169: Orivesi | C169: 8935 | D169: 22 | G169: 35215.69099 | H169: 94753.5562 | I169: 154.67064 | J169: 32446.46899 | K169: 3028.2012 | L169: 3022.08554 | M169: 38496.75573 | N169: 26825.004 | O169: 69.61245 | P169: 245.69004 | Q169: 248.9632 | R169: 155.36164 | S169: 5768.62374 | U169: 4517.19747 | V169: 0 | X169: 1251.42627 | Y169: 0.26399 | Z169: 87.68627 | AA169: 92.13432 | AB169: -141.31934 | AD169: 1114.81897 | AF169: 6899.51506 | AI169: -5836 | AL169: 7781.64291 | AN169: 33909.10481 | AQ169: 8839 | AR169: 9.36 | AU169: 8011.7132 | AV169: 30205.34495 | AW169: 113.81834 | AX169: 16796.60455 | AY169: 1902.19278 | AZ169: 3167.32323 | BA169: 21866.12056 | BB169: 5528.757 | BC169: 197.00811 | BD169: 517.22148 | BE169: 163.26758 | BF169: 131.01281 | BG169: 4936.17117 | BI169: 3640.53284 | BJ169: 0 | BL169: 1295.63833 | BM169: 0.1309 | BN169: 10.75149 | BO169: 17.12044 | BP169: 2.85578 | BQ169: 1304.99396 | BS169: 6695.26716 | BY169: 4259.16792 | CA169: 24834.65779 | CF169: 9.4 | CN169: -303.10163 | CO169: -6731.10071 | CP169: 25 | CQ169: 522.34652 | CR169: -232.37067 | CT169: -86.27919 | CU169: -5588.66005 | CV169: 62.37835 | CW169: 102.07918 | CX169: -1005.38867
A170: 563 | B170: Oulainen | C170: 7025 | D170: 22 | G170: 34739.01451 | H170: 90777.33109 | I170: -90.64714 | J170: 23516.83539 | K170: 2115.8296 | L170: 2117.42125 | M170: 27750.08624 | N170: 29089.351 | O170: 7.20713 | P170: 209.97349 | Q170: 1195.88697 | R170: 1896.48015 | S170: -192.88602 | U170: 4635.53507 | V170: 0 | X170: -4828.42109 | Y170: -17.34593 | Z170: 47.72343 | AA170: -2.94081 | AB170: -3.83275 | AD170: -4900.26401 | AF170: 3027.9292 | AI170: -5750 | AL170: 22346.13699 | AN170: 62845.12144 | AQ170: 6978 | AR170: 9.36 | AU170: 13651.70626 | AV170: 33498.9287 | AW170: 0 | AX170: 12499.18717 | AY170: 1673.35153 | AZ170: 2235.4278 | BA170: 16407.9665 | BB170: 7550.381 | BC170: 109.85444 | BD170: 1387.02133 | BE170: 1544.8605 | BF170: 728.09455 | BG170: 3650.72412 | BI170: 3911.38792 | BJ170: 0 | BL170: -260.6638 | BM170: 3.94057 | BN170: 0 | BO170: -8.31412 | BP170: 0 | BQ170: -265.03735 | BS170: 2619.37971 | BY170: 22378.41307 | CA170: 61652.05759 | CF170: 10 | CN170: 164.92424 | CO170: -10246.67196 | CP170: 148.28807 | CQ170: 333.22628 | CR170: 0 | CT170: 9.34257 | CU170: -15114.42535 | CV170: 140.37907 | CW170: 11.97531 | CX170: 0
A171: 564 | B171: Oulu | C171: 211848 | D171: 20.5 | G171: 981895.7252 | H171: 1958484.326 | I171: -8840.64725 | J171: 814986.3267 | K171: 75372.36765 | L171: 64552.47439 | M171: 954911.1687 | N171: 404212.1666 | O171: 4122.34205 | P171: 14991.77324 | Q171: 27382.84579 | R171: 35166.60637 | S171: 351033.215 | U171: 179331.7457 | V171: 0 | X171: 171701.4693 | Y171: 111.46841 | Z171: 7044.28334 | AA171: -3207.96383 | AB171: -511.99794 | AD171: 161048.6926 | AF171: 1041102.76 | AI171: -339009 | AL171: 356696.8661 | AN171: 1270887.63 | AQ171: 214633 | AR171: 7.86 | AU171: 576599.6161 | AV171: 1044591.37 | AW171: -1140.41771 | AX171: 404010.1147 | AY171: 52067.90366 | AZ171: 68247.57109 | BA171: 524325.5894 | BB171: 178659.9547 | BC171: 6053.89752 | BD171: 18909.41159 | BE171: 26370.56742 | BF171: 3126.5232 | BG171: 241622.7558 | BI171: 155439.1377 | BJ171: 0 | BL171: 86183.61813 | BM171: 16.43791 | BN171: 849.15903 | BO171: -11018.85967 | BP171: 131.66881 | BQ171: 74463.70615 | BS171: 1114719.923 | BY171: 352242.9981 | CA171: 924874.4076 | CF171: 7.9 | CN171: -129265.8306 | CO171: -320656.6214 | CP171: 4662.85617 | CQ171: 202486.9116 | CR171: 93.34427 | CT171: 15930.05196 | CU171: -281387.0013 | CV171: 5544.78183 | CW171: 9920.26923 | CX171: 35.38769
A172: 309 | B172: Outokumpu | C172: 6457 | D172: 21.5 | G172: 52076.29527 | H172: 101180.2727 | I172: -5.65327 | J172: 19180.18967 | K172: 1792.45269 | L172: 1576.09291 | M172: 22548.73527 | N172: 26482.48185 | O172: 143.95517 | P172: 227.26151 | Q172: 1324.62703 | R172: 5973.00925 | S172: -4810.10218 | U172: 3998.34919 | V172: 0 | X172: -8808.45137 | Y172: 10.84956 | Z172: 0.0138 | AA172: -6.41126 | AB172: 84.40781 | AD172: -8719.61906 | AF172: 18457.88519 | AI172: -6493 | AL172: 61417.84795 | AN172: 31351.07844 | AQ172: 6409 | AR172: 8.86 | AU172: 10755.46566 | AV172: 26552.65873 | AW172: -132.36426 | AX172: 10044.13649 | AY172: 1073.29493 | AZ172: 1666.14076 | BA172: 12783.57218 | BB172: 6741.48285 | BC172: 326.58449 | BD172: 707.80532 | BE172: 4277.56197 | BF172: 2613.20144 | BG172: 4878.6374 | BI172: 3219.43305 | BJ172: 0 | BL172: 1659.20435 | BM172: -43.30048 | BN172: 0 | BO172: -3.49812 | BP172: -6.31846 | BQ172: 1606.08729 | BS172: 19935.25784 | BY172: 61933.59574 | CA172: 27745.48348 | CF172: 8.9 | CN172: 2271.91859 | CO172: -4932.52693 | CP172: 169.79834 | CQ172: 1739.92578 | CR172: 6.72581 | CT172: -1286.11519 | CU172: -8011.16422 | CV172: 247.37657 | CW172: 76.39737 | CX172: 88.72146
A173: 576 | B173: Padasjoki | C173: 2750 | D173: 21 | G173: 24780.04438 | H173: 45189.37685 | I173: -10.14936 | J173: 8386.25964 | K173: 1745.04085 | L173: 1549.29634 | M173: 11680.59683 | N173: 12009.50817 | O173: 178.86107 | P173: 68.94321 | Q173: 113.761 | R173: 161.50241 | S173: 3300.71868 | U173: 1798.58813 | V173: -5.04975 | X173: 1497.0808 | Y173: -0.19278 | Z173: 5.19329 | AA173: 0.63899 | AB173: -8.08184 | AD173: 1484.25187 | AF173: 15615.94979 | AI173: -2130 | AL173: 11015.37413 | AN173: 10215.3306 | AQ173: 2726 | AR173: 8.36 | AU173: 3620.4227 | AV173: 11272.38643 | AW173: 0 | AX173: 3674.57519 | AY173: 993.56796 | AZ173: 1590.32367 | BA173: 6258.46682 | BB173: 2911.62754 | BC173: 110.9469 | BD173: 137.14149 | BE173: 123.43177 | BF173: 31.00958 | BG173: 1578.61073 | BI173: 1346.55888 | BJ173: -0.83005 | BL173: 231.22179 | BM173: -0.38496 | BN173: 4.8657 | BO173: 0 | BP173: 0.9999 | BQ173: 226.97103 | BS173: 15750.75278 | BY173: 8157.40657 | CA173: 5943.3886 | CF173: 8.4 | CN173: 519.8765 | CO173: -1842.58561 | CP173: 1.9557 | CQ173: 160.9402 | CR173: -10.58612 | CT173: -12.60662 | CU173: -2428.43228 | CV173: 15.09555 | CW173: 503.12668 | CX173: 155.6
A174: 577 | B174: Paimio | C174: 11138 | D174: 20.75 | G174: 36717.11132 | H174: 106556.3912 | I174: -14.17361 | J174: 43553.4115 | K174: 2919.96487 | L174: 2509.55452 | M174: 48982.93089 | N174: 26352.733 | O174: 22.97977 | P174: 599.77767 | Q174: 122.2826 | R174: 165.32035 | S174: 4862.37478 | U174: 5833.46926 | V174: 0 | X174: -971.09448 | Y174: 53.82903 | Z174: 186.68124 | AA174: 156.82374 | AB174: 181.50392 | AD174: -765.61903 | AF174: 1366.33968 | AI174: -9430 | AL174: 12056.876 | AN174: 64009.73167 | AQ174: 11236 | AR174: 8.11 | AU174: 14442.863 | AV174: 48295.913 | AW174: 0 | AX174: 21881.36677 | AY174: 2272.68788 | AZ174: 2480.64036 | BA174: 26634.69501 | BB174: 16082.573 | BC174: 284.093 | BD174: 1369.888 | BE174: 99.924 | BF174: 11.342 | BG174: 7867.005 | BI174: 5008.88148 | BJ174: -156.93822 | BL174: 2701.1853 | BM174: 0 | BN174: 87.016 | BO174: -43.532 | BP174: 1.096 | BQ174: 2571.7333 | BS174: 4376.676 | BY174: 9345.609 | CA174: 57314.014 | CF174: 8.2 | CN174: -153.979 | CO174: -9349.302 | CP174: 383.707 | CQ174: 2266.843 | CR174: 0 | CT174: 112.79 | CU174: -8328.602 | CV174: 427 | CW174: 1716.061 | CX174: 1574.588
A175: 578 | B175: Paltamo | C175: 3100 | D175: 22 | G175: 27482.41105 | H175: 50862.2398 | I175: 11.60249 | J175: 10255.62237 | K175: 1025.05776 | L175: 1361.21504 | M175: 12641.89517 | N175: 13733.826 | O175: 0.16657 | P175: 308.78109 | Q175: -183.03246 | R175: 119.59341 | S175: 2357.63199 | U175: 2392.82612 | V175: 483.5619 | X175: 448.36777 | Y175: 1.86738 | Z175: 0 | AA175: -50.9702 | AB175: 0 | AD175: 399.26494 | AF175: -60.01407 | AI175: -4738 | AL175: 10547.37299 | AN175: 31145.61921 | AQ175: 3037 | AR175: 9.36 | AU175: 5476.00836 | AV175: 13352.66435 | AW175: 2.16651 | AX175: 4897.11231 | AY175: 567.958 | AZ175: 1411.44634 | BA175: 6876.51665 | BB175: 2215.63 | BC175: 21.04375 | BD175: 213.22432 | BE175: 119.45015 | BF175: 6.44163 | BG175: 1097.16694 | BI175: 1621.80619 | BJ175: 0 | BL175: -524.63925 | BM175: 2.67662 | BN175: 0 | BO175: -23.3994 | BP175: 0 | BQ175: -545.36203 | BS175: -638.26674 | BY175: 6302.51294 | CA175: 20101.0715 | CF175: 9.4 | CN175: -449.74018 | CO175: -2714.9571 | CP175: 1.0547 | CQ175: 241.80816 | CR175: 0 | CT175: 2.32932 | CU175: -712.28737 | CV175: 0 | CW175: 83.48581 | CX175: 0
A176: 445 | B176: Parainen | C176: 14991 | D176: 20.5 | G176: 55743.9509 | H176: 160005.8305 | I176: -32.46091 | J176: 63195.66046 | K176: 4041.57478 | L176: 10017.16456 | M176: 77254.3998 | N176: 35250.792 | O176: 8.58809 | P176: 1018.32913 | Q176: 253.91282 | R176: 48.74344 | S176: 7406.27967 | U176: 7141.25261 | V176: 0 | X176: 265.02706 | Y176: 0 | Z176: 90.15666 | AA176: 9.53909 | AB176: 1.6816 | AD176: 186.09109 | AF176: 14341.00518 | AI176: -4580 | AL176: 5213.80069 | AN176: 55038.39407 | AQ176: 14999 | AR176: 7.86 | AU176: 21077.39961 | AV176: 64426.71766 | AW176: -3.52337 | AX176: 30541.31767 | AY176: 2627.62246 | AZ176: 10310.44218 | BA176: 43479.38231 | BB176: 10717.475 | BC176: 19.98664 | BD176: 913.85838 | BE176: 1102.78219 | BF176: 57.86927 | BG176: 10995.05707 | BI176: 8059.26921 | BJ176: 0 | BL176: 2935.78786 | BM176: 0 | BN176: 80.73764 | BO176: -0.1806 | BP176: 7.86717 | BQ176: 2862.73679 | BS176: 16855.60686 | BY176: 3947.35856 | CA176: 47713.58399 | CF176: 7.9 | CN176: -197.73542 | CO176: -20016.34981 | CP176: 358.57478 | CQ176: 528.00129 | CR176: -2.5 | CT176: 45.76609 | CU176: -13211.54206 | CV176: 75.81658 | CW176: 306.61001 | CX176: -31.78988
A177: 580 | B177: Parikkala | C177: 4438 | D177: 21.5 | G177: 29536.09544 | H177: 64438.85825 | I177: 6.72812 | J177: 14236.58808 | K177: 1938.092 | L177: 1373.32008 | M177: 17548.00016 | N177: 19538.40922 | O177: 1.77201 | P177: 54.95148 | Q177: 67.33636 | R177: 140.37028 | S177: 2060.29592 | U177: 2381.11503 | V177: 5.27627 | X177: -315.54284 | Y177: -3.59951 | Z177: 0.27917 | AA177: -1.16494 | AB177: -0.26344 | AD177: -320.8499 | AF177: 18208.56445 | AI177: -2113 | AL177: 6679.05792 | AN177: 13550.74865 | AQ177: 4366 | AR177: 8.86 | AU177: 5431.41678 | AV177: 16447.76152 | AW177: -0.66518 | AX177: 7051.42162 | AY177: 1086.9561 | AZ177: 1379.05498 | BA177: 9517.4327 | BB177: 3417.62301 | BC177: 8.99749 | BD177: 164.096 | BE177: 76.47661 | BF177: 6.06512 | BG177: 1829.22683 | BI177: 2004.18731 | BJ177: 4.22911 | BL177: -170.73137 | BM177: 0.68698 | BN177: 0.46014 | BO177: 0 | BP177: 0.78167 | BQ177: -169.72286 | BS177: 16293.40894 | BY177: 4476.44672 | CA177: 17038.1844 | CF177: 9.5 | CN177: -525.52494 | CO177: -6879.90462 | CP177: 0 | CQ177: 248.19818 | CR177: -51.04986 | CT177: -141.94872 | CU177: -9178.43773 | CV177: 1547.385 | CW177: 252.70684 | CX177: 0
A178: 581 | B178: Parkano | C178: 6240 | D178: 22 | G178: 42297.93087 | H178: 89597.18683 | I178: 41.45294 | J178: 20328.67388 | K178: 3486.00341 | L178: 2042.24728 | M178: 25856.92457 | N178: 24543.32035 | O178: 13.6699 | P178: 240.74015 | Q178: 218.89178 | R178: 811.49366 | S178: 2279.66273 | U178: 3707.65701 | V178: 0 | X178: -1427.99429 | Y178: 0.21258 | Z178: 75.4489 | AA178: 5.21425 | AB178: -106.44826 | AD178: -1604.46462 | AF178: 10803.97756 | AI178: -5554 | AL178: 7701.11013 | AN178: 34190.7985 | AQ178: 6123 | AR178: 9.36 | AU178: 10478.36224 | AV178: 24316.33916 | AW178: 166.37349 | AX178: 10446.52675 | AY178: 2341.64508 | AZ178: 2129.52965 | BA178: 14917.70148 | BB178: 5295.689 | BC178: 44.72 | BD178: 448.17305 | BE178: 102.89009 | BF178: 624.18269 | BG178: 5570.89681 | BI178: 3915.59209 | BJ178: 0 | BL178: 1655.30472 | BM178: 0.1099 | BN178: 10.83785 | BO178: 0 | BP178: -30.94002 | BQ178: 1613.63676 | BS178: 11254.40462 | BY178: 3361.55298 | CA178: 21051.93415 | CF178: 9.4 | CN178: -258.81153 | CO178: -3722.4891 | CP178: 156.714 | CQ178: 517.72827 | CR178: -85.22133 | CT178: -127.24573 | CU178: -2696.19336 | CV178: 0 | CW178: 233.68184 | CX178: -1e-05
A179: 599 | B179: Pedersören kunta | C179: 11206 | D179: 21 | G179: 42946.89199 | H179: 109522.6227 | I179: 32.361 | J179: 34743.70676 | K179: 4547.18708 | L179: 2546.35616 | M179: 41837.25 | N179: 32036.555 | O179: 180.22161 | P179: 273.01518 | Q179: 235.42893 | R179: 211.13661 | S179: 7261.93404 | U179: 4533.78897 | V179: 14.17455 | X179: 2742.31962 | Y179: -433.64289 | Z179: 1.296 | AA179: 24.6412 | AB179: -0.6381 | AD179: 2331.38383 | AF179: 18992.9992 | AI179: -8299 | AL179: 10132.97 | AN179: 51588.74843 | AQ179: 11225 | AR179: 8.36 | AU179: 24599.08516 | AV179: 56432.67665 | AW179: -4.56546 | AX179: 18412.35793 | AY179: 3048.85034 | AZ179: 2581.76947 | BA179: 24042.97774 | BB179: 15287.4 | BC179: 246.98912 | BD179: 998.68037 | BE179: 408.62085 | BF179: 380.44387 | BG179: 6768.70678 | BI179: 4474.636 | BJ179: 12.56859 | BL179: 2306.63937 | BM179: 71.733 | BN179: 16.657 | BO179: 6.523 | BP179: -0.54255 | BQ179: 2367.69582 | BS179: 21423.64703 | BY179: 8668.426 | CA179: 59464.45754 | CF179: 9 | CN179: -619.066 | CO179: -12949.032 | CP179: 19.257 | CQ179: 1023.547 | CR179: 125.351 | CT179: 71.556 | CU179: -17190.197 | CV179: 437.311 | CW179: 199.427 | CX179: 81.543
A180: 583 | B180: Pelkosenniemi | C180: 947 | D180: 22 | G180: 7052.2697 | H180: 15512.7859 | I180: 48.07541 | J180: 3231.5331 | K180: 647.99885 | L180: 1993.33349 | M180: 5872.86544 | N180: 5178.528 | O180: 22.49033 | P180: 168.14204 | Q180: 173.5922 | R180: 5.53177 | S180: 2661.36137 | U180: 642.84014 | V180: 0 | X180: 2018.52123 | Y180: 0.3566 | Z180: 0.04657 | AA180: -6.1176 | AB180: -9.6252 | AD180: 2003.08846 | AF180: 5376.38008 | AI180: -1043 | AL180: 1632.93535 | AN180: 9411.72118 | AQ180: 912 | AR180: 9.36 | AU180: 2476.50688 | AV180: 5570.76231 | AW180: 56.41412 | AX180: 1729.16013 | AY180: 282.50885 | AZ180: 2155.64846 | BA180: 4167.31744 | BB180: 172.985 | BC180: 20.99128 | BD180: 157.6488 | BE180: 30.14524 | BF180: 3.87426 | BG180: 1172.1849 | BI180: 682.02244 | BJ180: -0.00516 | BL180: 490.1573 | BM180: -2.063 | BN180: 1.19054 | BO180: -2.3578 | BP180: 2.85657 | BQ180: 487.40253 | BS180: 5910.05979 | BY180: 2147.32383 | CA180: 8119.21569 | CF180: 9.1 | CN180: -42.42754 | CO180: -4012.13254 | CP180: 32.4139 | CQ180: 32.9518 | CR180: 89.82936 | CT180: -171.25074 | CU180: -1233.99642 | CV180: 442.01367 | CW180: 289.60138 | CX180: 227.57736
A181: 854 | B181: Pello | C181: 3262 | D181: 21.25 | G181: 16588.86634 | H181: 46451.30601 | I181: 0 | J181: 10852.33328 | K181: 1328.80232 | L181: 987.49295 | M181: 13168.62855 | N181: 18481.57117 | O181: 7.50803 | P181: 78.91595 | Q181: 755.49725 | R181: 22.58981 | S181: 2449.25957 | U181: 2109.04938 | V181: 0.31009 | X181: 340.52028 | Y181: 3.59502 | Z181: 42.19147 | AA181: 0 | AB181: 5.18151 | AD181: 307.10534 | AF181: 2035.43887 | AI181: -1182 | AL181: 3221.10534 | AN181: 13590.15765 | AQ181: 3253 | AR181: 8.61 | AU181: 7273.281 | AV181: 15876.484 | AW181: 0 | AX181: 5345.87517 | AY181: 854.65507 | AZ181: 1029.13801 | BA181: 7229.66825 | BB181: 3560.792 | BC181: 18.81 | BD181: 209.943 | BE181: 372.82 | BF181: 7.835 | BG181: 2361.109 | BI181: 1615.904 | BJ181: -6.445 | BL181: 738.76 | BM181: 3.432 | BN181: 0 | BO181: 0 | BP181: 0 | BQ181: 742.192 | BS181: 2914.505 | BY181: 1765.328 | CA181: 5961.387 | CF181: 9 | CN181: -90.02571 | CO181: -4254.43767 | CP181: 331.68048 | CQ181: 145.27437 | CR181: 22.584 | CT181: -58.417 | CU181: -800.223 | CV181: 59.048 | CW181: 67.078 | CX181: 150.171
A182: 584 | B182: Perho | C182: 2653 | D182: 21.5 | G182: 15918.76445 | H182: 38228.10461 | I182: 0.94212 | J182: 6745.25746 | K182: 1070.28001 | L182: 878.99528 | M182: 8694.53275 | N182: 15013.96772 | O182: 236.43278 | P182: 147.02984 | Q182: 204.25939 | R182: 670.2288 | S182: 999.90367 | U182: 1945.40681 | V182: 0 | X182: -945.50314 | Y182: 315.88941 | Z182: 3.47338 | AA182: 0 | AB182: -4.3488 | AD182: -637.43591 | AF182: 5578.05248 | AI182: -1676 | AL182: 9000.10302 | AN182: 20262.45712 | AQ182: 2578 | AR182: 8.86 | AU182: 3526.71189 | AV182: 14212.09401 | AW182: 6.09287 | AX182: 3432.85733 | AY182: 664.82074 | AZ182: 929.03193 | BA182: 5026.71 | BB182: 7090.24793 | BC182: 163.02767 | BD182: 340.70924 | BE182: 493.14043 | BF182: 139.39966 | BG182: 1590.14357 | BI182: 1758.77725 | BJ182: 0 | BL182: -168.63368 | BM182: 9.97541 | BN182: 0.40138 | BO182: 0 | BP182: 5.76651 | BQ182: -153.29314 | BS182: 5458.08069 | BY182: 9410.23565 | CA182: 20839.17545 | CF182: 9.3 | CN182: -65.36247 | CO182: -1901.0586 | CP182: 94.79454 | CQ182: 232.20013 | CR182: 6.76 | CT182: -13.58368 | CU182: -2721.23773 | CV182: 230.80803 | CW182: 11.26894 | CX182: 3.5
A183: 588 | B183: Pertunmaa | C183: 1600 | D183: 21.5 | G183: 12709.23116 | H183: 26284.88393 | I183: 0.42794 | J183: 4557.39639 | K183: 1209.67045 | L183: 966.76797 | M183: 6733.83481 | N183: 6494.27086 | O183: 19.06616 | P183: 64.46412 | Q183: 139.3352 | R183: 13.1194 | S183: -273.54459 | U183: 781.50232 | V183: 726.10101 | X183: -328.9459 | Y183: 0 | Z183: 0 | AA183: 13.05666 | AB183: 0.15154 | AD183: -315.7377 | AF183: -3209.27465 | AI183: -898 | AL183: 1350.43135 | AN183: 11179.23368 | AQ183: 1577 | AR183: 8.86 | AU183: 2894.11888 | AV183: 6664.89359 | AW183: 0 | AX183: 2518.74289 | AY183: 659.63386 | AZ183: 988.40862 | BA183: 4166.78537 | BB183: -141.58 | BC183: 10.432 | BD183: 281.77378 | BE183: 92.61357 | BF183: 0.7981 | BG183: 66.92796 | BI183: 488.35091 | BJ183: 973.02018 | BL183: 551.59723 | BM183: 0 | BN183: -1.11065 | BO183: -0.83 | BP183: 0.26089 | BQ183: 552.13877 | BS183: -2873.54405 | BY183: 1496.32836 | CA183: 8400.04591 | CF183: 8.9 | CN183: -235.13339 | CO183: -562.44356 | CP183: 0 | CQ183: 124.83345 | CR183: 47.38227 | CT183: -1019.89411 | CU183: -36.0229 | CV183: 0.02098 | CW183: 1011.18393 | CX183: 0
A184: 592 | B184: Petäjävesi | C184: 3651 | D184: 21.75 | G184: 13726.70446 | H184: 39675.17373 | I184: 0 | J184: 11878.29334 | K184: 1860.42589 | L184: 1085.84165 | M184: 14824.56088 | N184: 12267.2175 | O184: 25.41076 | P184: 246.6567 | Q184: 271.02669 | R184: 428.20492 | S184: 764.88494 | U184: 2061.04871 | V184: 149.06623 | X184: -1147.09754 | Y184: -103.27042 | Z184: 0 | AA184: 0 | AB184: 0 | AD184: -1250.36796 | AF184: 2993.10449 | AI184: -3354 | AL184: 6019.51958 | AN184: 30088.53687 | AQ184: 3596 | AR184: 9.11 | AU184: 4516.76518 | AV184: 16760.00565 | AW184: 0 | AX184: 6495.49071 | AY184: 916.11176 | AZ184: 1144.09225 | BA184: 8555.69472 | BB184: 5970.08156 | BC184: 9.09746 | BD184: 730.94647 | BE184: 550.77864 | BF184: 187.99936 | BG184: 1923.46608 | BI184: 1576.22789 | BJ184: 0 | BL184: 347.23819 | BM184: 10.7214 | BN184: 0 | BO184: -143.8557 | BP184: 0 | BQ184: 214.10389 | BS184: 3111.37635 | BY184: 6376.15729 | CA184: 22543.46671 | CF184: 9.9 | CN184: -439.87237 | CO184: -1832.10547 | CP184: 599.11588 | CQ184: 79.88393 | CR184: 30.96 | CT184: -102.54425 | CU184: -1211.81426 | CV184: 49.31873 | CW184: 164.73022 | CX184: -89.64
A185: 593 | B185: Pieksämäki | C185: 17077 | D185: 22 | G185: 88017.77774 | H185: 208262.1099 | I185: 83.1578 | J185: 60757.96816 | K185: 7285.54035 | L185: 4799.52048 | M185: 72843.02899 | N185: 55291.566 | O185: 167.39448 | P185: 655.80807 | Q185: 1142.8443 | R185: 88.10916 | S185: 8288.62432 | U185: 10046.12716 | V185: 0 | X185: -1757.50284 | Y185: -55 | Z185: 10.64064 | AA185: 111.7944 | AB185: -31.51346 | AD185: -1742.86254 | AF185: 4865.4747 | AI185: -19548 | AL185: 12426.86328 | AN185: 113532.7865 | AQ185: 17050 | AR185: 9.36 | AU185: 29975.21549 | AV185: 63513.56111 | AW185: 76.7394 | AX185: 31387.67839 | AY185: 4174.03984 | AZ185: 5055.30763 | BA185: 40617.02586 | BB185: 5584.99571 | BC185: 198.10671 | BD185: 1803.34849 | BE185: 1017.77024 | BF185: 87.58924 | BG185: 11789.59506 | BI185: 8535.38437 | BJ185: 0 | BL185: 3254.21069 | BM185: -55 | BN185: 27.03174 | BO185: 118.21024 | BP185: 132.91725 | BQ185: 3423.30645 | BS185: 6078.93254 | BY185: 9379.52967 | CA185: 98104.51319 | CF185: 9.4 | CN185: -1940.00801 | CO185: -14239.63151 | CP185: 2068.5451 | CQ185: 555.02469 | CR185: -5.84995 | CT185: 2049.48095 | CU185: -8481.32701 | CV185: 321.08617 | CW185: 390.64966 | CX185: 5
A186: 595 | B186: Pielavesi | C186: 4140 | D186: 21.75 | G186: 22202.66372 | H186: 57212.43153 | I186: 45.08482 | J186: 11317.68936 | K186: 2546.42262 | L186: 1250.34178 | M186: 15114.45376 | N186: 24499.70522 | O186: 14.01602 | P186: 181.57273 | Q186: 714.85535 | R186: 20.08464 | S186: 5149.61856 | U186: 3670.81208 | V186: -5.70213 | X186: 1473.10435 | Y186: 2.02607 | Z186: 2.19107 | AA186: -26.41424 | AB186: -1.53019 | AD186: 1444.99492 | AF186: 6514.87426 | AI186: -1940 | AL186: 12789.13445 | AN186: 22949.85693 | AQ186: 4073 | AR186: 9.11 | AU186: 5618.80953 | AV186: 19031.56592 | AW186: 0 | AX186: 5457.35165 | AY186: 1443.48614 | AZ186: 1226.77774 | BA186: 8127.61553 | BB186: 7102.28178 | BC186: 205.43835 | BD186: 293.79014 | BE186: 767.35538 | BF186: 1.55206 | BG186: 2465.53645 | BI186: 1739.0601 | BJ186: 25.58364 | BL186: 752.05999 | BM186: 49.97335 | BN186: 0.08883 | BO186: 0 | BP186: 0 | BQ186: 801.94451 | BS186: 6765.65938 | BY186: 11222.8853 | CA186: 11668.52987 | CF186: 9.1 | CN186: -253.9122 | CO186: -4234.92689 | CP186: 8.42345 | CQ186: 342.92608 | CR186: 1.0937 | CT186: 564.32284 | CU186: -944.38613 | CV186: 11.49537 | CW186: 110.84313 | CX186: 0.10126
A187: 598 | B187: Pietarsaari | C187: 19207 | D187: 21.25 | G187: 111348.741 | H187: 232179.525 | I187: 13629.736 | J187: 73783.373 | K187: 11920.459 | L187: 6924.54 | M187: 92628.372 | N187: 50229.854 | O187: 141.91 | P187: 1225.374 | Q187: 132.331 | R187: 1194.149 | S187: 33511.896 | U187: 13023.153 | V187: 40.259 | X187: 20529.002 | Y187: 58.692 | Z187: 0 | AA187: -1087.608 | AB187: -13.831 | AD187: 19486.255 | AF187: 109518.862 | AI187: -15175 | AL187: 20708 | AN187: 149336.576 | AQ187: 19475 | AR187: 8.61 | AU187: 65168.019 | AV187: 108414.409 | AW187: 8215.389 | AX187: 37568.32558 | AY187: 8236.6881 | AZ187: 7589.28667 | BA187: 53394.30035 | BB187: 8796.04 | BC187: 0 | BD187: 0 | BE187: 2168.04 | BF187: 6983.307 | BG187: 22344.072 | BI187: 12108.88 | BJ187: 0 | BL187: 10235.192 | BM187: 60.705 | BN187: 222.01 | BO187: -11.38 | BP187: -97.251 | BQ187: 9965.256 | BS187: 120254.803 | BY187: 9857 | CA187: 158960.589 | CF187: 9 | CN187: -14354 | CO187: -30916 | CP187: 432 | CQ187: 509 | CR187: 623 | CT187: -9192.959 | CU187: -9086.164 | CV187: 411.375 | CW187: 229.453 | CX187: -3627.092
A188: 601 | B188: Pihtipudas | C188: 3786 | D188: 21 | G188: 22954.47666 | H188: 53777.50317 | I188: 0 | J188: 10729.70804 | K188: 2848.54534 | L188: 1154.46881 | M188: 14732.72219 | N188: 20438.17511 | O188: 103.35794 | P188: 267.19648 | Q188: 231.76805 | R188: 327.19298 | S188: 4052.46424 | U188: 3301.08949 | V188: 224.04037 | X188: 975.41512 | Y188: 66.4829 | Z188: 0 | AA188: 0 | AB188: 0 | AD188: 1041.89802 | AF188: 8640.32039 | AI188: -5230 | AL188: 12632.57009 | AN188: 36013.81918 | AQ188: 3739 | AR188: 8.36 | AU188: 7887.99003 | AV188: 19630.6715 | AW188: 0 | AX188: 5214.039 | AY188: 1988.143 | AZ188: 1189.082 | BA188: 8391.264 | BB188: 7430.66217 | BC188: 59.46009 | BD188: 624.38196 | BE188: 54.35698 | BF188: 62.78991 | BG188: 3467.72682 | BI188: 2357.53781 | BJ188: 0 | BL188: 1110.18901 | BM188: 46.55929 | BN188: 0 | BO188: 0 | BP188: 0 | BQ188: 1156.7483 | BS188: 10457.57031 | BY188: 9129.52459 | CA188: 20351.153 | CF188: 8.4 | CN188: -48.93737 | CO188: -2171.15861 | CP188: 40.59783 | CQ188: 125.82304 | CR188: -1865.22425 | CT188: -4.86566 | CU188: -2334.20021 | CV188: 131.9402 | CW188: 258.63117 | CX188: 0
A189: 604 | B189: Pirkkala | C189: 20405 | D189: 20.5 | G189: 55881.27064 | H189: 171569.9667 | I189: 55.35018 | J189: 97222.61531 | K189: 8702.76028 | L189: 5996.48248 | M189: 111921.8581 | N189: 19545.307 | O189: 11.20424 | P189: 992.57493 | Q189: 427.41509 | R189: 175.16177 | S189: 15077.96931 | U189: 11344.54881 | V189: 0 | X189: 3733.4205 | Y189: 0.29358 | Z189: 55.45399 | AA189: -3.73161 | AB189: -7.61806 | AD189: 3666.91042 | AF189: 57018.67004 | AI189: -11257 | AL189: 9919.16381 | AN189: 74333.55065 | AQ189: 20763 | AR189: 7.86 | AU189: 13015.53083 | AV189: 71962.3289 | AW189: 0 | AX189: 48351.16438 | AY189: 6620.9989 | AZ189: 6930.93958 | BA189: 61903.10286 | BB189: 16175.627 | BC189: 13.50622 | BD189: 1510.66691 | BE189: 438.38664 | BF189: 12.84364 | BG189: 18042.76694 | BI189: 10623.3924 | BJ189: 0 | BL189: 7419.37454 | BM189: 0.1995 | BN189: 0 | BO189: 0 | BP189: 85.56773 | BQ189: 7505.14177 | BS189: 63459.24163 | BY189: 4288.56461 | CA189: 65425.00002 | CF189: 7.9 | CN189: -3627.06287 | CO189: -21355.85039 | CP189: 0 | CQ189: 4176.6772 | CR189: 1.85867 | CT189: -5 | CU189: -17425.43609 | CV189: 0 | CW189: 16.04 | CX189: 0
A190: 607 | B190: Polvijärvi | C190: 4084 | D190: 20.25 | G190: 40298.75284 | H190: 68510.00742 | I190: 0 | J190: 10183.7462 | K190: 1942.24375 | L190: 935.82246 | M190: 13061.81241 | N190: 16815.353 | O190: 33.43033 | P190: 78.50872 | Q190: 270.08311 | R190: 89.00186 | S190: 1801.91369 | U190: 2418.2494 | V190: 0 | X190: -616.33571 | Y190: 656.84336 | Z190: 0.01035 | AA190: -3.27009 | AB190: 6.56961 | AD190: 43.79682 | AF190: 3215.18075 | AI190: -3872 | AL190: 6785.89728 | AN190: 13083.8026 | AQ190: 4064 | AR190: 7.61 | AU190: 5971.965 | AV190: 16090.206 | AW190: 0 | AX190: 4532.39342 | AY190: 1318.46026 | AZ190: 938.85615 | BA190: 6789.70983 | BB190: 3628.433 | BC190: 20.39 | BD190: 161.499 | BE190: 278.458 | BF190: 12.735 | BG190: 424.516 | BI190: 1799.817 | BJ190: 0 | BL190: -1375.301 | BM190: 672.32 | BN190: 0 | BO190: 0 | BP190: 0 | BQ190: -702.981 | BS190: 11105.475 | BY190: 1965.642 | CA190: 10007.798 | CF190: 8.5 | CN190: 184.07534 | CO190: -3829.29024 | CP190: 31.33433 | CQ190: 78.89968 | CR190: -200.20568 | CT190: -1211.821 | CU190: -9048.386 | CV190: 2743.035 | CW190: 46.473 | CX190: 0
A191: 608 | B191: Pomarkku | C191: 1980 | D191: 21.5 | G191: 12292.82656 | H191: 27778.85133 | I191: -0.29146 | J191: 6037.42772 | K191: 925.51328 | L191: 563.25016 | M191: 7526.19116 | N191: 8949.80504 | O191: 1.96516 | P191: 56.11143 | Q191: 19.99989 | R191: 11.77677 | S191: 933.52903 | U191: 719.17707 | V191: 0 | X191: 214.35196 | Y191: 0 | Z191: 0.57164 | AA191: -6.64656 | AB191: 1.24447 | AD191: 208.37823 | AF191: 3314.5303 | AI191: -937 | AL191: 1253.69829 | AN191: 6760.95844 | AQ191: 1943 | AR191: 8.86 | AU191: 2045.23259 | AV191: 8187.98187 | AW191: -20.10661 | AX191: 3185.48105 | AY191: 539.15467 | AZ191: 547.41957 | BA191: 4272.05529 | BB191: 2724.35889 | BC191: 1.01413 | BD191: 86.20877 | BE191: 16.61408 | BF191: 8.32487 | BG191: 745.69333 | BI191: 708.32021 | BJ191: 0 | BL191: 37.37312 | BM191: 0 | BN191: 0 | BO191: 2.4438 | BP191: 0.41741 | BQ191: 40.23433 | BS191: 3393.00131 | BY191: 991.69037 | CA191: 7033.73596 | CF191: 9.9 | CN191: -22.49928 | CO191: -2721.17509 | CP191: 19.0155 | CQ191: 120.03873 | CR191: 3.69439 | CT191: -25.14548 | CU191: -2144.22646 | CV191: 0 | CW191: 70.3189 | CX191: -13.84159
A192: 609 | B192: Pori | C192: 83205 | D192: 21 | G192: 454810.3972 | H192: 982685.8063 | I192: 3280.73607 | J192: 308217.9533 | K192: 26174.82058 | L192: 26029.67158 | M192: 360422.4455 | N192: 264302.0053 | O192: 654.60752 | P192: 6162.27221 | Q192: 3336.68083 | R192: 855.92073 | S192: 94439.95005 | U192: 72802.26115 | V192: 0 | X192: 21637.6889 | Y192: -10.27478 | Z192: 1156.04847 | AA192: -6065.16201 | AB192: -375.92107 | AD192: 14030.28257 | AF192: 94099.95674 | AI192: -118085 | AL192: 81769.33265 | AN192: 635249.4883 | AQ192: 83106 | AR192: 8.36 | AU192: 257663.4314 | AV192: 465407.7448 | AW192: 1098.38845 | AX192: 154748.1067 | AY192: 18852.85548 | AZ192: 27101.56931 | BA192: 200702.5315 | BB192: 106884.7662 | BC192: 1999.8339 | BD192: 16508.79935 | BE192: 3623.98953 | BF192: 41.14066 | BG192: 87413.38747 | BI192: 64076.71559 | BJ192: -1710.548 | BL192: 21626.12388 | BM192: 197.60577 | BN192: 2819.24415 | BO192: -1535.78797 | BP192: 60.72365 | BQ192: 17529.42118 | BS192: 110323.9036 | BY192: 41558.43011 | CA192: 548867.0735 | CF192: 8.4 | CN192: -12632.76918 | CO192: -117253.8551 | CP192: 4492.25353 | CQ192: 20881.06813 | CR192: -6.86764 | CT192: -1627.71293 | CU192: -100841.5877 | CV192: 2777.65906 | CW192: 10031.67251 | CX192: -0.12239
A193: 611 | B193: Pornainen | C193: 5011 | D193: 20.5 | G193: 31870.8039 | H193: 60657.1915 | I193: -10.94731 | J193: 20855.66453 | K193: 760.18889 | L193: 1259.39517 | M193: 22875.24859 | N193: 7380.83862 | O193: 0.75811 | P193: 66.49983 | Q193: 81.82559 | R193: 62.22422 | S193: 1412.61195 | U193: 2105.37786 | V193: -277.2061 | X193: -969.97201 | Y193: 0.67751 | Z193: 0.31556 | AA193: -0.54546 | AB193: 0.51209 | AD193: -969.64343 | AF193: 11811.05828 | AI193: -2341 | AL193: 3600.92177 | AN193: 8467.79705 | AQ193: 4973 | AR193: 7.86 | AU193: 3337.49926 | AV193: 17771.119 | AW193: 0 | AX193: 10148.44789 | AY193: 535.07206 | AZ193: 1293.46422 | BA193: 11976.98417 | BB193: 5426.16371 | BC193: 0.13205 | BD193: 135.02546 | BE193: 27.66908 | BF193: 36.98324 | BG193: 2825.32057 | BI193: 1920.1497 | BJ193: -46.17723 | BL193: 858.99364 | BM193: 3.09045 | BN193: 0 | BO193: 0 | BP193: 0 | BQ193: 862.08409 | BS193: 12671.01303 | BY193: 1487.0109 | CA193: 5136.374 | CF193: 7.9 | CN193: -127.35554 | CO193: -2934.86874 | CP193: 64.54778 | CQ193: 195.79925 | CR193: -2.04025 | CT193: 227.18432 | CU193: -2034.53702 | CV193: 0 | CW193: 152.55245 | CX193: 0.88201
A194: 638 | B194: Porvoo | C194: 51232 | D194: 19.75 | G194: 325511.6209 | H194: 598242.8794 | I194: -446.20637 | J194: 223930.8807 | K194: 74349.64516 | L194: 18200.69465 | M194: 316481.2205 | N194: 66951.865 | O194: 99.73097 | P194: 2733.91147 | Q194: 2176.85118 | R194: 7315.87409 | S194: 102482.4172 | U194: 60909.90663 | V194: 0 | X194: 41572.51056 | Y194: -14216.41167 | Z194: 93.29744 | AA194: -617.61098 | AB194: -693.61507 | AD194: 25951.5754 | AF194: 169382.8563 | AI194: -65049 | AL194: 127474.1421 | AN194: 290836.9792 | AQ194: 51289 | AR194: 7.11 | AU194: 192350.4753 | AV194: 306649.0115 | AW194: 56.48054 | AX194: 101297.853 | AY194: 32268.83397 | AZ194: 19030.68911 | BA194: 152597.376 | BB194: 47344.763 | BC194: 1160.24468 | BD194: 5962.70472 | BE194: 1343.02229 | BF194: 676.07574 | BG194: 81564.56985 | BI194: 46811.6988 | BJ194: 0 | BL194: 34752.87105 | BM194: -2161.67489 | BN194: 0 | BO194: -2713.44833 | BP194: -515.36579 | BQ194: 29362.38204 | BS194: 200210.6932 | BY194: 121551.2516 | CA194: 229974.5427 | CF194: 7.1 | CN194: -4071.64556 | CO194: -72421.58443 | CP194: 620.40768 | CQ194: 28527.45361 | CR194: 551.70687 | CT194: 3568.0959 | CU194: -87520.06395 | CV194: 0 | CW194: 23364.91904 | CX194: 103.62236
A195: 614 | B195: Posio | C195: 2999 | D195: 21.75 | G195: 19346.53465 | H195: 47597.71324 | I195: 0 | J195: 8454.58377 | K195: 1157.78513 | L195: 1373.47952 | M195: 10985.84842 | N195: 18579.076 | O195: 0.87671 | P195: 331.59592 | Q195: 613.52973 | R195: 359.72428 | S195: 1236.83207 | U195: 2043.82062 | V195: 0.26665 | X195: -806.7219 | Y195: 1.52256 | Z195: -19.7678 | AA195: 0 | AB195: 2.41072 | AD195: -783.02082 | AF195: 3865.29617 | AI195: -2179 | AL195: 8941.72475 | AN195: 19788.02845 | AQ195: 2923 | AR195: 9.11 | AU195: 5881.10682 | AV195: 13916.45824 | AW195: 0 | AX195: 4532.25283 | AY195: 735.30291 | AZ195: 1543.05732 | BA195: 6810.61306 | BB195: 3627.705 | BC195: 57.16317 | BD195: 483.19119 | BE195: 131.47852 | BF195: 453.63198 | BG195: 1654.78516 | BI195: 1665.24269 | BJ195: 205.39647 | BL195: 194.93894 | BM195: 0 | BN195: 39.17402 | BO195: 0 | BP195: 0 | BQ195: 155.76492 | BS195: 3768.17612 | BY195: 7042.25532 | CA195: 12285.95654 | CF195: 9.1 | CN195: -148.41563 | CO195: -3969.62453 | CP195: 148.18919 | CQ195: 68.36754 | CR195: 0 | CT195: -33.19289 | CU195: -1112.85769 | CV195: 47.5 | CW195: 60 | CX195: 8.3
A196: 615 | B196: Pudasjärvi | C196: 7603 | D196: 21 | G196: 65481.39843 | H196: 126343.2867 | I196: -88.54776 | J196: 20255.00325 | K196: 4322.51086 | L196: 2671.54571 | M196: 27249.05982 | N196: 39996.338 | O196: 34.65491 | P196: 657.68917 | Q196: 772.59334 | R196: 742.30728 | S196: 5702.21362 | U196: 7692.80121 | V196: 0 | X196: -1990.58759 | Y196: 309.907 | Z196: 0 | AA196: 0 | AB196: -16.02126 | AD196: -1696.70185 | AF196: 3517.86787 | AI196: -15817 | AL196: 22793.31758 | AN196: 85934.60169 | AQ196: 7479 | AR196: 8.36 | AU196: 14574.68013 | AV196: 42597.91974 | AW196: 5.34293 | AX196: 9793.70566 | AY196: 2630.5071 | AZ196: 2767.41143 | BA196: 15191.62419 | BB196: 15240.769 | BC196: 41.2069 | BD196: 1644.27268 | BE196: 1120.13694 | BF196: 580.14296 | BG196: 1351.42471 | BI196: 6452.11934 | BJ196: 0 | BL196: -5100.69463 | BM196: 570.53704 | BN196: 0 | BO196: 0 | BP196: 110.72318 | BQ196: -4419.43441 | BS196: -988.92007 | BY196: 15660.35021 | CA196: 69040.6343 | CF196: 9 | CN196: -141.0657 | CO196: -12267.27232 | CP196: 1405.94406 | CQ196: 285.27189 | CR196: 0 | CT196: -56.82266 | CU196: -9192.03395 | CV196: 1784.84749 | CW196: 454.28801 | CX196: 0
A197: 616 | B197: Pukkila | C197: 1807 | D197: 21.5 | G197: 11856.66754 | H197: 23896.92732 | I197: -4.87042 | J197: 6764.7013 | K197: 422.3699 | L197: 469.25166 | M197: 7656.32286 | N197: 4142.81892 | O197: 33.53839 | P197: 51.92063 | Q197: 126.33866 | R197: 10.44373 | S197: -148.47573 | U197: 523.77091 | V197: 0 | X197: -672.24664 | Y197: 0 | Z197: -7e-05 | AA197: 0.32088 | AB197: -0.33269 | AD197: -672.25838 | AF197: 365.80173 | AI197: -322 | AL197: 1357.92842 | AN197: 6970.67416 | AQ197: 1781 | AR197: 8.86 | AU197: 1464.9846 | AV197: 6793.79247 | AW197: 0 | AX197: 3367.24182 | AY197: 251.50668 | AZ197: 476.95472 | BA197: 4095.70322 | BB197: 1291.769 | BC197: 85.93454 | BD197: 136.66161 | BE197: 68.04651 | BF197: 1.14811 | BG197: 74.83568 | BI197: 388.10572 | BJ197: 0 | BL197: -313.27004 | BM197: 0.35999 | BN197: -0.4407 | BO197: 0 | BP197: 0 | BQ197: -312.46935 | BS197: 178.77814 | BY197: 1358.23081 | CA197: 5860.00252 | CF197: 8.9 | CN197: 243.98172 | CO197: -686.30702 | CP197: 0 | CQ197: 31.93326 | CR197: 3.72312 | CT197: 20.73787 | CU197: -191.88303 | CV197: 0 | CW197: 29.25911 | CX197: 0.1827
A198: 619 | B198: Punkalaidun | C198: 2675 | D198: 22 | G198: 10745.24087 | H198: 30157.38354 | I198: -5.87325 | J198: 7676.64149 | K198: 882.37399 | L198: 726.05198 | M198: 9285.06746 | N198: 12536.2856 | O198: 13.15817 | P198: 103.16293 | Q198: 33.13668 | R198: 6.78426 | S198: 2339.68434 | U198: 1715.30828 | V198: 0 | X198: 624.37606 | Y198: 0 | Z198: 0 | AA198: 0 | AB198: -1.85414 | AD198: 622.52192 | AF198: 5209.50113 | AI198: -6568 | AL198: 3300.79249 | AN198: 10830.11372 | AQ198: 2650 | AR198: 9.36 | AU198: 2554.87778 | AV198: 10255.43083 | AW198: 0.40936 | AX198: 4509.10685 | AY198: 576.05947 | AZ198: 669.25924 | BA198: 5754.42556 | BB198: 4126.88687 | BC198: 79.11762 | BD198: 183.4187 | BE198: 11.01675 | BF198: 1.95271 | BG198: 2085.93214 | BI198: 1406.11828 | BJ198: 0 | BL198: 679.81386 | BM198: 0 | BN198: 0 | BO198: 0 | BP198: 0.16913 | BQ198: 679.98299 | BS198: 5841.29727 | BY198: 3469.47319 | CA198: 7161.58597 | CF198: 9 | CN198: 3.45168 | CO198: -4007.31243 | CP198: 54.99639 | CQ198: 22.68596 | CR198: 0 | CT198: -0.99478 | CU198: -615.01112 | CV198: 0 | CW198: 71.22542 | CX198: 0
A199: 620 | B199: Puolanka | C199: 2380 | D199: 21.5 | G199: 23458.93303 | H199: 44980.12818 | I199: 0 | J199: 6821.07362 | K199: 2049.97566 | L199: 846.7886 | M199: 9717.83788 | N199: 15380.784 | O199: 16.20607 | P199: 156.05806 | Q199: 35.99173 | R199: 109.6162 | S199: 3338.31242 | U199: 1747.95084 | V199: 198.85219 | X199: 1789.21377 | Y199: 1.63544 | Z199: 2.83556 | AA199: -3.5654 | AB199: 0 | AD199: 1784.44825 | AF199: 4978.28786 | AI199: -3112 | AL199: 7701.74864 | AN199: 15891.9433 | AQ199: 2359 | AR199: 8.86 | AU199: 4111.31495 | AV199: 11924.30179 | AW199: 0 | AX199: 3146.05389 | AY199: 1161.73066 | AZ199: 815.54514 | BA199: 5123.32969 | BB199: 4000.922 | BC199: 9.03016 | BD199: 116.88264 | BE199: 1.63978 | BF199: 14.07962 | BG199: 1163.60996 | BI199: 1123.54902 | BJ199: 0 | BL199: 40.06094 | BM199: 2.34417 | BN199: 1.86594 | BO199: 17.87552 | BP199: 0 | BQ199: 58.4147 | BS199: 5011.81157 | BY199: 4122.75357 | CA199: 7521.23916 | CF199: 8.9 | CN199: -378.83684 | CO199: -4027.98779 | CP199: 555.7975 | CQ199: 247.43815 | CR199: 0 | CT199: -9.39206 | CU199: -568.20782 | CV199: 906.02817 | CW199: 12.95859 | CX199: 0
A200: 623 | B200: Puumala | C200: 2107 | D200: 19.5 | G200: 17353.92317 | H200: 34949.65774 | I200: 0.91317 | J200: 6947.41497 | K200: 2196.14089 | L200: 1863.02399 | M200: 11006.57985 | N200: 8379.443 | O200: 16.55174 | P200: 32.41837 | Q200: 70.45301 | R200: 31.92297 | S200: 1813.86486 | U200: 1148.40759 | V200: -17.99707 | X200: 647.4602 | Y200: 79.85789 | Z200: 0 | AA200: 0 | AB200: 4.73431 | AD200: 732.0524 | AF200: 11292.31013 | AI200: -1481 | AL200: 9145.85041 | AN200: 5325.9494 | AQ200: 2108 | AR200: 6.86 | AU200: 2866.22846 | AV200: 8299.68248 | AW200: 0 | AX200: 3317.8324 | AY200: 1211.49183 | AZ200: 1909.68555 | BA200: 6439.00978 | BB200: 1412.257 | BC200: 95.427 | BD200: 50.00609 | BE200: 69.2857 | BF200: 1.76439 | BG200: 2530.75498 | BI200: 927.91329 | BJ200: 0 | BL200: 1602.84169 | BM200: 0 | BN200: 0 | BO200: 0 | BP200: 4.04533 | BQ200: 1606.88702 | BS200: 12593.12025 | BY200: 8543.37657 | CA200: 1336.58416 | CF200: 6.6 | CN200: 70.45671 | CO200: -2777.78583 | CP200: 97.07487 | CQ200: 55.36809 | CR200: -0.10174 | CT200: -367.97166 | CU200: -1782.62693 | CV200: 124.01629 | CW200: 148.6 | CX200: 0
... 96 more rows

Sheet väestöennuste
A1: Väestöennuste 2019 kunnittain 2021-2029
A2: TK, Syyskuu 2019
A3: 2021 kuntajako | B3: 2 | C3: 3 | D3: 4 | E3: 5 | F3: 6 | G3: 7 | H3: 8 | I3: 9 | J3: 10 | K3: 11 | L3: 12 | M3: 13
B5: 2022 | C5: 2023 | D5: 2024 | E5: 2025 | F5: 2026 | G5: 2027 | H5: 2028 | I5: 2029 | J5: 2030 | K5: 2031 | L5: 2032 | M5: 2033
A7: Akaa | B7: =pohjatiedot!AQ3 -> 16405 | C7: 16353 | D7: 16285.21063 | E7: 16171.56431 | F7: 16066.10872 | G7: 15966.79617 | H7: 15871.57898 | I7: 15781.481 | J7: 15691.38301 | K7: 15592.00662 | L7: 15493.25959 | M7: 15395.13794
A8: Alajärvi | B8: =pohjatiedot!AQ4 -> 9113 | C8: 9472 | D8: 8999.389122 | E8: 8888.794462 | F8: 8777.194395 | G8: 8667.605141 | H8: 8558.015887 | I8: 8452.448257 | J8: 8351.907657 | K8: 8248.498184 | L8: 8146.36908 | M8: 8045.504492
A9: Alavieska | B9: =pohjatiedot!AQ5 -> 2437 | C9: 2496 | D9: 2413.078528 | E9: 2389.157055 | F9: 2367.229039 | G9: 2344.304294 | H9: 2321.37955 | I9: 2300.448262 | J9: 2277.523517 | K9: 2255.609656 | L9: 2233.906646 | M9: 2212.412457
A10: Alavus | B10: =pohjatiedot!AQ6 -> 10933 | C10: 11253 | D10: 10806.10446 | E10: 10677.21056 | F10: 10553.31256 | G10: 10434.41044 | H10: 10316.50749 | I10: 10204.59962 | J10: 10091.69256 | K10: 9976.911773 | L10: 9863.436478 | M10: 9751.251827
A11: Asikkala | B11: =pohjatiedot!AQ7 -> 7968 | C11: 8032 | D11: 7922.790064 | E11: 7873.561468 | F11: 7827.346867 | G11: 7779.122935 | H11: 7734.917665 | I11: 7692.721725 | J11: 7653.539781 | K11: 7609.642123 | L11: 7565.996246 | M11: 7522.600704
A12: Askola | B12: =pohjatiedot!AQ8 -> 4700 | C12: 4947 | D12: 4671.383582 | E12: 4646.714256 | F12: 4624.018476 | G12: 4603.296242 | H12: 4580.600462 | I12: 4557.904682 | J12: 4537.182448 | K12: 4514.388437 | L12: 4491.708939 | M12: 4469.143378
A13: Aura | B13: =pohjatiedot!AQ9 -> 3961 | C13: 3973 | D13: 3964.001516 | E13: 3969.004041 | F13: 3975.007072 | G13: 3984.011619 | H13: 3990.01465 | I13: 3994.016671 | J13: 3997.018186 | K13: 4002.190795 | L13: 4007.370097 | M13: 4012.556101
A14: Enonkoski | B14: =pohjatiedot!AQ10 -> 1320 | C14: 1369 | D14: 1307.068576 | E14: 1293.142427 | F14: 1280.211002 | G14: 1267.279578 | H14: 1252.358704 | I14: 1239.42728 | J14: 1223.51168 | K14: 1210.316505 | L14: 1197.263636 | M14: 1184.351537
A15: Enontekiö | B15: =pohjatiedot!AQ11 -> 1771 | C15: 1849 | D15: 1764.039304 | E15: 1758.072993 | F15: 1751.112296 | G15: 1743.157215 | H15: 1735.202134 | I15: 1725.258282 | J15: 1716.308815 | K15: 1708.635371 | L15: 1700.996234 | M15: 1693.391251
A16: Espoo | B16: =pohjatiedot!AQ12 -> 314024 | C16: 292052 | D16: 318221.4291 | E16: 322226.3906 | F16: 326035.8134 | G16: 329660.9589 | H16: 333107.9695 | I16: 336388.1067 | J16: 339492.1567 | K16: 343295.6317 | L16: 347141.7186 | M16: 351030.8949
A17: Eura | B17: =pohjatiedot!AQ13 -> 11184 | C17: 11504 | D17: 11062.10629 | E17: 10945.2495 | F17: 10833.42965 | G17: 10728.6615 | H17: 10626.91551 | I17: 10526.17691 | J17: 10429.46784 | K17: 10325.91757 | L17: 10223.39542 | M17: 10121.89116
A18: Eurajoki | B18: =pohjatiedot!AQ14 -> 9143 | C18: 9505 | D18: 9158.326139 | E18: 9165.031325 | F18: 9162.157674 | G18: 9156.410372 | H18: 9145.873651 | I18: 9128.631744 | J18: 9112.347721 | K18: 9107.983921 | L18: 9103.62221 | M18: 9099.262589
A19: Evijärvi | B19: =pohjatiedot!AQ15 -> 2292 | C19: 2385 | D19: 2265.337355 | E19: 2240.64972 | F19: 2215.962085 | G19: 2191.274451 | H19: 2167.574321 | I19: 2141.899181 | J19: 2115.236536 | K19: 2091.123226 | L19: 2067.284804 | M19: 2043.718136
A20: Forssa | B20: =pohjatiedot!AQ16 -> 16469 | C20: 16759 | D20: 16344.55417 | E20: 16220.10835 | F20: 16101.6841 | G20: 15980.24906 | H20: 15859.81761 | I20: 15744.40414 | J20: 15630.99787 | K20: 15514.81616 | L20: 15399.49801 | M20: 15285.03699
A21: Haapajärvi | B21: =pohjatiedot!AQ17 -> 6558 | C21: 6937 | D21: 6456.155298 | E21: 6359.302984 | F21: 6264.447625 | G21: 6174.584653 | H21: 6085.720158 | I21: 5999.851096 | J21: 5916.977467 | K21: 5830.668356 | L21: 5745.61821 | M21: 5661.808664
A22: Haapavesi | B22: =pohjatiedot!AQ18 -> 6473 | C22: 6691 | D22: 6385.787404 | E22: 6301.617108 | F22: 6221.503212 | G22: 6145.445715 | H22: 6074.458718 | I22: 6003.471722 | J22: 5933.498825 | K22: 5860.190414 | L22: 5787.787728 | M22: 5716.279578
A23: Hailuoto | B23: =pohjatiedot!AQ19 -> 948 | C23: 974 | D23: 941.8969957 | E23: 935.7939914 | F23: 929.6909871 | G23: 923.5879828 | H23: 916.4678112 | I23: 910.3648069 | J23: 904.2618026 | K23: 898.1805167 | L23: 892.1401283 | M23: 886.1403624
A24: Halsua | B24: =pohjatiedot!AQ20 -> 1013 | C24: 1125 | D24: 991.2150538 | E24: 969.4301075 | F24: 949.6256109 | G24: 930.8113392 | H24: 912.9872923 | I24: 896.1534702 | J24: 879.3196481 | K24: 861.7211511 | L24: 844.4748663 | M24: 827.5737446
A25: Hamina | B25: =pohjatiedot!AQ21 -> 19534 | C25: 19907 | D25: 19343.5825 | E25: 19157.21643 | F25: 18974.90179 | G25: 18796.6386 | H25: 18613.31111 | I25: 18435.04791 | J25: 18256.78471 | K25: 18081.27401 | L25: 17907.45057 | M25: 17735.29817
A26: Hankasalmi | B26: =pohjatiedot!AQ22 -> 4549 | C26: 4760 | D26: 4479.863216 | E26: 4412.730396 | F26: 4348.603524 | G26: 4287.482599 | H26: 4225.359692 | I26: 4166.242731 | J26: 4108.127753 | K26: 4048.735604 | L26: 3990.202101 | M26: 3932.51483
A27: Hanko | B27: =pohjatiedot!AQ23 -> 7721 | C27: 8056 | D27: 7589.877172 | E27: 7468.918905 | F27: 7355.075829 | G27: 7243.265666 | H27: 7139.587151 | I27: 7037.941548 | J27: 6941.378225 | K27: 6836.628368 | L27: 6733.459252 | M27: 6631.847025
A28: Harjavalta | B28: =pohjatiedot!AQ24 -> 6703 | C28: 6881 | D28: 6630.185275 | E28: 6560.404496 | F28: 6494.66898 | G28: 6430.956095 | H28: 6371.288473 | I28: 6312.632167 | J28: 6251.953229 | K28: 6190.04583 | L28: 6128.751443 | M28: 6068.063999
A29: Hartola | B29: =pohjatiedot!AQ25 -> 2531 | C29: 2658 | D29: 2479.848019 | E29: 2432.788197 | F29: 2390.843573 | G29: 2351.968068 | H29: 2317.184721 | I29: 2283.424414 | J29: 2251.710186 | K29: 2214.41669 | L29: 2177.740859 | M29: 2141.672465
A30: Hattula | B30: =pohjatiedot!AQ26 -> 9371 | C30: 9369 | D30: 9313.154321 | E30: 9257.338315 | F30: 9200.507472 | G30: 9142.661793 | H30: 9084.816114 | I30: 9025.955599 | J30: 8967.095083 | K30: 8910.833517 | L30: 8854.924948 | M30: 8799.367161
A31: Hausjärvi | B31: =pohjatiedot!AQ27 -> 7998 | C31: 8248 | D31: 7911.880162 | E31: 7832.852546 | F31: 7759.903978 | G31: 7692.021282 | H31: 7624.138586 | I31: 7562.334938 | J31: 7502.557639 | K31: 7434.334546 | L31: 7366.731827 | M31: 7299.74384
A32: Heinola | B32: =pohjatiedot!AQ28 -> 17953 | C32: 18423 | D32: 17756.76485 | E32: 17572.60572 | F32: 17399.51626 | G32: 17235.4838 | H32: 17075.47668 | I32: 16923.52024 | J32: 16777.60179 | K32: 16616.09581 | L32: 16456.14453 | M32: 16297.73299
A33: Heinävesi | B33: =pohjatiedot!AQ29 -> 3001 | C33: 3198 | D33: 2946.146228 | E33: 2895.281821 | F33: 2847.409438 | G33: 2798.539714 | H33: 2750.667331 | I33: 2706.784314 | J33: 2663.898637 | K33: 2618.938011 | L33: 2574.736219 | M33: 2531.280455
A34: Helsinki | B34: =pohjatiedot!AQ30 -> 674500 | C34: 662389 | D34: 679277.5267 | E34: 683922.7897 | F34: 688425.769 | G34: 692783.4585 | H34: 696988.8443 | I34: 701050.9444 | J34: 704945.7109 | K34: 709405.9563 | L34: 713894.422 | M34: 718411.2866
A35: Hirvensalmi | B35: =pohjatiedot!AQ31 -> 2062 | C35: 2068 | D35: 2049.307765 | E35: 2036.61553 | F35: 2024.899621 | G35: 2015.136364 | H35: 2003.420455 | I35: 1989.751894 | J35: 1977.059659 | K35: 1965.214718 | L35: 1953.440742 | M35: 1941.737306
A36: Hollola | B36: =pohjatiedot!AQ32 -> 22885 | C36: 23388 | D36: 22745.93316 | E36: 22607.86679 | F36: 22471.80139 | G36: 22343.73984 | H36: 22211.67636 | I36: 22080.61336 | J36: 21949.55036 | K36: 21819.07346 | L36: 21689.37216 | M36: 21560.44185
A37: Huittinen | B37: =pohjatiedot!AQ33 -> 9646 | C37: 9898 | D37: 9552.806773 | E37: 9462.61978 | F37: 9374.436942 | G37: 9292.26657 | H37: 9212.100353 | I37: 9135.942448 | J37: 9062.790775 | K37: 8982.40636 | L37: 8902.734932 | M37: 8823.770168
A38: Humppila | B38: =pohjatiedot!AQ34 -> 2125 | C38: 2143 | D38: 2104.80038 | E38: 2084.60076 | F38: 2062.381179 | G38: 2041.171578 | H38: 2022.99192 | I38: 2003.802281 | J38: 1985.622624 | K38: 1966.472594 | L38: 1947.507253 | M38: 1928.724821
A39: Hyrynsalmi | B39: =pohjatiedot!AQ35 -> 2063 | C39: 2177 | D39: 2027.259865 | E39: 1994.498075 | F39: 1961.736285 | G39: 1930.960058 | H39: 1902.169394 | I39: 1872.385948 | J39: 1844.588065 | K39: 1815.334691 | L39: 1786.545246 | M39: 1758.212374
A40: Hyvinkää | B40: =pohjatiedot!AQ36 -> 46901 | C40: 46414 | D40: 46988.16354 | E40: 47071.31957 | F40: 47156.47935 | G40: 47239.63538 | H40: 47324.79516 | I40: 47412.96059 | J40: 47498.12037 | K40: 47584.04166 | L40: 47670.11838 | M40: 47756.3508
A41: Hämeenkyrö | B41: =pohjatiedot!AQ37 -> 10319 | C41: 10421 | D41: 10253.73505 | E41: 10192.54916 | F41: 10138.50163 | G41: 10089.55292 | H41: 10041.62397 | I41: 9993.695029 | J41: 9947.805613 | K41: 9895.881212 | L41: 9844.227839 | M41: 9792.844081
A42: Hämeenlinna | B42: =pohjatiedot!AQ38 -> 68319 | C42: 67210 | D42: 68352.13921 | E42: 68377.24468 | F42: 68396.32483 | G42: 68407.37124 | H42: 68406.36702 | I42: 68399.33749 | J42: 68383.26999 | K42: 68392.45837 | L42: 68401.64799 | M42: 68410.83884
A43: Ii | B43: =pohjatiedot!AQ39 -> 9766 | C43: 9768 | D43: 9724.827147 | E43: 9681.645861 | F43: 9637.46036 | G43: 9591.266427 | H43: 9547.080925 | I43: 9507.916504 | J43: 9469.756298 | K43: 9428.176133 | L43: 9386.778539 | M43: 9345.562715
A44: Iisalmi | B44: =pohjatiedot!AQ40 -> 20618 | C44: 21103 | D44: 20453.04 | E44: 20291.07928 | F44: 20131.11807 | G44: 19972.15662 | H44: 19816.19444 | I44: 19660.23226 | J44: 19503.27033 | K44: 19349.02114 | L44: 19195.99189 | M44: 19044.17294
A45: Iitti | B45: =pohjatiedot!AQ41 -> 6444 | C45: 6658 | D45: 6392.136821 | E45: 6338.278904 | F45: 6288.410463 | G45: 6239.53939 | H45: 6191.665686 | I45: 6146.784089 | J45: 6099.907754 | K45: 6052.275428 | L45: 6005.015048 | M45: 5958.12371
A46: Ikaalinen | B46: =pohjatiedot!AQ42 -> 6850 | C46: 6853 | D46: 6794.74156 | E46: 6743.576337 | F46: 6695.481028 | G46: 6648.409023 | H46: 6603.383627 | I46: 6556.311622 | J46: 6512.309531 | K46: 6465.44722 | L46: 6418.922128 | M46: 6372.731829
A47: Ilmajoki | B47: =pohjatiedot!AQ43 -> 12343 | C47: 12227 | D47: 12369.85423 | E47: 12388.75165 | F47: 12401.68147 | G47: 12409.63828 | H47: 12409.63828 | I47: 12409.63828 | J47: 12405.65987 | K47: 12414.64164 | L47: 12423.62991 | M47: 12432.62469
A48: Ilomantsi | B48: =pohjatiedot!AQ44 -> 4406 | C48: 4729 | D48: 4317.701419 | E48: 4236.347669 | F48: 4157.970277 | G48: 4082.569241 | H48: 4010.144562 | I48: 3941.688358 | J48: 3877.20063 | K48: 3807.02946 | L48: 3738.128276 | M48: 3670.474095
A49: Imatra | B49: =pohjatiedot!AQ45 -> 24919 | C49: 26329 | D49: 24589.71783 | E49: 24266.40453 | F49: 23952.04451 | G49: 23651.61184 | H49: 23369.08575 | I49: 23091.53371 | J49: 22819.95054 | K49: 22534.88564 | L49: 22253.38176 | M49: 21975.39439
A50: Inari | B50: =pohjatiedot!AQ46 -> 7127 | C50: 6988 | D50: 7136.319047 | E50: 7144.602644 | F50: 7150.815342 | G50: 7158.06349 | H50: 7165.311637 | I50: 7169.453436 | J50: 7173.595235 | K50: 7180.276755 | L50: 7186.964498 | M50: 7193.65847
A51: Inkoo | B51: =pohjatiedot!AQ47 -> 5379 | C51: 5332 | D51: 5349.076539 | E51: 5325.34414 | F51: 5300.579896 | G51: 5278.911184 | H51: 5258.274314 | I51: 5237.637445 | J51: 5220.096106 | K51: 5197.783149 | L51: 5175.565567 | M51: 5153.442952
A52: Isojoki | B52: =pohjatiedot!AQ48 -> 1814 | C52: 1880 | D52: 1787.133297 | E52: 1761.261657 | F52: 1736.38508 | G52: 1716.483818 | H52: 1695.587493 | I52: 1675.686231 | J52: 1655.78497 | K52: 1634.340079 | L52: 1613.172932 | M52: 1592.279931
A53: Isokyrö | B53: =pohjatiedot!AQ49 -> 4357 | C53: 4487 | D53: 4308.532793 | E53: 4261.075319 | F53: 4214.627578 | G53: 4167.170104 | H53: 4125.771031 | I53: 4085.381692 | J53: 4046.002086 | K53: 4003.425047 | L53: 3961.296057 | M53: 3919.6104
A54: Janakkala | B54: =pohjatiedot!AQ50 -> 16123 | C54: 16272 | D54: 16014.39002 | E54: 15907.81012 | F54: 15802.24528 | G54: 15699.72557 | H54: 15596.19082 | I54: 15498.74635 | J54: 15409.42225 | K54: 15310.09473 | L54: 15211.40747 | M54: 15113.35633
A55: Joensuu | B55: =pohjatiedot!AQ51 -> 78062 | C55: 77152 | D55: 78231.8595 | E55: 78389.65798 | F55: 78539.41576 | G55: 78680.12778 | H55: 78809.78385 | I55: 78927.37889 | J55: 79021.85695 | K55: 79159.94321 | L55: 79298.27077 | M55: 79436.84005
A56: Jokioinen | B56: =pohjatiedot!AQ52 -> 4916 | C56: 5045 | D56: 4858.532404 | E56: 4803.081214 | F56: 4751.662838 | G56: 4701.252666 | H56: 4655.883511 | I56: 4608.497949 | J56: 4563.128794 | K56: 4514.831343 | L56: 4467.045086 | M56: 4419.764612
A57: Joroinen | B57: =pohjatiedot!AQ53 -> 4590 | C57: 4671 | D57: 4516.1167 | E57: 4443.259557 | F57: 4372.454728 | G57: 4304.72837 | H57: 4234.949698 | I57: 4168.249497 | J57: 4103.60161 | K57: 4038.457962 | L57: 3974.348453 | M57: 3911.256666
A58: Joutsa | B58: =pohjatiedot!AQ54 -> 4079 | C58: 4313 | D58: 4017.106216 | E58: 3961.202154 | F58: 3903.301517 | G58: 3852.388889 | H58: 3804.471121 | I58: 3757.55164 | J58: 3713.627019 | K58: 3664.176602 | L58: 3615.384663 | M58: 3567.242435
A59: Juuka | B59: =pohjatiedot!AQ55 -> 4259 | C59: 4514 | D59: 4172.919154 | E59: 4089.841128 | F59: 4008.764982 | G59: 3937.698237 | H59: 3868.633373 | I59: 3804.573208 | J59: 3746.518684 | K59: 3678.530395 | L59: 3611.775894 | M59: 3546.232791
A60: Juupajoki | B60: =pohjatiedot!AQ56 -> 1708 | C60: 1825 | D60: 1678.914856 | E60: 1651.835584 | F60: 1626.762184 | G60: 1604.697592 | H60: 1582.633001 | I60: 1561.571345 | J60: 1542.515561 | K60: 1520.223708 | L60: 1498.254008 | M60: 1476.601806
A61: Juva | B61: =pohjatiedot!AQ57 -> 5734 | C61: 6034 | D61: 5640.033488 | E61: 5549.131101 | F61: 5461.292839 | G61: 5381.625579 | H61: 5304.001069 | I61: 5229.440684 | J61: 5155.901674 | K61: 5078.220181 | L61: 5001.709078 | M61: 4926.35073
A62: Jyväskylä | B62: =pohjatiedot!AQ58 -> 147746 | C62: 143423 | D62: 148640.4597 | E62: 149482.541 | F62: 150260.1569 | G62: 150986.4017 | H62: 151662.2828 | I62: 152290.822 | J62: 152863.9612 | K62: 153609.474 | L62: 154358.6226 | M62: 155111.4248
A63: Jämijärvi | B63: =pohjatiedot!AQ59 -> 1682 | C63: 1746 | D63: 1647.243582 | E63: 1616.700063 | F63: 1587.209768 | G63: 1556.666249 | H63: 1530.335629 | I63: 1501.89856 | J63: 1477.674389 | K63: 1450.587237 | L63: 1423.996617 | M63: 1397.893428
A64: Jämsä | B64: =pohjatiedot!AQ60 -> 19182 | C64: 19947 | D64: 18896.91289 | E64: 18629.07304 | F64: 18367.32046 | G64: 18118.75697 | H64: 17875.2662 | I64: 17635.83361 | J64: 17405.53192 | K64: 17165.55538 | L64: 16928.88749 | M64: 16695.48262
A65: Järvenpää | B65: =pohjatiedot!AQ61 -> 46490 | C65: 44418 | D65: 47118.44577 | E65: 47722.91268 | F65: 48297.40603 | G65: 48848.91964 | H65: 49370.45969 | I65: 49865.02353 | J65: 50332.61116 | K65: 50906.94091 | L65: 51487.82416 | M65: 52075.33568
A66: Kaarina | B66: =pohjatiedot!AQ62 -> 36339 | C66: 34004 | D66: 36772.73329 | E66: 37182.31437 | F66: 37571.76862 | G66: 37940.0897 | H66: 38287.2776 | I66: 38608.30061 | J66: 38914.2285 | K66: 39296.75907 | L66: 39683.04995 | M66: 40073.1381
A67: Kaavi | B67: =pohjatiedot!AQ63 -> 2628 | C67: 2873 | D67: 2578.887872 | E67: 2534.787185 | F67: 2494.695652 | G67: 2456.608696 | H67: 2418.521739 | I67: 2385.446224 | J67: 2352.370709 | K67: 2315.43253 | L67: 2279.074373 | M67: 2243.287132
A68: Kajaani | B68: =pohjatiedot!AQ64 -> 36513 | C68: 36481 | D68: 36328.75963 | E68: 36141.48233 | F68: 35947.11886 | G68: 35755.79231 | H68: 35557.37961 | I68: 35357.95459 | J68: 35159.54188 | K68: 34970.3311 | L68: 34782.13857 | M68: 34594.95878
A69: Kalajoki | B69: =pohjatiedot!AQ65 -> 12372 | C69: 12239 | D69: 12315.54368 | E69: 12258.0792 | F69: 12198.59844 | G69: 12136.09322 | H69: 12071.57171 | I69: 12008.05834 | J69: 11940.51239 | K69: 11880.11295 | L69: 11820.01904 | M69: 11760.2291
A70: Kangasala | B70: =pohjatiedot!AQ66 -> 33473 | C70: 32119 | D70: 33711.42613 | E70: 33943.76479 | F70: 34162.91392 | G70: 34371.91725 | H70: 34571.78937 | I70: 34766.5886 | J70: 34958.34408 | K70: 35175.85556 | L70: 35394.72039 | M70: 35614.947
A71: Kangasniemi | B71: =pohjatiedot!AQ67 -> 5114 | C71: 5300 | D71: 5054.152136 | E71: 4998.294129 | F71: 4944.431051 | G71: 4891.565438 | H71: 4840.694753 | I71: 4791.818997 | J71: 4743.940706 | K71: 4693.308564 | L71: 4643.21682 | M71: 4593.659706
A72: Kankaanpää | B72: =pohjatiedot!AQ68 -> 12394 | C72: 11241 | D72: 12247.67774 | E72: 12107.41019 | F72: 11974.20648 | G72: 11848.0666 | H72: 11724.95408 | I72: 11605.87803 | J72: 11486.80199 | K72: 11362.74238 | L72: 11240.02265 | M72: 11118.6283
A73: Kannonkoski | B73: =pohjatiedot!AQ69 -> 1217 | C73: 1305 | D73: 1197.713154 | E73: 1180.354992 | F73: 1166.8542 | G73: 1151.424723 | H73: 1136.959588 | I73: 1123.458796 | J73: 1109.958003 | K73: 1095.456225 | L73: 1081.143915 | M73: 1067.018598
A74: Kannus | B74: =pohjatiedot!AQ70 -> 5246 | C74: 5402 | D74: 5208.507429 | E74: 5174.961444 | F74: 5144.3754 | G74: 5115.762648 | H74: 5086.16325 | I74: 5053.603912 | J74: 5019.071281 | K74: 4987.465055 | L74: 4956.057861 | M74: 4924.848444
A75: Karijoki | B75: =pohjatiedot!AQ71 -> 1188 | C75: 1199 | D75: 1164.85031 | E75: 1144.857396 | F75: 1126.968999 | G75: 1106.976085 | H75: 1093.296723 | I75: 1076.460585 | J75: 1062.781222 | K75: 1046.007534 | L75: 1029.498581 | M75: 1013.250187
A76: Karkkila | B76: =pohjatiedot!AQ72 -> 8581 | C76: 8639 | D76: 8532.63931 | E76: 8487.301162 | F76: 8449.015616 | G76: 8411.737584 | H76: 8377.482095 | I76: 8347.256663 | J76: 8322.068804 | K76: 8285.725018 | L76: 8249.539951 | M76: 8213.51291
A77: Karstula | B77: =pohjatiedot!AQ73 -> 3625 | C77: 3901 | D77: 3553.217822 | E77: 3488.414466 | F77: 3425.605061 | G77: 3364.789604 | H77: 3306.965072 | I77: 3254.125413 | J77: 3201.285754 | K77: 3144.94336 | L77: 3089.592588 | M77: 3035.215986
A78: Karvia | B78: =pohjatiedot!AQ74 -> 2216 | C78: 2339 | D78: 2190.221029 | E78: 2164.442058 | F78: 2142.629083 | G78: 2121.807606 | H78: 2101.977629 | I78: 2082.147651 | J78: 2064.300671 | K78: 2043.495492 | L78: 2022.899999 | M78: 2002.512078
A79: Kaskinen | B79: =pohjatiedot!AQ75 -> 1208 | C79: 1232 | D79: 1212.656901 | E79: 1216.382421 | F79: 1221.039322 | G79: 1223.833462 | H79: 1226.627602 | I79: 1227.558982 | J79: 1228.490362 | K79: 1231.44667 | L79: 1234.410093 | M79: 1237.380646
A80: Kauhajoki | B80: =pohjatiedot!AQ76 -> 12618 | C80: 13049 | D80: 12470.00303 | E80: 12334.08745 | F80: 12202.19899 | G80: 12070.31054 | H80: 11935.40174 | I80: 11802.5065 | J80: 11670.61805 | K80: 11541.21408 | L80: 11413.24495 | M80: 11286.69474
A81: Kauhava | B81: =pohjatiedot!AQ77 -> 15165 | C81: 15581 | D81: 14943.12803 | E81: 14735.57039 | F81: 14534.14745 | G81: 14340.90413 | H81: 14152.77306 | I81: 13969.75425 | J81: 13793.8926 | K81: 13608.4155 | L81: 13425.43239 | M81: 13244.90973
A82: Kauniainen | B82: =pohjatiedot!AQ78 -> 10270 | C82: 9781 | D82: 10390.65182 | E82: 10511.30365 | F82: 10629.03648 | G82: 10739.95831 | H82: 10846.01516 | I82: 10952.072 | J82: 11051.31786 | K82: 11167.69 | L82: 11285.28756 | M82: 11404.12344
A83: Kaustinen | B83: =pohjatiedot!AQ79 -> 4137 | C83: 4247 | D83: 4110.065107 | E83: 4079.13986 | F83: 4048.214613 | G83: 4017.289366 | H83: 3986.364119 | I83: 3953.443694 | J83: 3916.532915 | K83: 3886.012937 | L83: 3855.730789 | M83: 3825.684617
A84: Keitele | B84: =pohjatiedot!AQ80 -> 2035 | C84: 2177 | D84: 2003.031419 | E84: 1969.064801 | F84: 1941.092293 | G84: 1912.120766 | H84: 1887.145312 | I84: 1860.171821 | J84: 1834.197349 | K84: 1807.177853 | L84: 1780.556381 | M84: 1754.327068
A85: Kemi | B85: =pohjatiedot!AQ81 -> 19371 | C85: 20505 | D85: 19116.98974 | E85: 18871.87479 | F85: 18635.65514 | G85: 18407.34242 | H85: 18188.91336 | I85: 17976.41451 | J85: 17769.84586 | K85: 17552.18163 | L85: 17337.18359 | M85: 17124.81908
A86: Kemijärvi | B86: =pohjatiedot!AQ82 -> 7030 | C86: 7105 | D86: 6929.292501 | E86: 6834.750767 | F86: 6741.236661 | G86: 6653.88832 | H86: 6571.678117 | I86: 6491.523169 | J86: 6415.478731 | K86: 6332.191792 | L86: 6249.9861 | M86: 6168.847618
A87: Keminmaa | B87: =pohjatiedot!AQ83 -> 7691 | C87: 7952 | D87: 7624.757938 | E87: 7558.515876 | F87: 7492.273814 | G87: 7421.088315 | H87: 7353.857565 | I87: 7283.660753 | J87: 7211.486566 | K87: 7145.470736 | L87: 7080.059232 | M87: 7015.246522
A88: Kemiönsaari | B88: =pohjatiedot!AQ84 -> 6462 | C88: 6606 | D88: 6408.636647 | E88: 6363.32814 | F88: 6321.040199 | G88: 6280.765971 | H88: 6242.505453 | I88: 6206.258648 | J88: 6171.018697 | K88: 6130.53572 | L88: 6090.318318 | M88: 6050.364749
A89: Kempele | B89: =pohjatiedot!AQ85 -> 19514 | C89: 18380 | D89: 19817.80018 | E89: 20098.9874 | F89: 20361.49436 | G89: 20613.18642 | H89: 20846.19821 | I89: 21061.5129 | J89: 21267.97904 | K89: 21531.1386 | L89: 21797.55436 | M89: 22067.26662
A90: Kerava | B90: =pohjatiedot!AQ86 -> 38211 | C90: 36622 | D90: 38546.54337 | E90: 38862.11392 | F90: 39164.70214 | G90: 39445.32026 | H90: 39712.95604 | I90: 39967.60949 | J90: 40206.28469 | K90: 40499.72392 | L90: 40795.30478 | M90: 41093.04288
A91: Keuruu | B91: =pohjatiedot!AQ87 -> 9184 | C91: 9524 | D91: 9067.938462 | E91: 8961.969231 | F91: 8857.009231 | G91: 8759.113846 | H91: 8662.227692 | I91: 8568.369231 | J91: 8473.501538 | K91: 8376.593136 | L91: 8280.79304 | M91: 8186.088576
A92: Kihniö | B92: =pohjatiedot!AQ88 -> 1749 | C92: 1836 | D92: 1714.102113 | E92: 1681.257042 | F92: 1649.43838 | G92: 1619.672535 | H92: 1587.853873 | I92: 1558.088028 | J92: 1526.269366 | K92: 1496.856197 | L92: 1468.009857 | M92: 1439.719423
A93: Kinnula | B93: =pohjatiedot!AQ89 -> 1523 | C93: 1561 | D93: 1496.982917 | E93: 1474.968463 | F93: 1450.952694 | G93: 1428.938239 | H93: 1409.925756 | I93: 1388.911958 | J93: 1368.898817 | K93: 1348.196757 | L93: 1327.807778 | M93: 1307.727144
A94: Kirkkonummi | B94: =pohjatiedot!AQ90 -> 41154 | C94: 39560 | D94: 41465.01511 | E94: 41763.0296 | F94: 42043.04321 | G94: 42307.05604 | H94: 42563.06848 | I94: 42812.08058 | J94: 43052.09224 | K94: 43330.31191 | L94: 43610.32953 | M94: 43892.15675
A95: Kitee | B95: =pohjatiedot!AQ91 -> 9689 | C95: 10012 | D95: 9529.183569 | E95: 9374.522507 | F95: 9226.047888 | G95: 9086.852932 | H95: 8953.844418 | I95: 8822.898053 | J95: 8692.98276 | K95: 8559.313248 | L95: 8427.699134 | M95: 8298.108812
A96: Kittilä | B96: =pohjatiedot!AQ92 -> 6822 | C96: 6393 | D96: 6808.181677 | E96: 6795.426301 | F96: 6780.54503 | G96: 6765.663758 | H96: 6752.908383 | I96: 6736.964163 | J96: 6724.208788 | K96: 6710.353625 | L96: 6696.527011 | M96: 6682.728887
A97: Kiuruvesi | B97: =pohjatiedot!AQ93 -> 7475 | C97: 7854 | D97: 7355.600671 | E97: 7239.211409 | F97: 7125.832215 | G97: 7017.469799 | H97: 6914.124161 | I97: 6812.785235 | J97: 6717.466443 | K97: 6615.706383 | L97: 6515.487843 | M97: 6416.787472
A98: Kivijärvi | B98: =pohjatiedot!AQ94 -> 1035 | C98: 1034 | D98: 1020.381356 | E98: 1005.762712 | F98: 991.1440678 | G98: 977.5 | H98: 963.8559322 | I98: 952.1610169 | J98: 941.440678 | K98: 928.7847089 | L98: 916.2988765 | M98: 903.9808936
A99: Kokemäki | B99: =pohjatiedot!AQ95 -> 6766 | C99: 7023 | D99: 6680.405417 | E99: 6595.81783 | F99: 6518.279208 | G99: 6446.782557 | H99: 6378.306891 | I99: 6314.8662 | J99: 6255.45349 | K99: 6185.73781 | L99: 6116.799096 | M99: 6048.62869
A100: Kokkola | B100: =pohjatiedot!AQ96 -> 48295 | C100: 47729 | D100: 48298.02581 | E100: 48283.90535 | F100: 48254.65583 | G100: 48214.31166 | H100: 48158.83842 | I100: 48090.25333 | J100: 48007.54777 | K100: 47966.63124 | L100: 47925.74959 | M100: 47884.90277
A101: KOKO MAA (Manner-Suomi) | B101: =pohjatiedot!AQ97 -> 5573310 | C101: 5500619 | D101: 5580222.067 | E101: 5586609.024 | F101: 5592348.239 | G101: 5597497.977 | H101: 5601870.45 | I101: 5605567.495 | J101: 5608522.506 | K101: 5613571.154 | L101: 5618624.346 | M101: 5623682.088
A102: Kolari | B102: =pohjatiedot!AQ98 -> 4011 | C102: 3788 | D102: 4018.088362 | E102: 4024.1641 | F102: 4028.214592 | G102: 4027.201969 | H102: 4027.201969 | I102: 4028.214592 | J102: 4026.189346 | K102: 4028.36531 | L102: 4030.542451 | M102: 4032.720768
A103: Konnevesi | B103: =pohjatiedot!AQ99 -> 2499 | C103: 2634 | D103: 2464.794686 | E103: 2433.607488 | F103: 2404.432367 | G103: 2374.251208 | H103: 2345.076087 | I103: 2318.919082 | J103: 2292.762077 | K103: 2264.723772 | L103: 2237.028348 | M103: 2209.671612
A104: Kontiolahti | B104: =pohjatiedot!AQ100 -> 15136 | C104: 14980 | D104: 15145.11807 | E104: 15142.07871 | F104: 15127.89505 | G104: 15106.61954 | H104: 15077.23909 | I104: 15043.80616 | J104: 15003.28139 | K104: 14984.42558 | L104: 14965.59346 | M104: 14946.78502
A105: Korsnäs | B105: =pohjatiedot!AQ101 -> 2015 | C105: 2084 | D105: 2003.071041 | E105: 1993.130242 | F105: 1983.189443 | G105: 1970.266404 | H105: 1959.331524 | I105: 1947.402565 | J105: 1936.467686 | K105: 1925.501741 | L105: 1914.597894 | M105: 1903.755795
A106: Koski | B106: =pohjatiedot!AQ102 -> 2207 | C106: 2297 | D106: 2188.085701 | E106: 2167.180424 | F106: 2147.270636 | G106: 2129.351827 | H106: 2108.446549 | I106: 2090.52774 | J106: 2073.60442 | K106: 2055.218169 | L106: 2036.994946 | M106: 2018.933304
A107: Kotka | B107: =pohjatiedot!AQ103 -> 50500 | C107: 51999 | D107: 50046.93654 | E107: 49613.96459 | F107: 49198.07042 | G107: 48792.222 | H107: 48395.41476 | I107: 48005.63955 | J107: 47627.91924 | K107: 47231.18166 | L107: 46837.74888 | M107: 46447.59338
A108: Kouvola | B108: =pohjatiedot!AQ104 -> 78880 | C108: 81521 | D108: 78085.27716 | E108: 77312.60212 | F108: 76556.96401 | G108: 75823.37369 | H108: 75114.83769 | I108: 74418.32776 | J108: 73736.85042 | K108: 73030.01964 | L108: 72329.96443 | M108: 71636.61985
A109: Kristiinankaupunki | B109: =pohjatiedot!AQ105 -> 6199 | C109: 6422 | D109: 6129.765458 | E109: 6067.55471 | F109: 6008.35416 | G109: 5951.160408 | H109: 5893.966656 | I109: 5836.772904 | J109: 5781.58595 | K109: 5724.296288 | L109: 5667.574308 | M109: 5611.414386
A110: Kruunupyy | B110: =pohjatiedot!AQ106 -> 6368 | C110: 6427 | D110: 6319.265306 | E110: 6271.545918 | F110: 6224.841837 | G110: 6177.122449 | H110: 6128.387755 | I110: 6081.683673 | J110: 6033.964286 | K110: 5987.697301 | L110: 5941.785081 | M110: 5896.224904
A111: Kuhmo | B111: =pohjatiedot!AQ107 -> 7582 | C111: 8028 | D111: 7446.55379 | E111: 7317.083147 | F111: 7187.612505 | G111: 7061.129647 | H111: 6938.6305 | I111: 6822.106922 | J111: 6710.562984 | K111: 6594.532877 | L111: 6480.509007 | M111: 6368.456686
A112: Kuhmoinen | B112: =pohjatiedot!AQ108 -> 2092 | C112: 2169 | D112: 2065.698259 | E112: 2038.384913 | F112: 2012.083172 | G112: 1989.827853 | H112: 1968.584139 | I112: 1947.340426 | J112: 1927.108317 | K112: 1904.639319 | L112: 1882.432297 | M112: 1860.484196
A113: Kuopio | B113: =pohjatiedot!AQ109 -> 124021 | C113: 119490 | D113: 124576.0332 | E113: 125095.5524 | F113: 125586.6604 | G113: 126049.3571 | H113: 126481.6133 | I113: 126875.3115 | J113: 127224.3634 | K113: 127688.7115 | L113: 128154.7544 | M113: 128622.4983
A114: Kuortane | B114: =pohjatiedot!AQ110 -> 3381 | C114: 3478 | D114: 3345.441718 | E114: 3312.846626 | F114: 3278.276074 | G114: 3246.668712 | H114: 3217.03681 | I114: 3189.380368 | J114: 3164.687117 | K114: 3134.937678 | L114: 3105.467897 | M114: 3076.275145
A115: Kurikka | B115: =pohjatiedot!AQ111 -> 19759 | C115: 20393 | D115: 19527.61356 | E115: 19301.23548 | F115: 19080.86743 | G115: 18865.50776 | H115: 18653.1531 | I115: 18440.79844 | J115: 18233.45214 | K115: 18025.35207 | L115: 17819.62707 | M115: 17616.25002
A116: Kustavi | B116: =pohjatiedot!AQ112 -> 949 | C116: 944 | D116: 962.1414441 | E116: 973.4055391 | F116: 985.6083086 | G116: 998.7497527 | H116: 1009.075173 | I116: 1019.400593 | J116: 1030.664688 | K116: 1042.89207 | L116: 1055.264511 | M116: 1067.783735
A117: Kuusamo | B117: =pohjatiedot!AQ113 -> 15019 | C117: 14841 | D117: 14913.02628 | E117: 14809.0711 | F117: 14709.15301 | G117: 14608.22566 | H117: 14507.2983 | I117: 14407.38022 | J117: 14309.48068 | K117: 14210.89483 | L117: 14112.98819 | M117: 14015.75609
A118: Kyyjärvi | B118: =pohjatiedot!AQ114 -> 1174 | C118: 1304 | D118: 1155.686371 | E118: 1136.408867 | F118: 1119.059113 | G118: 1101.70936 | H118: 1083.395731 | I118: 1065.082102 | J118: 1046.768473 | K118: 1029.75514 | L118: 1013.018329 | M118: 996.5535436
A119: Kärkölä | B119: =pohjatiedot!AQ115 -> 4114 | C119: 4334 | D119: 4071.618112 | E119: 4032.1931 | F119: 3996.710589 | G119: 3966.156205 | H119: 3935.601821 | I119: 3908.989938 | J119: 3883.36368 | K119: 3851.491929 | L119: 3819.881758 | M119: 3788.531019
A120: Kärsämäki | B120: =pohjatiedot!AQ116 -> 2440 | C120: 2557 | D120: 2412.091503 | E120: 2386.176471 | F120: 2361.25817 | G120: 2333.349673 | H120: 2308.431373 | I120: 2282.51634 | J120: 2258.594771 | K120: 2233.805204 | L120: 2209.28772 | M120: 2185.03933
A121: Lahti | B121: =pohjatiedot!AQ117 -> 120693 | C121: 120250 | D121: 120833.0429 | E121: 120939.0754 | F121: 121004.0954 | G121: 121034.1046 | H121: 121029.103 | I121: 120997.0932 | J121: 120934.0739 | K121: 120968.5717 | L121: 121003.0793 | M121: 121037.5967
A122: Laihia | B122: =pohjatiedot!AQ118 -> 7682 | C122: 8089 | D122: 7649.991667 | E122: 7616.043434 | F122: 7581.125253 | G122: 7542.327273 | H122: 7497.709596 | I122: 7446.302273 | J122: 7397.804798 | K122: 7358.076602 | L122: 7318.561757 | M122: 7279.259117
A123: Laitila | B123: =pohjatiedot!AQ119 -> 8441 | C123: 8663 | D123: 8413.884355 | E123: 8386.768709 | F123: 8359.653064 | G123: 8329.524569 | H123: 8300.400357 | I123: 8268.263296 | J123: 8233.113385 | K123: 8203.836765 | L123: 8174.664252 | M123: 8145.595475
A124: Lapinjärvi | B124: =pohjatiedot!AQ120 -> 2449 | C124: 2606 | D124: 2430.723881 | E124: 2412.447761 | F124: 2396.095444 | G124: 2379.743126 | H124: 2364.35271 | I124: 2351.847997 | J124: 2340.305185 | K124: 2325.177302 | L124: 2310.147206 | M124: 2295.214267
A125: Lapinlahti | B125: =pohjatiedot!AQ121 -> 8975 | C125: 9404 | D125: 8873.733407 | E125: 8776.438053 | F125: 8681.128319 | G125: 8589.789823 | H125: 8498.451327 | I125: 8410.091261 | J125: 8327.688053 | K125: 8239.108164 | L125: 8151.47048 | M125: 8064.764981
A126: Lappajärvi | B126: =pohjatiedot!AQ122 -> 2789 | C126: 2970 | D126: 2740.478072 | E126: 2692.967017 | F126: 2646.466836 | G126: 2602.999275 | H126: 2557.509967 | I126: 2517.075027 | J126: 2479.672708 | K126: 2438.378418 | L126: 2397.771808 | M126: 2357.841425
A127: Lappeenranta | B127: =pohjatiedot!AQ123 -> 72988 | C127: 72466 | D127: 72928.67896 | E127: 72860.30896 | F127: 72780.87909 | G127: 72698.43291 | H127: 72609.95407 | I127: 72512.42627 | J127: 72404.84405 | K127: 72321.91891 | L127: 72239.08875 | M127: 72156.35345
A128: Lapua | B128: =pohjatiedot!AQ124 -> 14024 | C128: 14296 | D128: 13932.64171 | E128: 13841.28341 | F128: 13753.94087 | G128: 13661.57864 | H128: 13571.22428 | I128: 13477.85811 | J128: 13379.47226 | K128: 13289.84801 | L128: 13200.82411 | M128: 13112.39656
A129: Laukaa | B129: =pohjatiedot!AQ125 -> 18762 | C129: 18985 | D129: 18735.01726 | E129: 18701.03899 | F129: 18662.06392 | G129: 18622.08949 | H129: 18578.11761 | I129: 18532.14701 | J129: 18475.18345 | K129: 18434.57128 | L129: 18394.0484 | M129: 18353.61458
A130: Lemi | B130: =pohjatiedot!AQ126 -> 2862 | C130: 3010 | D130: 2844.248105 | E130: 2826.49621 | F130: 2806.771881 | G130: 2785.075121 | H130: 2763.37836 | I130: 2739.709166 | J130: 2715.053756 | K130: 2694.687973 | L130: 2674.474956 | M130: 2654.413557
A131: Lempäälä | B131: =pohjatiedot!AQ127 -> 24711 | C131: 23574 | D131: 24900.65781 | E131: 25075.18334 | F131: 25235.58543 | G131: 25378.8376 | H131: 25512.00159 | I131: 25634.06859 | J131: 25745.03858 | K131: 25896.26527 | L131: 26048.38026 | M131: 26201.38878
A132: Leppävirta | B132: =pohjatiedot!AQ128 -> 9049 | C132: 9446 | D132: 8952.38437 | E132: 8855.76874 | F132: 8760.149147 | G132: 8668.513704 | H132: 8576.878261 | I132: 8488.23093 | J132: 8406.555861 | K132: 8318.580208 | L132: 8231.525231 | M132: 8145.381296
A133: Lestijärvi | B133: =pohjatiedot!AQ129 -> 682 | C133: 700 | D133: 674.0466472 | E133: 665.0991254 | F133: 656.1516035 | G133: 650.1865889 | H133: 643.2274052 | I133: 635.2740525 | J133: 630.303207 | K133: 623.2462586 | L133: 616.2683207 | M133: 609.3685085
A134: Lieksa | B134: =pohjatiedot!AQ130 -> 10228 | C134: 10633 | D134: 10051.67254 | E134: 9885.420944 | F134: 9723.199685 | G134: 9567.023939 | H134: 9417.901291 | I134: 9276.839326 | J134: 9136.784947 | K134: 8990.708468 | L134: 8846.967421 | M134: 8705.524467
A135: Lieto | B135: =pohjatiedot!AQ131 -> 20637 | C135: 20011 | D135: 20780.20123 | E135: 20921.39965 | F135: 21057.59103 | G135: 21186.77256 | H135: 21304.93862 | I135: 21415.09341 | J135: 21510.2271 | K135: 21637.96207 | L135: 21766.45557 | M135: 21895.71211
A136: Liminka | B136: =pohjatiedot!AQ132 -> 10256 | C136: 10386 | D136: 10284.57923 | E136: 10312.17296 | F136: 10336.81022 | G136: 10359.47651 | H136: 10377.21534 | I136: 10391.0122 | J136: 10409.73652 | K136: 10431.88749 | L136: 10454.08559 | M136: 10476.33093
A137: Liperi | B137: =pohjatiedot!AQ133 -> 11969 | C137: 12017 | D137: 11906.15464 | E137: 11839.25474 | F137: 11771.34121 | G137: 11700.38677 | H137: 11625.37779 | I137: 11545.30064 | J137: 11468.2644 | K137: 11398.46345 | L137: 11329.08735 | M137: 11260.1335
A138: Lohja | B138: =pohjatiedot!AQ134 -> 45645 | C138: 45614 | D138: 45408.33496 | E138: 45177.73825 | F138: 44957.25543 | G138: 44746.88651 | H138: 44548.65425 | I138: 44364.58144 | J138: 44188.59974 | K138: 43984.37523 | L138: 43781.09456 | M138: 43578.75339
A139: Loimaa | B139: =pohjatiedot!AQ135 -> 15420 | C139: 15721 | D139: 15291.44979 | E139: 15168.92536 | F139: 15051.42243 | G139: 14937.93669 | H139: 14828.46815 | I139: 14720.00391 | J139: 14611.53966 | K139: 14499.5596 | L139: 14388.43772 | M139: 14278.16746
A140: Loppi | B140: =pohjatiedot!AQ136 -> 7692 | C140: 7713 | D140: 7644.018713 | E140: 7600.035867 | F140: 7554.053801 | G140: 7512.070175 | H140: 7468.087329 | I140: 7428.102924 | J140: 7390.117739 | K140: 7347.970402 | L140: 7306.063439 | M140: 7264.395481
A141: Loviisa | B141: =pohjatiedot!AQ137 -> 14458 | C141: 14590 | D141: 14367.73153 | E141: 14280.47201 | F141: 14195.21845 | G141: 14119.99473 | H141: 14049.78592 | I141: 13981.58307 | J141: 13915.38619 | K141: 13839.55289 | L141: 13764.13285 | M141: 13689.12382
A142: Luhanka | B142: =pohjatiedot!AQ138 -> 702 | C142: 696 | D142: 703.0233236 | E142: 698.9300292 | F142: 698.9300292 | G142: 695.8600583 | H142: 694.8367347 | I142: 694.8367347 | J142: 691.7667638 | K142: 690.3193973 | L142: 688.8750591 | M142: 687.4337428
A143: Lumijoki | B143: =pohjatiedot!AQ139 -> 2033 | C143: 2032 | D143: 2026.97332 | E143: 2017.9333 | F143: 2012.911067 | G143: 2005.879941 | H143: 2000.857708 | I143: 1994.831028 | J143: 1990.813241 | K143: 1984.859002 | L143: 1978.922571 | M143: 1973.003894
A144: Luoto | B144: =pohjatiedot!AQ140 -> 5843 | C144: 5448 | D144: 5920.731686 | E144: 5993.41586 | F144: 6064.08103 | G144: 6132.727194 | H144: 6197.335349 | I144: 6261.943504 | J144: 6322.513649 | K144: 6394.159528 | L144: 6466.617288 | M144: 6539.89613
A145: Luumäki | B145: =pohjatiedot!AQ141 -> 4396 | C145: 4530 | D145: 4344.425121 | E145: 4292.850242 | F145: 4245.320451 | G145: 4196.779388 | H145: 4149.249597 | I145: 4106.776167 | J145: 4062.280193 | K145: 4016.72109 | L145: 3971.67294 | M145: 3927.130012
A146: Maalahti | B146: =pohjatiedot!AQ142 -> 5456 | C146: 5428 | D146: 5444.90852 | E146: 5432.808723 | F146: 5420.708926 | G146: 5406.592497 | H146: 5385.417853 | I146: 5365.251525 | J146: 5347.10183 | K146: 5331.724829 | L146: 5316.392048 | M146: 5301.103362
A147: Marttila | B147: =pohjatiedot!AQ143 -> 1930 | C147: 2008 | D147: 1927.081653 | E147: 1923.190524 | F147: 1920.272177 | G147: 1915.408266 | H147: 1907.626008 | I147: 1900.816532 | J147: 1894.979839 | K147: 1890.029917 | L147: 1885.092925 | M147: 1880.168829
A148: Masku | B148: =pohjatiedot!AQ144 -> 9619 | C148: 9462 | D148: 9601.77073 | E148: 9583.527974 | F148: 9569.339163 | G148: 9558.190812 | H148: 9549.069434 | I148: 9535.89411 | J148: 9523.732273 | K148: 9510.200301 | L148: 9496.687556 | M148: 9483.194011
A149: Merijärvi | B149: =pohjatiedot!AQ145 -> 1055 | C149: 1065 | D149: 1039.710145 | E149: 1025.439614 | F149: 1012.188406 | G149: 997.9178744 | H149: 987.7246377 | I149: 975.4927536 | J149: 963.2608696 | K149: 950.8242098 | L149: 938.5481197 | M149: 926.4305263
A150: Merikarvia | B150: =pohjatiedot!AQ146 -> 2966 | C150: 3064 | D150: 2946.233256 | E150: 2930.41986 | F150: 2915.594802 | G150: 2898.793069 | H150: 2884.956348 | I150: 2869.142952 | J150: 2854.317894 | K150: 2838.710821 | L150: 2823.189086 | M150: 2807.752221
A151: Miehikkälä | B151: =pohjatiedot!AQ147 -> 1752 | C151: 1867 | D151: 1720.163543 | E151: 1693.301533 | F151: 1666.439523 | G151: 1640.572402 | H151: 1616.69506 | I151: 1593.812606 | J151: 1571.925043 | K151: 1547.759055 | L151: 1523.964584 | M151: 1500.535916
A152: Mikkeli | B152: =pohjatiedot!AQ148 -> 51919 | C152: 53316 | D152: 51516.8248 | E152: 51118.69155 | F152: 50719.54782 | G152: 50333.54046 | H152: 49949.55409 | I152: 49575.67262 | J152: 49203.81213 | K152: 48827.69744 | L152: 48454.45778 | M152: 48084.07117
A153: Muhos | B153: =pohjatiedot!AQ149 -> 8827 | C153: 8971 | D153: 8793.947577 | E153: 8763.899921 | F153: 8733.852264 | G153: 8704.806195 | H153: 8675.760127 | I153: 8646.714059 | J153: 8618.669579 | K153: 8589.312304 | L153: 8560.055027 | M153: 8530.897407
A154: Multia | B154: =pohjatiedot!AQ150 -> 1430 | C154: 1514 | D154: 1406.826469 | E154: 1384.618501 | F154: 1364.341661 | G154: 1341.16813 | H154: 1319.925726 | I154: 1298.683322 | J154: 1281.303174 | K154: 1261.363188 | L154: 1241.733515 | M154: 1222.409323
A155: Muonio | B155: =pohjatiedot!AQ151 -> 2325 | C155: 2259 | D155: 2313.713592 | E155: 2303.453222 | F155: 2294.218888 | G155: 2284.984554 | H155: 2274.724184 | I155: 2262.411739 | J155: 2252.151368 | K155: 2241.932674 | L155: 2231.760344 | M155: 2221.63417
A156: Mustasaari | B156: =pohjatiedot!AQ152 -> 19763 | C156: 19521 | D156: 19768.06276 | E156: 19765.02511 | F156: 19756.92468 | G156: 19743.7615 | H156: 19726.54811 | I156: 19696.17153 | J156: 19656.68199 | K156: 19641.54566 | L156: 19626.42099 | M156: 19611.30797
A157: Muurame | B157: =pohjatiedot!AQ153 -> 10551 | C157: 10356 | D157: 10630.00749 | E157: 10701.01422 | F157: 10764.02019 | G157: 10820.0255 | H157: 10870.03024 | I157: 10912.03422 | J157: 10943.03716 | K157: 11000.23128 | L157: 11057.72434 | M157: 11115.51788
A158: Mynämäki | B158: =pohjatiedot!AQ154 -> 7515 | C158: 7661 | D158: 7473.928952 | E158: 7434.86137 | F158: 7397.797254 | G158: 7363.738336 | H158: 7328.677686 | I158: 7295.620501 | J158: 7267.571981 | K158: 7232.897372 | L158: 7198.388202 | M158: 7164.043679
A159: Myrskylä | B159: =pohjatiedot!AQ155 -> 1715 | C159: 1898 | D159: 1697.925885 | E159: 1681.800332 | F159: 1665.674779 | G159: 1655.240597 | H159: 1644.806416 | I159: 1634.372235 | J159: 1624.886615 | K159: 1612.408244 | L159: 1600.025701 | M159: 1587.73825
A160: Mäntsälä | B160: =pohjatiedot!AQ156 -> 20957 | C160: 20618 | D160: 20996.19826 | E160: 21033.38636 | F160: 21076.60496 | G160: 21117.81339 | H160: 21155.00149 | I160: 21194.19975 | J160: 21234.4031 | K160: 21274.33083 | L160: 21314.33364 | M160: 21354.41167
A161: Mänttä-Vilppula | B161: =pohjatiedot!AQ157 -> 9271 | C161: 9628 | D161: 9109.331981 | E161: 8960.882101 | F161: 8821.583242 | G161: 8689.401843 | H161: 8566.371463 | I161: 8449.441764 | J161: 8339.629524 | K161: 8214.453485 | L161: 8091.15631 | M161: 7969.7098
A162: Mäntyharju | B162: =pohjatiedot!AQ158 -> 5522 | C162: 5761 | D162: 5452.07561 | E162: 5388.231602 | F162: 5326.414388 | G162: 5265.610571 | H162: 5208.860341 | I162: 5154.136906 | J162: 5101.440264 | K162: 5044.035525 | L162: 4987.276742 | M162: 4931.156645
A163: Naantali | B163: =pohjatiedot!AQ159 -> 19999 | C163: 19381 | D163: 20074.31047 | E163: 20150.63864 | F163: 20224.9314 | G163: 20295.15333 | H163: 20362.32212 | I163: 20430.50863 | J163: 20496.65971 | K163: 20568.75825 | L163: 20641.1104 | M163: 20713.71706
A164: Nakkila | B164: =pohjatiedot!AQ160 -> 4966 | C164: 5335 | D164: 4898.093936 | E164: 4829.203726 | F164: 4763.265953 | G164: 4700.280618 | H164: 4638.279429 | I164: 4577.262386 | J164: 4518.213635 | K164: 4457.629225 | L164: 4397.857188 | M164: 4338.88663
A165: Nivala | B165: =pohjatiedot!AQ161 -> 10454 | C165: 10584 | D165: 10341.97818 | E165: 10233.03952 | F165: 10119.98997 | G165: 10006.94042 | H165: 9895.946323 | I165: 9781.869052 | J165: 9665.736335 | K165: 9558.088507 | L165: 9451.639559 | M165: 9346.376138
A166: Nokia | B166: =pohjatiedot!AQ162 -> 35647 | C166: 33763 | D166: 35886.51291 | E166: 36109.85618 | F166: 36323.09341 | G166: 36522.18221 | H166: 36707.12256 | I166: 36890.0417 | J166: 37068.91844 | K166: 37276.63577 | L166: 37485.51706 | M166: 37695.56883
A167: Nousiainen | B167: =pohjatiedot!AQ163 -> 4695 | C167: 4662 | D167: 4676.751242 | E167: 4660.530123 | F167: 4644.309005 | G167: 4630.115526 | H167: 4616.935867 | I167: 4603.756208 | J167: 4589.562729 | K167: 4574.695102 | L167: 4559.875637 | M167: 4545.104178
A168: Nurmes | B168: =pohjatiedot!AQ164 -> 9130 | C168: 9475 | D168: 8986.395658 | E168: 8844.813912 | F168: 8711.322552 | G168: 8585.921577 | H168: 8466.588392 | I168: 8351.300399 | J168: 8241.068897 | K168: 8121.353723 | L168: 8003.377611 | M168: 7887.115296
A169: Nurmijärvi | B169: =pohjatiedot!AQ165 -> 44785 | C169: 43080 | D169: 45138.92887 | E169: 45478.86056 | F169: 45810.79386 | G169: 46132.72916 | H169: 46439.66748 | I169: 46738.6074 | J169: 47029.54894 | K169: 47359.26078 | L169: 47691.28415 | M169: 48025.63525
A170: Närpiö | B170: =pohjatiedot!AQ166 -> 9621 | C170: 9481 | D170: 9632.022914 | E170: 9642.043745 | F170: 9648.056244 | G170: 9654.068743 | H170: 9658.077075 | I170: 9662.085408 | J170: 9665.091657 | K170: 9671.40737 | L170: 9677.727209 | M170: 9684.051179
A171: Orimattila | B171: =pohjatiedot!AQ167 -> 15669 | C171: 15944 | D171: 15576.68184 | E171: 15486.37061 | F171: 15401.07666 | G171: 15318.79308 | H171: 15236.50951 | I171: 15153.22248 | J171: 15075.9562 | K171: 14993.0886 | L171: 14910.67651 | M171: 14828.7174
A172: Oripää | B172: =pohjatiedot!AQ168 -> 1315 | C172: 1335 | D172: 1310 | E172: 1305 | F172: 1301 | G172: 1298 | H172: 1295 | I172: 1290 | J172: 1288 | K172: 1284.188851 | L172: 1280.388979 | M172: 1276.60035
A173: Orivesi | B173: =pohjatiedot!AQ169 -> 8839 | C173: 9034 | D173: 8763.306348 | E173: 8692.65894 | F173: 8624.03003 | G173: 8558.428865 | H173: 8496.864695 | I173: 8436.309774 | J173: 8381.810345 | K173: 8318.458952 | L173: 8255.586381 | M173: 8193.189014
A174: Oulainen | B174: =pohjatiedot!AQ170 -> 6978 | C174: 7265 | D174: 6895.121089 | E174: 6814.263615 | F174: 6734.41686 | G174: 6656.591541 | H174: 6582.809096 | I174: 6514.080243 | J174: 6445.35139 | K174: 6372.653834 | L174: 6300.776238 | M174: 6229.709355
A175: Oulu | B175: =pohjatiedot!AQ171 -> 214633 | C175: 206723 | D175: 216344.4665 | E175: 217961.299 | F175: 219488.5311 | G175: 220946.2979 | H175: 222336.6127 | I175: 223656.4554 | J175: 224895.7585 | K175: 226401.4604 | L175: 227917.2431 | M175: 229443.1742
A176: Outokumpu | B176: =pohjatiedot!AQ172 -> 6409 | C176: 6602 | D176: 6309.38888 | E176: 6211.831598 | F176: 6113.247396 | G176: 6020.824708 | H176: 5927.3751 | I176: 5842.140843 | J176: 5756.906585 | K176: 5669.332664 | L176: 5583.090915 | M176: 5498.161074
A177: Padasjoki | B177: =pohjatiedot!AQ173 -> 2726 | C177: 2843 | D177: 2685.911765 | E177: 2647.827941 | F177: 2611.748529 | G177: 2577.673529 | H177: 2544.600735 | I177: 2514.534559 | J177: 2485.470588 | K177: 2452.888771 | L177: 2420.734066 | M177: 2389.000874
A178: Paimio | B178: =pohjatiedot!AQ174 -> 11236 | C178: 10882 | D178: 11287.75542 | E178: 11338.49603 | F178: 11386.1922 | G178: 11429.82912 | H178: 11467.37717 | I178: 11500.86597 | J178: 11530.29552 | K178: 11572.96546 | L178: 11615.7933 | M178: 11658.77964
A179: Paltamo | B179: =pohjatiedot!AQ175 -> 3037 | C179: 3231 | D179: 2995.773756 | E179: 2956.510666 | F179: 2919.21073 | G179: 2883.87395 | H179: 2849.518746 | I179: 2815.163542 | J179: 2782.771493 | K179: 2748.234291 | L179: 2714.125732 | M179: 2680.440498
